Workbook

Sheet Cover
B1: THE INDEPENDENT PRICING AND REGULATORY TRIBUNAL OF NSW
B3: IPART IMPORT PARITY PRICING MODEL FOR WHOLESALE ETHANOL
B5: Before using this Model
B7: Please note that:
B8: - | C8: To use this model, the regional setting on your computer must be English (Australia) and 'Excel Macro' must be enabled.
B9: - | C9: The model has Macros which fetch data from other websites. Run the Macros at your own risk.
B10: - | C10: Data from other websites will be downloaded automatically when opening. To disable automatic refresh, go to "Developer" → "Macro Security" → "External Content"
C11: → Select "Disable automatic update of Workbook Links" under "Security settings for Workbook Links"
B13: Overview of the Model
B15: This model calculates an import parity price (IPP) for wholesale ethanol for discrete four-week pricing periods, excluding GST.
B17: Information on how to use the model is provided in the | M17: "Instruction" | P17: worksheet. There are four worksheets:
C18: - | D18: Main_Page | M18: : This is the main page of the model, which provides user interface and key results including the IPP for a relevant pricing period.
C19: - | D19: Import_ESALQ and Import_ExchangeRate | M19: : These worksheets are where weekly international benchmark price for ethanol and daily exchange rates are download.
C20: - | D20: Other_Inputs | M20: : This worksheet contains inputs other than international benchmark prices and exchange rates.
B22: An IPP for wholesale ethanol is calculated using a similar approach to that used for calculating an IPP for petrol. Specifically, the model calculates IPP as the sum of
C23: - | D23: International benchmark price for ethanol
C24: - | D24: Freight and terminal charges at export terminal
C25: - | D25: Sea freight charge to Australia
C26: - | D26: Insurance and loss
C27: - | D27: Wharfage
C28: - | D28: Landing costs (ie, excise and import duties)
C29: - | D29: Storage and handling costs at import terminal
C30: - | D30: Transport costs from port to wholesale terminal
B32: For more details, see IPART's Draft Report, Review of a reasonable price for wholesale ethanol in automotive fuel blends (October 2016), available on our website at
C33: https://www.ipart.nsw.gov.au/Home/Industries/Special-Reviews/Reviews/Ethanol/Review-of-maximum-price-for-Wholesale-Ethanol-in-NSW
B35: Data Source
B37: Table 1 summarises data sources used in this model to calculate an IPP for wholesale ethanol.
B39: Table 1 Data source for calculating an IPP for wholesale ethanol
B40: IPP component | N40: Data source
B41: International benchmark price for ethanol | N41: ESALQ ethanol price index
B42: Freight and terminal charges at export terminal | N42: EnergyQuest report, 2010
B43: Sea freight charge to Australia | N43: EnergyQuest report, 2010
B44: Insurance and loss | N44: EnergyQuest report, 2010
B45: Wharfage (Port Botany) | N45: Port Authority NSW
B46: Import duty | N46: Australian Taxation Office
B47: Fuel excise
B48: Storage and handling costs at import terminal | N48: IPART assumption
B49: Transport costs from port to wholesale terminal | N49: IPART estimate based on AECOM's analysis
B50: AUD/USD exchange rates | N50: Reserve Bank of Australia, http://www.rba.gov.au/statistics/historical-data.html
B51: Source: IPART, Review of a reasonable price for wholesale ethanol in automotive fuel blends, Draft Report, October 2016, pp 27-37.
B53: Methodology for estimating individual IPP components
B55: Table 2 summarises how individual IPP components are estimated in this model.
B57: Table 2 Estimating individual IPP component
B58: IPP component | N58: Methodology/Assumption
B59: International benchmark price for ethanol | N59: ESALQ ethanol price indices are published weekly. The model uses a 15-week rolling average of ESALQ prices, estimated one week
N60: prior to each pricing period. AUD/USD exchange rates are averaged over the same period.
B61: Freight and terminal charges at export terminal | N61: The model uses an estimate of USD 60 per tonne, sourced from a 2010 report by EnergyQuest to the ACCC. AUD/USD exchange rates are
N62: are estimated one week prior to the beginning of each pricing period as an average over the previous 11 weeks.
B63: Sea freight charge to Australia | N63: The model uses an estimate of USD 110 per tonne, sourced from EnergyQuest's 2010 report. AUD/USD exchange rates are estimated
N64: one week prior to the beginning of each pricing period as an average over the previous 11 weeks
B65: Insurance and loss | N65: Insurance costs and loss are estimated using the following formula (from EnergyQuest's 2010 report):
O66: 0.4% x (FOB value + Sea freight charge) x 110%
B67: Wharfage (Port Botany) | N67: The model uses a wharfage cost of AUD2.19 per tonne, excluding GST. This is the current rate for the wharfage of bulk liquids per tonne
N68: at Port Botany, Sydney.
B69: Import duty | N69: 4% import duty is applied to the FOB price of the ethanol.
B70: Fuel excise | N70: Fuel excise is currently 39.6 cents per litre.
B71: Storage and handling costs at import terminal | N71: Total costs for storage and handling at import terminal are assumed to be 3 cents per litre.
B72: Transport costs from port to wholesale terminal | N72: The model uses IPART's estimate of 1 cents per litre. This is based on AECOM's estimated costs of long-haul road transport of ethanol
N73: in Australia in its investigation into new entrant costs of production.
B74: Source: IPART, Review of a reasonable price for wholesale ethanol in automotive fuel blends, Draft Report, October 2016, pp 27-37.
B76: Colour coding
B78: The colour coding of this model is as follows
B79: Light blue sheet shows results
B80: Blue cells indicate inputs
B81: Light yellow sheets contain inputs
B83: Disclaimer
B85: This model is developed by Independent Pricing and Regulatory Tribunal (IPART) as part of the Review of a reasonable price for wholesale ethanol in automotive fuel blends, October 2016.
B86: Unless otherwise indicated, copyright of this model is maintained by IPART. All rights are reserved. Apart from any use as permitted under the Copyright Act 1968 no part of this model may be reproduced by any process
B87: without prior written permission. Requests and inquiries concerning reproduction and rights should be addressed to:
C88: Michelle James
C89: Right to Information Officer
C90: Email: | E90: Michelle_James@ipart.nsw.gov.au
C91: Post:PO Box K35, Haymarket Post Shop, NSW 1240.
B93: This model contains hyperlinks and other pointers to internet websites operated by third parties. These linked websites are not under the control of IPART, and IPART is not responsible for the contents of any linked
B94: website or any hyperlink contained in a link to a website. IPART provides these hyperlinks to you as a convenience only, and the inclusion of any link does not imply any endorsement of the linked website or its contents
B95: by IPART.
B97: IPART is not liable to you or anyone else for any loss in connection with use of this model or a linked website.
B99: Inquiries concerning this model should be addressed to:
C100: Jenny Suh
C101: Email: | E101: Jenny_Suh@IPART.nsw.gov.au
B103: Version Current as of 25 October 2016

Sheet Instruction
B1: THE INDEPENDENT PRICING AND REGULATORY TRIBUNAL OF NSW
B3: NAVIGATING THE MODEL AND OBTAINING IMPORT PARITY PRICE (IPP)
B5: Inputs
B7: To calculate an IPP, please provide inputs by following the four steps described below.
B9: - | C9: Step 1: | E9: Go to the | G9: Main_Page
B11: - | C11: Step 2: | E11: Enter a date on which you want to calculate an import parity price (IPP)
E12: Date must be greater than 4 January 2015 and in the format of DD-MMM-YYYY.
B21: - | C21: Step 3 | E21: Import international benchmark price for ethanol (ESALQ prices) by clicking "CLICK HERE" (circled in red).
E32: You will then be taken to the | L32: "Import_ESALQ" | P32: worksheet. To import ESALQ price, click the button circled in red.
E33: Data will be automatically downloaded through an external link and you will be taken back to the main page.
B43: - | C43: Step 4 | E43: Import AUD/USD exchange rates from the Reserve Bank of Australia by clicking "CLICK HERE" circled in red.
E55: You will then be taken to the | L55: "Import_ExchangeRate" | R55: worksheet. To import AUD/USD exchange rates, click the button circled in red'
E56: Data will be automatically downloaded through an external link and you will be taken back to the main page.
B65: Outputs
B67: The main page will also show the results.
B69: - | C69: On the right side panel, the model presents
C70: ∙ | D70: IPP price for the relevant pricing period based on the date entered.
C71: ∙ | D71: IPP prices for up to the last 12 pricing periods
C72: ∙ | D72: time-series of IPPs over various periods to the end of the relevant pricing period. Options are 4 weeks, 12 weeks, 6 months and 1 year.
B74: - | C74: On the bottom left side panel, the model provides the breakdown of the IPP for the relevant pricing period based on the date entered.

Sheet Main_Page
B2: Import Parity Price (IPP) for Ethanol
B6: IPP PRICING DATE | Z6: WHOLESALE ETHANOL PRICE BASED ON IPP (ex-GST)
Z8: =IF(I58=1,"∙","") -> ∙ | AA8: =IF(I58=1,"IPP for the period "&F51,"IPP as of "&TEXT(Date_Input,"dd-mm-yyyy")&" cannot be estimated due to insufficient data") -> IPP for the period from 10-Oct-2016 to 06-Nov-2016 | AQ8: =IF(I58=1,INDEX(Calculation!$O$10:$O$1423,MATCH(AC13+4,Calculation!$C$10:$C$1423,0))*100,"") -> 134.7323083 | AT8: =IF(I58=1,"cents per litre","") -> cents per litre
B9: ∙ | C9: Enter a date: | I9: 2016-10-25
Z10: =IF(I58=1,"∙","") -> ∙ | AA10: ="IPPs applicable for exemptions for the last "&COUNTIFS(AI13:AN24,">0")&" pricing periods:" -> IPPs applicable for exemptions for the last 12 pricing periods:
C11: =IF(I58=1,"The pricing period for IPP calculation is "&F51,"") -> The pricing period for IPP calculation is from 10-Oct-2016 to 06-Nov-2016 | AC11: Pricing Period | AI11: IPP
AC12: Start date | AF12: End date | AI12: (cents per litre, ex-GST)
AB13: 0 | AC13: =IF(ISERR(INDEX(Week!$J$11:$J$1423,$H$50-AB13)),"",INDEX(Week!$J$11:$J$1423,$H$50-AB13)) -> 2016-10-10 | AF13: =IF(ISERR(INDEX(Week!$M$11:$M$1423,$H$50-AB13)),"",INDEX(Week!$M$11:$M$1423,$H$50-AB13)) -> 2016-11-06 | AI13: =IF(ISERR(INDEX(Calculation!$O$10:$O$1423,MATCH(AC13+4,Calculation!$C$10:$C$1423,0))*100),"",INDEX(Calculation!$O$10:$O$1423,MATCH(AC13+4,Calculation!$C$10:$C$1423,0))*100) -> 134.7323083
B14: IMPORT DATA FOR IPP PRICING | AB14: 1 | AC14: =IF(ISERR(INDEX(Week!$J$11:$J$1423,$H$50-AB14)),"",INDEX(Week!$J$11:$J$1423,$H$50-AB14)) -> 2016-09-12 | AF14: =IF(ISERR(INDEX(Week!$M$11:$M$1423,$H$50-AB14)),"",INDEX(Week!$M$11:$M$1423,$H$50-AB14)) -> 2016-10-09 | AI14: =IF(ISERR(INDEX(Calculation!$O$10:$O$1423,MATCH(AC14+4,Calculation!$C$10:$C$1423,0))*100),"",INDEX(Calculation!$O$10:$O$1423,MATCH(AC14+4,Calculation!$C$10:$C$1423,0))*100) -> 132.526109
AB15: 2 | AC15: =IF(ISERR(INDEX(Week!$J$11:$J$1423,$H$50-AB15)),"",INDEX(Week!$J$11:$J$1423,$H$50-AB15)) -> 2016-08-15 | AF15: =IF(ISERR(INDEX(Week!$M$11:$M$1423,$H$50-AB15)),"",INDEX(Week!$M$11:$M$1423,$H$50-AB15)) -> 2016-09-11 | AI15: =IF(ISERR(INDEX(Calculation!$O$10:$O$1423,MATCH(AC15+4,Calculation!$C$10:$C$1423,0))*100),"",INDEX(Calculation!$O$10:$O$1423,MATCH(AC15+4,Calculation!$C$10:$C$1423,0))*100) -> 129.5336531
AB16: 3 | AC16: =IF(ISERR(INDEX(Week!$J$11:$J$1423,$H$50-AB16)),"",INDEX(Week!$J$11:$J$1423,$H$50-AB16)) -> 2016-07-18 | AF16: =IF(ISERR(INDEX(Week!$M$11:$M$1423,$H$50-AB16)),"",INDEX(Week!$M$11:$M$1423,$H$50-AB16)) -> 2016-08-14 | AI16: =IF(ISERR(INDEX(Calculation!$O$10:$O$1423,MATCH(AC16+4,Calculation!$C$10:$C$1423,0))*100),"",INDEX(Calculation!$O$10:$O$1423,MATCH(AC16+4,Calculation!$C$10:$C$1423,0))*100) -> 128.0634904
C17: Import ESALQ prices | J17: CLICK HERE | AB17: 4 | AC17: =IF(ISERR(INDEX(Week!$J$11:$J$1423,$H$50-AB17)),"",INDEX(Week!$J$11:$J$1423,$H$50-AB17)) -> 2016-06-20 | AF17: =IF(ISERR(INDEX(Week!$M$11:$M$1423,$H$50-AB17)),"",INDEX(Week!$M$11:$M$1423,$H$50-AB17)) -> 2016-07-17 | AI17: =IF(ISERR(INDEX(Calculation!$O$10:$O$1423,MATCH(AC17+4,Calculation!$C$10:$C$1423,0))*100),"",INDEX(Calculation!$O$10:$O$1423,MATCH(AC17+4,Calculation!$C$10:$C$1423,0))*100) -> 130.3419485
AB18: 5 | AC18: =IF(ISERR(INDEX(Week!$J$11:$J$1423,$H$50-AB18)),"",INDEX(Week!$J$11:$J$1423,$H$50-AB18)) -> 2016-05-23 | AF18: =IF(ISERR(INDEX(Week!$M$11:$M$1423,$H$50-AB18)),"",INDEX(Week!$M$11:$M$1423,$H$50-AB18)) -> 2016-06-19 | AI18: =IF(ISERR(INDEX(Calculation!$O$10:$O$1423,MATCH(AC18+4,Calculation!$C$10:$C$1423,0))*100),"",INDEX(Calculation!$O$10:$O$1423,MATCH(AC18+4,Calculation!$C$10:$C$1423,0))*100) -> 132.9947395
AB19: 6 | AC19: =IF(ISERR(INDEX(Week!$J$11:$J$1423,$H$50-AB19)),"",INDEX(Week!$J$11:$J$1423,$H$50-AB19)) -> 2016-04-25 | AF19: =IF(ISERR(INDEX(Week!$M$11:$M$1423,$H$50-AB19)),"",INDEX(Week!$M$11:$M$1423,$H$50-AB19)) -> 2016-05-22 | AI19: =IF(ISERR(INDEX(Calculation!$O$10:$O$1423,MATCH(AC19+4,Calculation!$C$10:$C$1423,0))*100),"",INDEX(Calculation!$O$10:$O$1423,MATCH(AC19+4,Calculation!$C$10:$C$1423,0))*100) -> 137.3611109
C20: Import exchange rates | J20: CLICK HERE | AB20: 7 | AC20: =IF(ISERR(INDEX(Week!$J$11:$J$1423,$H$50-AB20)),"",INDEX(Week!$J$11:$J$1423,$H$50-AB20)) -> 2016-03-28 | AF20: =IF(ISERR(INDEX(Week!$M$11:$M$1423,$H$50-AB20)),"",INDEX(Week!$M$11:$M$1423,$H$50-AB20)) -> 2016-04-24 | AI20: =IF(ISERR(INDEX(Calculation!$O$10:$O$1423,MATCH(AC20+4,Calculation!$C$10:$C$1423,0))*100),"",INDEX(Calculation!$O$10:$O$1423,MATCH(AC20+4,Calculation!$C$10:$C$1423,0))*100) -> 138.4429954
AB21: 8 | AC21: =IF(ISERR(INDEX(Week!$J$11:$J$1423,$H$50-AB21)),"",INDEX(Week!$J$11:$J$1423,$H$50-AB21)) -> 2016-02-29 | AF21: =IF(ISERR(INDEX(Week!$M$11:$M$1423,$H$50-AB21)),"",INDEX(Week!$M$11:$M$1423,$H$50-AB21)) -> 2016-03-27 | AI21: =IF(ISERR(INDEX(Calculation!$O$10:$O$1423,MATCH(AC21+4,Calculation!$C$10:$C$1423,0))*100),"",INDEX(Calculation!$O$10:$O$1423,MATCH(AC21+4,Calculation!$C$10:$C$1423,0))*100) -> 138.0465614
AB22: 9 | AC22: =IF(ISERR(INDEX(Week!$J$11:$J$1423,$H$50-AB22)),"",INDEX(Week!$J$11:$J$1423,$H$50-AB22)) -> 2016-02-01 | AF22: =IF(ISERR(INDEX(Week!$M$11:$M$1423,$H$50-AB22)),"",INDEX(Week!$M$11:$M$1423,$H$50-AB22)) -> 2016-02-28 | AI22: =IF(ISERR(INDEX(Calculation!$O$10:$O$1423,MATCH(AC22+4,Calculation!$C$10:$C$1423,0))*100),"",INDEX(Calculation!$O$10:$O$1423,MATCH(AC22+4,Calculation!$C$10:$C$1423,0))*100) -> 135.3469641
AB23: 10 | AC23: =IF(ISERR(INDEX(Week!$J$11:$J$1423,$H$50-AB23)),"",INDEX(Week!$J$11:$J$1423,$H$50-AB23)) -> 2016-01-04 | AF23: =IF(ISERR(INDEX(Week!$M$11:$M$1423,$H$50-AB23)),"",INDEX(Week!$M$11:$M$1423,$H$50-AB23)) -> 2016-01-31 | AI23: =IF(ISERR(INDEX(Calculation!$O$10:$O$1423,MATCH(AC23+4,Calculation!$C$10:$C$1423,0))*100),"",INDEX(Calculation!$O$10:$O$1423,MATCH(AC23+4,Calculation!$C$10:$C$1423,0))*100) -> 130.6124297
AB24: 11 | AC24: =IF(ISERR(INDEX(Week!$J$11:$J$1423,$H$50-AB24)),"",INDEX(Week!$J$11:$J$1423,$H$50-AB24)) -> 2015-12-07 | AF24: =IF(ISERR(INDEX(Week!$M$11:$M$1423,$H$50-AB24)),"",INDEX(Week!$M$11:$M$1423,$H$50-AB24)) -> 2016-01-03 | AI24: =IF(ISERR(INDEX(Calculation!$O$10:$O$1423,MATCH(AC24+4,Calculation!$C$10:$C$1423,0))*100),"",INDEX(Calculation!$O$10:$O$1423,MATCH(AC24+4,Calculation!$C$10:$C$1423,0))*100) -> 125.8432218
B25: IPP BREAKDOWN
Z26: =IF(I58=1,"∙","") -> ∙ | AA26: =IF(I58=1,"Graph IPPs in the ","") -> Graph IPPs in the | AG26: 4 | AL26: =IF(I58=1," from "&TEXT(OFFSET(ChartInput2!A4,ChartInput2!D2-1,,),"dd-mmm-yyyy")&" to "&TEXT(F53,"dd-mmm-yyyy"),"") -> from 09-Nov-2015 to 06-Nov-2016
C27: Pricing component | U27: cents per litre
C28: International ethanol benchmark price FOB
D29: International benchmark price at mill gate | T29: =IF(I58=1,INDEX(Calculation!$D$10:$D$1423,I57)*100,"") -> 69.83920471
D30: Freight and port costs (Brazil) | T30: =IF(I58=1,INDEX(Calculation!$F$10:$F$1423,I57)*100,"") -> 6.258510564
C31: Ethanol price - FOB Santos | T31: =IF(I58=1,SUM(T29:T30),"") -> 76.09771527
C32: Transport, storage and handling costs
D33: Freight (Sea) | T33: =IF(I58=1,INDEX(Calculation!$G$10:$G$1423,I57)*100,"") -> 11.4327013
D34: Wharfage Sydney | T34: =IF(I58=1,INDEX(Calculation!$H$10:$H$1423,I57)*100,"") -> 0.3851338329
D35: Insurance costs | T35: =IF(I58=1,INDEX(Calculation!$I$10:$I$1423,I57)*100,"") -> 0.1728492502
D36: Storage and handling costs (import terminal) | T36: =IF(I58=1,INDEX(Calculation!$J$10:$J$1423,I57)*100,"") -> 3
D37: Transport from port to wholesaler terminal | T37: =IF(I58=1,INDEX(Calculation!$K$10:$K$1423,I57)*100,"") -> 1
C38: Total transport, storage and handling costs | T38: =IF(I58=1,SUM(T33:U37),"") -> 15.99068438
C39: Landing costs (taxes)
D40: Customs value duty | T40: =IF(I58=1,INDEX(Calculation!$L$10:$L$1423,I57)*100,"") -> 3.043908611
D41: Customs fuel import duty | T41: =IF(I58=1,INDEX(Calculation!$M$10:$M$1423,I57)*100,"") -> 39.6
C42: Total landing costs (taxes) | T42: =IF(I58=1,SUM(T40:U41),"") -> 42.64390861
C43: Ethanol IPP delivered to wholesale terminal (ex-GST) | T43: =IF(I58=1,T31+T38+T42,"") -> 134.7323083
B49: Date entered (yyyy.m.w) | G49: =YEAR(I9)&"."&MONTH(I9)&"."&WEEKNUM(I9) -> 2016.10.44
B50: 4-week period location: | H50: =MATCH(1,Week!$N$11:$N$1423,0) -> 24
B51: IPP pricing period: | F51: ="from "&TEXT(F52,"dd-mmm-yyyy")&" to "&TEXT(F53,"dd-mmm-yyyy") -> from 10-Oct-2016 to 06-Nov-2016
C52: Start | E52: =TEXT(F52,"ddd") -> Mon | F52: =INDEX(Week!$J$11:$J$1423,H50) -> 2016-10-10
C53: End | E53: =TEXT(F53,"ddd") -> Sun | F53: =INDEX(Week!$M$11:$M$1423,H50) -> 2016-11-06
B55: Check for data availability
F56: Fri | G56: =F52+4 -> 2016-10-14
I57: =MATCH(G56,Week!$D$10:$D$1423,0) -> 720
B58: IPP available? (1=Yes, 0=No) | I58: =IF(AND(ISNUMBER(INDEX(Calculation!$S$10:$S$1423,$I$57)),ISNUMBER(INDEX(Calculation!$U$10:$U$1423,$I$57)),ISNUMBER(INDEX(Calculation!$V$10:$V$1423,$I$57))),1,0) -> 1
B59: Check = 0 | I59: =AQ8-T43 -> 0
B63: Week range
B64: current pricing period | D64: 1 | E64: 4 weeks
B65: last three pricing periods | D65: 3 | E65: 12 weeks
B66: last six pricing periods | D66: 6 | E66: 6 months
B67: last one year | D67: 13 | E67: 1 year

Sheet Import_ESALQ
B6: CEPEA/ESALQ Ethanol Index - São Paulo State
B8: Weekly Average Price in cash* - FUEL ETHANOL
B9: Date | C9: Anhydrous US$/liter | D9: Hydrous US$/liter
B10: 10/21/2016 | C10: 0.6647 | D10: 0.601
B11: 10/14/2016 | C11: 0.6349 | D11: 0.5912
B12: 42561 | C12: 0.6109 | D12: 0.5462
B13: 09/30/2016 | C13: 0.5908 | D13: 0.5337
B14: 09/23/2016 | C14: 0.5835 | D14: 0.5221
B15: 09/16/2016 | C15: 0.5365 | D15: 0.4921
B16: 42622 | C16: 0.5352 | D16: 0.4941
B17: 42409 | C17: 0.5285 | D17: 0.4818
B18: 08/26/2016 | C18: 0.5338 | D18: 0.4788
B19: 08/19/2016 | C19: 0.5416 | D19: 0.4857
B20: 42712 | C20: 0.5504 | D20: 0.498
B21: 42498 | C21: 0.529 | D21: 0.4869
B22: 07/29/2016 | C22: 0.5183 | D22: 0.4764
B23: 07/22/2016 | C23: 0.4976 | D23: 0.4721
B24: 07/15/2016 | C24: 0.4935 | D24: 0.4476
B25: 42589 | C25: 0.4901 | D25: 0.436
B26: 42376 | C26: 0.5095 | D26: 0.442
B27: 06/24/2016 | C27: 0.4904 | D27: 0.4301
B28: 06/17/2016 | C28: 0.4851 | D28: 0.4255
B29: 42649 | C29: 0.5062 | D29: 0.448
B30: 42435 | C30: 0.4751 | D30: 0.4284
B31: 05/27/2016 | C31: 0.4506 | D31: 0.4114
B32: 05/20/2016 | C32: 0.4446 | D32: 0.3999
B33: 05/13/2016 | C33: 0.4377 | D33: 0.3942
B34: 42526 | C34: 0.4346 | D34: 0.3791
B35: 04/29/2016 | C35: 0.4411 | D35: 0.3837
B36: 04/22/2016 | C36: 0.4385 | D36: 0.3853
B37: 04/15/2016 | C37: 0.4517 | D37: 0.3913
B38: 42586 | C38: 0.452 | D38: 0.3934
B39: 42373 | C39: 0.5557 | D39: 0.4584
B40: 03/24/2016 | C40: 0.5651 | D40: 0.5059
B41: 03/18/2016 | C41: 0.567 | D41: 0.5257
B42: 42677 | C42: 0.5671 | D42: 0.5282
B43: 42463 | C43: 0.5366 | D43: 0.5028
B44: 02/26/2016 | C44: 0.5299 | D44: 0.4897
B45: 02/19/2016 | C45: 0.52 | D45: 0.4781
B46: 42706 | C46: 0.5308 | D46: 0.4795
B47: 42492 | C47: 0.5323 | D47: 0.4808
B48: 01/29/2016 | C48: 0.5064 | D48: 0.4558
B49: 01/22/2016 | C49: 0.5031 | D49: 0.4514
B50: 01/15/2016 | C50: 0.5163 | D50: 0.4621
B51: 42583 | C51: 0.5002 | D51: 0.4437
B52: 12/30/2015 | C52: 0.5004 | D52: 0.4423
B53: 12/23/2015 | C53: 0.4885 | D53: 0.4272
B54: 12/18/2015 | C54: 0.4966 | D54: 0.4385
B55: 42320 | C55: 0.5079 | D55: 0.4476
B56: 42106 | C56: 0.511 | D56: 0.4449
B57: 11/27/2015 | C57: 0.5275 | D57: 0.4588
B58: 11/20/2015 | C58: 0.5239 | D58: 0.4592
B59: 11/13/2015 | C59: 0.5309 | D59: 0.4596
B60: 42166 | C60: 0.505 | D60: 0.4506
B61: 10/30/2015 | C61: 0.4598 | D61: 0.4159
B62: 10/23/2015 | C62: 0.4431 | D62: 0.3952
B63: 10/16/2015 | C63: 0.4487 | D63: 0.399
B64: 42257 | C64: 0.4434 | D64: 0.3964
B65: 42045 | C65: 0.3931 | D65: 0.3641
B66: 09/25/2015 | C66: 0.3545 | D66: 0.3222
B67: 09/18/2015 | C67: 0.3657 | D67: 0.3362
B68: 42317 | C68: 0.3586 | D68: 0.3275
B69: 42103 | C69: 0.3581 | D69: 0.3183
B70: 08/28/2015 | C70: 0.3733 | D70: 0.3287
B71: 08/21/2015 | C71: 0.3876 | D71: 0.335
B72: 08/14/2015 | C72: 0.3827 | D72: 0.3373
B73: 42193 | C73: 0.3863 | D73: 0.3381
B74: 07/31/2015 | C74: 0.4034 | D74: 0.3498
B75: 07/24/2015 | C75: 0.4223 | D75: 0.3673
B76: 07/17/2015 | C76: 0.4356 | D76: 0.3846
B77: 42284 | C77: 0.4282 | D77: 0.3856
B78: 42070 | C78: 0.4344 | D78: 0.3788
B79: 06/26/2015 | C79: 0.4381 | D79: 0.3833
B80: 06/19/2015 | C80: 0.4436 | D80: 0.3951
B81: 42344 | C81: 0.4449 | D81: 0.3943
B82: 42130 | C82: 0.4414 | D82: 0.3937
B83: 05/29/2015 | C83: 0.4376 | D83: 0.3832
B84: 05/22/2015 | C84: 0.4515 | D84: 0.4025
B85: 05/15/2015 | C85: 0.4595 | D85: 0.4082
B86: 42221 | C86: 0.4558 | D86: 0.4048
B87: 04/30/2015 | C87: 0.4793 | D87: 0.4268
B88: 04/24/2015 | C88: 0.4606 | D88: 0.4245
B89: 04/17/2015 | C89: 0.4432 | D89: 0.4133
B90: 42281 | C90: 0.4323 | D90: 0.4065
B91: 42039 | C91: 0.4256 | D91: 0.3959
B92: 03/27/2015 | C92: 0.4211 | D92: 0.3989
B93: 03/20/2015 | C93: 0.418 | D93: 0.3754
B94: 03/13/2015 | C94: 0.4418 | D94: 0.4041
B95: 42158 | C95: 0.4736 | D95: 0.4319
B96: 02/27/2015 | C96: 0.4995 | D96: 0.4603
B97: 02/20/2015 | C97: 0.5222 | D97: 0.4844
B98: 02/13/2015 | C98: 0.5325 | D98: 0.4922
B99: 42157 | C99: 0.5493 | D99: 0.5176
B100: 01/30/2015 | C100: 0.5704 | D100: 0.5325
B101: 01/23/2015 | C101: 0.5618 | D101: 0.5223
B102: 01/16/2015 | C102: 0.5517 | D102: 0.4862
B103: 42248 | C103: 0.5304 | D103: 0.4775
B104: 42036 | C104: 0.5351 | D104: 0.4771
B105: 12/26/2014 | C105: 0.536 | D105: 0.477
B106: 12/19/2014 | C106: 0.5178 | D106: 0.4709
B107: 41985 | C107: 0.5295 | D107: 0.482
B108: 41771 | C108: 0.5401 | D108: 0.4912
B109: 11/28/2014 | C109: 0.5344 | D109: 0.486
B110: 11/21/2014 | C110: 0.5233 | D110: 0.4763
B111: 11/14/2014 | C111: 0.5187 | D111: 0.4751
B112: 41831 | C112: 0.5085 | D112: 0.4688
B113: 10/31/2014 | C113: 0.5209 | D113: 0.4578
B114: 10/24/2014 | C114: 0.5235 | D114: 0.458
B115: 10/17/2014 | C115: 0.5382 | D115: 0.4713
B116: 41922 | C116: 0.5497 | D116: 0.4739
B117: 41708 | C117: 0.5338 | D117: 0.464
B118: 09/26/2014 | C118: 0.5555 | D118: 0.4855
B119: 09/19/2014 | C119: 0.5707 | D119: 0.5108
B120: 41982 | C120: 0.5901 | D120: 0.5321
B121: 41768 | C121: 0.6029 | D121: 0.5494
B122: 08/29/2014 | C122: 0.5863 | D122: 0.5459
B123: 08/22/2014 | C123: 0.5852 | D123: 0.537
B124: 08/15/2014 | C124: 0.5856 | D124: 0.5272
B125: 41859 | C125: 0.5877 | D125: 0.5282
B126: 41647 | C126: 0.595 | D126: 0.5358
B127: 07/25/2014 | C127: 0.6147 | D127: 0.5429
B128: 07/18/2014 | C128: 0.6135 | D128: 0.5548
B129: 41950 | C129: 0.6143 | D129: 0.5597
B130: 41736 | C130: 0.6109 | D130: 0.5591
B131: 06/27/2014 | C131: 0.6068 | D131: 0.5545
B132: 06/20/2014 | C132: 0.5956 | D132: 0.5458
B133: 06/13/2014 | C133: 0.5937 | D133: 0.5449
B134: 41796 | C134: 0.5832 | D134: 0.5319
B135: 05/30/2014 | C135: 0.5995 | D135: 0.5348
B136: 05/23/2014 | C136: 0.6026 | D136: 0.5427
B137: 05/16/2014 | C137: 0.6003 | D137: 0.538
B138: 41887 | C138: 0.6303 | D138: 0.5337
B139: 41675 | C139: 0.6809 | D139: 0.5639
B140: 04/25/2014 | C140: 0.6895 | D140: 0.6077
B141: 04/17/2014 | C141: 0.6857 | D141: 0.6354
B142: 41947 | C142: 0.6928 | D142: 0.5917
B143: 41733 | C143: 0.6991 | D143: 0.5752
B144: 03/28/2014 | C144: 0.6886 | D144: 0.6053
B145: 03/21/2014 | C145: 0.683 | D145: 0.6088
B146: 03/14/2014 | C146: 0.6736 | D146: 0.6066
B147: 41823 | C147: 0.6653 | D147: 0.6171
B148: 02/28/2014 | C148: 0.6601 | D148: 0.6146
B149: 02/21/2014 | C149: 0.6448 | D149: 0.5944
B150: 02/14/2014 | C150: 0.6315 | D150: 0.5741
B151: 41822 | C151: 0.6211 | D151: 0.5506
B152: 01/31/2014 | C152: 0.6079 | D152: 0.5306
B153: 01/24/2014 | C153: 0.6182 | D153: 0.5409
B154: 01/17/2014 | C154: 0.62 | D154: 0.5471
B155: 41913 | C155: 0.6125 | D155: 0.5395
B156: 41699 | C156: 0.6074 | D156: 0.5406
B157: 12/27/2013 | C157: 0.6164 | D157: 0.5419
B158: 12/20/2013 | C158: 0.6188 | D158: 0.5469
B159: 12/13/2013 | C159: 0.6256 | D159: 0.5556
B160: 41437 | C160: 0.6071 | D160: 0.5439
B161: 11/29/2013 | C161: 0.6017 | D161: 0.5382
B162: 11/22/2013 | C162: 0.5983 | D162: 0.5344
B163: 11/14/2013 | C163: 0.582 | D163: 0.5177
B164: 41497 | C164: 0.5827 | D164: 0.5103
B165: 41285 | C165: 0.608 | D165: 0.5263
B166: 10/25/2013 | C166: 0.6031 | D166: 0.5333
B167: 10/18/2013 | C167: 0.6041 | D167: 0.5386
B168: 41588 | C168: 0.5949 | D168: 0.5346
B169: 41374 | C169: 0.5833 | D169: 0.5308
B170: 09/27/2013 | C170: 0.586 | D170: 0.5276
B171: 09/20/2013 | C171: 0.5721 | D171: 0.5129
B172: 09/13/2013 | C172: 0.5643 | D172: 0.5001
B173: 41434 | C173: 0.5439 | D173: 0.4823
B174: 08/30/2013 | C174: 0.5332 | D174: 0.4718
B175: 08/23/2013 | C175: 0.5068 | D175: 0.4525
B176: 08/16/2013 | C176: 0.5239 | D176: 0.4635
B177: 41525 | C177: 0.5418 | D177: 0.4729
B178: 41313 | C178: 0.5548 | D178: 0.4773
B179: 07/26/2013 | C179: 0.5696 | D179: 0.4832
B180: 07/19/2013 | C180: 0.5768 | D180: 0.4909
B181: 41615 | C181: 0.5798 | D181: 0.5014
B182: 41401 | C182: 0.5862 | D182: 0.5116
B183: 06/28/2013 | C183: 0.5951 | D183: 0.5262
B184: 06/21/2013 | C184: 0.5949 | D184: 0.519
B185: 06/14/2013 | C185: 0.6058 | D185: 0.5312
B186: 41461 | C186: 0.6145 | D186: 0.5228
B187: 05/31/2013 | C187: 0.6167 | D187: 0.521
B188: 05/24/2013 | C188: 0.6408 | D188: 0.5319
B189: 05/17/2013 | C189: 0.669 | D189: 0.5611
B190: 41552 | C190: 0.6836 | D190: 0.5693
B191: 41338 | C191: 0.6612 | D191: 0.5606
B192: 04/26/2013 | C192: 0.6815 | D192: 0.5854
B193: 04/19/2013 | C193: 0.6985 | D193: 0.6498
B194: 41612 | C194: 0.6814 | D194: 0.6494
B195: 41398 | C195: 0.663 | D195: 0.603
B196: 03/28/2013 | C196: 0.6634 | D196: 0.597
B197: 03/22/2013 | C197: 0.6686 | D197: 0.6025
B198: 03/15/2013 | C198: 0.6757 | D198: 0.6262
B199: 41489 | C199: 0.6831 | D199: 0.6398
B200: 41277 | C200: 0.6811 | D200: 0.6378
B201: 02/22/2013 | C201: 0.6872 | D201: 0.6418
B202: 02/15/2013 | C202: 0.6858 | D202: 0.6282
B203: 41488 | C203: 0.671 | D203: 0.6048
B204: 41276 | C204: 0.668 | D204: 0.5838
B205: 01/25/2013 | C205: 0.6666 | D205: 0.563
B206: 01/18/2013 | C206: 0.651 | D206: 0.5589
... 532 more rows

Sheet Import_ExchangeRate
B5: F11.1 EXCHANGE RATES ,,,,,,,,,,,,,,,,,,,,,,,,,,,,,,,,,,,,,,,,,,,,,,,,,,,,,,,,,,,,,,,,,,,
B6: Title,A$1=USD,Trade-weighted Index May 1970 = 100,A$1=CNY,A$1=JPY,A$1=EUR,A$1=KRW,A$1=GBP,A$1=SGD,A$1=INR,A$1=THB,A$1=NZD,A$1=TWD,A$1=MYR,A$1=IDR,A$1=VND,A$1=AED,A$1=PGK,A$1=HKD,A$1=CAD,A$1=ZAR,A$1=CHF,A$1=PHP,A$1=SDR,,,,,,,,,,,,,,,,,,,,,,,,,,,,,,,,,,,,,,,,,,,,
B7: Description,AUD/USD Exchange Rate; see notes for further detail.,Australian Dollar Trade-weighted Index,AUD/CNY Exchange Rate,AUD/JPY Exchange Rate,AUD/EUR Exchange Rate,AUD/KRW Exchange Rate,AUD/GBP Exchange Rate,AUD/SGD Exchange Rate,AUD/INR Exchange Rate,AUD/THB Exchange Rate,AUD/NZD Exchange Rate,AUD/TWD Exchange Rate,AUD/MYR Exchange Rate,AUD/IDR Exchange Rate,AUD/VND Exchange Rate,AUD/AED Exchange Rate,AUD/PGK Exchange Rate,AUD/HKD Exchange Rate,AUD/CAD Exchange Rate,AUD/ZAR Exchange Rate,AUD/CHF Exchange Rate,AUD/PHP Exchange Rate,AUD/SDR Exchange Rate,,,,,,,,,,,,,,,,,,,,,,,,,,,,,,,,,,,,,,,,,,,,
B8: Frequency,Daily,Daily,Daily,Daily,Daily,Daily,Daily,Daily,Daily,Daily,Daily,Daily,Daily,Daily,Daily,Daily,Daily,Daily,Daily,Daily,Daily,Daily,Daily,,,,,,,,,,,,,,,,,,,,,,,,,,,,,,,,,,,,,,,,,,,,
B9: Type,Indicative,Indicative,Indicative,Indicative,Indicative,Indicative,Indicative,Indicative,Indicative,Indicative,Indicative,Indicative,Indicative,Indicative,Indicative,Indicative,Indicative,Indicative,Indicative,Indicative,Indicative,Indicative,Indicative,,,,,,,,,,,,,,,,,,,,,,,,,,,,,,,,,,,,,,,,,,,,
B10: Units,USD,Index,CNY,JPY,EUR,KRW,GBP,SGD,INR,THB,NZD,TWD,MYR,IDR,VND,AED,PGK,HKD,CAD,ZAR,CHF,PHP,SDR,,,,,,,,,,,,,,,,,,,,,,,,,,,,,,,,,,,,,,,,,,,,
B11: ,,,,,,,,,,,,,,,,,,,,,,,,,,,,,,,,,,,,,,,,,,,,,,,,,,,,,,,,,,,,,,,,,,,
B12: ,,,,,,,,,,,,,,,,,,,,,,,,,,,,,,,,,,,,,,,,,,,,,,,,,,,,,,,,,,,,,,,,,,,
B13: Source,WM/Reuters,RBA,RBA,RBA,RBA,RBA,RBA,RBA,RBA,RBA,RBA,RBA,RBA,RBA,RBA,RBA,RBA,RBA,RBA,RBA,RBA,RBA,IMF,,,,,,,,,,,,,,,,,,,,,,,,,,,,,,,,,,,,,,,,,,,,
B14: Publication date,24-Oct-2016,24-Oct-2016,24-Oct-2016,24-Oct-2016,24-Oct-2016,24-Oct-2016,24-Oct-2016,24-Oct-2016,24-Oct-2016,24-Oct-2016,24-Oct-2016,24-Oct-2016,24-Oct-2016,24-Oct-2016,24-Oct-2016,24-Oct-2016,24-Oct-2016,24-Oct-2016,24-Oct-2016,28-Nov-2014,24-Oct-2016,30-Nov-2015,24-Oct-2016,,,,,,,,,,,,,,,,,,,,,,,,,,,,,,,,,,,,,,,,,,,,
B15: Series ID,FXRUSD,FXRTWI,FXRCR,FXRJY,FXREUR,FXRSKW,FXRUKPS,FXRSD,FXRIRE,FXRTB,FXRNZD,FXRNTD,FXRMR,FXRIR,FXRVD,FXRUAED,FXRPNGK,FXRHKD,FXRCD,FXRSARD,FXRSF,FXRPHP,FXRSDR,,,,,,,,,,,,,,,,,,,,,,,,,,,,,,,,,,,,,,,,,,,,
B16: 02-Jan-2014,0.8912,68.60,5.3925,93.83,0.6483,936.21,0.5372,1.1277,55.10,29.36,1.0842,26.60,2.9245,10849,18813,3.2729,2.1579,6.9107,0.9478,9.3487,0.7961,39.51,0.5787,,,,,,,,,,,,,,,,,,,,,,,,,,,,,,,,,,,,,,,,,,,,
B17: 03-Jan-2014,0.8982,69.20,5.4368,93.60,0.6574,946.39,0.5462,1.1381,56.01,29.64,1.0899,26.90,2.9582,10974,18948,3.2986,2.1748,6.9648,0.9560,9.5726,0.8076,40.10,0.5843,,,,,,,,,,,,,,,,,,,,,,,,,,,,,,,,,,,,,,,,,,,,
B18: 06-Jan-2014,0.8949,69.10,5.4166,93.41,0.6588,952.44,0.5471,1.1358,55.82,29.64,1.0837,26.85,2.9451,10952,18882,3.2865,2.1668,6.9395,0.9507,9.5557,0.8109,40.05,0.5828,,,,,,,,,,,,,,,,,,,,,,,,,,,,,,,,,,,,,,,,,,,,
B19: 07-Jan-2014,0.8920,68.90,5.3978,93.18,0.6547,952.97,0.5443,1.1325,55.65,29.53,1.0800,26.82,2.9302,10936,18817,3.2759,2.1598,6.9169,0.9526,9.4962,0.8078,39.90,0.5819,,,,,,,,,,,,,,,,,,,,,,,,,,,,,,,,,,,,,,,,,,,,
B20: 08-Jan-2014,0.8931,68.90,5.4045,93.74,0.6551,950.75,0.5440,1.1345,55.58,29.52,1.0768,26.86,2.9298,10930,18840,3.2799,2.1625,6.9254,0.9640,9.5026,0.8111,39.98,0.5819,,,,,,,,,,,,,,,,,,,,,,,,,,,,,,,,,,,,,,,,,,,,
B21: 09-Jan-2014,0.8882,68.60,5.3782,93.15,0.6541,945.73,0.5400,1.1301,55.21,29.31,1.0758,26.73,2.9111,10885,18737,3.2619,2.1506,6.8876,0.9630,9.5641,0.8100,39.76,0.5796,,,,,,,,,,,,,,,,,,,,,,,,,,,,,,,,,,,,,,,,,,,,
B22: 10-Jan-2014,0.8905,68.70,5.3897,93.44,0.6542,945.13,0.5403,1.1306,55.11,29.40,1.0800,26.74,2.9079,10862,18781,3.2704,2.1562,6.9055,0.9662,9.6094,0.8074,39.76,0.5808,,,,,,,,,,,,,,,,,,,,,,,,,,,,,,,,,,,,,,,,,,,,
B23: 13-Jan-2014,0.9036,69.40,5.4630,93.43,0.6606,954.34,0.5476,1.1423,55.60,29.84,1.0846,27.08,2.9417,10882,19057,3.3185,2.1879,7.0069,0.9844,9.6179,0.8141,40.27,0.5896,,,,,,,,,,,,,,,,,,,,,,,,,,,,,,,,,,,,,,,,,,,,
B24: 14-Jan-2014,0.9035,69.40,5.4587,93.31,0.6612,956.35,0.5514,1.1448,55.58,29.71,1.0783,27.13,2.9468,10887,19055,3.3181,2.1877,7.0061,0.9832,9.7614,0.8133,40.40,0.5875,,,,,,,,,,,,,,,,,,,,,,,,,,,,,,,,,,,,,,,,,,,,
B25: 15-Jan-2014,0.8913,68.70,5.3892,93.08,0.6537,947.23,0.5428,1.1328,54.87,29.30,1.0686,26.83,2.9284,10765,18800,3.2733,2.1581,6.9116,0.9782,9.6991,0.8079,40.10,0.5796,,,,,,,,,,,,,,,,,,,,,,,,,,,,,,,,,,,,,,,,,,,,
B26: 16-Jan-2014,0.8814,68.00,5.3350,92.31,0.6470,937.50,0.5384,1.1226,54.31,28.99,1.0584,26.52,2.9051,10681,18591,3.2369,2.1341,6.8350,0.9635,9.6046,0.8007,39.72,0.5744,,,,,,,,,,,,,,,,,,,,,,,,,,,,,,,,,,,,,,,,,,,,
B27: 17-Jan-2014,0.8821,68.00,5.3390,92.09,0.6479,935.69,0.5401,1.1218,54.12,28.88,1.0619,26.54,2.9083,10694,18621,3.2395,2.1358,6.8407,0.9647,9.6008,0.7987,39.77,0.5756,,,,,,,,,,,,,,,,,,,,,,,,,,,,,,,,,,,,,,,,,,,,
B28: 20-Jan-2014,0.8780,67.80,5.3141,91.37,0.6491,933.75,0.5349,1.1209,54.08,28.87,1.0648,26.44,2.9088,10641,18517,3.2245,2.1259,6.8096,0.9619,9.5403,0.8006,39.62,0.5725,,,,,,,,,,,,,,,,,,,,,,,,,,,,,,,,,,,,,,,,,,,,
B29: 21-Jan-2014,0.8819,68.10,5.3373,92.29,0.6512,939.31,0.5369,1.1256,54.24,28.95,1.0593,26.56,2.9242,10693,18604,3.2388,2.1354,6.8405,0.9658,9.5748,0.8045,39.84,0.5751,,,,,,,,,,,,,,,,,,,,,,,,,,,,,,,,,,,,,,,,,,,,
B30: 22-Jan-2014,0.8866,68.50,5.3642,92.39,0.6537,946.89,0.5380,1.1332,54.95,29.16,1.0654,26.76,2.9506,10766,18698,3.2560,2.1467,6.8771,0.9726,9.6090,0.8070,40.14,0.5796,,,,,,,,,,,,,,,,,,,,,,,,,,,,,,,,,,,,,,,,,,,,
B31: 23-Jan-2014,0.8798,68.00,5.3250,91.76,0.6495,943.19,0.5312,1.1276,54.53,29.01,1.0624,26.57,2.9315,10705,18553,3.2311,2.1303,6.8257,0.9804,9.5907,0.8024,39.85,0.5740,,,,,,,,,,,,,,,,,,,,,,,,,,,,,,,,,,,,,,,,,,,,
B32: 24-Jan-2014,0.8716,67.20,5.2709,89.98,0.6369,940.67,0.5239,1.1154,54.24,28.65,1.0548,26.34,2.9055,10616,18378,3.2010,2.1104,6.7661,0.9690,9.5946,0.7826,39.51,0.5672,,,,,,,,,,,,,,,,,,,,,,,,,,,,,,,,,,,,,,,,,,,,
B33: 28-Jan-2014,0.8787,67.80,5.3166,90.23,0.6424,947.63,0.5292,1.1197,55.37,28.90,1.0630,26.69,2.9349,10775,18505,3.2270,2.1276,6.8233,0.9753,9.7140,0.7875,39.80,0.5706,,,,,,,,,,,,,,,,,,,,,,,,,,,,,,,,,,,,,,,,,,,,
B34: 29-Jan-2014,0.8806,67.90,5.3325,90.92,0.6450,941.98,0.5313,1.1210,54.73,28.96,1.0638,26.66,2.9249,10692,18545,3.2340,2.1322,6.8363,0.9816,9.6305,0.7931,39.75,0.5725,,,,,,,,,,,,,,,,,,,,,,,,,,,,,,,,,,,,,,,,,,,,
B35: 30-Jan-2014,0.8726,67.40,5.2864,89.42,0.6393,941.37,0.5269,1.1137,54.80,28.78,1.0675,26.49,2.9186,10659,18377,3.2046,2.1128,6.7763,0.9766,9.8429,0.7823,39.57,0.5668,,,,,,,,,,,,,,,,,,,,,,,,,,,,,,,,,,,,,,,,,,,,
B36: 31-Jan-2014,0.8763,67.70,5.3113,89.75,0.6467,947.15,0.5319,1.1182,54.70,28.94,1.0773,26.60,2.9325,10700,18455,3.2182,2.1218,6.8058,0.9793,9.8146,0.7909,39.73,0.5704,,,,,,,,,,,,,,,,,,,,,,,,,,,,,,,,,,,,,,,,,,,,
B37: 03-Feb-2014,0.8755,67.70,5.3064,89.61,0.6493,947.68,0.5330,1.1184,54.83,28.80,1.0789,26.55,2.9299,10697,18438,3.2153,2.1199,6.7982,0.9731,9.7592,0.7943,39.73,0.5707,,,,,,,,,,,,,,,,,,,,,,,,,,,,,,,,,,,,,,,,,,,,
B38: 04-Feb-2014,0.8880,68.60,5.3822,89.93,0.6574,963.04,0.5453,1.1285,55.66,29.19,1.0939,26.93,2.9643,10844,18701,3.2612,2.1501,6.8951,0.9843,9.9660,0.8018,40.34,0.5799,,,,,,,,,,,,,,,,,,,,,,,,,,,,,,,,,,,,,,,,,,,,
B39: 05-Feb-2014,0.8892,68.60,5.3894,90.20,0.6580,959.85,0.5444,1.1287,55.51,29.14,1.0827,26.96,2.9544,10826,18727,3.2656,2.1530,6.9027,0.9862,9.8915,0.8038,40.33,0.5804,,,,,,,,,,,,,,,,,,,,,,,,,,,,,,,,,,,,,,,,,,,,
B40: 06-Feb-2014,0.8964,69.10,5.4331,91.07,0.6629,964.53,0.5496,1.1377,56.00,29.41,1.0881,27.13,2.9747,10912,18919,3.2920,2.1705,6.9558,0.9920,9.9545,0.8109,40.54,0.5851,,,,,,,,,,,,,,,,,,,,,,,,,,,,,,,,,,,,,,,,,,,,
B41: 07-Feb-2014,0.8940,68.90,5.4207,91.23,0.6578,961.68,0.5476,1.1337,55.75,29.35,1.0853,27.08,2.9699,10876,18868,3.2832,2.1646,6.9372,0.9892,9.8639,0.8051,40.30,0.5835,,,,,,,,,,,,,,,,,,,,,,,,,,,,,,,,,,,,,,,,,,,,
B42: 10-Feb-2014,0.8933,68.80,5.4139,91.51,0.6557,957.66,0.5444,1.1336,55.59,29.29,1.0798,27.06,2.9774,10865,18858,3.2806,2.1630,6.9292,0.9853,9.8924,0.8032,40.15,0.5824,,,,,,,,,,,,,,,,,,,,,,,,,,,,,,,,,,,,,,,,,,,,
B43: 11-Feb-2014,0.9009,69.40,5.4594,92.06,0.6591,965.40,0.5485,1.1432,56.23,29.55,1.0849,27.32,3.0099,10958,19018,3.3086,2.1814,6.9884,0.9976,10.0126,0.8065,40.54,0.5861,,,,,,,,,,,,,,,,,,,,,,,,,,,,,,,,,,,,,,,,,,,,
B44: 12-Feb-2014,0.9050,69.70,5.4855,92.82,0.6640,963.64,0.5502,1.1456,56.25,29.58,1.0850,27.42,3.0114,10955,19105,3.3236,2.1913,7.0193,0.9952,9.9152,0.8129,40.67,0.5882,,,,,,,,,,,,,,,,,,,,,,,,,,,,,,,,,,,,,,,,,,,,
B45: 13-Feb-2014,0.8934,68.70,5.4184,91.24,0.6563,952.01,0.5375,1.1323,55.65,29.12,1.0759,27.09,2.9701,10770,18851,3.2810,2.1632,6.9304,0.9835,9.8765,0.8025,40.14,0.5816,,,,,,,,,,,,,,,,,,,,,,,,,,,,,,,,,,,,,,,,,,,,
B46: 14-Feb-2014,0.8996,69.10,5.4540,91.62,0.6575,955.96,0.5402,1.1377,56.03,29.25,1.0785,27.26,2.9844,10735,18982,3.3038,2.1782,6.9777,0.9852,9.9001,0.8030,40.34,0.5837,,,,,,,,,,,,,,,,,,,,,,,,,,,,,,,,,,,,,,,,,,,,
B47: 17-Feb-2014,0.9049,69.30,5.4860,91.93,0.6600,960.51,0.5390,1.1399,56.17,29.27,1.0809,27.36,2.9826,10580,19096,3.3232,2.1910,7.0182,0.9929,9.8317,0.8063,40.30,0.5860,,,,,,,,,,,,,,,,,,,,,,,,,,,,,,,,,,,,,,,,,,,,
B48: 18-Feb-2014,0.9057,69.50,5.4929,92.86,0.6605,963.98,0.5413,1.1427,56.25,29.36,1.0843,27.43,2.9852,10719,19110,3.3262,2.1930,7.0242,0.9924,9.8241,0.8080,40.37,0.5865,,,,,,,,,,,,,,,,,,,,,,,,,,,,,,,,,,,,,,,,,,,,
B49: 19-Feb-2014,0.9017,69.20,5.4772,92.20,0.6551,960.99,0.5401,1.1380,56.10,29.35,1.0852,27.31,2.9738,10631,19025,3.3115,2.1833,6.9931,0.9860,9.8073,0.8003,40.26,0.5840,,,,,,,,,,,,,,,,,,,,,,,,,,,,,,,,,,,,,,,,,,,,
B50: 20-Feb-2014,0.8954,68.80,5.4472,91.29,0.6509,959.73,0.5369,1.1326,55.81,29.19,1.0842,27.13,2.9584,10552,18893,3.2884,2.1680,6.9447,0.9919,9.9157,0.7942,40.07,0.5795,,,,,,,,,,,,,,,,,,,,,,,,,,,,,,,,,,,,,,,,,,,,
B51: 21-Feb-2014,0.8992,69.20,5.4752,92.18,0.6555,966.14,0.5401,1.1386,55.89,29.26,1.0827,27.25,2.9690,10606,18971,3.3023,2.1772,6.9736,1.0005,9.9132,0.7995,40.15,0.5828,,,,,,,,,,,,,,,,,,,,,,,,,,,,,,,,,,,,,,,,,,,,
B52: 24-Feb-2014,0.8968,69.00,5.4655,91.70,0.6528,964.78,0.5388,1.1361,55.73,29.21,1.0827,27.22,2.9551,10479,18927,3.2935,2.1714,6.9555,0.9968,9.8280,0.7957,40.02,0.5812,,,,,,,,,,,,,,,,,,,,,,,,,,,,,,,,,,,,,,,,,,,,
B53: 25-Feb-2014,0.9034,69.50,5.5208,92.65,0.6577,966.59,0.5421,1.1408,56.02,29.39,1.0837,27.41,2.9591,10498,19062,3.3177,2.1874,7.0099,0.9989,9.7775,0.8031,40.26,0.5851,,,,,,,,,,,,,,,,,,,,,,,,,,,,,,,,,,,,,,,,,,,,
B54: 26-Feb-2014,0.9011,69.30,5.5226,92.20,0.6558,960.57,0.5404,1.1392,55.85,29.33,1.0807,27.31,2.9525,10484,19018,3.3093,2.1818,6.9918,0.9990,9.6666,0.7997,40.19,0.5833,,,,,,,,,,,,,,,,,,,,,,,,,,,,,,,,,,,,,,,,,,,,
B55: 27-Feb-2014,0.8940,68.80,5.4742,91.49,0.6532,953.09,0.5364,1.1320,55.41,29.13,1.0736,27.08,2.9292,10420,18863,3.2832,2.1646,6.9369,0.9948,9.6884,0.7957,39.93,0.5788,,,,,,,,,,,,,,,,,,,,,,,,,,,,,,,,,,,,,,,,,,,,
B56: 28-Feb-2014,0.8947,68.90,5.5145,90.91,0.6530,955.41,0.5364,1.1339,55.58,29.21,1.0659,27.14,2.9369,10417,18876,3.2858,2.1663,6.9442,0.9956,9.5858,0.7948,39.97,0.5805,,,,,,,,,,,,,,,,,,,,,,,,,,,,,,,,,,,,,,,,,,,,
B57: 03-Mar-2014,0.8912,68.50,5.4796,90.39,0.6468,954.30,0.5322,1.1296,55.19,29.04,1.0663,27.00,2.9236,10316,18813,3.2729,2.1579,6.9159,0.9855,9.6381,0.7840,39.85,0.5759,,,,,,,,,,,,,,,,,,,,,,,,,,,,,,,,,,,,,,,,,,,,
B58: 04-Mar-2014,0.8930,68.70,5.4913,90.79,0.6503,958.01,0.5363,1.1345,55.44,29.07,1.0668,27.05,2.9313,10384,18843,3.2795,2.1622,6.9300,0.9906,9.7141,0.7893,40.06,0.5771,,,,,,,,,,,,,,,,,,,,,,,,,,,,,,,,,,,,,,,,,,,,
B59: 05-Mar-2014,0.8960,68.90,5.4997,91.61,0.6525,960.69,0.5376,1.1386,55.43,29.02,1.0678,27.14,2.9335,10371,18915,3.2906,2.1695,6.9535,0.9941,9.6540,0.7954,40.13,0.5795,,,,,,,,,,,,,,,,,,,,,,,,,,,,,,,,,,,,,,,,,,,,
B60: 06-Mar-2014,0.9012,69.20,5.5111,92.57,0.6567,960.27,0.5394,1.1426,55.38,29.13,1.0701,27.29,2.9438,10393,19018,3.3097,2.1821,6.9939,0.9954,9.6446,0.8010,40.28,0.5836,,,,,,,,,,,,,,,,,,,,,,,,,,,,,,,,,,,,,,,,,,,,
B61: 07-Mar-2014,0.9088,69.70,5.5569,93.60,0.6558,965.78,0.5430,1.1490,55.48,29.34,1.0711,27.49,2.9639,10369,19169,3.3376,2.2005,7.0527,0.9993,9.6551,0.7992,40.44,0.5883,,,,,,,,,,,,,,,,,,,,,,,,,,,,,,,,,,,,,,,,,,,,
B62: 10-Mar-2014,0.9037,69.40,5.5495,93.13,0.6508,963.98,0.5400,1.1463,55.37,29.30,1.0685,27.36,2.9673,10275,19068,3.3188,2.1881,7.0134,1.0049,9.7344,0.7926,40.20,0.5823,,,,,,,,,,,,,,,,,,,,,,,,,,,,,,,,,,,,,,,,,,,,
B63: 11-Mar-2014,0.9029,69.30,5.5387,93.22,0.6512,960.91,0.5426,1.1433,54.80,29.19,1.0649,27.35,2.9593,10261,19051,3.3159,2.1862,7.0071,1.0038,9.7048,0.7933,40.16,0.5831,,,,,,,,,,,,,,,,,,,,,,,,,,,,,,,,,,,,,,,,,,,,
B64: 12-Mar-2014,0.8964,68.90,5.5070,92.33,0.6470,958.83,0.5391,1.1369,54.74,29.05,1.0576,27.18,2.9469,10262,18914,3.2920,2.1705,6.9579,0.9962,9.7439,0.7869,40.00,0.5793,,,,,,,,,,,,,,,,,,,,,,,,,,,,,,,,,,,,,,,,,,,,
B65: 13-Mar-2014,0.9072,69.60,5.5698,93.25,0.6507,967.53,0.5444,1.1484,55.30,29.34,1.0596,27.51,2.9738,10317,19142,3.3317,2.1966,7.0439,1.0062,9.7660,0.7918,40.41,0.5859,,,,,,,,,,,,,,,,,,,,,,,,,,,,,,,,,,,,,,,,,,,,
B66: 14-Mar-2014,0.9010,69.10,5.5364,91.62,0.6500,966.19,0.5422,1.1418,55.38,29.13,1.0564,27.34,2.9583,10285,19009,3.3089,2.1816,6.9962,0.9997,9.7466,0.7886,40.24,0.5799,,,,,,,,,,,,,,,,,,,,,,,,,,,,,,,,,,,,,,,,,,,,
B67: 17-Mar-2014,0.9054,69.40,5.5802,91.87,0.6513,967.74,0.5444,1.1452,55.40,29.19,1.0598,27.45,2.9656,10202,19099,3.3251,2.1923,7.0313,1.0045,9.6751,0.7909,40.46,0.5838,,,,,,,,,,,,,,,,,,,,,,,,,,,,,,,,,,,,,,,,,,,,
B68: 18-Mar-2014,0.9083,69.70,5.6206,92.50,0.6520,969.67,0.5459,1.1487,55.36,29.21,1.0606,27.55,2.9692,10247,19170,3.3357,2.1993,7.0537,1.0042,9.7810,0.7928,40.55,0.5858,,,,,,,,,,,,,,,,,,,,,,,,,,,,,,,,,,,,,,,,,,,,
B69: 19-Mar-2014,0.9119,70.00,5.6534,92.60,0.6551,977.33,0.5497,1.1536,55.77,29.31,1.0590,27.73,2.9924,10341,19237,3.3490,2.2080,7.0816,1.0144,9.7892,0.7970,40.94,0.5873,,,,,,,,,,,,,,,,,,,,,,,,,,,,,,,,,,,,,,,,,,,,
B70: 20-Mar-2014,0.9020,69.60,5.6131,92.28,0.6521,970.46,0.5453,1.1484,55.21,29.18,1.0579,27.54,2.9712,10305,19028,3.3126,2.1840,7.0031,1.0143,9.8065,0.7949,40.64,0.5808,,,,,,,,,,,,,,,,,,,,,,,,,,,,,,,,,,,,,,,,,,,,
B71: 21-Mar-2014,0.9061,70.00,5.6401,92.75,0.6575,980.99,0.5489,1.1576,55.30,29.38,1.0620,27.76,2.9987,10370,19114,3.3277,2.1939,7.0352,1.0191,9.8765,0.8003,40.98,0.5868,,,,,,,,,,,,,,,,,,,,,,,,,,,,,,,,,,,,,,,,,,,,
B72: 24-Mar-2014,0.9081,70.10,5.6471,93.06,0.6580,979.43,0.5508,1.1552,55.13,29.48,1.0637,27.77,3.0008,10336,19156,3.3350,2.1988,7.0464,1.0203,9.8992,0.8020,41.03,0.5877,,,,,,,,,,,,,,,,,,,,,,,,,,,,,,,,,,,,,,,,,,,,
B73: 25-Mar-2014,0.9136,70.30,5.6488,93.47,0.6606,986.05,0.5540,1.1590,55.30,29.73,1.0684,27.89,3.0163,10397,19277,3.3552,2.2121,7.0870,1.0232,9.8970,0.8049,41.18,0.5919,,,,,,,,,,,,,,,,,,,,,,,,,,,,,,,,,,,,,,,,,,,,
B74: 26-Mar-2014,0.9195,70.80,5.7087,94.06,0.6658,987.86,0.5563,1.1656,55.38,29.98,1.0702,28.09,3.0348,10482,19397,3.3769,2.2264,7.1334,1.0255,9.8828,0.8129,41.41,0.5950,,,,,,,,,,,,,,,,,,,,,,,,,,,,,,,,,,,,,,,,,,,,
B75: 27-Mar-2014,0.9239,71.10,5.7413,94.38,0.6701,990.14,0.5572,1.1686,55.64,30.09,1.0706,28.21,3.0419,10568,19490,3.3930,2.2370,7.1684,1.0249,9.8696,0.8179,41.54,0.5979,,,,,,,,,,,,,,,,,,,,,,,,,,,,,,,,,,,,,,,,,,,,
B76: 28-Mar-2014,0.9270,71.30,5.7607,94.72,0.6741,990.08,0.5578,1.1695,55.67,30.14,1.0682,28.28,3.0364,10575,19555,3.4044,2.2446,7.1914,1.0205,9.8225,0.8222,41.70,0.6000,,,,,,,,,,,,,,,,,,,,,,,,,,,,,,,,,,,,,,,,,,,,
B77: 31-Mar-2014,0.9221,71.00,5.7377,94.83,0.6707,983.28,0.5544,1.1634,55.22,29.93,1.0661,28.10,3.0165,10475,19461,3.3864,2.2327,7.1537,1.0201,9.7818,0.8181,41.36,0.5973,,,,,,,,,,,,,,,,,,,,,,,,,,,,,,,,,,,,,,,,,,,,
B78: 01-Apr-2014,0.9263,71.20,5.7431,95.68,0.6725,981.55,0.5559,1.1659,55.48,30.00,1.0683,28.17,3.0197,10444,19550,3.4018,2.2429,7.1856,1.0239,9.7714,0.8194,41.51,0.5993,,,,,,,,,,,,,,,,,,,,,,,,,,,,,,,,,,,,,,,,,,,,
B79: 02-Apr-2014,0.9239,71.10,5.7330,95.92,0.6692,976.48,0.5556,1.1639,55.15,29.93,1.0747,27.98,3.0180,10447,19494,3.3930,2.2370,7.1670,1.0200,9.7763,0.8156,41.36,0.5979,,,,,,,,,,,,,,,,,,,,,,,,,,,,,,,,,,,,,,,,,,,,
B80: 03-Apr-2014,0.9219,71.00,5.7228,95.87,0.6701,974.72,0.5542,1.1638,55.38,29.94,1.0794,27.93,3.0243,10413,19447,3.3857,2.2322,7.1515,1.0164,9.7910,0.8179,41.49,0.5968,,,,,,,,,,,,,,,,,,,,,,,,,,,,,,,,,,,,,,,,,,,,
B81: 04-Apr-2014,0.9234,71.20,5.7401,95.95,0.6735,974.83,0.5567,1.1669,55.76,30.05,1.0794,27.97,3.0320,10443,19479,3.3912,2.2358,7.1633,1.0184,9.8250,0.8238,41.55,0.5985,,,,,,,,,,,,,,,,,,,,,,,,,,,,,,,,,,,,,,,,,,,,
B82: 07-Apr-2014,0.9279,71.40,5.7644,95.61,0.6771,979.31,0.5599,1.1698,55.69,30.15,1.0788,28.07,3.0340,10490,19577,3.4077,2.2467,7.1976,1.0186,9.7837,0.8274,41.65,0.6025,,,,,,,,,,,,,,,,,,,,,,,,,,,,,,,,,,,,,,,,,,,,
B83: 08-Apr-2014,0.9292,71.40,5.7673,95.64,0.6760,977.84,0.5592,1.1693,55.87,30.11,1.0755,28.10,3.0283,10498,19601,3.4125,2.2499,7.2061,1.0189,9.7710,0.8247,41.70,0.6027,,,,,,,,,,,,,,,,,,,,,,,,,,,,,,,,,,,,,,,,,,,,
B84: 09-Apr-2014,0.9367,71.70,5.8014,95.58,0.6792,975.53,0.5594,1.1714,56.23,30.21,1.0767,28.18,3.0279,10574,19760,3.4400,2.2680,7.2633,1.0230,9.7838,0.8278,41.78,0.6060,,,,,,,,,,,,,,,,,,,,,,,,,,,,,,,,,,,,,,,,,,,,
B85: 10-Apr-2014,0.9414,72.00,5.8448,95.82,0.6798,979.24,0.5607,1.1755,56.66,30.33,1.0800,28.29,3.0431,10690,19859,3.4573,2.2794,7.3002,1.0256,9.8009,0.8280,41.90,0.6080,,,,,,,,,,,,,,,,,,,,,,,,,,,,,,,,,,,,,,,,,,,,
B86: 11-Apr-2014,0.9375,71.70,5.8239,95.27,0.6749,970.36,0.5588,1.1710,56.52,30.30,1.0829,28.18,3.0380,10748,19777,3.4430,2.2700,7.2696,1.0250,9.8316,0.8219,41.60,0.6040,,,,,,,,,,,,,,,,,,,,,,,,,,,,,,,,,,,,,,,,,,,,
B87: 14-Apr-2014,0.9392,71.90,5.8335,95.39,0.6780,975.72,0.5612,1.1754,56.52,30.33,1.0837,28.35,3.0501,10735,19815,3.4492,2.2741,7.2823,1.0316,9.8898,0.8239,41.67,0.6049,,,,,,,,,,,,,,,,,,,,,,,,,,,,,,,,,,,,,,,,,,,,
B88: 15-Apr-2014,0.9392,72.00,5.8409,95.70,0.6798,977.52,0.5619,1.1764,56.60,30.33,1.0850,28.36,3.0519,10737,19814,3.4492,2.2741,7.2828,1.0311,9.8841,0.8269,41.85,0.6061,,,,,,,,,,,,,,,,,,,,,,,,,,,,,,,,,,,,,,,,,,,,
B89: 16-Apr-2014,0.9378,71.90,5.8340,95.89,0.6781,973.11,0.5606,1.1737,56.47,30.26,1.0914,28.27,3.0385,10726,19786,3.4441,2.2707,7.2723,1.0293,9.8816,0.8252,41.72,0.6058,,,,,,,,,,,,,,,,,,,,,,,,,,,,,,,,,,,,,,,,,,,,
B90: 17-Apr-2014,0.9365,71.70,5.8232,95.52,0.6766,972.70,0.5564,1.1710,56.53,30.16,1.0848,28.24,3.0357,10702,19759,3.4393,2.2676,7.2617,1.0307,9.8745,0.8240,41.62,0.6041,,,,,,,,,,,,,,,,,,,,,,,,,,,,,,,,,,,,,,,,,,,,
B91: 22-Apr-2014,0.9356,71.90,5.8358,95.93,0.6781,970.83,0.5569,1.1735,56.74,30.23,1.0894,28.32,3.0515,10772,19741,3.4360,2.2654,7.2546,1.0308,9.8098,0.8280,41.64,0.6046,,,,,,,,,,,,,,,,,,,,,,,,,,,,,,,,,,,,,,,,,,,,
B92: 23-Apr-2014,0.9284,71.40,5.7948,95.22,0.6719,965.12,0.5518,1.1673,56.68,30.07,1.0802,28.13,3.0359,10816,19601,3.4095,2.2479,7.1974,1.0242,9.8058,0.8209,41.43,0.5993,,,,,,,,,,,,,,,,,,,,,,,,,,,,,,,,,,,,,,,,,,,,
B93: 24-Apr-2014,0.9294,71.40,5.8012,95.13,0.6724,965.79,0.5536,1.1676,56.77,30.04,1.0782,28.14,3.0350,10786,19615,3.4132,2.2504,7.2063,1.0248,9.8414,0.8206,41.54,0.5995,,,,,,,,,,,,,,,,,,,,,,,,,,,,,,,,,,,,,,,,,,,,
B94: 28-Apr-2014,0.9290,71.40,5.8039,94.97,0.6721,961.65,0.5534,1.1670,56.21,29.94,1.0833,28.11,3.0383,10761,19597,3.4118,2.2494,7.2027,1.0250,9.9059,0.8196,41.41,0.5992,,,,,,,,,,,,,,,,,,,,,,,,,,,,,,,,,,,,,,,,,,,,
B95: 29-Apr-2014,0.9242,71.00,5.7800,94.72,0.6665,952.43,0.5497,1.1610,55.95,29.82,1.0833,27.90,3.0113,10701,19505,3.3941,2.2378,7.1653,1.0187,9.8141,0.8126,41.08,0.5956,,,,,,,,,,,,,,,,,,,,,,,,,,,,,,,,,,,,,,,,,,,,
B96: 30-Apr-2014,0.9287,71.40,5.8195,95.08,0.6729,959.67,0.5525,1.1668,56.04,30.02,1.0847,28.06,3.0341,10736,19580,3.4107,2.2487,7.2003,1.0180,9.8151,0.8212,41.36,0.5989,,,,,,,,,,,,,,,,,,,,,,,,,,,,,,,,,,,,,,,,,,,,
B97: 01-May-2014,0.9295,71.40,5.8181,95.01,0.6702,960.45,0.5507,1.1656,56.08,30.09,1.0784,28.08,3.0353,10747,19597,3.4136,2.2506,7.2063,1.0198,9.7845,0.8181,41.43,0.5998,,,,,,,,,,,,,,,,,,,,,,,,,,,,,,,,,,,,,,,,,,,,
B98: 02-May-2014,0.9277,71.20,5.8068,95.02,0.6693,955.81,0.5495,1.1626,55.84,30.05,1.0743,28.00,3.0294,10701,19559,3.4070,2.2462,7.1922,1.0165,9.7420,0.8164,41.34,0.5974,,,,,,,,,,,,,,,,,,,,,,,,,,,,,,,,,,,,,,,,,,,,
B99: 05-May-2014,0.9269,71.00,5.7876,94.50,0.6681,954.05,0.5494,1.1594,55.68,29.98,1.0717,27.93,3.0194,10692,19548,3.4040,2.2443,7.1861,1.0165,9.6968,0.8136,41.17,0.5974,,,,,,,,,,,,,,,,,,,,,,,,,,,,,,,,,,,,,,,,,,,,
B100: 06-May-2014,0.9286,71.10,5.7845,94.75,0.6690,952.28,0.5498,1.1611,55.92,30.06,1.0671,27.96,3.0257,10697,19587,3.4103,2.2484,7.1991,1.0170,9.7711,0.8149,41.19,0.5979,,,,,,,,,,,,,,,,,,,,,,,,,,,,,,,,,,,,,,,,,,,,
B101: 07-May-2014,0.9344,71.40,5.8202,94.81,0.6713,955.56,0.5504,1.1661,56.12,30.26,1.0758,28.14,3.0317,10795,19711,3.4316,2.2625,7.2434,1.0170,9.8098,0.8169,41.40,0.6003,,,,,,,,,,,,,,,,,,,,,,,,,,,,,,,,,,,,,,,,,,,,
B102: 08-May-2014,0.9373,71.70,5.8370,95.41,0.6735,958.53,0.5526,1.1713,56.25,30.42,1.0823,28.21,3.0434,10890,19782,3.4422,2.2695,7.2659,1.0203,9.8032,0.8210,41.45,0.6021,,,,,,,,,,,,,,,,,,,,,,,,,,,,,,,,,,,,,,,,,,,,
B103: 09-May-2014,0.9362,71.60,5.8346,95.22,0.6763,959.09,0.5529,1.1683,56.23,30.49,1.0824,28.17,3.0211,10797,19763,3.4382,2.2668,7.2570,1.0132,9.6784,0.8240,40.95,0.6013,,,,,,,,,,,,,,,,,,,,,,,,,,,,,,,,,,,,,,,,,,,,
B104: 12-May-2014,0.9363,71.70,5.8347,95.47,0.6803,959.10,0.5555,1.1704,55.89,30.55,1.0854,28.23,3.0289,10786,19756,3.4386,2.2671,7.2577,1.0204,9.6941,0.8301,40.97,0.6040,,,,,,,,,,,,,,,,,,,,,,,,,,,,,,,,,,,,,,,,,,,,
B105: 13-May-2014,0.9344,71.70,5.8308,95.56,0.6790,955.10,0.5538,1.1702,55.98,30.48,1.0827,28.20,3.0261,10775,19714,3.4316,2.2625,7.2437,1.0190,9.6936,0.8292,40.92,0.6035,,,,,,,,,,,,,,,,,,,,,,,,,,,,,,,,,,,,,,,,,,,,
B106: 14-May-2014,0.9401,72.00,5.8564,96.01,0.6854,966.19,0.5579,1.1748,56.10,30.53,1.0862,28.37,3.0323,10781,19836,3.4525,2.2763,7.2873,1.0252,9.6725,0.8359,41.01,0.6084,,,,,,,,,,,,,,,,,,,,,,,,,,,,,,,,,,,,,,,,,,,,
B107: 15-May-2014,0.9376,71.80,5.8383,95.51,0.6835,961.32,0.5591,1.1732,55.80,30.43,1.0804,28.27,3.0233,10732,19793,3.4433,2.2702,7.2681,1.0190,9.6699,0.8340,40.97,0.6069,,,,,,,,,,,,,,,,,,,,,,,,,,,,,,,,,,,,,,,,,,,,
B108: 16-May-2014,0.9354,71.60,5.8299,94.97,0.6821,958.00,0.5571,1.1712,55.05,30.38,1.0820,28.20,3.0213,10663,19774,3.4353,2.2649,7.2513,1.0171,9.7266,0.8332,40.92,0.6065,,,,,,,,,,,,,,,,,,,,,,,,,,,,,,,,,,,,,,,,,,,,
B109: 19-May-2014,0.9351,71.60,5.8354,94.80,0.6821,955.67,0.5557,1.1693,54.69,30.36,1.0824,28.17,3.0087,10627,19791,3.4342,2.2642,7.2489,1.0153,9.6703,0.8335,40.79,0.6053,,,,,,,,,,,,,,,,,,,,,,,,,,,,,,,,,,,,,,,,,,,,
B110: 20-May-2014,0.9288,71.10,5.7937,94.27,0.6774,952.35,0.5523,1.1619,54.54,30.21,1.0787,27.99,2.9861,10642,19635,3.4110,2.2489,7.2001,1.0104,9.6428,0.8288,40.59,0.6006,,,,,,,,,,,,,,,,,,,,,,,,,,,,,,,,,,,,,,,,,,,,
B111: 21-May-2014,0.9235,70.70,5.7609,93.49,0.6737,948.25,0.5483,1.1571,54.26,30.00,1.0787,27.84,2.9732,10623,19535,3.3916,2.2361,7.1596,1.0074,9.6552,0.8232,40.43,0.5975,,,,,,,,,,,,,,,,,,,,,,,,,,,,,,,,,,,,,,,,,,,,
B112: 22-May-2014,0.9264,71.00,5.7752,94.21,0.6779,948.91,0.5487,1.1593,54.27,30.03,1.0795,27.91,2.9728,10672,19593,3.4022,2.2431,7.1827,1.0110,9.6244,0.8286,40.50,0.5992,,,,,,,,,,,,,,,,,,,,,,,,,,,,,,,,,,,,,,,,,,,,
B113: 23-May-2014,0.9241,70.80,5.7654,93.95,0.6771,946.97,0.5479,1.1573,54.08,30.07,1.0793,27.82,2.9682,10679,19540,3.3938,2.2375,7.1651,1.0070,9.5587,0.8270,40.30,0.5982,,,,,,,,,,,,,,,,,,,,,,,,,,,,,,,,,,,,,,,,,,,,
B114: 26-May-2014,0.9238,70.90,5.7612,94.16,0.6782,945.93,0.5485,1.1578,54.10,30.11,1.0822,27.81,2.9622,10702,19534,3.3927,2.2368,7.1629,1.0035,9.5364,0.8280,40.37,0.5993,,,,,,,,,,,,,,,,,,,,,,,,,,,,,,,,,,,,,,,,,,,,
B115: 27-May-2014,0.9271,71.10,5.7886,94.50,0.6790,948.66,0.5499,1.1633,54.73,30.21,1.0827,27.91,2.9788,10734,19602,3.4048,2.2448,7.1882,1.0053,9.5990,0.8296,40.54,0.6014,,,,,,,,,,,,,,,,,,,,,,,,,,,,,,,,,,,,,,,,,,,,
B116: 28-May-2014,0.9268,71.20,5.8003,94.46,0.6798,946.68,0.5513,1.1631,54.72,30.28,1.0847,27.92,2.9843,10760,19595,3.4037,2.2441,7.1855,1.0052,9.6865,0.8312,40.70,0.6008,,,,,,,,,,,,,,,,,,,,,,,,,,,,,,,,,,,,,,,,,,,,
B117: 29-May-2014,0.9283,71.30,5.8004,94.40,0.6825,947.42,0.5551,1.1649,54.63,30.40,1.0938,27.90,2.9882,10796,19650,3.4092,2.2477,7.1972,1.0080,9.7179,0.8330,40.85,0.6025,,,,,,,,,,,,,,,,,,,,,,,,,,,,,,,,,,,,,,,,,,,,
B118: 30-May-2014,0.9319,71.50,5.8179,94.66,0.6852,950.68,0.5569,1.1692,55.00,30.56,1.0952,27.95,2.9970,10841,19719,3.4224,2.2564,7.2249,1.0098,9.7085,0.8368,40.85,0.6048,,,,,,,,,,,,,,,,,,,,,,,,,,,,,,,,,,,,,,,,,,,,
B119: 02-Jun-2014,0.9260,71.20,5.7848,94.42,0.6791,948.32,0.5529,1.1630,54.75,30.45,1.0928,27.83,2.9854,10904,19590,3.4007,2.2421,7.1797,1.0050,9.8124,0.8292,40.61,0.6012,,,,,,,,,,,,,,,,,,,,,,,,,,,,,,,,,,,,,,,,,,,,
B120: 03-Jun-2014,0.9270,71.30,5.7903,94.83,0.6814,948.46,0.5536,1.1643,54.86,30.31,1.0939,27.83,2.9905,10953,19652,3.4044,2.2446,7.1877,1.0102,9.8835,0.8327,40.60,0.6018,,,,,,,,,,,,,,,,,,,,,,,,,,,,,,,,,,,,,,,,,,,,
B121: 04-Jun-2014,0.9274,71.50,5.8002,95.24,0.6811,948.80,0.5546,1.1665,55.04,30.33,1.1022,27.86,3.0004,11018,19675,3.4059,2.2455,7.1899,1.0139,9.9823,0.8324,40.71,0.6024,,,,,,,,,,,,,,,,,,,,,,,,,,,,,,,,,,,,,,,,,,,,
B122: 05-Jun-2014,0.9278,71.50,5.8019,95.16,0.6822,946.87,0.5539,1.1665,55.03,30.32,1.1002,27.86,2.9996,11022,19679,3.4073,2.2465,7.1931,1.0164,9.9755,0.8321,40.66,0.6025,,,,,,,,,,,,,,,,,,,,,,,,,,,,,,,,,,,,,,,,,,,,
B123: 06-Jun-2014,0.9332,71.70,5.8316,95.50,0.6834,952.39,0.5551,1.1690,55.26,30.39,1.0989,28.01,3.0016,11047,19775,3.4272,2.2596,7.2349,1.0192,9.9772,0.8320,40.77,0.6060,,,,,,,,,,,,,,,,,,,,,,,,,,,,,,,,,,,,,,,,,,,,
B124: 10-Jun-2014,0.9368,71.90,5.8389,95.88,0.6895,953.01,0.5575,1.1717,55.53,30.43,1.1000,28.10,3.0003,11061,19881,3.4404,2.2683,7.2616,1.0209,9.9563,0.8407,40.91,0.6079,,,,,,,,,,,,,,,,,,,,,,,,,,,,,,,,,,,,,,,,,,,,
B125: 11-Jun-2014,0.9385,72.10,5.8447,96.02,0.6929,953.33,0.5602,1.1735,55.67,30.48,1.0973,28.14,3.0098,11074,19913,3.4466,2.2724,7.2754,1.0224,10.0631,0.8441,41.02,0.6104,,,,,,,,,,,,,,,,,,,,,,,,,,,,,,,,,,,,,,,,,,,,
B126: 12-Jun-2014,0.9391,72.10,5.8426,95.85,0.6936,955.62,0.5590,1.1742,55.72,30.50,1.0843,28.17,3.0190,11093,19928,3.4488,2.2738,7.2797,1.0203,10.1057,0.8449,41.15,0.6109,,,,,,,,,,,,,,,,,,,,,,,,,,,,,,,,,,,,,,,,,,,,
B127: 13-Jun-2014,0.9418,72.10,5.8420,96.04,0.6945,958.56,0.5551,1.1757,56.02,30.50,1.0865,28.25,3.0265,11102,19983,3.4588,2.2804,7.3006,1.0226,10.0768,0.8458,41.24,0.6126,,,,,,,,,,,,,,,,,,,,,,,,,,,,,,,,,,,,,,,,,,,,
B128: 16-Jun-2014,0.9412,72.20,5.8489,95.80,0.6948,959.98,0.5535,1.1767,56.44,30.47,1.0823,28.25,3.0335,11123,19970,3.4566,2.2817,7.2958,1.0210,10.1027,0.8462,41.29,0.6114,,,,,,,,,,,,,,,,,,,,,,,,,,,,,,,,,,,,,,,,,,,,
B129: 17-Jun-2014,0.9352,71.80,5.8278,95.37,0.6896,955.59,0.5510,1.1712,56.43,30.35,1.0795,28.06,3.0179,11105,19845,3.4345,2.2672,7.2495,1.0151,10.0691,0.8400,41.11,0.6073,,,,,,,,,,,,,,,,,,,,,,,,,,,,,,,,,,,,,,,,,,,,
B130: 18-Jun-2014,0.9337,71.80,5.8139,95.47,0.6893,954.61,0.5504,1.1704,56.14,30.35,1.0778,28.02,3.0173,11186,19835,3.4290,2.2663,7.2374,1.0148,10.1238,0.8399,41.06,0.6059,,,,,,,,,,,,,,,,,,,,,,,,,,,,,,,,,,,,,,,,,,,,
B131: 19-Jun-2014,0.9401,72.10,5.8564,95.80,0.6918,957.73,0.5533,1.1747,56.47,30.49,1.0795,28.19,3.0281,11206,20071,3.4525,2.2818,7.2866,1.0178,10.0379,0.8430,41.24,0.6103,,,,,,,,,,,,,,,,,,,,,,,,,,,,,,,,,,,,,,,,,,,,
B132: 20-Jun-2014,0.9405,72.10,5.8576,95.84,0.6902,959.87,0.5515,1.1750,56.68,30.53,1.0788,28.21,3.0279,11258,20070,3.4540,2.2828,7.2897,1.0173,10.0812,0.8400,41.16,0.6091,,,,,,,,,,,,,,,,,,,,,,,,,,,,,,,,,,,,,,,,,,,,
B133: 23-Jun-2014,0.9439,72.40,5.8768,96.22,0.6936,961.31,0.5540,1.1783,56.82,30.64,1.0801,28.31,3.0332,11297,20122,3.4665,2.2910,7.3165,1.0130,10.0704,0.8446,41.32,0.6118,,,,,,,,,,,,,,,,,,,,,,,,,,,,,,,,,,,,,,,,,,,,
B134: 24-Jun-2014,0.9422,72.30,5.8697,96.07,0.6930,959.58,0.5536,1.1771,56.66,30.57,1.0805,28.25,3.0287,11305,20102,3.4602,2.2869,7.3037,1.0104,9.9864,0.8434,41.32,0.6108,,,,,,,,,,,,,,,,,,,,,,,,,,,,,,,,,,,,,,,,,,,,
B135: 25-Jun-2014,0.9358,71.90,5.8366,95.35,0.6877,955.41,0.5516,1.1707,56.40,30.39,1.0789,28.06,3.0198,11312,19979,3.4367,2.2714,7.2539,1.0058,9.9522,0.8363,41.12,0.6062,,,,,,,,,,,,,,,,,,,,,,,,,,,,,,,,,,,,,,,,,,,,
B136: 26-Jun-2014,0.9406,72.10,5.8614,95.71,0.6897,955.88,0.5536,1.1748,56.57,30.54,1.0735,28.16,3.0269,11377,20063,3.4544,2.2830,7.2910,1.0077,9.9497,0.8393,41.22,0.6098,,,,,,,,,,,,,,,,,,,,,,,,,,,,,,,,,,,,,,,,,,,,
B137: 27-Jun-2014,0.9437,72.20,5.8675,95.68,0.6926,956.53,0.5539,1.1790,56.73,30.65,1.0750,28.22,3.0288,11420,20137,3.4657,2.2905,7.3150,1.0081,10.0273,0.8422,41.32,0.6112,,,,,,,,,,,,,,,,,,,,,,,,,,,,,,,,,,,,,,,,,,,,
B138: 30-Jun-2014,0.9420,72.00,5.8466,95.43,0.6906,953.16,0.5531,1.1763,56.59,30.56,1.0761,28.13,3.0243,11177,20096,3.4595,2.2864,7.3013,1.0057,9.9694,0.8396,41.10,0.6100,,,,,,,,,,,,,,,,,,,,,,,,,,,,,,,,,,,,,,,,,,,,
B139: 01-Jul-2014,0.9454,72.20,5.8635,95.93,0.6908,956.41,0.5527,1.1787,56.86,30.64,1.0785,28.25,3.0324,11246,20161,3.4720,2.2947,7.3269,1.0091,10.0567,0.8390,41.24,0.6116,,,,,,,,,,,,,,,,,,,,,,,,,,,,,,,,,,,,,,,,,,,,
B140: 02-Jul-2014,0.9458,72.30,5.8761,96.06,0.6919,954.60,0.5516,1.1788,56.78,30.63,1.0803,28.24,3.0332,11293,20174,3.4735,2.2984,7.3302,1.0061,10.1052,0.8401,41.26,0.6108,,,,,,,,,,,,,,,,,,,,,,,,,,,,,,,,,,,,,,,,,,,,
B141: 03-Jul-2014,0.9380,71.70,5.8290,95.56,0.6873,946.02,0.5469,1.1711,56.04,30.40,1.0697,28.01,3.0086,11209,19989,3.4448,2.2795,7.2700,1.0009,10.0901,0.8344,40.94,0.6060,,,,,,,,,,,,,,,,,,,,,,,,,,,,,,,,,,,,,,,,,,,,
B142: 04-Jul-2014,0.9365,71.60,5.8131,95.56,0.6883,944.83,0.5453,1.1673,55.99,30.32,1.0711,27.97,2.9842,11124,19947,3.4393,2.2758,7.2585,0.9965,10.0683,0.8366,40.78,0.6055,,,,,,,,,,,,,,,,,,,,,,,,,,,,,,,,,,,,,,,,,,,,
B143: 07-Jul-2014,0.9356,71.60,5.8017,95.52,0.6888,945.47,0.5457,1.1662,56.07,30.32,1.0726,27.97,2.9827,10947,19910,3.4360,2.2736,7.2512,0.9974,10.0731,0.8379,40.67,0.6050,,,,,,,,,,,,,,,,,,,,,,,,,,,,,,,,,,,,,,,,,,,,
B144: 08-Jul-2014,0.9385,71.70,5.8234,95.55,0.6900,949.48,0.5479,1.1695,56.13,30.42,1.0706,28.07,2.9830,10976,19985,3.4466,2.2807,7.2737,1.0032,10.1048,0.8387,40.81,0.6079,,,,,,,,,,,,,,,,,,,,,,,,,,,,,,,,,,,,,,,,,,,,
B145: 09-Jul-2014,0.9397,71.70,5.8229,95.50,0.6901,951.12,0.5484,1.1675,56.14,30.32,1.0676,28.10,2.9779,10924,19978,3.4510,2.2836,7.2828,1.0037,10.0492,0.8391,40.75,0.6086,,,,,,,,,,,,,,,,,,,,,,,,,,,,,,,,,,,,,,,,,,,,
B146: 10-Jul-2014,0.9397,71.70,5.8243,95.42,0.6886,952.34,0.5477,1.1660,56.16,30.22,1.0645,28.09,2.9788,10858,19922,3.4510,2.2892,7.2828,1.0010,10.0336,0.8370,40.66,0.6083,,,,,,,,,,,,,,,,,,,,,,,,,,,,,,,,,,,,,,,,,,,,
B147: 11-Jul-2014,0.9391,71.70,5.8302,95.09,0.6906,956.90,0.5481,1.1667,56.51,30.25,1.0656,28.11,2.9934,10879,19912,3.4488,2.2877,7.2781,0.9991,10.0601,0.8385,40.85,0.6077,,,,,,,,,,,,,,,,,,,,,,,,,,,,,,,,,,,,,,,,,,,,
B148: 14-Jul-2014,0.9400,71.80,5.8351,95.33,0.6910,957.25,0.5492,1.1665,56.37,30.22,1.0667,28.14,2.9873,10956,19919,3.4522,2.2899,7.2851,1.0100,10.0975,0.8391,40.92,0.6084,,,,,,,,,,,,,,,,,,,,,,,,,,,,,,,,,,,,,,,,,,,,
B149: 15-Jul-2014,0.9387,71.80,5.8286,95.34,0.6893,964.37,0.5495,1.1667,56.51,30.20,1.0663,28.14,2.9855,11011,19900,3.4474,2.2867,7.2750,1.0071,10.0471,0.8373,40.91,0.6073,,,,,,,,,,,,,,,,,,,,,,,,,,,,,,,,,,,,,,,,,,,,
B150: 16-Jul-2014,0.9337,71.50,5.7958,94.99,0.6885,963.63,0.5449,1.1613,56.21,30.04,1.0736,28.01,2.9827,10980,19790,3.4290,2.2745,7.2372,1.0054,10.0163,0.8369,40.78,0.6043,,,,,,,,,,,,,,,,,,,,,,,,,,,,,,,,,,,,,,,,,,,,
B151: 17-Jul-2014,0.9377,71.70,5.8165,95.17,0.6935,965.03,0.5471,1.1640,56.42,30.15,1.0774,28.12,2.9828,10936,19884,3.4437,2.2871,7.2679,1.0062,10.0104,0.8424,40.86,0.6083,,,,,,,,,,,,,,,,,,,,,,,,,,,,,,,,,,,,,,,,,,,,
B152: 18-Jul-2014,0.9366,71.70,5.8093,94.90,0.6926,963.95,0.5476,1.1630,56.49,30.16,1.0788,28.08,2.9845,10947,19859,3.4397,2.2844,7.2598,1.0062,10.0380,0.8408,40.84,0.6077,,,,,,,,,,,,,,,,,,,,,,,,,,,,,,,,,,,,,,,,,,,,
B153: 21-Jul-2014,0.9390,71.80,5.8267,95.06,0.6934,964.21,0.5493,1.1650,56.49,30.06,1.0779,28.14,2.9785,10858,19935,3.4485,2.2902,7.2788,1.0078,9.9938,0.8428,40.81,0.6093,,,,,,,,,,,,,,,,,,,,,,,,,,,,,,,,,,,,,,,,,,,,
B154: 22-Jul-2014,0.9389,71.80,5.8271,95.35,0.6943,961.86,0.5497,1.1648,56.51,29.93,1.0819,28.15,2.9829,10811,19923,3.4481,2.2900,7.2781,1.0087,9.9669,0.8435,40.71,0.6093,,,,,,,,,,,,,,,,,,,,,,,,,,,,,,,,,,,,,,,,,,,,
B155: 23-Jul-2014,0.9434,72.10,5.8490,95.67,0.7006,965.81,0.5527,1.1688,56.76,29.97,1.0870,28.28,2.9920,10854,20022,3.4646,2.3010,7.3127,1.0126,9.9717,0.8513,40.84,0.6130,,,,,,,,,,,,,,,,,,,,,,,,,,,,,,,,,,,,,,,,,,,,
B156: 24-Jul-2014,0.9448,72.30,5.8506,95.87,0.7021,971.59,0.5547,1.1697,56.69,30.07,1.1014,28.33,2.9964,10903,20058,3.4698,2.3044,7.3228,1.0144,9.9440,0.8528,40.91,0.6141,,,,,,,,,,,,,,,,,,,,,,,,,,,,,,,,,,,,,,,,,,,,
B157: 25-Jul-2014,0.9414,72.10,5.8336,95.77,0.6990,965.78,0.5541,1.1689,56.63,30.00,1.0976,28.22,2.9923,10920,19995,3.4573,2.2961,7.2961,1.0113,9.9120,0.8493,40.81,0.6121,,,,,,,,,,,,,,,,,,,,,,,,,,,,,,,,,,,,,,,,,,,,
B158: 28-Jul-2014,0.9390,71.90,5.8085,95.60,0.6992,963.70,0.5530,1.1662,56.43,29.88,1.0997,28.14,2.9809,10872,19944,3.4485,2.2902,7.2774,1.0146,9.8572,0.8498,40.67,0.6112,,,,,,,,,,,,,,,,,,,,,,,,,,,,,,,,,,,,,,,,,,,,
B159: 29-Jul-2014,0.9395,71.90,5.8078,95.82,0.6995,962.47,0.5535,1.1669,56.50,29.89,1.1033,28.14,2.9824,10878,19946,3.4503,2.2971,7.2813,1.0157,9.9517,0.8500,40.75,0.6117,,,,,,,,,,,,,,,,,,,,,,,,,,,,,,,,,,,,,,,,,,,,
B160: 30-Jul-2014,0.9382,71.90,5.7956,95.81,0.6997,961.00,0.5537,1.1657,56.43,29.90,1.1025,28.10,2.9839,10862,19927,3.4455,2.2967,7.2711,1.0186,9.9569,0.8509,40.71,0.6111,,,,,,,,,,,,,,,,,,,,,,,,,,,,,,,,,,,,,,,,,,,,
B161: 31-Jul-2014,0.9324,71.50,5.7553,95.79,0.6959,958.23,0.5509,1.1621,56.18,29.82,1.0957,27.94,2.9744,10795,19804,3.4242,2.2825,7.2262,1.0167,9.9534,0.8470,40.49,0.6081,,,,,,,,,,,,,,,,,,,,,,,,,,,,,,,,,,,,,,,,,,,,
B162: 01-Aug-2014,0.9294,71.50,5.7392,95.66,0.6944,963.83,0.5507,1.1607,56.54,30.00,1.0939,27.90,2.9848,10761,19731,3.4132,2.2752,7.2029,1.0152,9.9720,0.8448,40.61,0.6069,,,,,,,,,,,,,,,,,,,,,,,,,,,,,,,,,,,,,,,,,,,,
B163: 05-Aug-2014,0.9342,71.70,5.7685,95.74,0.6959,960.64,0.5538,1.1624,56.86,29.96,1.0955,28.02,2.9759,10925,19833,3.4308,2.2869,7.2402,1.0196,9.9621,0.8469,40.68,0.6098,,,,,,,,,,,,,,,,,,,,,,,,,,,,,,,,,,,,,,,,,,,,
B164: 06-Aug-2014,0.9306,71.60,5.7398,95.49,0.6963,961.96,0.5519,1.1619,57.06,29.94,1.1035,27.92,2.9802,10939,19743,3.4176,2.2781,7.2126,1.0211,10.0477,0.8468,40.67,0.6076,,,,,,,,,,,,,,,,,,,,,,,,,,,,,,,,,,,,,,,,,,,,
B165: 07-Aug-2014,0.9268,71.30,5.7090,94.88,0.6925,961.60,0.5503,1.1593,56.91,29.92,1.0951,27.80,2.9767,10922,19667,3.4037,2.2688,7.1832,1.0122,9.9435,0.8413,40.74,0.6059,,,,,,,,,,,,,,,,,,,,,,,,,,,,,,,,,,,,,,,,,,,,
B166: 08-Aug-2014,0.9246,71.10,5.6915,94.11,0.6922,958.30,0.5501,1.1590,56.97,29.77,1.0955,27.75,2.9712,10920,19615,3.3956,2.2662,7.1672,1.0115,9.9809,0.8396,40.90,0.6039,,,,,,,,,,,,,,,,,,,,,,,,,,,,,,,,,,,,,,,,,,,,
B167: 11-Aug-2014,0.9280,71.20,5.7117,94.79,0.6926,956.16,0.5530,1.1594,56.71,29.81,1.0956,27.84,2.9659,10825,19683,3.4081,2.2745,7.1931,1.0183,9.8902,0.8409,40.76,0.6058,,,,,,,,,,,,,,,,,,,,,,,,,,,,,,,,,,,,,,,,,,,,
B168: 12-Aug-2014,0.9256,71.10,5.6978,94.66,0.6923,950.17,0.5522,1.1574,56.62,29.70,1.1002,27.77,2.9578,10811,19621,3.3993,2.2686,7.1744,1.0129,9.8637,0.8403,40.60,0.6044,,,,,,,,,,,,,,,,,,,,,,,,,,,,,,,,,,,,,,,,,,,,
B169: 13-Aug-2014,0.9298,71.40,5.7281,95.07,0.6959,957.14,0.5530,1.1624,56.94,29.73,1.1021,27.90,2.9679,10872,19716,3.4147,2.2789,7.2072,1.0152,9.8907,0.8443,40.87,0.6082,,,,,,,,,,,,,,,,,,,,,,,,,,,,,,,,,,,,,,,,,,,,
B170: 14-Aug-2014,0.9297,71.30,5.7208,95.38,0.6960,949.13,0.5572,1.1601,56.76,29.64,1.0978,27.88,2.9574,10854,19710,3.4143,2.2787,7.2060,1.0150,9.8483,0.8444,40.63,0.6082,,,,,,,,,,,,,,,,,,,,,,,,,,,,,,,,,,,,,,,,,,,,
B171: 15-Aug-2014,0.9332,71.50,5.7363,95.67,0.6981,952.73,0.5590,1.1607,56.71,29.76,1.0993,27.96,2.9461,10892,19784,3.4272,2.2873,7.2330,1.0167,9.8413,0.8459,40.75,0.6103,,,,,,,,,,,,,,,,,,,,,,,,,,,,,,,,,,,,,,,,,,,,
B172: 18-Aug-2014,0.9326,71.40,5.7308,95.45,0.6964,949.11,0.5574,1.1605,56.67,29.68,1.0981,27.94,2.9377,10892,19771,3.4250,2.2858,7.2284,1.0143,9.8660,0.8429,40.72,0.6099,,,,,,,,,,,,,,,,,,,,,,,,,,,,,,,,,,,,,,,,,,,,
B173: 19-Aug-2014,0.9338,71.60,5.7314,95.82,0.6992,949.95,0.5583,1.1616,56.70,29.73,1.1059,28.00,2.9443,10907,19797,3.4294,2.2915,7.2373,1.0174,9.9142,0.8470,40.79,0.6103,,,,,,,,,,,,,,,,,,,,,,,,,,,,,,,,,,,,,,,,,,,,
B174: 20-Aug-2014,0.9280,71.30,5.7035,95.83,0.6977,949.05,0.5590,1.1589,56.36,29.64,1.1074,27.83,2.9394,10867,19669,3.4081,2.2801,7.1925,1.0167,9.9036,0.8451,40.66,0.6077,,,,,,,,,,,,,,,,,,,,,,,,,,,,,,,,,,,,,,,,,,,,
B175: 21-Aug-2014,0.9254,71.30,5.6938,96.11,0.6985,947.29,0.5583,1.1583,56.16,29.68,1.1061,27.76,2.9372,10864,19614,3.3985,2.2765,7.1722,1.0164,9.9420,0.8458,40.60,0.6074,,,,,,,,,,,,,,,,,,,,,,,,,,,,,,,,,,,,,,,,,,,,
B176: 22-Aug-2014,0.9326,71.70,5.7413,96.71,0.7018,949.11,0.5624,1.1634,56.38,29.74,1.1073,27.95,2.9461,10874,19771,3.4250,2.2942,7.2279,1.0194,9.9685,0.8494,40.82,0.6129,,,,,,,,,,,,,,,,,,,,,,,,,,,,,,,,,,,,,,,,,,,,
B177: 25-Aug-2014,0.9321,71.80,5.7335,97.11,0.7059,950.84,0.5628,1.1659,56.35,29.84,1.1162,27.94,2.9534,10920,19756,3.4231,2.2958,7.2241,1.0205,9.9840,0.8537,40.86,0.6124,,,,,,,,,,,,,,,,,,,,,,,,,,,,,,,,,,,,,,,,,,,,
B178: 26-Aug-2014,0.9293,71.60,5.7196,96.52,0.7038,944.96,0.5602,1.1616,56.20,29.67,1.1141,27.83,2.9398,10885,19709,3.4129,2.2889,7.2023,1.0198,9.9454,0.8499,40.72,0.6119,,,,,,,,,,,,,,,,,,,,,,,,,,,,,,,,,,,,,,,,,,,,
B179: 27-Aug-2014,0.9319,71.70,5.7289,96.96,0.7079,945.04,0.5632,1.1634,56.37,29.75,1.1140,27.88,2.9373,10903,19761,3.4224,2.2953,7.2226,1.0178,9.9494,0.8553,40.71,0.6136,,,,,,,,,,,,,,,,,,,,,,,,,,,,,,,,,,,,,,,,,,,,
B180: 28-Aug-2014,0.9353,71.90,5.7446,97.07,0.7082,948.72,0.5638,1.1670,56.56,29.84,1.1152,27.93,2.9481,10943,19826,3.4349,2.3037,7.2487,1.0150,9.9297,0.8549,40.85,0.6161,,,,,,,,,,,,,,,,,,,,,,,,,,,,,,,,,,,,,,,,,,,,
B181: 29-Aug-2014,0.9349,71.90,5.7437,97.07,0.7096,947.88,0.5638,1.1675,56.58,29.86,1.1170,27.94,2.9510,10946,19818,3.4334,2.3027,7.2455,1.0152,9.9518,0.8561,40.83,0.6158,,,,,,,,,,,,,,,,,,,,,,,,,,,,,,,,,,,,,,,,,,,,
B182: 01-Sep-2014,0.9340,71.90,5.7358,97.30,0.7115,946.47,0.5624,1.1672,56.50,29.86,1.1151,27.90,2.9435,10929,19796,3.4301,2.3090,7.2387,1.0152,9.9583,0.8583,40.70,0.6151,,,,,,,,,,,,,,,,,,,,,,,,,,,,,,,,,,,,,,,,,,,,
B183: 02-Sep-2014,0.9293,71.70,5.7121,97.41,0.7083,946.26,0.5604,1.1639,56.31,29.79,1.1131,27.81,2.9445,10896,19697,3.4129,2.3002,7.2024,1.0129,9.9531,0.8551,40.55,0.6120,,,,,,,,,,,,,,,,,,,,,,,,,,,,,,,,,,,,,,,,,,,,
B184: 03-Sep-2014,0.9290,71.70,5.7077,97.55,0.7075,947.49,0.5643,1.1647,56.26,29.80,1.1177,27.80,2.9584,10956,19693,3.4118,2.2995,7.2001,1.0151,9.9677,0.8540,40.60,0.6137,,,,,,,,,,,,,,,,,,,,,,,,,,,,,,,,,,,,,,,,,,,,
B185: 04-Sep-2014,0.9340,72.00,5.7292,97.94,0.7104,951.61,0.5676,1.1692,56.42,29.93,1.1223,27.93,2.9690,10983,19799,3.4301,2.3119,7.2388,1.0182,9.9819,0.8574,40.70,0.6169,,,,,,,,,,,,,,,,,,,,,,,,,,,,,,,,,,,,,,,,,,,,
B186: 05-Sep-2014,0.9341,72.30,5.7335,98.38,0.7221,956.71,0.5724,1.1727,56.45,29.99,1.1269,27.97,2.9746,10990,19798,3.4305,2.3121,7.2394,1.0159,10.0267,0.8712,40.81,0.6173,,,,,,,,,,,,,,,,,,,,,,,,,,,,,,,,,,,,,,,,,,,,
B187: 08-Sep-2014,0.9365,72.50,5.7511,98.43,0.7238,959.21,0.5788,1.1747,56.43,29.98,1.1261,28.03,2.9725,10978,19863,3.4393,2.3181,7.2582,1.0202,10.0294,0.8733,40.79,0.6227,,,,,,,,,,,,,,,,,,,,,,,,,,,,,,,,,,,,,,,,,,,,
B188: 09-Sep-2014,0.9266,71.90,5.6832,98.45,0.7192,949.07,0.5761,1.1679,55.99,29.74,1.1212,27.74,2.9555,10897,19642,3.4029,2.2936,7.1813,1.0184,10.0323,0.8677,40.52,0.6171,,,,,,,,,,,,,,,,,,,,,,,,,,,,,,,,,,,,,,,,,,,,
B189: 10-Sep-2014,0.9158,71.10,5.6147,97.48,0.7084,938.01,0.5679,1.1586,55.71,29.45,1.1117,27.46,2.9324,10793,19420,3.3633,2.2668,7.0977,1.0057,10.0335,0.8554,40.17,0.6113,,,,,,,,,,,,,,,,,,,,,,,,,,,,,,,,,,,,,,,,,,,,
B190: 11-Sep-2014,0.9176,71.40,5.6261,98.18,0.7110,950.63,0.5666,1.1598,55.90,29.50,1.1218,27.51,2.9363,10853,19456,3.3699,2.2713,7.1116,1.0066,10.0665,0.8603,40.29,0.6116,,,,,,,,,,,,,,,,,,,,,,,,,,,,,,,,,,,,,,,,,,,,
B191: 12-Sep-2014,0.9060,70.50,5.5565,97.15,0.7010,937.94,0.5581,1.1450,55.12,29.16,1.1076,27.19,2.8978,10709,19210,3.3273,2.2426,7.0220,1.0009,9.9720,0.8477,39.85,0.6042,,,,,,,,,,,,,,,,,,,,,,,,,,,,,,,,,,,,,,,,,,,,
B192: 15-Sep-2014,0.8996,70.10,5.5262,96.46,0.6940,933.78,0.5537,1.1388,54.91,29.03,1.1054,27.02,2.8963,10694,19076,3.3038,2.2267,6.9727,0.9980,9.9417,0.8400,39.65,0.5998,,,,,,,,,,,,,,,,,,,,,,,,,,,,,,,,,,,,,,,,,,,,
B193: 16-Sep-2014,0.9007,70.20,5.5409,96.62,0.6962,933.80,0.5554,1.1382,55.02,29.07,1.1029,27.14,2.9057,10762,19095,3.3078,2.2295,6.9814,0.9967,9.9020,0.8425,39.84,0.6006,,,,,,,,,,,,,,,,,,,,,,,,,,,,,,,,,,,,,,,,,,,,
B194: 17-Sep-2014,0.9069,70.60,5.5720,97.27,0.7004,938.60,0.5571,1.1450,55.32,29.24,1.1081,27.34,2.9211,10831,19229,3.3306,2.2448,7.0293,0.9948,9.9012,0.8470,40.04,0.6045,,,,,,,,,,,,,,,,,,,,,,,,,,,,,,,,,,,,,,,,,,,,
B195: 18-Sep-2014,0.8968,70.10,5.5098,97.59,0.6970,935.54,0.5498,1.1379,54.74,28.98,1.1051,27.12,2.9056,10793,19017,3.2935,2.2198,6.9514,0.9872,9.8922,0.8442,39.97,0.5972,,,,,,,,,,,,,,,,,,,,,,,,,,,,,,,,,,,,,,,,,,,,
B196: 19-Sep-2014,0.8966,70.00,5.5034,97.84,0.6949,936.63,0.5442,1.1362,54.50,28.90,1.1007,27.11,2.9014,10737,19011,3.2928,2.2193,6.9496,0.9820,9.9337,0.8385,39.96,0.5987,,,,,,,,,,,,,,,,,,,,,,,,,,,,,,,,,,,,,,,,,,,,
B197: 22-Sep-2014,0.8910,69.60,5.4693,97.00,0.6926,927.22,0.5450,1.1282,54.13,28.70,1.0942,26.92,2.8779,10659,18898,3.2722,2.2109,6.9065,0.9752,9.8746,0.8362,39.58,0.5952,,,,,,,,,,,,,,,,,,,,,,,,,,,,,,,,,,,,,,,,,,,,
B198: 23-Sep-2014,0.8916,69.70,5.4734,96.94,0.6939,927.22,0.5444,1.1297,54.28,28.75,1.0967,26.95,2.8950,10681,18906,3.2744,2.2124,6.9111,0.9829,9.9249,0.8378,39.74,0.5963,,,,,,,,,,,,,,,,,,,,,,,,,,,,,,,,,,,,,,,,,,,,
B199: 24-Sep-2014,0.8876,69.30,5.4460,96.41,0.6908,923.06,0.5412,1.1244,54.18,28.62,1.0982,26.85,2.8772,10611,18833,3.2597,2.2025,6.8801,0.9831,9.8830,0.8343,39.50,0.5924,,,,,,,,,,,,,,,,,,,,,,,,,,,,,,,,,,,,,,,,,,,,
B200: 25-Sep-2014,0.8820,69.10,5.4125,96.29,0.6909,919.66,0.5401,1.1183,53.80,28.44,1.1050,26.71,2.8652,10544,18714,3.2391,2.1886,6.8375,0.9778,9.8458,0.8347,39.42,0.5893,,,,,,,,,,,,,,,,,,,,,,,,,,,,,,,,,,,,,,,,,,,,
B201: 26-Sep-2014,0.8757,68.70,5.3724,95.47,0.6873,914.49,0.5371,1.1134,53.91,28.31,1.1093,26.53,2.8570,10533,18582,3.2160,2.1730,6.7921,0.9747,9.8160,0.8298,39.27,0.5878,,,,,,,,,,,,,,,,,,,,,,,,,,,,,,,,,,,,,,,,,,,,
B202: 29-Sep-2014,0.8693,68.50,5.3418,95.34,0.6862,916.02,0.5360,1.1088,53.44,28.13,1.1215,26.49,2.8470,10560,18447,3.1925,2.1571,6.7478,0.9715,9.7997,0.8284,39.11,0.5830,,,,,,,,,,,,,,,,,,,,,,,,,,,,,,,,,,,,,,,,,,,,
B203: 30-Sep-2014,0.8752,68.90,5.3797,95.73,0.6898,923.55,0.5384,1.1147,53.96,28.35,1.1216,26.65,2.8645,10649,18579,3.2142,2.1717,6.7944,0.9758,9.8548,0.8325,39.24,0.5884,,,,,,,,,,,,,,,,,,,,,,,,,,,,,,,,,,,,,,,,,,,,
B204: 01-Oct-2014,0.8693,68.50,5.3370,95.47,0.6887,923.63,0.5366,1.1091,53.67,28.22,1.1169,26.48,2.8522,10605,18460,3.1925,2.1571,6.7499,0.9742,9.8302,0.8305,39.07,0.5863,,,,,,,,,,,,,,,,,,,,,,,,,,,,,,,,,,,,,,,,,,,,
... 1808 more rows

Sheet Other_Inputs
D2: Other inputs | F2: Unit
C3: 1 | D3: Freight costs
D5: Freight from mill gate to the Port of Santos, Brazil | E5: 60 | F5: USD per tonne
E6: =E5/$E$32 -> 0.04735595896 | F6: USD per litre
D7: Freight from Brazil to Australia | E7: 110 | F7: USD per tonne
E8: =E7/$E$32 -> 0.08681925809 | F8: USD per litre
C10: 2 | D10: Wharfage (ex-GST)
D12: Port Botany | E12: 2.19 | F12: AUD per tonne
E13: =E12/E32 -> 0.001728492502 | F13: AUD per litre
C15: 3 | D15: Domestic transport and storage costs
D17: Storage and handling costs at import terminal | E17: 0.03 | F17: AUD per litre
D18: Transport from port to wholesaler terminal | E18: 0.01 | F18: AUD per litre
C20: 3 | D20: Taxes
D22: Customs value duty | E22: 0.04 | F22: %
D23: Customs fuel import duty | E23: 0.396 | F23: AUD per litre
C25: 4 | D25: Insurance and loss
D27: Insurance factor | E27: 0.004 | F27: %
C29: 5 | D29: Conversion factor
D31: Tonne to Litre | E31: 1.267 | F31: no
D32: Liters per Tonne | E32: =E31*1000 -> 1267 | F32: no

Sheet Calculation (hidden)
C3: DETAILED CALCULATION | R3: ROLLING AVERAGES USED TO CALCULATE IPP | Z3: REARRANGE ESALQ DATA | AF3: CLEAN ESALQ DATA (A$/litre) | AJ3: DATA CHECK (1=Yes, 0=No)
C4: Date | D4: Commodity Costs | F4: Transport Costs | L4: Landing Costs | N4: IPP (ex-GST) | P4: Check=0 | R4: Date | S4: ESALQ | T4: EXCHANGE RATE | Z4: Date | AA4: ESALQ | AB4: Date converted | AC4: Modified date | AG4: ESALQ | AH4: Exchange Rate | AK4: ESALQ | AL4: Exchange Rate
D5: ESALQ | E5: FOB price | F5: Freight to the Port of Santos, Brazil | G5: Freight to Australia | H5: Insurance and loss | I5: Wharfage at Port Botany, Australia | J5: Storage and handling costs at import terminal | K5: Transport from port to wholesaler terminal | L5: Customs value duty | M5: Customs fuel import duty | N5: Net of taxes | O5: Including taxes | U5: Freight to the Port of Santos | V5: Freight to Sydney
C8: Week Ending (dd/mm/yyyy) | D8: $AUD/litre | E8: =D8 -> $AUD/litre | F8: =D8 -> $AUD/litre | G8: =D8 -> $AUD/litre | H8: =D8 -> $AUD/litre | I8: =D8 -> $AUD/litre | J8: =D8 -> $AUD/litre | K8: =D8 -> $AUD/litre | L8: =D8 -> $AUD/litre | M8: =D8 -> $AUD/litre | N8: =D8 -> $AUD/litre | O8: =D8 -> $AUD/litre | R8: Week Ending (dd/mm/yyyy) | S8: =AA8 -> Anhydrous US$/liter | U8: =CleanFOREX!F5 -> A$1=USD | V8: =U8 -> A$1=USD | Z8: Week Ending (mm/dd/yyyy) | AA8: ='Import_ESALQ '!C9 -> Anhydrous US$/liter | AF8: Week Ending (dd/mm/yyyy) | AG8: Anhydrous A$/liter | AH8: =CleanFOREX!F5 -> A$1=USD | AJ8: Week Ending (dd/mm/yyyy)
R9: Averaging period | S9: 15 | U9: 15 | V9: 11
C10: =R10 -> 2003-01-03 | R10: =Week!D10 -> 2003-01-03 | Z10: ='Import_ESALQ '!B10 -> 10/21/2016 | AA10: ='Import_ESALQ '!C10 -> 0.6647 | AB10: =IF(ISNONTEXT(Z10),YEAR(Z10)&"."&DAY(Z10)&"."&MONTH(Z10),RIGHT(Z10,4)+0&"."&TEXT(LEFT(Z10,2),"#")+0&"."&MID(Z10,4,2)+0) -> 2016.10.21 | AC10: =IF(INDEX(Week!$T$10:$T$10234,MATCH(AB10,Week!$U$10:$U$10234,0))=6,MATCH(AB10,Week!$U$10:$U$10234,0),MATCH(AB10,Week!$U$10:$U$10234,0)+6-INDEX(Week!$T$10:$T$10234,MATCH(AB10,Week!$U$10:$U$10234,0))) -> 5041 | AD10: =INDEX(Week!$R$10:$R$10234,Calculation!AC10) -> 2016-10-21 | AF10: =Week!D10 -> 2003-01-03 | AJ10: =Week!D10 -> 2003-01-03 | AK10: =IF(ISNUMBER(AG10),1,0) -> 0 | AL10: =IF(ISNUMBER(AH10),1,0) -> 0
C11: 2003-01-10 | R11: =Week!D11 -> 2003-01-10 | Z11: ='Import_ESALQ '!B11 -> 10/14/2016 | AA11: ='Import_ESALQ '!C11 -> 0.6349 | AB11: =IF(ISNONTEXT(Z11),YEAR(Z11)&"."&DAY(Z11)&"."&MONTH(Z11),RIGHT(Z11,4)+0&"."&TEXT(LEFT(Z11,2),"#")+0&"."&MID(Z11,4,2)+0) -> 2016.10.14 | AC11: =IF(INDEX(Week!$T$10:$T$10234,MATCH(AB11,Week!$U$10:$U$10234,0))=6,MATCH(AB11,Week!$U$10:$U$10234,0),MATCH(AB11,Week!$U$10:$U$10234,0)+6-INDEX(Week!$T$10:$T$10234,MATCH(AB11,Week!$U$10:$U$10234,0))) -> 5034 | AD11: =INDEX(Week!$R$10:$R$10234,Calculation!AC11) -> 2016-10-14 | AF11: =Week!D11 -> 2003-01-10 | AG11: =INDEX($AA$10:$AA$1423,MATCH(AF11,$AD$10:$AD$1423,0))/AH11 -> 0.4663880181 | AH11: =AVERAGEIFS(CleanFOREX!F:F,CleanFOREX!E:E,">"&AF10,CleanFOREX!E:E,"<="&AF11) -> 0.5742 | AJ11: =Week!D11 -> 2003-01-10 | AK11: =IF(ISNUMBER(AG11),1,0) -> 1 | AL11: =IF(ISNUMBER(AH11),1,0) -> 1
C12: 2003-01-17 | R12: =Week!D12 -> 2003-01-17 | Z12: ='Import_ESALQ '!B12 -> 2016-07-10 | AA12: ='Import_ESALQ '!C12 -> 0.6109 | AB12: 2016.10.7 | AC12: =IF(INDEX(Week!$T$10:$T$10234,MATCH(AB12,Week!$U$10:$U$10234,0))=6,MATCH(AB12,Week!$U$10:$U$10234,0),MATCH(AB12,Week!$U$10:$U$10234,0)+6-INDEX(Week!$T$10:$T$10234,MATCH(AB12,Week!$U$10:$U$10234,0))) -> 5027 | AD12: =INDEX(Week!$R$10:$R$10234,Calculation!AC12) -> 2016-10-07 | AF12: =Week!D12 -> 2003-01-17 | AG12: =INDEX($AA$10:$AA$1423,MATCH(AF12,$AD$10:$AD$1423,0))/AH12 -> 0.4872144562 | AH12: =AVERAGEIFS(CleanFOREX!F:F,CleanFOREX!E:E,">"&AF11,CleanFOREX!E:E,"<="&AF12) -> 0.5866 | AJ12: =Week!D12 -> 2003-01-17 | AK12: 1 | AL12: 1
C13: 2003-01-24 | R13: =Week!D13 -> 2003-01-24 | Z13: ='Import_ESALQ '!B13 -> 09/30/2016 | AA13: ='Import_ESALQ '!C13 -> 0.5908 | AB13: 2016.9.30 | AC13: =IF(INDEX(Week!$T$10:$T$10234,MATCH(AB13,Week!$U$10:$U$10234,0))=6,MATCH(AB13,Week!$U$10:$U$10234,0),MATCH(AB13,Week!$U$10:$U$10234,0)+6-INDEX(Week!$T$10:$T$10234,MATCH(AB13,Week!$U$10:$U$10234,0))) -> 5020 | AD13: =INDEX(Week!$R$10:$R$10234,Calculation!AC13) -> 2016-09-30 | AF13: =Week!D13 -> 2003-01-24 | AG13: 0.4697144408 | AH13: =AVERAGEIFS(CleanFOREX!F:F,CleanFOREX!E:E,">"&AF12,CleanFOREX!E:E,"<="&AF13) -> 0.58972 | AJ13: =Week!D13 -> 2003-01-24 | AK13: 1 | AL13: 1
C14: 2003-01-31 | R14: =Week!D14 -> 2003-01-31 | Z14: ='Import_ESALQ '!B14 -> 09/23/2016 | AA14: ='Import_ESALQ '!C14 -> 0.5835 | AB14: 2016.9.23 | AC14: =IF(INDEX(Week!$T$10:$T$10234,MATCH(AB14,Week!$U$10:$U$10234,0))=6,MATCH(AB14,Week!$U$10:$U$10234,0),MATCH(AB14,Week!$U$10:$U$10234,0)+6-INDEX(Week!$T$10:$T$10234,MATCH(AB14,Week!$U$10:$U$10234,0))) -> 5013 | AD14: =INDEX(Week!$R$10:$R$10234,Calculation!AC14) -> 2016-09-23 | AF14: =Week!D14 -> 2003-01-31 | AG14: 0.4787428329 | AH14: =AVERAGEIFS(CleanFOREX!F:F,CleanFOREX!E:E,">"&AF13,CleanFOREX!E:E,"<="&AF14) -> 0.588625 | AJ14: =Week!D14 -> 2003-01-31 | AK14: 1 | AL14: 1
C15: 2003-02-07 | R15: =Week!D15 -> 2003-02-07 | Z15: ='Import_ESALQ '!B15 -> 09/16/2016 | AA15: ='Import_ESALQ '!C15 -> 0.5365 | AB15: 2016.9.16 | AC15: =IF(INDEX(Week!$T$10:$T$10234,MATCH(AB15,Week!$U$10:$U$10234,0))=6,MATCH(AB15,Week!$U$10:$U$10234,0),MATCH(AB15,Week!$U$10:$U$10234,0)+6-INDEX(Week!$T$10:$T$10234,MATCH(AB15,Week!$U$10:$U$10234,0))) -> 5006 | AD15: =INDEX(Week!$R$10:$R$10234,Calculation!AC15) -> 2016-09-16 | AF15: =Week!D15 -> 2003-02-07 | AG15: 0.5277542013 | AH15: =AVERAGEIFS(CleanFOREX!F:F,CleanFOREX!E:E,">"&AF14,CleanFOREX!E:E,"<="&AF15) -> 0.5891 | AJ15: =Week!D15 -> 2003-02-07 | AK15: 1 | AL15: 1
C16: 2003-02-14 | R16: =Week!D16 -> 2003-02-14 | Z16: ='Import_ESALQ '!B16 -> 2016-09-09 | AA16: ='Import_ESALQ '!C16 -> 0.5352 | AB16: 2016.9.9 | AC16: =IF(INDEX(Week!$T$10:$T$10234,MATCH(AB16,Week!$U$10:$U$10234,0))=6,MATCH(AB16,Week!$U$10:$U$10234,0),MATCH(AB16,Week!$U$10:$U$10234,0)+6-INDEX(Week!$T$10:$T$10234,MATCH(AB16,Week!$U$10:$U$10234,0))) -> 4999 | AD16: =INDEX(Week!$R$10:$R$10234,Calculation!AC16) -> 2016-09-09 | AF16: =Week!D16 -> 2003-02-14 | AG16: 0.4699063905 | AH16: =AVERAGEIFS(CleanFOREX!F:F,CleanFOREX!E:E,">"&AF15,CleanFOREX!E:E,"<="&AF16) -> 0.59182 | AJ16: =Week!D16 -> 2003-02-14 | AK16: 1 | AL16: 1
C17: 2003-02-21 | R17: =Week!D17 -> 2003-02-21 | Z17: ='Import_ESALQ '!B17 -> 2016-02-09 | AA17: ='Import_ESALQ '!C17 -> 0.5285 | AB17: 2016.9.2 | AC17: =IF(INDEX(Week!$T$10:$T$10234,MATCH(AB17,Week!$U$10:$U$10234,0))=6,MATCH(AB17,Week!$U$10:$U$10234,0),MATCH(AB17,Week!$U$10:$U$10234,0)+6-INDEX(Week!$T$10:$T$10234,MATCH(AB17,Week!$U$10:$U$10234,0))) -> 4992 | AD17: =INDEX(Week!$R$10:$R$10234,Calculation!AC17) -> 2016-09-02 | AF17: =Week!D17 -> 2003-02-21 | AG17: 0.4700350546 | AH17: =AVERAGEIFS(CleanFOREX!F:F,CleanFOREX!E:E,">"&AF16,CleanFOREX!E:E,"<="&AF17) -> 0.59336 | AJ17: =Week!D17 -> 2003-02-21 | AK17: 1 | AL17: 1
C18: 2003-02-28 | R18: =Week!D18 -> 2003-02-28 | Z18: ='Import_ESALQ '!B18 -> 08/26/2016 | AA18: ='Import_ESALQ '!C18 -> 0.5338 | AB18: 2016.8.26 | AC18: =IF(INDEX(Week!$T$10:$T$10234,MATCH(AB18,Week!$U$10:$U$10234,0))=6,MATCH(AB18,Week!$U$10:$U$10234,0),MATCH(AB18,Week!$U$10:$U$10234,0)+6-INDEX(Week!$T$10:$T$10234,MATCH(AB18,Week!$U$10:$U$10234,0))) -> 4985 | AD18: =INDEX(Week!$R$10:$R$10234,Calculation!AC18) -> 2016-08-26 | AF18: =Week!D18 -> 2003-02-28 | AG18: 0.4649854382 | AH18: =AVERAGEIFS(CleanFOREX!F:F,CleanFOREX!E:E,">"&AF17,CleanFOREX!E:E,"<="&AF18) -> 0.60432 | AJ18: =Week!D18 -> 2003-02-28 | AK18: 1 | AL18: 1
C19: 2003-03-07 | R19: =Week!D19 -> 2003-03-07 | Z19: ='Import_ESALQ '!B19 -> 08/19/2016 | AA19: ='Import_ESALQ '!C19 -> 0.5416 | AB19: 2016.8.19 | AC19: =IF(INDEX(Week!$T$10:$T$10234,MATCH(AB19,Week!$U$10:$U$10234,0))=6,MATCH(AB19,Week!$U$10:$U$10234,0),MATCH(AB19,Week!$U$10:$U$10234,0)+6-INDEX(Week!$T$10:$T$10234,MATCH(AB19,Week!$U$10:$U$10234,0))) -> 4978 | AD19: =INDEX(Week!$R$10:$R$10234,Calculation!AC19) -> 2016-08-19 | AF19: =Week!D19 -> 2003-03-07 | AG19: 0.4673537277 | AH19: =AVERAGEIFS(CleanFOREX!F:F,CleanFOREX!E:E,">"&AF18,CleanFOREX!E:E,"<="&AF19) -> 0.61324 | AJ19: =Week!D19 -> 2003-03-07 | AK19: 1 | AL19: 1
C20: 2003-03-14 | R20: =Week!D20 -> 2003-03-14 | Z20: ='Import_ESALQ '!B20 -> 2016-12-08 | AA20: ='Import_ESALQ '!C20 -> 0.5504 | AB20: 2016.8.12 | AC20: =IF(INDEX(Week!$T$10:$T$10234,MATCH(AB20,Week!$U$10:$U$10234,0))=6,MATCH(AB20,Week!$U$10:$U$10234,0),MATCH(AB20,Week!$U$10:$U$10234,0)+6-INDEX(Week!$T$10:$T$10234,MATCH(AB20,Week!$U$10:$U$10234,0))) -> 4971 | AD20: =INDEX(Week!$R$10:$R$10234,Calculation!AC20) -> 2016-08-12 | AF20: =Week!D20 -> 2003-03-14 | AG20: 0.4829150387 | AH20: =AVERAGEIFS(CleanFOREX!F:F,CleanFOREX!E:E,">"&AF19,CleanFOREX!E:E,"<="&AF20) -> 0.60404 | AJ20: =Week!D20 -> 2003-03-14 | AK20: 1 | AL20: 1
C21: 2003-03-21 | R21: =Week!D21 -> 2003-03-21 | Z21: ='Import_ESALQ '!B21 -> 2016-05-08 | AA21: ='Import_ESALQ '!C21 -> 0.529 | AB21: 2016.8.5 | AC21: =IF(INDEX(Week!$T$10:$T$10234,MATCH(AB21,Week!$U$10:$U$10234,0))=6,MATCH(AB21,Week!$U$10:$U$10234,0),MATCH(AB21,Week!$U$10:$U$10234,0)+6-INDEX(Week!$T$10:$T$10234,MATCH(AB21,Week!$U$10:$U$10234,0))) -> 4964 | AD21: =INDEX(Week!$R$10:$R$10234,Calculation!AC21) -> 2016-08-05 | AF21: =Week!D21 -> 2003-03-21 | AG21: 0.4933557611 | AH21: =AVERAGEIFS(CleanFOREX!F:F,CleanFOREX!E:E,">"&AF20,CleanFOREX!E:E,"<="&AF21) -> 0.5945 | AJ21: =Week!D21 -> 2003-03-21 | AK21: 1 | AL21: 1
C22: 2003-03-28 | R22: =Week!D22 -> 2003-03-28 | Z22: ='Import_ESALQ '!B22 -> 07/29/2016 | AA22: ='Import_ESALQ '!C22 -> 0.5183 | AB22: 2016.7.29 | AC22: =IF(INDEX(Week!$T$10:$T$10234,MATCH(AB22,Week!$U$10:$U$10234,0))=6,MATCH(AB22,Week!$U$10:$U$10234,0),MATCH(AB22,Week!$U$10:$U$10234,0)+6-INDEX(Week!$T$10:$T$10234,MATCH(AB22,Week!$U$10:$U$10234,0))) -> 4957 | AD22: =INDEX(Week!$R$10:$R$10234,Calculation!AC22) -> 2016-07-29 | AF22: =Week!D22 -> 2003-03-28 | AG22: 0.4966011452 | AH22: =AVERAGEIFS(CleanFOREX!F:F,CleanFOREX!E:E,">"&AF21,CleanFOREX!E:E,"<="&AF22) -> 0.59726 | AJ22: =Week!D22 -> 2003-03-28 | AK22: 1 | AL22: 1
C23: 2003-04-04 | R23: =Week!D23 -> 2003-04-04 | Z23: ='Import_ESALQ '!B23 -> 07/22/2016 | AA23: ='Import_ESALQ '!C23 -> 0.4976 | AB23: 2016.7.22 | AC23: =IF(INDEX(Week!$T$10:$T$10234,MATCH(AB23,Week!$U$10:$U$10234,0))=6,MATCH(AB23,Week!$U$10:$U$10234,0),MATCH(AB23,Week!$U$10:$U$10234,0)+6-INDEX(Week!$T$10:$T$10234,MATCH(AB23,Week!$U$10:$U$10234,0))) -> 4950 | AD23: =INDEX(Week!$R$10:$R$10234,Calculation!AC23) -> 2016-07-22 | AF23: =Week!D23 -> 2003-04-04 | AG23: 0.5053067993 | AH23: =AVERAGEIFS(CleanFOREX!F:F,CleanFOREX!E:E,">"&AF22,CleanFOREX!E:E,"<="&AF23) -> 0.603 | AJ23: =Week!D23 -> 2003-04-04 | AK23: 1 | AL23: 1
C24: 2003-04-11 | R24: =Week!D24 -> 2003-04-11 | Z24: ='Import_ESALQ '!B24 -> 07/15/2016 | AA24: ='Import_ESALQ '!C24 -> 0.4935 | AB24: 2016.7.15 | AC24: =IF(INDEX(Week!$T$10:$T$10234,MATCH(AB24,Week!$U$10:$U$10234,0))=6,MATCH(AB24,Week!$U$10:$U$10234,0),MATCH(AB24,Week!$U$10:$U$10234,0)+6-INDEX(Week!$T$10:$T$10234,MATCH(AB24,Week!$U$10:$U$10234,0))) -> 4943 | AD24: =INDEX(Week!$R$10:$R$10234,Calculation!AC24) -> 2016-07-15 | AF24: =Week!D24 -> 2003-04-11 | AG24: 0.5197025529 | AH24: =AVERAGEIFS(CleanFOREX!F:F,CleanFOREX!E:E,">"&AF23,CleanFOREX!E:E,"<="&AF24) -> 0.60246 | AJ24: =Week!D24 -> 2003-04-11 | AK24: 1 | AL24: 1
C25: 2003-04-18 | R25: =Week!D25 -> 2003-04-18 | Z25: ='Import_ESALQ '!B25 -> 2016-08-07 | AA25: ='Import_ESALQ '!C25 -> 0.4901 | AB25: 2016.7.8 | AC25: =IF(INDEX(Week!$T$10:$T$10234,MATCH(AB25,Week!$U$10:$U$10234,0))=6,MATCH(AB25,Week!$U$10:$U$10234,0),MATCH(AB25,Week!$U$10:$U$10234,0)+6-INDEX(Week!$T$10:$T$10234,MATCH(AB25,Week!$U$10:$U$10234,0))) -> 4936 | AD25: =INDEX(Week!$R$10:$R$10234,Calculation!AC25) -> 2016-07-08 | AF25: =Week!D25 -> 2003-04-18 | AG25: 0.5324119776 | AH25: =AVERAGEIFS(CleanFOREX!F:F,CleanFOREX!E:E,">"&AF24,CleanFOREX!E:E,"<="&AF25) -> 0.6078 | AJ25: =Week!D25 -> 2003-04-18 | AK25: 1 | AL25: 1
C26: 2003-04-25 | R26: =Week!D26 -> 2003-04-25 | S26: =IF(SUM(Calculation!AK10:AK24)=$S$9,AVERAGE(AG10:AG24),"") ->  | V26: =IF(SUM(Calculation!AL14:AL24)=$V$9,AVERAGE(AH14:AH24),"") -> 0.5983386364 | Z26: ='Import_ESALQ '!B26 -> 2016-01-07 | AA26: ='Import_ESALQ '!C26 -> 0.5095 | AB26: 2016.7.1 | AC26: =IF(INDEX(Week!$T$10:$T$10234,MATCH(AB26,Week!$U$10:$U$10234,0))=6,MATCH(AB26,Week!$U$10:$U$10234,0),MATCH(AB26,Week!$U$10:$U$10234,0)+6-INDEX(Week!$T$10:$T$10234,MATCH(AB26,Week!$U$10:$U$10234,0))) -> 4929 | AD26: =INDEX(Week!$R$10:$R$10234,Calculation!AC26) -> 2016-07-01 | AF26: =Week!D26 -> 2003-04-25 | AG26: 0.5315514361 | AH26: =AVERAGEIFS(CleanFOREX!F:F,CleanFOREX!E:E,">"&AF25,CleanFOREX!E:E,"<="&AF26) -> 0.6185666667 | AJ26: =Week!D26 -> 2003-04-25 | AK26: 1 | AL26: 1
C27: 2003-05-02 | D27: =S27 -> 0.4888258557 | E27: =D27+F27 -> 0.5682817627 | F27: =To_Santos/U27 -> 0.07945590703 | G27: =Santos_to_Sydney/V27 -> 0.1446790345 | H27: =(E27+G27)*Insurance*1.1 -> 0.003137027508 | I27: =Sydney_Wharfage -> 0.001728492502 | J27: =Storage_import_terminal -> 0.03 | K27: =Transport_to_Wholesaler -> 0.01 | L27: =E27*Customs_Value_Duty -> 0.02273127051 | M27: =Fuel_Import_Duty -> 0.396 | N27: =SUM(E27,G27,H27,I27,J27,K27) -> 0.7578263172 | O27: =SUM(L27,M27,N27) -> 1.176557588 | P27: =SUM(D27,SUM(F27:M27))-O27 -> 0 | R27: =Week!D27 -> 2003-05-02 | S27: =IF(SUM(Calculation!AK11:AK25)=$S$9,AVERAGE(AG11:AG25),"") -> 0.4888258557 | U27: =IF(SUM(Calculation!AL11:AL25)=$U$9,AVERAGE(AH11:AH25),"") -> 0.596003 | V27: =IF(SUM(Calculation!AL15:AL25)=$V$9,AVERAGE(AH15:AH25),"") -> 0.6000818182 | Z27: ='Import_ESALQ '!B27 -> 06/24/2016 | AA27: ='Import_ESALQ '!C27 -> 0.4904 | AB27: 2016.6.24 | AC27: =IF(INDEX(Week!$T$10:$T$10234,MATCH(AB27,Week!$U$10:$U$10234,0))=6,MATCH(AB27,Week!$U$10:$U$10234,0),MATCH(AB27,Week!$U$10:$U$10234,0)+6-INDEX(Week!$T$10:$T$10234,MATCH(AB27,Week!$U$10:$U$10234,0))) -> 4922 | AD27: =INDEX(Week!$R$10:$R$10234,Calculation!AC27) -> 2016-06-24 | AF27: =Week!D27 -> 2003-05-02 | AG27: 0.5374483223 | AH27: =AVERAGEIFS(CleanFOREX!F:F,CleanFOREX!E:E,">"&AF26,CleanFOREX!E:E,"<="&AF27) -> 0.62406 | AJ27: =Week!D27 -> 2003-05-02 | AK27: 1 | AL27: 1
C28: 2003-05-09 | D28: =S28 -> 0.4931700835 | E28: =D28+F28 -> 0.5722336228 | F28: =To_Santos/U28 -> 0.07906353924 | G28: =Santos_to_Sydney/V28 -> 0.1440360522 | H28: =(E28+G28)*Insurance*1.1 -> 0.00315158657 | I28: 0.001728492502 | J28: 0.03 | K28: 0.01 | L28: =E28*Customs_Value_Duty -> 0.02288934491 | M28: 0.396 | N28: =SUM(E28,G28,H28,I28,J28,K28) -> 0.761149754 | O28: =SUM(L28,M28,N28) -> 1.180039099 | P28: =SUM(D28,SUM(F28:M28))-O28 -> 0 | R28: =Week!D28 -> 2003-05-09 | S28: =IF(SUM(Calculation!AK12:AK26)=$S$9,AVERAGE(AG12:AG26),"") -> 0.4931700835 | U28: =IF(SUM(Calculation!AL12:AL26)=$U$9,AVERAGE(AH12:AH26),"") -> 0.5989607778 | V28: =IF(SUM(Calculation!AL16:AL26)=$V$9,AVERAGE(AH16:AH26),"") -> 0.6027606061 | Z28: ='Import_ESALQ '!B28 -> 06/17/2016 | AA28: ='Import_ESALQ '!C28 -> 0.4851 | AB28: 2016.6.17 | AC28: =IF(INDEX(Week!$T$10:$T$10234,MATCH(AB28,Week!$U$10:$U$10234,0))=6,MATCH(AB28,Week!$U$10:$U$10234,0),MATCH(AB28,Week!$U$10:$U$10234,0)+6-INDEX(Week!$T$10:$T$10234,MATCH(AB28,Week!$U$10:$U$10234,0))) -> 4915 | AD28: =INDEX(Week!$R$10:$R$10234,Calculation!AC28) -> 2016-06-17 | AF28: =Week!D28 -> 2003-05-09 | AG28: 0.5134075584 | AH28: =AVERAGEIFS(CleanFOREX!F:F,CleanFOREX!E:E,">"&AF27,CleanFOREX!E:E,"<="&AF28) -> 0.6377 | AJ28: =Week!D28 -> 2003-05-09 | AK28: 1 | AL28: 1
C29: 2003-05-16 | D29: 0.496519008 | E29: =D29+F29 -> 0.575254265 | F29: =To_Santos/U29 -> 0.07873525701 | G29: =Santos_to_Sydney/V29 -> 0.1433390693 | H29: =(E29+G29)*Insurance*1.1 -> 0.003161810671 | I29: 0.001728492502 | J29: 0.03 | K29: 0.01 | L29: =E29*Customs_Value_Duty -> 0.0230101706 | M29: 0.396 | N29: 0.7634836375 | O29: =SUM(L29,M29,N29) -> 1.182493808 | P29: 0 | R29: =Week!D29 -> 2003-05-16 | S29: =IF(SUM(Calculation!AK13:AK27)=$S$9,AVERAGE(AG13:AG27),"") -> 0.496519008 | U29: =IF(SUM(Calculation!AL13:AL27)=$U$9,AVERAGE(AH13:AH27),"") -> 0.6014581111 | V29: =IF(SUM(Calculation!AL17:AL27)=$V$9,AVERAGE(AH17:AH27),"") -> 0.6056915152 | Z29: ='Import_ESALQ '!B29 -> 2016-10-06 | AA29: ='Import_ESALQ '!C29 -> 0.5062 | AB29: 2016.6.10 | AC29: =IF(INDEX(Week!$T$10:$T$10234,MATCH(AB29,Week!$U$10:$U$10234,0))=6,MATCH(AB29,Week!$U$10:$U$10234,0),MATCH(AB29,Week!$U$10:$U$10234,0)+6-INDEX(Week!$T$10:$T$10234,MATCH(AB29,Week!$U$10:$U$10234,0))) -> 4908 | AD29: =INDEX(Week!$R$10:$R$10234,Calculation!AC29) -> 2016-06-10 | AF29: =Week!D29 -> 2003-05-16 | AG29: 0.4895310661 | AH29: =AVERAGEIFS(CleanFOREX!F:F,CleanFOREX!E:E,">"&AF28,CleanFOREX!E:E,"<="&AF29) -> 0.64572 | AJ29: =Week!D29 -> 2003-05-16 | AK29: 1 | AL29: 1
C30: 2003-05-23 | D30: 0.4994318825 | E30: =D30+F30 -> 0.5777506258 | F30: =To_Santos/U30 -> 0.07831874329 | G30: =Santos_to_Sydney/V30 -> 0.1423914467 | H30: =(E30+G30)*Insurance*1.1 -> 0.003168625119 | I30: 0.001728492502 | J30: 0.03 | K30: 0.01 | L30: =E30*Customs_Value_Duty -> 0.02311002503 | M30: 0.396 | N30: 0.7650391901 | O30: =SUM(L30,M30,N30) -> 1.184149215 | P30: 0 | R30: =Week!D30 -> 2003-05-23 | S30: =IF(SUM(Calculation!AK14:AK28)=$S$9,AVERAGE(AG14:AG28),"") -> 0.4994318825 | U30: =IF(SUM(Calculation!AL14:AL28)=$U$9,AVERAGE(AH14:AH28),"") -> 0.6046567778 | V30: =IF(SUM(Calculation!AL18:AL28)=$V$9,AVERAGE(AH18:AH28),"") -> 0.6097224242 | Z30: ='Import_ESALQ '!B30 -> 2016-03-06 | AA30: ='Import_ESALQ '!C30 -> 0.4751 | AB30: 2016.6.3 | AC30: =IF(INDEX(Week!$T$10:$T$10234,MATCH(AB30,Week!$U$10:$U$10234,0))=6,MATCH(AB30,Week!$U$10:$U$10234,0),MATCH(AB30,Week!$U$10:$U$10234,0)+6-INDEX(Week!$T$10:$T$10234,MATCH(AB30,Week!$U$10:$U$10234,0))) -> 4901 | AD30: =INDEX(Week!$R$10:$R$10234,Calculation!AC30) -> 2016-06-03 | AF30: =Week!D30 -> 2003-05-23 | AG30: 0.4171489491 | AH30: =AVERAGEIFS(CleanFOREX!F:F,CleanFOREX!E:E,">"&AF29,CleanFOREX!E:E,"<="&AF30) -> 0.6566 | AJ30: =Week!D30 -> 2003-05-23 | AK30: 1 | AL30: 1
C31: 2003-05-30 | D31: 0.500151098 | E31: =D31+F31 -> 0.5779799065 | F31: 0.07782880851 | G31: 0.1415178986 | H31: 0.003165790342 | I31: 0.001728492502 | J31: 0.03 | K31: 0.01 | L31: 0.02311919626 | M31: 0.396 | N31: 0.7643920879 | O31: =SUM(L31,M31,N31) -> 1.183511284 | P31: 0 | R31: =Week!D31 -> 2003-05-30 | S31: =IF(SUM(Calculation!AK15:AK29)=$S$9,AVERAGE(AG15:AG29),"") -> 0.500151098 | U31: =IF(SUM(Calculation!AL15:AL29)=$U$9,AVERAGE(AH15:AH29),"") -> 0.6084631111 | V31: =IF(SUM(Calculation!AL19:AL29)=$V$9,AVERAGE(AH19:AH29),"") -> 0.6134860606 | Z31: ='Import_ESALQ '!B31 -> 05/27/2016 | AA31: ='Import_ESALQ '!C31 -> 0.4506 | AB31: 2016.5.27 | AC31: =IF(INDEX(Week!$T$10:$T$10234,MATCH(AB31,Week!$U$10:$U$10234,0))=6,MATCH(AB31,Week!$U$10:$U$10234,0),MATCH(AB31,Week!$U$10:$U$10234,0)+6-INDEX(Week!$T$10:$T$10234,MATCH(AB31,Week!$U$10:$U$10234,0))) -> 4894 | AD31: =INDEX(Week!$R$10:$R$10234,Calculation!AC31) -> 2016-05-27 | AF31: =Week!D31 -> 2003-05-30 | AG31: 0.3580808698 | AH31: =AVERAGEIFS(CleanFOREX!F:F,CleanFOREX!E:E,">"&AF30,CleanFOREX!E:E,"<="&AF31) -> 0.65488 | AJ31: =Week!D31 -> 2003-05-30 | AK31: 1 | AL31: 1
C32: 2003-06-06 | D32: 0.4927774145 | E32: 0.5700348516 | F32: 0.07725743703 | G32: 0.1406144119 | H32: 0.003126856759 | I32: 0.001728492502 | J32: 0.03 | K32: 0.01 | L32: 0.02280139406 | M32: 0.396 | N32: 0.7555046128 | O32: 1.174306007 | P32: 0 | R32: =Week!D32 -> 2003-06-06 | S32: =IF(SUM(Calculation!AK16:AK30)=$S$9,AVERAGE(AG16:AG30),"") -> 0.4927774145 | U32: =IF(SUM(Calculation!AL16:AL30)=$U$9,AVERAGE(AH16:AH30),"") -> 0.6129631111 | V32: =IF(SUM(Calculation!AL20:AL30)=$V$9,AVERAGE(AH20:AH30),"") -> 0.6174278788 | Z32: ='Import_ESALQ '!B32 -> 05/20/2016 | AA32: ='Import_ESALQ '!C32 -> 0.4446 | AB32: 2016.5.20 | AC32: =IF(INDEX(Week!$T$10:$T$10234,MATCH(AB32,Week!$U$10:$U$10234,0))=6,MATCH(AB32,Week!$U$10:$U$10234,0),MATCH(AB32,Week!$U$10:$U$10234,0)+6-INDEX(Week!$T$10:$T$10234,MATCH(AB32,Week!$U$10:$U$10234,0))) -> 4887 | AD32: =INDEX(Week!$R$10:$R$10234,Calculation!AC32) -> 2016-05-20 | AF32: =Week!D32 -> 2003-06-06 | AG32: 0.3507974046 | AH32: =AVERAGEIFS(CleanFOREX!F:F,CleanFOREX!E:E,">"&AF31,CleanFOREX!E:E,"<="&AF32) -> 0.65964 | AJ32: =Week!D32 -> 2003-06-06 | AK32: 1 | AL32: 1
C33: 2003-06-13 | D33: 0.4853223798 | E33: 0.562053557 | F33: 0.07673117719 | G33: 0.1395696494 | H33: 0.003087142108 | I33: 0.001728492502 | J33: 0.03 | K33: 0.01 | L33: 0.02248214228 | M33: 0.396 | N33: 0.746438841 | O33: 1.164920983 | P33: 0 | R33: =Week!D33 -> 2003-06-13 | S33: =IF(SUM(Calculation!AK17:AK31)=$S$9,AVERAGE(AG17:AG31),"") -> 0.4853223798 | U33: =IF(SUM(Calculation!AL17:AL31)=$U$9,AVERAGE(AH17:AH31),"") -> 0.6171671111 | V33: =IF(SUM(Calculation!AL21:AL31)=$V$9,AVERAGE(AH21:AH31),"") -> 0.622049697 | Z33: ='Import_ESALQ '!B33 -> 05/13/2016 | AA33: ='Import_ESALQ '!C33 -> 0.4377 | AB33: 2016.5.13 | AC33: =IF(INDEX(Week!$T$10:$T$10234,MATCH(AB33,Week!$U$10:$U$10234,0))=6,MATCH(AB33,Week!$U$10:$U$10234,0),MATCH(AB33,Week!$U$10:$U$10234,0)+6-INDEX(Week!$T$10:$T$10234,MATCH(AB33,Week!$U$10:$U$10234,0))) -> 4880 | AD33: =INDEX(Week!$R$10:$R$10234,Calculation!AC33) -> 2016-05-13 | AF33: =Week!D33 -> 2003-06-13 | AG33: 0.3451093124 | AH33: =AVERAGEIFS(CleanFOREX!F:F,CleanFOREX!E:E,">"&AF32,CleanFOREX!E:E,"<="&AF33) -> 0.66095 | AJ33: =Week!D33 -> 2003-06-13 | AK33: 1 | AL33: 1
C34: 2003-06-20 | D34: 0.4773732032 | E34: 0.5535589214 | F34: 0.07618571829 | G34: 0.1382534972 | H34: 0.003043974642 | I34: 0.001728492502 | J34: 0.03 | K34: 0.01 | L34: 0.02214235686 | M34: 0.396 | N34: 0.7365848858 | O34: 1.154727243 | P34: 0 | R34: =Week!D34 -> 2003-06-20 | S34: =IF(SUM(Calculation!AK18:AK32)=$S$9,AVERAGE(AG18:AG32),"") -> 0.4773732032 | U34: =IF(SUM(Calculation!AL18:AL32)=$U$9,AVERAGE(AH18:AH32),"") -> 0.6215857778 | V34: =IF(SUM(Calculation!AL22:AL32)=$V$9,AVERAGE(AH22:AH32),"") -> 0.6279715152 | Z34: ='Import_ESALQ '!B34 -> 2016-06-05 | AA34: ='Import_ESALQ '!C34 -> 0.4346 | AB34: 2016.5.6 | AC34: =IF(INDEX(Week!$T$10:$T$10234,MATCH(AB34,Week!$U$10:$U$10234,0))=6,MATCH(AB34,Week!$U$10:$U$10234,0),MATCH(AB34,Week!$U$10:$U$10234,0)+6-INDEX(Week!$T$10:$T$10234,MATCH(AB34,Week!$U$10:$U$10234,0))) -> 4873 | AD34: =INDEX(Week!$R$10:$R$10234,Calculation!AC34) -> 2016-05-06 | AF34: =Week!D34 -> 2003-06-20 | AG34: 0.3243841186 | AH34: =AVERAGEIFS(CleanFOREX!F:F,CleanFOREX!E:E,">"&AF33,CleanFOREX!E:E,"<="&AF34) -> 0.66896 | AJ34: =Week!D34 -> 2003-06-20 | AK34: 1 | AL34: 1
C35: 2003-06-27 | D35: 0.4693814614 | E35: 0.5451072431 | F35: 0.07572578166 | G35: 0.1369904231 | H35: 0.003001229731 | I35: 0.001728492502 | J35: 0.03 | K35: 0.01 | L35: 0.02180428972 | M35: 0.396 | N35: 0.7268273884 | O35: 1.144631678 | P35: 0 | R35: =Week!D35 -> 2003-06-27 | S35: =IF(SUM(Calculation!AK19:AK33)=$S$9,AVERAGE(AG19:AG33),"") -> 0.4693814614 | U35: =IF(SUM(Calculation!AL19:AL33)=$U$9,AVERAGE(AH19:AH33),"") -> 0.6253611111 | V35: =IF(SUM(Calculation!AL23:AL33)=$V$9,AVERAGE(AH23:AH33),"") -> 0.6337615152 | Z35: ='Import_ESALQ '!B35 -> 04/29/2016 | AA35: ='Import_ESALQ '!C35 -> 0.4411 | AB35: 2016.4.29 | AC35: =IF(INDEX(Week!$T$10:$T$10234,MATCH(AB35,Week!$U$10:$U$10234,0))=6,MATCH(AB35,Week!$U$10:$U$10234,0),MATCH(AB35,Week!$U$10:$U$10234,0)+6-INDEX(Week!$T$10:$T$10234,MATCH(AB35,Week!$U$10:$U$10234,0))) -> 4866 | AD35: =INDEX(Week!$R$10:$R$10234,Calculation!AC35) -> 2016-04-29 | AF35: =Week!D35 -> 2003-06-27 | AG35: 0.3150800084 | AH35: =AVERAGEIFS(CleanFOREX!F:F,CleanFOREX!E:E,">"&AF34,CleanFOREX!E:E,"<="&AF35) -> 0.66618 | AJ35: =Week!D35 -> 2003-06-27 | AK35: 1 | AL35: 1
C36: 2003-07-04 | D36: 0.4598501542 | E36: 0.5351287782 | F36: 0.07527862402 | G36: 0.1357064305 | H36: 0.002951674918 | I36: 0.001728492502 | J36: 0.03 | K36: 0.01 | L36: 0.02140515113 | M36: 0.396 | N36: 0.7155153761 | O36: 1.132920527 | P36: 0 | R36: =Week!D36 -> 2003-07-04 | S36: =IF(SUM(Calculation!AK20:AK34)=$S$9,AVERAGE(AG20:AG34),"") -> 0.4598501542 | U36: =IF(SUM(Calculation!AL20:AL34)=$U$9,AVERAGE(AH20:AH34),"") -> 0.6290757778 | V36: =IF(SUM(Calculation!AL24:AL34)=$V$9,AVERAGE(AH24:AH34),"") -> 0.6397578788 | Z36: ='Import_ESALQ '!B36 -> 04/22/2016 | AA36: ='Import_ESALQ '!C36 -> 0.4385 | AB36: 2016.4.22 | AC36: =IF(INDEX(Week!$T$10:$T$10234,MATCH(AB36,Week!$U$10:$U$10234,0))=6,MATCH(AB36,Week!$U$10:$U$10234,0),MATCH(AB36,Week!$U$10:$U$10234,0)+6-INDEX(Week!$T$10:$T$10234,MATCH(AB36,Week!$U$10:$U$10234,0))) -> 4859 | AD36: =INDEX(Week!$R$10:$R$10234,Calculation!AC36) -> 2016-04-22 | AF36: =Week!D36 -> 2003-07-04 | AG36: 0.2922385234 | AH36: =AVERAGEIFS(CleanFOREX!F:F,CleanFOREX!E:E,">"&AF35,CleanFOREX!E:E,"<="&AF36) -> 0.67616 | AJ36: =Week!D36 -> 2003-07-04 | AK36: 1 | AL36: 1
C37: 2003-07-11 | D37: 0.4486611521 | E37: 0.5234472854 | F37: 0.07478613324 | G37: 0.1344886943 | H37: 0.00289491831 | I37: 0.001728492502 | J37: 0.03 | K37: 0.01 | L37: 0.02093789142 | M37: 0.396 | N37: 0.7025593905 | O37: 1.119497282 | P37: 0 | R37: =Week!D37 -> 2003-07-11 | S37: =IF(SUM(Calculation!AK21:AK35)=$S$9,AVERAGE(AG21:AG35),"") -> 0.4486611521 | U37: =IF(SUM(Calculation!AL21:AL35)=$U$9,AVERAGE(AH21:AH35),"") -> 0.6332184444 | V37: =IF(SUM(Calculation!AL25:AL35)=$V$9,AVERAGE(AH25:AH35),"") -> 0.6455506061 | Z37: ='Import_ESALQ '!B37 -> 04/15/2016 | AA37: ='Import_ESALQ '!C37 -> 0.4517 | AB37: 2016.4.15 | AC37: =IF(INDEX(Week!$T$10:$T$10234,MATCH(AB37,Week!$U$10:$U$10234,0))=6,MATCH(AB37,Week!$U$10:$U$10234,0),MATCH(AB37,Week!$U$10:$U$10234,0)+6-INDEX(Week!$T$10:$T$10234,MATCH(AB37,Week!$U$10:$U$10234,0))) -> 4852 | AD37: =INDEX(Week!$R$10:$R$10234,Calculation!AC37) -> 2016-04-15 | AF37: =Week!D37 -> 2003-07-11 | AG37: 0.2851956313 | AH37: =AVERAGEIFS(CleanFOREX!F:F,CleanFOREX!E:E,">"&AF36,CleanFOREX!E:E,"<="&AF37) -> 0.66656 | AJ37: =Week!D37 -> 2003-07-11 | AK37: 1 | AL37: 1
C38: 2003-07-18 | D38: 0.4352533363 | E38: 0.5094019877 | F38: 0.0741486514 | G38: 0.1332063518 | H38: 0.002827476694 | I38: 0.001728492502 | J38: 0.03 | K38: 0.01 | L38: 0.02037607951 | M38: 0.396 | N38: 0.6871643087 | O38: 1.103540388 | P38: 0 | R38: =Week!D38 -> 2003-07-18 | S38: =IF(SUM(Calculation!AK22:AK36)=$S$9,AVERAGE(AG22:AG36),"") -> 0.4352533363 | U38: =IF(SUM(Calculation!AL22:AL36)=$U$9,AVERAGE(AH22:AH36),"") -> 0.6386624444 | V38: =IF(SUM(Calculation!AL26:AL36)=$V$9,AVERAGE(AH26:AH36),"") -> 0.6517651515 | Z38: ='Import_ESALQ '!B38 -> 2016-08-04 | AA38: ='Import_ESALQ '!C38 -> 0.452 | AB38: 2016.4.8 | AC38: =IF(INDEX(Week!$T$10:$T$10234,MATCH(AB38,Week!$U$10:$U$10234,0))=6,MATCH(AB38,Week!$U$10:$U$10234,0),MATCH(AB38,Week!$U$10:$U$10234,0)+6-INDEX(Week!$T$10:$T$10234,MATCH(AB38,Week!$U$10:$U$10234,0))) -> 4845 | AD38: =INDEX(Week!$R$10:$R$10234,Calculation!AC38) -> 2016-04-08 | AF38: =Week!D38 -> 2003-07-18 | AG38: 0.3017544934 | AH38: =AVERAGEIFS(CleanFOREX!F:F,CleanFOREX!E:E,">"&AF37,CleanFOREX!E:E,"<="&AF38) -> 0.65318 | AJ38: =Week!D38 -> 2003-07-18 | AK38: 1 | AL38: 1
C39: 2003-07-25 | D39: 0.4211596354 | E39: 0.4947757574 | F39: 0.07361612207 | G39: 0.1323205747 | H39: 0.002759223861 | I39: 0.001728492502 | J39: 0.03 | K39: 0.01 | L39: 0.0197910303 | M39: 0.396 | N39: 0.6715840485 | O39: 1.087375079 | P39: 0 | R39: =Week!D39 -> 2003-07-25 | S39: =IF(SUM(Calculation!AK23:AK37)=$S$9,AVERAGE(AG23:AG37),"") -> 0.4211596354 | U39: =IF(SUM(Calculation!AL23:AL37)=$U$9,AVERAGE(AH23:AH37),"") -> 0.6432824444 | V39: =IF(SUM(Calculation!AL27:AL37)=$V$9,AVERAGE(AH27:AH37),"") -> 0.6561281818 | Z39: ='Import_ESALQ '!B39 -> 2016-01-04 | AA39: ='Import_ESALQ '!C39 -> 0.5557 | AB39: 2016.4.1 | AC39: =IF(INDEX(Week!$T$10:$T$10234,MATCH(AB39,Week!$U$10:$U$10234,0))=6,MATCH(AB39,Week!$U$10:$U$10234,0),MATCH(AB39,Week!$U$10:$U$10234,0)+6-INDEX(Week!$T$10:$T$10234,MATCH(AB39,Week!$U$10:$U$10234,0))) -> 4838 | AD39: =INDEX(Week!$R$10:$R$10234,Calculation!AC39) -> 2016-04-01 | AF39: =Week!D39 -> 2003-07-25 | AG39: 0.3257353839 | AH39: =AVERAGEIFS(CleanFOREX!F:F,CleanFOREX!E:E,">"&AF38,CleanFOREX!E:E,"<="&AF39) -> 0.65544 | AJ39: =Week!D39 -> 2003-07-25 | AK39: 1 | AL39: 1
C40: 2003-08-01 | D40: 0.4075894816 | E40: 0.4808247502 | F40: 0.07323526855 | G40: 0.1317888478 | H40: 0.002695499831 | I40: 0.001728492502 | J40: 0.03 | K40: 0.01 | L40: 0.01923299001 | M40: 0.396 | N40: 0.6570375903 | O40: 1.07227058 | P40: 0 | R40: =Week!D40 -> 2003-08-01 | S40: =IF(SUM(Calculation!AK24:AK38)=$S$9,AVERAGE(AG24:AG38),"") -> 0.4075894816 | U40: =IF(SUM(Calculation!AL24:AL38)=$U$9,AVERAGE(AH24:AH38),"") -> 0.6466277778 | V40: =IF(SUM(Calculation!AL28:AL38)=$V$9,AVERAGE(AH28:AH38),"") -> 0.6587754545 | Z40: ='Import_ESALQ '!B40 -> 03/24/2016 | AA40: ='Import_ESALQ '!C40 -> 0.5651 | AB40: 2016.3.24 | AC40: =IF(INDEX(Week!$T$10:$T$10234,MATCH(AB40,Week!$U$10:$U$10234,0))=6,MATCH(AB40,Week!$U$10:$U$10234,0),MATCH(AB40,Week!$U$10:$U$10234,0)+6-INDEX(Week!$T$10:$T$10234,MATCH(AB40,Week!$U$10:$U$10234,0))) -> 4831 | AD40: =INDEX(Week!$R$10:$R$10234,Calculation!AC40) -> 2016-03-25 | AF40: =Week!D40 -> 2003-08-01 | AG40: 0.3499726227 | AH40: =AVERAGEIFS(CleanFOREX!F:F,CleanFOREX!E:E,">"&AF39,CleanFOREX!E:E,"<="&AF40) -> 0.65748 | AJ40: =Week!D40 -> 2003-08-01 | AK40: 1 | AL40: 1
C41: 2003-08-08 | D41: 0.394658337 | E41: 0.4674957542 | F41: 0.07283741717 | G41: 0.1314670076 | H41: 0.002635436152 | I41: 0.001728492502 | J41: 0.03 | K41: 0.01 | L41: 0.01869983017 | M41: 0.396 | N41: 0.6433266904 | O41: 1.058026521 | P41: 0 | R41: =Week!D41 -> 2003-08-08 | S41: =IF(SUM(Calculation!AK25:AK39)=$S$9,AVERAGE(AG25:AG39),"") -> 0.394658337 | U41: =IF(SUM(Calculation!AL25:AL39)=$U$9,AVERAGE(AH25:AH39),"") -> 0.6501597778 | V41: =IF(SUM(Calculation!AL29:AL39)=$V$9,AVERAGE(AH29:AH39),"") -> 0.6603881818 | Z41: ='Import_ESALQ '!B41 -> 03/18/2016 | AA41: ='Import_ESALQ '!C41 -> 0.567 | AB41: 2016.3.18 | AC41: =IF(INDEX(Week!$T$10:$T$10234,MATCH(AB41,Week!$U$10:$U$10234,0))=6,MATCH(AB41,Week!$U$10:$U$10234,0),MATCH(AB41,Week!$U$10:$U$10234,0)+6-INDEX(Week!$T$10:$T$10234,MATCH(AB41,Week!$U$10:$U$10234,0))) -> 4824 | AD41: =INDEX(Week!$R$10:$R$10234,Calculation!AC41) -> 2016-03-18 | AF41: =Week!D41 -> 2003-08-08 | AG41: 0.3588854203 | AH41: =AVERAGEIFS(CleanFOREX!F:F,CleanFOREX!E:E,">"&AF40,CleanFOREX!E:E,"<="&AF41) -> 0.648675 | AJ41: =Week!D41 -> 2003-08-08 | AK41: 1 | AL41: 1
C42: 2003-08-15 | D42: 0.3824957134 | E42: 0.4549639677 | F42: 0.07246825428 | G42: 0.1312545219 | H42: 0.002579361354 | I42: 0.001728492502 | J42: 0.03 | K42: 0.01 | L42: 0.01819855871 | M42: 0.396 | N42: 0.6305263434 | O42: 1.044724902 | P42: 0 | R42: =Week!D42 -> 2003-08-15 | S42: =IF(SUM(Calculation!AK26:AK40)=$S$9,AVERAGE(AG26:AG40),"") -> 0.3824957134 | U42: =IF(SUM(Calculation!AL26:AL40)=$U$9,AVERAGE(AH26:AH40),"") -> 0.6534717778 | V42: =IF(SUM(Calculation!AL30:AL40)=$V$9,AVERAGE(AH30:AH40),"") -> 0.6614572727 | Z42: ='Import_ESALQ '!B42 -> 2016-11-03 | AA42: ='Import_ESALQ '!C42 -> 0.5671 | AB42: 2016.3.11 | AC42: =IF(INDEX(Week!$T$10:$T$10234,MATCH(AB42,Week!$U$10:$U$10234,0))=6,MATCH(AB42,Week!$U$10:$U$10234,0),MATCH(AB42,Week!$U$10:$U$10234,0)+6-INDEX(Week!$T$10:$T$10234,MATCH(AB42,Week!$U$10:$U$10234,0))) -> 4817 | AD42: =INDEX(Week!$R$10:$R$10234,Calculation!AC42) -> 2016-03-11 | AF42: =Week!D42 -> 2003-08-15 | AG42: 0.3624402278 | AH42: =AVERAGEIFS(CleanFOREX!F:F,CleanFOREX!E:E,">"&AF41,CleanFOREX!E:E,"<="&AF42) -> 0.65666 | AJ42: =Week!D42 -> 2003-08-15 | AK42: 1 | AL42: 1
C43: 2003-08-22 | D43: 0.3709846456 | E43: 0.443230986 | F43: 0.0722463404 | G43: 0.1313976393 | H43: 0.002528365951 | I43: 0.001728492502 | J43: 0.03 | K43: 0.01 | L43: 0.01772923944 | M43: 0.396 | N43: 0.6188854838 | O43: 1.032614723 | P43: 0 | R43: =Week!D43 -> 2003-08-22 | S43: =IF(SUM(Calculation!AK27:AK41)=$S$9,AVERAGE(AG27:AG41),"") -> 0.3709846456 | U43: =IF(SUM(Calculation!AL27:AL41)=$U$9,AVERAGE(AH27:AH41),"") -> 0.655479 | V43: =IF(SUM(Calculation!AL31:AL41)=$V$9,AVERAGE(AH31:AH41),"") -> 0.6607368182 | Z43: ='Import_ESALQ '!B43 -> 2016-04-03 | AA43: ='Import_ESALQ '!C43 -> 0.5366 | AB43: 2016.3.4 | AC43: =IF(INDEX(Week!$T$10:$T$10234,MATCH(AB43,Week!$U$10:$U$10234,0))=6,MATCH(AB43,Week!$U$10:$U$10234,0),MATCH(AB43,Week!$U$10:$U$10234,0)+6-INDEX(Week!$T$10:$T$10234,MATCH(AB43,Week!$U$10:$U$10234,0))) -> 4810 | AD43: =INDEX(Week!$R$10:$R$10234,Calculation!AC43) -> 2016-03-04 | AF43: =Week!D43 -> 2003-08-22 | AG43: 0.368705036 | AH43: =AVERAGEIFS(CleanFOREX!F:F,CleanFOREX!E:E,">"&AF42,CleanFOREX!E:E,"<="&AF43) -> 0.65608 | AJ43: =Week!D43 -> 2003-08-22 | AK43: 1 | AL43: 1
C44: 2003-08-29 | D44: 0.3593174394 | E44: 0.4313250284 | F44: 0.07200758905 | G44: 0.1313654671 | H44: 0.00247583818 | I44: 0.001728492502 | J44: 0.03 | K44: 0.01 | L44: 0.01725300114 | M44: 0.396 | N44: 0.6068948262 | O44: 1.020147827 | P44: 0 | R44: =Week!D44 -> 2003-08-29 | S44: =IF(SUM(Calculation!AK28:AK42)=$S$9,AVERAGE(AG28:AG42),"") -> 0.3593174394 | U44: =IF(SUM(Calculation!AL28:AL42)=$U$9,AVERAGE(AH28:AH42),"") -> 0.6576523333 | V44: =IF(SUM(Calculation!AL32:AL42)=$V$9,AVERAGE(AH32:AH42),"") -> 0.6608986364 | Z44: ='Import_ESALQ '!B44 -> 02/26/2016 | AA44: ='Import_ESALQ '!C44 -> 0.5299 | AB44: 2016.2.26 | AC44: =IF(INDEX(Week!$T$10:$T$10234,MATCH(AB44,Week!$U$10:$U$10234,0))=6,MATCH(AB44,Week!$U$10:$U$10234,0),MATCH(AB44,Week!$U$10:$U$10234,0)+6-INDEX(Week!$T$10:$T$10234,MATCH(AB44,Week!$U$10:$U$10234,0))) -> 4803 | AD44: =INDEX(Week!$R$10:$R$10234,Calculation!AC44) -> 2016-02-26 | AF44: =Week!D44 -> 2003-08-29 | AG44: 0.378531249 | AH44: =AVERAGEIFS(CleanFOREX!F:F,CleanFOREX!E:E,">"&AF43,CleanFOREX!E:E,"<="&AF44) -> 0.64354 | AJ44: =Week!D44 -> 2003-08-29 | AK44: 1 | AL44: 1
C45: 2003-09-05 | D45: 0.3496706045 | E45: 0.421544279 | F45: 0.07187367451 | G45: 0.1314298272 | H45: 0.002433086067 | I45: 0.001728492502 | J45: 0.03 | K45: 0.01 | L45: 0.01686177116 | M45: 0.396 | N45: 0.5971356848 | O45: 1.009997456 | P45: 0 | R45: =Week!D45 -> 2003-09-05 | S45: =IF(SUM(Calculation!AK29:AK43)=$S$9,AVERAGE(AG29:AG43),"") -> 0.3496706045 | U45: =IF(SUM(Calculation!AL29:AL43)=$U$9,AVERAGE(AH29:AH43),"") -> 0.6588776667 | V45: =IF(SUM(Calculation!AL33:AL43)=$V$9,AVERAGE(AH33:AH43),"") -> 0.660575 | Z45: ='Import_ESALQ '!B45 -> 02/19/2016 | AA45: ='Import_ESALQ '!C45 -> 0.52 | AB45: 2016.2.19 | AC45: =IF(INDEX(Week!$T$10:$T$10234,MATCH(AB45,Week!$U$10:$U$10234,0))=6,MATCH(AB45,Week!$U$10:$U$10234,0),MATCH(AB45,Week!$U$10:$U$10234,0)+6-INDEX(Week!$T$10:$T$10234,MATCH(AB45,Week!$U$10:$U$10234,0))) -> 4796 | AD45: =INDEX(Week!$R$10:$R$10234,Calculation!AC45) -> 2016-02-19 | AF45: =Week!D45 -> 2003-09-05 | AG45: 0.3776816016 | AH45: =AVERAGEIFS(CleanFOREX!F:F,CleanFOREX!E:E,">"&AF44,CleanFOREX!E:E,"<="&AF45) -> 0.64234 | AJ45: =Week!D45 -> 2003-09-05 | AK45: 1 | AL45: 1
C46: 2003-09-12 | D46: 0.3422706167 | E46: 0.4141601484 | F46: 0.0718895317 | G46: 0.1317454873 | H46: 0.002401984797 | I46: 0.001728492502 | J46: 0.03 | K46: 0.01 | L46: 0.01656640594 | M46: 0.396 | N46: 0.590036113 | O46: 1.002602519 | P46: 0 | R46: =Week!D46 -> 2003-09-12 | S46: =IF(SUM(Calculation!AK30:AK44)=$S$9,AVERAGE(AG30:AG44),"") -> 0.3422706167 | U46: =IF(SUM(Calculation!AL30:AL44)=$U$9,AVERAGE(AH30:AH44),"") -> 0.6587323333 | V46: =IF(SUM(Calculation!AL34:AL44)=$V$9,AVERAGE(AH34:AH44),"") -> 0.6589922727 | Z46: ='Import_ESALQ '!B46 -> 2016-12-02 | AA46: ='Import_ESALQ '!C46 -> 0.5308 | AB46: 2016.2.12 | AC46: =IF(INDEX(Week!$T$10:$T$10234,MATCH(AB46,Week!$U$10:$U$10234,0))=6,MATCH(AB46,Week!$U$10:$U$10234,0),MATCH(AB46,Week!$U$10:$U$10234,0)+6-INDEX(Week!$T$10:$T$10234,MATCH(AB46,Week!$U$10:$U$10234,0))) -> 4789 | AD46: =INDEX(Week!$R$10:$R$10234,Calculation!AC46) -> 2016-02-12 | AF46: =Week!D46 -> 2003-09-12 | AG46: 0.3554524079 | AH46: =AVERAGEIFS(CleanFOREX!F:F,CleanFOREX!E:E,">"&AF45,CleanFOREX!E:E,"<="&AF46) -> 0.65494 | AJ46: =Week!D46 -> 2003-09-12 | AK46: 1 | AL46: 1
C47: 2003-09-19 | D47: 0.3396394602 | E47: 0.4116328911 | F47: 0.07199343089 | G47: 0.132231076 | H47: 0.002393001455 | I47: 0.001728492502 | J47: 0.03 | K47: 0.01 | L47: 0.01646531564 | M47: 0.396 | N47: 0.5879854611 | O47: 1.000450777 | P47: 0 | R47: =Week!D47 -> 2003-09-19 | S47: =IF(SUM(Calculation!AK31:AK45)=$S$9,AVERAGE(AG31:AG45),"") -> 0.3396394602 | U47: =IF(SUM(Calculation!AL31:AL45)=$U$9,AVERAGE(AH31:AH45),"") -> 0.6577816667 | V47: =IF(SUM(Calculation!AL35:AL45)=$V$9,AVERAGE(AH35:AH45),"") -> 0.6565722727 | Z47: ='Import_ESALQ '!B47 -> 2016-05-02 | AA47: ='Import_ESALQ '!C47 -> 0.5323 | AB47: 2016.2.5 | AC47: =IF(INDEX(Week!$T$10:$T$10234,MATCH(AB47,Week!$U$10:$U$10234,0))=6,MATCH(AB47,Week!$U$10:$U$10234,0),MATCH(AB47,Week!$U$10:$U$10234,0)+6-INDEX(Week!$T$10:$T$10234,MATCH(AB47,Week!$U$10:$U$10234,0))) -> 4782 | AD47: =INDEX(Week!$R$10:$R$10234,Calculation!AC47) -> 2016-02-05 | AF47: =Week!D47 -> 2003-09-19 | AG47: 0.333584224 | AH47: =AVERAGEIFS(CleanFOREX!F:F,CleanFOREX!E:E,">"&AF46,CleanFOREX!E:E,"<="&AF47) -> 0.6643 | AJ47: =Week!D47 -> 2003-09-19 | AK47: 1 | AL47: 1
C48: 2003-09-26 | D48: 0.3394642294 | E48: 0.4114572225 | F48: 0.07199299309 | G48: 0.1324371869 | H48: 0.002393135402 | I48: 0.001728492502 | J48: 0.03 | K48: 0.01 | L48: 0.0164582889 | M48: 0.396 | N48: 0.5880160374 | O48: 1.000474326 | P48: 0 | R48: =Week!D48 -> 2003-09-26 | S48: =IF(SUM(Calculation!AK32:AK46)=$S$9,AVERAGE(AG32:AG46),"") -> 0.3394642294 | U48: =IF(SUM(Calculation!AL32:AL46)=$U$9,AVERAGE(AH32:AH46),"") -> 0.6577856667 | V48: =IF(SUM(Calculation!AL36:AL46)=$V$9,AVERAGE(AH36:AH46),"") -> 0.6555504545 | Z48: ='Import_ESALQ '!B48 -> 01/29/2016 | AA48: ='Import_ESALQ '!C48 -> 0.5064 | AB48: 2016.1.29 | AC48: =IF(INDEX(Week!$T$10:$T$10234,MATCH(AB48,Week!$U$10:$U$10234,0))=6,MATCH(AB48,Week!$U$10:$U$10234,0),MATCH(AB48,Week!$U$10:$U$10234,0)+6-INDEX(Week!$T$10:$T$10234,MATCH(AB48,Week!$U$10:$U$10234,0))) -> 4775 | AD48: =INDEX(Week!$R$10:$R$10234,Calculation!AC48) -> 2016-01-29 | AF48: =Week!D48 -> 2003-09-26 | AG48: 0.3065105856 | AH48: =AVERAGEIFS(CleanFOREX!F:F,CleanFOREX!E:E,">"&AF47,CleanFOREX!E:E,"<="&AF48) -> 0.67828 | AJ48: =Week!D48 -> 2003-09-26 | AK48: 1 | AL48: 1
C49: 2003-10-03 | D49: 0.338316684 | E49: 0.4102756915 | F49: 0.07195900746 | G49: 0.1326553648 | H49: 0.002388896648 | I49: 0.001728492502 | J49: 0.03 | K49: 0.01 | L49: 0.01641102766 | M49: 0.396 | N49: 0.5870484455 | O49: 0.9994594731 | P49: 0 | R49: =Week!D49 -> 2003-10-03 | S49: =IF(SUM(Calculation!AK33:AK47)=$S$9,AVERAGE(AG33:AG47),"") -> 0.338316684 | U49: =IF(SUM(Calculation!AL33:AL47)=$U$9,AVERAGE(AH33:AH47),"") -> 0.6580963333 | V49: =IF(SUM(Calculation!AL37:AL47)=$V$9,AVERAGE(AH37:AH47),"") -> 0.6544722727 | Z49: ='Import_ESALQ '!B49 -> 01/22/2016 | AA49: ='Import_ESALQ '!C49 -> 0.5031 | AB49: 2016.1.22 | AC49: =IF(INDEX(Week!$T$10:$T$10234,MATCH(AB49,Week!$U$10:$U$10234,0))=6,MATCH(AB49,Week!$U$10:$U$10234,0),MATCH(AB49,Week!$U$10:$U$10234,0)+6-INDEX(Week!$T$10:$T$10234,MATCH(AB49,Week!$U$10:$U$10234,0))) -> 4768 | AD49: =INDEX(Week!$R$10:$R$10234,Calculation!AC49) -> 2016-01-22 | AF49: =Week!D49 -> 2003-10-03 | AG49: 0.2851270004 | AH49: =AVERAGEIFS(CleanFOREX!F:F,CleanFOREX!E:E,">"&AF48,CleanFOREX!E:E,"<="&AF49) -> 0.6811 | AJ49: =Week!D49 -> 2003-10-03 | AK49: 1 | AL49: 1
C50: 2003-10-10 | D50: 0.3357434356 | E50: 0.4075763355 | F50: 0.07183289987 | G50: 0.1324397582 | H50: 0.002376070812 | I50: 0.001728492502 | J50: 0.03 | K50: 0.01 | L50: 0.01630305342 | M50: 0.396 | N50: 0.584120657 | O50: 0.9964237104 | P50: 0 | R50: =Week!D50 -> 2003-10-10 | S50: =IF(SUM(Calculation!AK34:AK48)=$S$9,AVERAGE(AG34:AG48),"") -> 0.3357434356 | U50: =IF(SUM(Calculation!AL34:AL48)=$U$9,AVERAGE(AH34:AH48),"") -> 0.6592516667 | V50: =IF(SUM(Calculation!AL38:AL48)=$V$9,AVERAGE(AH38:AH48),"") -> 0.6555377273 | Z50: ='Import_ESALQ '!B50 -> 01/15/2016 | AA50: ='Import_ESALQ '!C50 -> 0.5163 | AB50: 2016.1.15 | AC50: =IF(INDEX(Week!$T$10:$T$10234,MATCH(AB50,Week!$U$10:$U$10234,0))=6,MATCH(AB50,Week!$U$10:$U$10234,0),MATCH(AB50,Week!$U$10:$U$10234,0)+6-INDEX(Week!$T$10:$T$10234,MATCH(AB50,Week!$U$10:$U$10234,0))) -> 4761 | AD50: =INDEX(Week!$R$10:$R$10234,Calculation!AC50) -> 2016-01-15 | AF50: =Week!D50 -> 2003-10-10 | AG50: 0.3022286646 | AH50: =AVERAGEIFS(CleanFOREX!F:F,CleanFOREX!E:E,">"&AF49,CleanFOREX!E:E,"<="&AF50) -> 0.689875 | AJ50: =Week!D50 -> 2003-10-10 | AK50: 1 | AL50: 1
C51: 2003-10-17 | D51: 0.3331262944 | E51: 0.4048711164 | F51: 0.07174482201 | G51: 0.1319289415 | H51: 0.002361920255 | I51: 0.001728492502 | J51: 0.03 | K51: 0.01 | L51: 0.01619484466 | M51: 0.396 | N51: 0.5808904706 | O51: 0.9930853153 | P51: 0 | R51: =Week!D51 -> 2003-10-17 | S51: =IF(SUM(Calculation!AK35:AK49)=$S$9,AVERAGE(AG35:AG49),"") -> 0.3331262944 | U51: =IF(SUM(Calculation!AL35:AL49)=$U$9,AVERAGE(AH35:AH49),"") -> 0.660061 | V51: =IF(SUM(Calculation!AL39:AL49)=$V$9,AVERAGE(AH39:AH49),"") -> 0.6580759091 | Z51: ='Import_ESALQ '!B51 -> 2016-08-01 | AA51: ='Import_ESALQ '!C51 -> 0.5002 | AB51: 2016.1.8 | AC51: =IF(INDEX(Week!$T$10:$T$10234,MATCH(AB51,Week!$U$10:$U$10234,0))=6,MATCH(AB51,Week!$U$10:$U$10234,0),MATCH(AB51,Week!$U$10:$U$10234,0)+6-INDEX(Week!$T$10:$T$10234,MATCH(AB51,Week!$U$10:$U$10234,0))) -> 4754 | AD51: =INDEX(Week!$R$10:$R$10234,Calculation!AC51) -> 2016-01-08 | AF51: =Week!D51 -> 2003-10-17 | AG51: 0.3140517467 | AH51: =AVERAGEIFS(CleanFOREX!F:F,CleanFOREX!E:E,">"&AF50,CleanFOREX!E:E,"<="&AF51) -> 0.68874 | AJ51: =Week!D51 -> 2003-10-17 | AK51: 1 | AL51: 1
C52: 2003-10-24 | D52: 0.3322695381 | E52: 0.4038430694 | F52: 0.07157353129 | G52: 0.1313043293 | H52: 0.002354648554 | I52: 0.001728492502 | J52: 0.03 | K52: 0.01 | L52: 0.01615372278 | M52: 0.396 | N52: 0.5792305398 | O52: 0.9913842625 | P52: 0 | R52: =Week!D52 -> 2003-10-24 | S52: =IF(SUM(Calculation!AK36:AK50)=$S$9,AVERAGE(AG36:AG50),"") -> 0.3322695381 | U52: =IF(SUM(Calculation!AL36:AL50)=$U$9,AVERAGE(AH36:AH50),"") -> 0.6616406667 | V52: =IF(SUM(Calculation!AL40:AL50)=$V$9,AVERAGE(AH40:AH50),"") -> 0.6612063636 | Z52: ='Import_ESALQ '!B52 -> 12/30/2015 | AA52: ='Import_ESALQ '!C52 -> 0.5004 | AB52: 2015.12.30 | AC52: =IF(INDEX(Week!$T$10:$T$10234,MATCH(AB52,Week!$U$10:$U$10234,0))=6,MATCH(AB52,Week!$U$10:$U$10234,0),MATCH(AB52,Week!$U$10:$U$10234,0)+6-INDEX(Week!$T$10:$T$10234,MATCH(AB52,Week!$U$10:$U$10234,0))) -> 4747 | AD52: =INDEX(Week!$R$10:$R$10234,Calculation!AC52) -> 2016-01-01 | AF52: =Week!D52 -> 2003-10-24 | AG52: 0.3135828632 | AH52: =AVERAGEIFS(CleanFOREX!F:F,CleanFOREX!E:E,">"&AF51,CleanFOREX!E:E,"<="&AF52) -> 0.69838 | AJ52: =Week!D52 -> 2003-10-24 | AK52: 1 | AL52: 1
C53: 2003-10-31 | D53: 0.333723753 | E53: 0.4052066757 | F53: 0.07148292267 | G53: 0.1307424077 | H53: 0.002358175967 | I53: 0.001728492502 | J53: 0.03 | K53: 0.01 | L53: 0.01620826703 | M53: 0.396 | N53: 0.5800357518 | O53: 0.9922440188 | P53: 0 | R53: =Week!D53 -> 2003-10-31 | S53: =IF(SUM(Calculation!AK37:AK51)=$S$9,AVERAGE(AG37:AG51),"") -> 0.333723753 | U53: =IF(SUM(Calculation!AL37:AL51)=$U$9,AVERAGE(AH37:AH51),"") -> 0.6624793333 | V53: =IF(SUM(Calculation!AL41:AL51)=$V$9,AVERAGE(AH41:AH51),"") -> 0.6640481818 | Z53: ='Import_ESALQ '!B53 -> 12/23/2015 | AA53: ='Import_ESALQ '!C53 -> 0.4885 | AB53: 2015.12.23 | AC53: =IF(INDEX(Week!$T$10:$T$10234,MATCH(AB53,Week!$U$10:$U$10234,0))=6,MATCH(AB53,Week!$U$10:$U$10234,0),MATCH(AB53,Week!$U$10:$U$10234,0)+6-INDEX(Week!$T$10:$T$10234,MATCH(AB53,Week!$U$10:$U$10234,0))) -> 4740 | AD53: =INDEX(Week!$R$10:$R$10234,Calculation!AC53) -> 2015-12-25 | AF53: =Week!D53 -> 2003-10-31 | AG53: 0.3093222746 | AH53: =AVERAGEIFS(CleanFOREX!F:F,CleanFOREX!E:E,">"&AF52,CleanFOREX!E:E,"<="&AF53) -> 0.70412 | AJ53: =Week!D53 -> 2003-10-31 | AK53: 1 | AL53: 1
C54: 2003-11-07 | D54: 0.3356162351 | E54: 0.4068709921 | F54: 0.07125475693 | G54: 0.1298587602 | H54: 0.00236161091 | I54: 0.001728492502 | J54: 0.03 | K54: 0.01 | L54: 0.01627483968 | M54: 0.396 | N54: 0.5808198556 | O54: 0.9930946953 | P54: 0 | R54: =Week!D54 -> 2003-11-07 | S54: =IF(SUM(Calculation!AK38:AK52)=$S$9,AVERAGE(AG38:AG52),"") -> 0.3356162351 | U54: =IF(SUM(Calculation!AL38:AL52)=$U$9,AVERAGE(AH38:AH52),"") -> 0.6646006667 | V54: =IF(SUM(Calculation!AL42:AL52)=$V$9,AVERAGE(AH42:AH52),"") -> 0.6685668182 | Z54: ='Import_ESALQ '!B54 -> 12/18/2015 | AA54: ='Import_ESALQ '!C54 -> 0.4966 | AB54: 2015.12.18 | AC54: =IF(INDEX(Week!$T$10:$T$10234,MATCH(AB54,Week!$U$10:$U$10234,0))=6,MATCH(AB54,Week!$U$10:$U$10234,0),MATCH(AB54,Week!$U$10:$U$10234,0)+6-INDEX(Week!$T$10:$T$10234,MATCH(AB54,Week!$U$10:$U$10234,0))) -> 4733 | AD54: =INDEX(Week!$R$10:$R$10234,Calculation!AC54) -> 2015-12-18 | AF54: =Week!D54 -> 2003-11-07 | AG54: 0.3133225779 | AH54: =AVERAGEIFS(CleanFOREX!F:F,CleanFOREX!E:E,">"&AF53,CleanFOREX!E:E,"<="&AF54) -> 0.70662 | AJ54: =Week!D54 -> 2003-11-07 | AK54: 1 | AL54: 1
C55: 2003-11-14 | D55: 0.3361207539 | E55: 0.4070132618 | F55: 0.07089250788 | G55: 0.1290261 | H55: 0.002358573192 | I55: 0.001728492502 | J55: 0.03 | K55: 0.01 | L55: 0.01628053047 | M55: 0.396 | N55: 0.5801264274 | O55: 0.9924069579 | P55: 0 | R55: =Week!D55 -> 2003-11-14 | S55: =IF(SUM(Calculation!AK39:AK53)=$S$9,AVERAGE(AG39:AG53),"") -> 0.3361207539 | U55: =IF(SUM(Calculation!AL39:AL53)=$U$9,AVERAGE(AH39:AH53),"") -> 0.6679966667 | V55: =IF(SUM(Calculation!AL43:AL53)=$V$9,AVERAGE(AH43:AH53),"") -> 0.6728813636 | Z55: ='Import_ESALQ '!B55 -> 2015-11-12 | AA55: ='Import_ESALQ '!C55 -> 0.5079 | AB55: 2015.12.11 | AC55: =IF(INDEX(Week!$T$10:$T$10234,MATCH(AB55,Week!$U$10:$U$10234,0))=6,MATCH(AB55,Week!$U$10:$U$10234,0),MATCH(AB55,Week!$U$10:$U$10234,0)+6-INDEX(Week!$T$10:$T$10234,MATCH(AB55,Week!$U$10:$U$10234,0))) -> 4726 | AD55: =INDEX(Week!$R$10:$R$10234,Calculation!AC55) -> 2015-12-11 | AF55: =Week!D55 -> 2003-11-14 | AG55: 0.3129012449 | AH55: =AVERAGEIFS(CleanFOREX!F:F,CleanFOREX!E:E,">"&AF54,CleanFOREX!E:E,"<="&AF55) -> 0.71652 | AJ55: =Week!D55 -> 2003-11-14 | AK55: 1 | AL55: 1
C56: 2003-11-21 | D56: 0.3352932335 | E56: 0.4058254761 | F56: 0.0705322426 | G56: 0.1281510633 | H56: 0.002349496773 | I56: 0.001728492502 | J56: 0.03 | K56: 0.01 | L56: 0.01623301904 | M56: 0.396 | N56: 0.5780545286 | O56: 0.9902875477 | P56: 0 | R56: =Week!D56 -> 2003-11-21 | S56: =IF(SUM(Calculation!AK40:AK54)=$S$9,AVERAGE(AG40:AG54),"") -> 0.3352932335 | U56: =IF(SUM(Calculation!AL40:AL54)=$U$9,AVERAGE(AH40:AH54),"") -> 0.6714086667 | V56: =IF(SUM(Calculation!AL44:AL54)=$V$9,AVERAGE(AH44:AH54),"") -> 0.6774759091 | Z56: ='Import_ESALQ '!B56 -> 2015-04-12 | AA56: ='Import_ESALQ '!C56 -> 0.511 | AB56: 2015.12.4 | AC56: =IF(INDEX(Week!$T$10:$T$10234,MATCH(AB56,Week!$U$10:$U$10234,0))=6,MATCH(AB56,Week!$U$10:$U$10234,0),MATCH(AB56,Week!$U$10:$U$10234,0)+6-INDEX(Week!$T$10:$T$10234,MATCH(AB56,Week!$U$10:$U$10234,0))) -> 4719 | AD56: =INDEX(Week!$R$10:$R$10234,Calculation!AC56) -> 2015-12-04 | AF56: =Week!D56 -> 2003-11-21 | AG56: 0.3162286191 | AH56: =AVERAGEIFS(CleanFOREX!F:F,CleanFOREX!E:E,">"&AF55,CleanFOREX!E:E,"<="&AF56) -> 0.7191 | AJ56: =Week!D56 -> 2003-11-21 | AK56: 1 | AL56: 1
C57: 2003-11-28 | D57: 0.3328218083 | E57: 0.4029429795 | F57: 0.07012117115 | G57: 0.1269082463 | H57: 0.002331345394 | I57: 0.001728492502 | J57: 0.03 | K57: 0.01 | L57: 0.01611771918 | M57: 0.396 | N57: 0.5739110637 | O57: 0.9860287829 | P57: 0 | R57: =Week!D57 -> 2003-11-28 | S57: =IF(SUM(Calculation!AK41:AK55)=$S$9,AVERAGE(AG41:AG55),"") -> 0.3328218083 | U57: =IF(SUM(Calculation!AL41:AL55)=$U$9,AVERAGE(AH41:AH55),"") -> 0.6753446667 | V57: =IF(SUM(Calculation!AL45:AL55)=$V$9,AVERAGE(AH45:AH55),"") -> 0.6841104545 | Z57: ='Import_ESALQ '!B57 -> 11/27/2015 | AA57: ='Import_ESALQ '!C57 -> 0.5275 | AB57: 2015.11.27 | AC57: =IF(INDEX(Week!$T$10:$T$10234,MATCH(AB57,Week!$U$10:$U$10234,0))=6,MATCH(AB57,Week!$U$10:$U$10234,0),MATCH(AB57,Week!$U$10:$U$10234,0)+6-INDEX(Week!$T$10:$T$10234,MATCH(AB57,Week!$U$10:$U$10234,0))) -> 4712 | AD57: =INDEX(Week!$R$10:$R$10234,Calculation!AC57) -> 2015-11-27 | AF57: =Week!D57 -> 2003-11-28 | AG57: 0.3169629239 | AH57: =AVERAGEIFS(CleanFOREX!F:F,CleanFOREX!E:E,">"&AF56,CleanFOREX!E:E,"<="&AF57) -> 0.72122 | AJ57: =Week!D57 -> 2003-11-28 | AK57: 1 | AL57: 1
C58: 2003-12-05 | D58: 0.3299780216 | E58: 0.3996150755 | F58: 0.06963705395 | G58: 0.1256268061 | H58: 0.002311064279 | I58: 0.001728492502 | J58: 0.03 | K58: 0.01 | L58: 0.01598460302 | M58: 0.396 | N58: 0.5692814384 | O58: 0.9812660414 | P58: 0 | R58: =Week!D58 -> 2003-12-05 | S58: =IF(SUM(Calculation!AK42:AK56)=$S$9,AVERAGE(AG42:AG56),"") -> 0.3299780216 | U58: =IF(SUM(Calculation!AL42:AL56)=$U$9,AVERAGE(AH42:AH56),"") -> 0.6800396667 | V58: =IF(SUM(Calculation!AL46:AL56)=$V$9,AVERAGE(AH46:AH56),"") -> 0.6910886364 | Z58: ='Import_ESALQ '!B58 -> 11/20/2015 | AA58: ='Import_ESALQ '!C58 -> 0.5239 | AB58: 2015.11.20 | AC58: =IF(INDEX(Week!$T$10:$T$10234,MATCH(AB58,Week!$U$10:$U$10234,0))=6,MATCH(AB58,Week!$U$10:$U$10234,0),MATCH(AB58,Week!$U$10:$U$10234,0)+6-INDEX(Week!$T$10:$T$10234,MATCH(AB58,Week!$U$10:$U$10234,0))) -> 4705 | AD58: =INDEX(Week!$R$10:$R$10234,Calculation!AC58) -> 2015-11-20 | AF58: =Week!D58 -> 2003-12-05 | AG58: 0.3310624094 | AH58: =AVERAGEIFS(CleanFOREX!F:F,CleanFOREX!E:E,">"&AF57,CleanFOREX!E:E,"<="&AF58) -> 0.73098 | AJ58: =Week!D58 -> 2003-12-05 | AK58: 1 | AL58: 1
C59: 2003-12-12 | D59: 0.3269462013 | E59: 0.3961452913 | F59: 0.06919908997 | G59: 0.12454096 | H59: 0.002291019505 | I59: 0.001728492502 | J59: 0.03 | K59: 0.01 | L59: 0.01584581165 | M59: 0.396 | N59: 0.5647057632 | O59: 0.9765515749 | P59: 0 | R59: =Week!D59 -> 2003-12-12 | S59: =IF(SUM(Calculation!AK43:AK57)=$S$9,AVERAGE(AG43:AG57),"") -> 0.3269462013 | U59: =IF(SUM(Calculation!AL43:AL57)=$U$9,AVERAGE(AH43:AH57),"") -> 0.6843436667 | V59: =IF(SUM(Calculation!AL47:AL57)=$V$9,AVERAGE(AH47:AH57),"") -> 0.6971140909 | Z59: ='Import_ESALQ '!B59 -> 11/13/2015 | AA59: ='Import_ESALQ '!C59 -> 0.5309 | AB59: 2015.11.13 | AC59: =IF(INDEX(Week!$T$10:$T$10234,MATCH(AB59,Week!$U$10:$U$10234,0))=6,MATCH(AB59,Week!$U$10:$U$10234,0),MATCH(AB59,Week!$U$10:$U$10234,0)+6-INDEX(Week!$T$10:$T$10234,MATCH(AB59,Week!$U$10:$U$10234,0))) -> 4698 | AD59: =INDEX(Week!$R$10:$R$10234,Calculation!AC59) -> 2015-11-13 | AF59: =Week!D59 -> 2003-12-12 | AG59: 0.3302307963 | AH59: =AVERAGEIFS(CleanFOREX!F:F,CleanFOREX!E:E,">"&AF58,CleanFOREX!E:E,"<="&AF59) -> 0.73918 | AJ59: =Week!D59 -> 2003-12-12 | AK59: 1 | AL59: 1
C60: 2003-12-19 | D60: 0.3244366929 | E60: 0.3931345271 | F60: 0.06869783424 | G60: 0.1234673386 | H60: 0.002273048209 | I60: 0.001728492502 | J60: 0.03 | K60: 0.01 | L60: 0.01572538108 | M60: 0.396 | N60: 0.5606034064 | O60: 0.9723287875 | P60: 0 | R60: =Week!D60 -> 2003-12-19 | S60: =IF(SUM(Calculation!AK44:AK58)=$S$9,AVERAGE(AG44:AG58),"") -> 0.3244366929 | U60: =IF(SUM(Calculation!AL44:AL58)=$U$9,AVERAGE(AH44:AH58),"") -> 0.689337 | V60: =IF(SUM(Calculation!AL48:AL58)=$V$9,AVERAGE(AH48:AH58),"") -> 0.7031759091 | Z60: ='Import_ESALQ '!B60 -> 2015-06-11 | AA60: ='Import_ESALQ '!C60 -> 0.505 | AB60: 2015.11.6 | AC60: =IF(INDEX(Week!$T$10:$T$10234,MATCH(AB60,Week!$U$10:$U$10234,0))=6,MATCH(AB60,Week!$U$10:$U$10234,0),MATCH(AB60,Week!$U$10:$U$10234,0)+6-INDEX(Week!$T$10:$T$10234,MATCH(AB60,Week!$U$10:$U$10234,0))) -> 4691 | AD60: =INDEX(Week!$R$10:$R$10234,Calculation!AC60) -> 2015-11-06 | AF60: =Week!D60 -> 2003-12-19 | AG60: 0.3321282107 | AH60: =AVERAGEIFS(CleanFOREX!F:F,CleanFOREX!E:E,">"&AF59,CleanFOREX!E:E,"<="&AF60) -> 0.74128 | AJ60: =Week!D60 -> 2003-12-19 | AK60: 1 | AL60: 1
C61: 2003-12-26 | D61: 0.3212166627 | E61: 0.389284902 | F61: 0.06806823929 | G61: 0.1225028286 | H61: 0.002251866015 | I61: 0.001728492502 | J61: 0.03 | K61: 0.01 | L61: 0.01557139608 | M61: 0.396 | N61: 0.5557680891 | O61: 0.9673394852 | P61: 0 | R61: =Week!D61 -> 2003-12-26 | S61: =IF(SUM(Calculation!AK45:AK59)=$S$9,AVERAGE(AG45:AG59),"") -> 0.3212166627 | U61: =IF(SUM(Calculation!AL45:AL59)=$U$9,AVERAGE(AH45:AH59),"") -> 0.695713 | V61: =IF(SUM(Calculation!AL49:AL59)=$V$9,AVERAGE(AH49:AH59),"") -> 0.7087122727 | Z61: ='Import_ESALQ '!B61 -> 10/30/2015 | AA61: ='Import_ESALQ '!C61 -> 0.4598 | AB61: 2015.10.30 | AC61: =IF(INDEX(Week!$T$10:$T$10234,MATCH(AB61,Week!$U$10:$U$10234,0))=6,MATCH(AB61,Week!$U$10:$U$10234,0),MATCH(AB61,Week!$U$10:$U$10234,0)+6-INDEX(Week!$T$10:$T$10234,MATCH(AB61,Week!$U$10:$U$10234,0))) -> 4684 | AD61: =INDEX(Week!$R$10:$R$10234,Calculation!AC61) -> 2015-10-30 | AF61: =Week!D61 -> 2003-12-26 | AG61: 0.3301506856 | AH61: =AVERAGEIFS(CleanFOREX!F:F,CleanFOREX!E:E,">"&AF60,CleanFOREX!E:E,"<="&AF61) -> 0.7366333333 | AJ61: =Week!D61 -> 2003-12-26 | AK61: 1 | AL61: 1
C62: 2004-01-02 | D62: 0.3181797699 | E62: 0.3856087207 | F62: 0.06742895073 | G62: 0.1215644113 | H62: 0.002231561781 | I62: 0.001728492502 | J62: 0.03 | K62: 0.01 | L62: 0.01542434883 | M62: 0.396 | N62: 0.5511331863 | O62: 0.9625575351 | P62: 0 | R62: =Week!D62 -> 2004-01-02 | S62: =IF(SUM(Calculation!AK46:AK60)=$S$9,AVERAGE(AG46:AG60),"") -> 0.3181797699 | U62: =IF(SUM(Calculation!AL46:AL60)=$U$9,AVERAGE(AH46:AH60),"") -> 0.702309 | V62: =IF(SUM(Calculation!AL50:AL60)=$V$9,AVERAGE(AH50:AH60),"") -> 0.7141831818 | Z62: ='Import_ESALQ '!B62 -> 10/23/2015 | AA62: ='Import_ESALQ '!C62 -> 0.4431 | AB62: 2015.10.23 | AC62: =IF(INDEX(Week!$T$10:$T$10234,MATCH(AB62,Week!$U$10:$U$10234,0))=6,MATCH(AB62,Week!$U$10:$U$10234,0),MATCH(AB62,Week!$U$10:$U$10234,0)+6-INDEX(Week!$T$10:$T$10234,MATCH(AB62,Week!$U$10:$U$10234,0))) -> 4677 | AD62: =INDEX(Week!$R$10:$R$10234,Calculation!AC62) -> 2015-10-23 | AF62: =Week!D62 -> 2004-01-02 | AG62: 0.3309256287 | AH62: =AVERAGEIFS(CleanFOREX!F:F,CleanFOREX!E:E,">"&AF61,CleanFOREX!E:E,"<="&AF62) -> 0.7476 | AJ62: =Week!D62 -> 2004-01-02 | AK62: 1 | AL62: 1
C63: 2004-01-09 | D63: 0.3164929885 | E63: 0.383403069 | F63: 0.06691008059 | G63: 0.1208451513 | H63: 0.002218692169 | I63: 0.001728492502 | J63: 0.03 | K63: 0.01 | L63: 0.01533612276 | M63: 0.396 | N63: 0.548195405 | O63: 0.9595315278 | P63: 0 | R63: =Week!D63 -> 2004-01-09 | S63: =IF(SUM(Calculation!AK47:AK61)=$S$9,AVERAGE(AG47:AG61),"") -> 0.3164929885 | U63: =IF(SUM(Calculation!AL47:AL61)=$U$9,AVERAGE(AH47:AH61),"") -> 0.7077552222 | V63: =IF(SUM(Calculation!AL51:AL61)=$V$9,AVERAGE(AH51:AH61),"") -> 0.7184339394 | Z63: ='Import_ESALQ '!B63 -> 10/16/2015 | AA63: ='Import_ESALQ '!C63 -> 0.4487 | AB63: 2015.10.16 | AC63: =IF(INDEX(Week!$T$10:$T$10234,MATCH(AB63,Week!$U$10:$U$10234,0))=6,MATCH(AB63,Week!$U$10:$U$10234,0),MATCH(AB63,Week!$U$10:$U$10234,0)+6-INDEX(Week!$T$10:$T$10234,MATCH(AB63,Week!$U$10:$U$10234,0))) -> 4670 | AD63: =INDEX(Week!$R$10:$R$10234,Calculation!AC63) -> 2015-10-16 | AF63: =Week!D63 -> 2004-01-09 | AG63: 0.3103681716 | AH63: =AVERAGEIFS(CleanFOREX!F:F,CleanFOREX!E:E,">"&AF62,CleanFOREX!E:E,"<="&AF63) -> 0.76812 | AJ63: =Week!D63 -> 2004-01-09 | AK63: 1 | AL63: 1
C64: 2004-01-16 | D64: 0.3163157488 | E64: 0.3827049132 | F64: 0.06638916439 | G64: 0.1199517485 | H64: 0.002211689311 | I64: 0.001728492502 | J64: 0.03 | K64: 0.01 | L64: 0.01530819653 | M64: 0.396 | N64: 0.5465968434 | O64: 0.95790504 | P64: 0 | R64: =Week!D64 -> 2004-01-16 | S64: =IF(SUM(Calculation!AK48:AK62)=$S$9,AVERAGE(AG48:AG62),"") -> 0.3163157488 | U64: =IF(SUM(Calculation!AL48:AL62)=$U$9,AVERAGE(AH48:AH62),"") -> 0.7133085556 | V64: =IF(SUM(Calculation!AL52:AL62)=$V$9,AVERAGE(AH52:AH62),"") -> 0.7237848485 | Z64: ='Import_ESALQ '!B64 -> 2015-09-10 | AA64: ='Import_ESALQ '!C64 -> 0.4434 | AB64: 2015.10.9 | AC64: =IF(INDEX(Week!$T$10:$T$10234,MATCH(AB64,Week!$U$10:$U$10234,0))=6,MATCH(AB64,Week!$U$10:$U$10234,0),MATCH(AB64,Week!$U$10:$U$10234,0)+6-INDEX(Week!$T$10:$T$10234,MATCH(AB64,Week!$U$10:$U$10234,0))) -> 4663 | AD64: =INDEX(Week!$R$10:$R$10234,Calculation!AC64) -> 2015-10-09 | AF64: =Week!D64 -> 2004-01-16 | AG64: 0.2849333436 | AH64: =AVERAGEIFS(CleanFOREX!F:F,CleanFOREX!E:E,">"&AF63,CleanFOREX!E:E,"<="&AF64) -> 0.77562 | AJ64: =Week!D64 -> 2004-01-16 | AK64: 1 | AL64: 1
C65: 2004-01-23 | D65: 0.3165729212 | E65: 0.382409287 | F65: 0.06583636584 | G65: 0.1189101539 | H65: 0.00220580554 | I65: 0.001728492502 | J65: 0.03 | K65: 0.01 | L65: 0.01529637148 | M65: 0.396 | N65: 0.5452537389 | O65: 0.9565501104 | P65: 0 | R65: =Week!D65 -> 2004-01-23 | S65: =IF(SUM(Calculation!AK49:AK63)=$S$9,AVERAGE(AG49:AG63),"") -> 0.3165729212 | U65: =IF(SUM(Calculation!AL49:AL63)=$U$9,AVERAGE(AH49:AH63),"") -> 0.7192978889 | V65: =IF(SUM(Calculation!AL53:AL63)=$V$9,AVERAGE(AH53:AH63),"") -> 0.7301248485 | Z65: ='Import_ESALQ '!B65 -> 2015-02-10 | AA65: ='Import_ESALQ '!C65 -> 0.3931 | AB65: 2015.10.2 | AC65: =IF(INDEX(Week!$T$10:$T$10234,MATCH(AB65,Week!$U$10:$U$10234,0))=6,MATCH(AB65,Week!$U$10:$U$10234,0),MATCH(AB65,Week!$U$10:$U$10234,0)+6-INDEX(Week!$T$10:$T$10234,MATCH(AB65,Week!$U$10:$U$10234,0))) -> 4656 | AD65: =INDEX(Week!$R$10:$R$10234,Calculation!AC65) -> 2015-10-02 | AF65: =Week!D65 -> 2004-01-23 | AG65: 0.2713905835 | AH65: =AVERAGEIFS(CleanFOREX!F:F,CleanFOREX!E:E,">"&AF64,CleanFOREX!E:E,"<="&AF65) -> 0.76716 | AJ65: =Week!D65 -> 2004-01-23 | AK65: 1 | AL65: 1
C66: 2004-01-30 | D66: 0.3165600107 | E66: 0.3818246327 | F66: 0.06526462199 | G66: 0.1178608871 | H66: 0.002198616287 | I66: 0.001728492502 | J66: 0.03 | K66: 0.01 | L66: 0.01527298531 | M66: 0.396 | N66: 0.5436126286 | O66: 0.9548856139 | P66: 0 | R66: =Week!D66 -> 2004-01-30 | S66: =IF(SUM(Calculation!AK50:AK64)=$S$9,AVERAGE(AG50:AG64),"") -> 0.3165600107 | U66: =IF(SUM(Calculation!AL50:AL64)=$U$9,AVERAGE(AH50:AH64),"") -> 0.7255992222 | V66: =IF(SUM(Calculation!AL54:AL64)=$V$9,AVERAGE(AH54:AH64),"") -> 0.7366248485 | Z66: ='Import_ESALQ '!B66 -> 09/25/2015 | AA66: ='Import_ESALQ '!C66 -> 0.3545 | AB66: 2015.9.25 | AC66: =IF(INDEX(Week!$T$10:$T$10234,MATCH(AB66,Week!$U$10:$U$10234,0))=6,MATCH(AB66,Week!$U$10:$U$10234,0),MATCH(AB66,Week!$U$10:$U$10234,0)+6-INDEX(Week!$T$10:$T$10234,MATCH(AB66,Week!$U$10:$U$10234,0))) -> 4649 | AD66: =INDEX(Week!$R$10:$R$10234,Calculation!AC66) -> 2015-09-25 | AF66: =Week!D66 -> 2004-01-30 | AG66: 0.2718837194 | AH66: =AVERAGEIFS(CleanFOREX!F:F,CleanFOREX!E:E,">"&AF65,CleanFOREX!E:E,"<="&AF66) -> 0.77055 | AJ66: =Week!D66 -> 2004-01-30 | AK66: 1 | AL66: 1
C67: 2004-02-06 | D67: 0.3145041386 | E67: 0.3793085973 | F67: 0.06480445864 | G67: 0.1169868289 | H67: 0.002183699875 | I67: 0.001728492502 | J67: 0.03 | K67: 0.01 | L67: 0.01517234389 | M67: 0.396 | N67: 0.5402076186 | O67: 0.9513799625 | P67: 0 | R67: =Week!D67 -> 2004-02-06 | S67: =IF(SUM(Calculation!AK51:AK65)=$S$9,AVERAGE(AG51:AG65),"") -> 0.3145041386 | U67: =IF(SUM(Calculation!AL51:AL65)=$U$9,AVERAGE(AH51:AH65),"") -> 0.7307515556 | V67: =IF(SUM(Calculation!AL55:AL65)=$V$9,AVERAGE(AH55:AH65),"") -> 0.7421284848 | Z67: ='Import_ESALQ '!B67 -> 09/18/2015 | AA67: ='Import_ESALQ '!C67 -> 0.3657 | AB67: 2015.9.18 | AC67: =IF(INDEX(Week!$T$10:$T$10234,MATCH(AB67,Week!$U$10:$U$10234,0))=6,MATCH(AB67,Week!$U$10:$U$10234,0),MATCH(AB67,Week!$U$10:$U$10234,0)+6-INDEX(Week!$T$10:$T$10234,MATCH(AB67,Week!$U$10:$U$10234,0))) -> 4642 | AD67: =INDEX(Week!$R$10:$R$10234,Calculation!AC67) -> 2015-09-18 | AF67: =Week!D67 -> 2004-02-06 | AG67: 0.2494881621 | AH67: =AVERAGEIFS(CleanFOREX!F:F,CleanFOREX!E:E,">"&AF66,CleanFOREX!E:E,"<="&AF67) -> 0.76196 | AJ67: =Week!D67 -> 2004-02-06 | AK67: 1 | AL67: 1
C68: 2004-02-13 | D68: 0.3116929368 | E68: 0.3760173074 | F68: 0.06432437055 | G68: 0.1162176361 | H68: 0.002165833751 | I68: 0.001728492502 | J68: 0.03 | K68: 0.01 | L68: 0.0150406923 | M68: 0.396 | N68: 0.5361292697 | O68: 0.947169962 | P68: 0 | R68: =Week!D68 -> 2004-02-13 | S68: =IF(SUM(Calculation!AK52:AK66)=$S$9,AVERAGE(AG52:AG66),"") -> 0.3116929368 | U68: =IF(SUM(Calculation!AL52:AL66)=$U$9,AVERAGE(AH52:AH66),"") -> 0.7362055556 | V68: =IF(SUM(Calculation!AL56:AL66)=$V$9,AVERAGE(AH56:AH66),"") -> 0.747040303 | Z68: ='Import_ESALQ '!B68 -> 2015-11-09 | AA68: ='Import_ESALQ '!C68 -> 0.3586 | AB68: 2015.9.11 | AC68: =IF(INDEX(Week!$T$10:$T$10234,MATCH(AB68,Week!$U$10:$U$10234,0))=6,MATCH(AB68,Week!$U$10:$U$10234,0),MATCH(AB68,Week!$U$10:$U$10234,0)+6-INDEX(Week!$T$10:$T$10234,MATCH(AB68,Week!$U$10:$U$10234,0))) -> 4635 | AD68: =INDEX(Week!$R$10:$R$10234,Calculation!AC68) -> 2015-09-11 | AF68: =Week!D68 -> 2004-02-13 | AG68: 0.18758945 | AH68: =AVERAGEIFS(CleanFOREX!F:F,CleanFOREX!E:E,">"&AF67,CleanFOREX!E:E,"<="&AF68) -> 0.78256 | AJ68: =Week!D68 -> 2004-02-13 | AK68: 1 | AL68: 1
C69: 2004-02-20 | D69: 0.3074199568 | E69: 0.371376103 | F69: 0.06395614624 | G69: 0.115614621 | H69: 0.002142759185 | I69: 0.001728492502 | J69: 0.03 | K69: 0.01 | L69: 0.01485504412 | M69: 0.396 | N69: 0.5308619756 | O69: 0.9417170198 | P69: 0 | R69: =Week!D69 -> 2004-02-20 | S69: =IF(SUM(Calculation!AK53:AK67)=$S$9,AVERAGE(AG53:AG67),"") -> 0.3074199568 | U69: =IF(SUM(Calculation!AL53:AL67)=$U$9,AVERAGE(AH53:AH67),"") -> 0.7404442222 | V69: =IF(SUM(Calculation!AL57:AL67)=$V$9,AVERAGE(AH57:AH67),"") -> 0.7509366667 | Z69: ='Import_ESALQ '!B69 -> 2015-04-09 | AA69: ='Import_ESALQ '!C69 -> 0.3581 | AB69: 2015.9.4 | AC69: =IF(INDEX(Week!$T$10:$T$10234,MATCH(AB69,Week!$U$10:$U$10234,0))=6,MATCH(AB69,Week!$U$10:$U$10234,0),MATCH(AB69,Week!$U$10:$U$10234,0)+6-INDEX(Week!$T$10:$T$10234,MATCH(AB69,Week!$U$10:$U$10234,0))) -> 4628 | AD69: =INDEX(Week!$R$10:$R$10234,Calculation!AC69) -> 2015-09-04 | AF69: =Week!D69 -> 2004-02-20 | AG69: 0.1629186542 | AH69: =AVERAGEIFS(CleanFOREX!F:F,CleanFOREX!E:E,">"&AF68,CleanFOREX!E:E,"<="&AF69) -> 0.79242 | AJ69: =Week!D69 -> 2004-02-20 | AK69: 1 | AL69: 1
C70: 2004-02-27 | D70: 0.2993044351 | E70: 0.3628120634 | F70: 0.06350762824 | G70: 0.1147624094 | H70: 0.00210132768 | I70: 0.001728492502 | J70: 0.03 | K70: 0.01 | L70: 0.01451248253 | M70: 0.396 | N70: 0.5214042929 | O70: 0.9319167755 | P70: 0 | R70: =Week!D70 -> 2004-02-27 | S70: =IF(SUM(Calculation!AK54:AK68)=$S$9,AVERAGE(AG54:AG68),"") -> 0.2993044351 | U70: =IF(SUM(Calculation!AL54:AL68)=$U$9,AVERAGE(AH54:AH68),"") -> 0.7456735556 | V70: =IF(SUM(Calculation!AL58:AL68)=$V$9,AVERAGE(AH58:AH68),"") -> 0.7565130303 | Z70: ='Import_ESALQ '!B70 -> 08/28/2015 | AA70: ='Import_ESALQ '!C70 -> 0.3733 | AB70: 2015.8.28 | AC70: =IF(INDEX(Week!$T$10:$T$10234,MATCH(AB70,Week!$U$10:$U$10234,0))=6,MATCH(AB70,Week!$U$10:$U$10234,0),MATCH(AB70,Week!$U$10:$U$10234,0)+6-INDEX(Week!$T$10:$T$10234,MATCH(AB70,Week!$U$10:$U$10234,0))) -> 4621 | AD70: =INDEX(Week!$R$10:$R$10234,Calculation!AC70) -> 2015-08-28 | AF70: =Week!D70 -> 2004-02-27 | AG70: 0.1708186893 | AH70: =AVERAGEIFS(CleanFOREX!F:F,CleanFOREX!E:E,">"&AF69,CleanFOREX!E:E,"<="&AF70) -> 0.77392 | AJ70: =Week!D70 -> 2004-02-27 | AK70: 1 | AL70: 1
C71: 2004-03-05 | D71: 0.2892775069 | E71: 0.3523016819 | F71: 0.06302417503 | G71: 0.1139213105 | H71: 0.002051381166 | I71: 0.001728492502 | J71: 0.03 | K71: 0.01 | L71: 0.01409206728 | M71: 0.396 | N71: 0.510002866 | O71: 0.9200949333 | P71: 0 | R71: =Week!D71 -> 2004-03-05 | S71: =IF(SUM(Calculation!AK55:AK69)=$S$9,AVERAGE(AG55:AG69),"") -> 0.2892775069 | U71: =IF(SUM(Calculation!AL55:AL69)=$U$9,AVERAGE(AH55:AH69),"") -> 0.7513935556 | V71: =IF(SUM(Calculation!AL59:AL69)=$V$9,AVERAGE(AH59:AH69),"") -> 0.7620984848 | Z71: ='Import_ESALQ '!B71 -> 08/21/2015 | AA71: ='Import_ESALQ '!C71 -> 0.3876 | AB71: 2015.8.21 | AC71: =IF(INDEX(Week!$T$10:$T$10234,MATCH(AB71,Week!$U$10:$U$10234,0))=6,MATCH(AB71,Week!$U$10:$U$10234,0),MATCH(AB71,Week!$U$10:$U$10234,0)+6-INDEX(Week!$T$10:$T$10234,MATCH(AB71,Week!$U$10:$U$10234,0))) -> 4614 | AD71: =INDEX(Week!$R$10:$R$10234,Calculation!AC71) -> 2015-08-21 | AF71: =Week!D71 -> 2004-03-05 | AG71: 0.1831193433 | AH71: =AVERAGEIFS(CleanFOREX!F:F,CleanFOREX!E:E,">"&AF70,CleanFOREX!E:E,"<="&AF71) -> 0.76016 | AJ71: =Week!D71 -> 2004-03-05 | AK71: 1 | AL71: 1
C72: 2004-03-12 | D72: 0.2798053365 | E72: 0.3425101709 | F72: 0.06270483438 | G72: 0.113451162 | H72: 0.002006229865 | I72: 0.001728492502 | J72: 0.03 | K72: 0.01 | L72: 0.01370040684 | M72: 0.396 | N72: 0.4996960553 | O72: 0.9093964621 | P72: 0 | R72: =Week!D72 -> 2004-03-12 | S72: =IF(SUM(Calculation!AK56:AK70)=$S$9,AVERAGE(AG56:AG70),"") -> 0.2798053365 | U72: =IF(SUM(Calculation!AL56:AL70)=$U$9,AVERAGE(AH56:AH70),"") -> 0.7552202222 | V72: =IF(SUM(Calculation!AL60:AL70)=$V$9,AVERAGE(AH60:AH70),"") -> 0.7652566667 | Z72: ='Import_ESALQ '!B72 -> 08/14/2015 | AA72: ='Import_ESALQ '!C72 -> 0.3827 | AB72: 2015.8.14 | AC72: =IF(INDEX(Week!$T$10:$T$10234,MATCH(AB72,Week!$U$10:$U$10234,0))=6,MATCH(AB72,Week!$U$10:$U$10234,0),MATCH(AB72,Week!$U$10:$U$10234,0)+6-INDEX(Week!$T$10:$T$10234,MATCH(AB72,Week!$U$10:$U$10234,0))) -> 4607 | AD72: =INDEX(Week!$R$10:$R$10234,Calculation!AC72) -> 2015-08-14 | AF72: =Week!D72 -> 2004-03-12 | AG72: 0.1732508202 | AH72: =AVERAGEIFS(CleanFOREX!F:F,CleanFOREX!E:E,">"&AF71,CleanFOREX!E:E,"<="&AF72) -> 0.74978 | AJ72: =Week!D72 -> 2004-03-12 | AK72: 1 | AL72: 1
C73: 2004-03-19 | D73: 0.2709313848 | E73: 0.3334097632 | F73: 0.06247837839 | G73: 0.1131972764 | H73: 0.001965070974 | I73: 0.001728492502 | J73: 0.03 | K73: 0.01 | L73: 0.01333639053 | M73: 0.396 | N73: 0.490300603 | O73: 0.8996369935 | P73: 0 | R73: =Week!D73 -> 2004-03-19 | S73: =IF(SUM(Calculation!AK57:AK71)=$S$9,AVERAGE(AG57:AG71),"") -> 0.2709313848 | U73: =IF(SUM(Calculation!AL57:AL71)=$U$9,AVERAGE(AH57:AH71),"") -> 0.7579575556 | V73: =IF(SUM(Calculation!AL61:AL71)=$V$9,AVERAGE(AH61:AH71),"") -> 0.7669730303 | Z73: ='Import_ESALQ '!B73 -> 2015-07-08 | AA73: ='Import_ESALQ '!C73 -> 0.3863 | AB73: 2015.8.7 | AC73: =IF(INDEX(Week!$T$10:$T$10234,MATCH(AB73,Week!$U$10:$U$10234,0))=6,MATCH(AB73,Week!$U$10:$U$10234,0),MATCH(AB73,Week!$U$10:$U$10234,0)+6-INDEX(Week!$T$10:$T$10234,MATCH(AB73,Week!$U$10:$U$10234,0))) -> 4600 | AD73: =INDEX(Week!$R$10:$R$10234,Calculation!AC73) -> 2015-08-07 | AF73: =Week!D73 -> 2004-03-19 | AG73: 0.174934585 | AH73: =AVERAGEIFS(CleanFOREX!F:F,CleanFOREX!E:E,">"&AF72,CleanFOREX!E:E,"<="&AF73) -> 0.74142 | AJ73: =Week!D73 -> 2004-03-19 | AK73: 1 | AL73: 1
C74: =R74 -> 2004-03-26 | D74: 0.2613505779 | E74: 0.3236724029 | F74: 0.06232182509 | G74: 0.1130211588 | H74: 0.001921451672 | I74: 0.001728492502 | J74: 0.03 | K74: 0.01 | L74: 0.01294689612 | M74: 0.396 | N74: 0.480343506 | O74: 0.8892904021 | P74: 0 | R74: =Week!D74 -> 2004-03-26 | S74: =IF(SUM(Calculation!AK58:AK72)=$S$9,AVERAGE(AG58:AG72),"") -> 0.2613505779 | U74: =IF(SUM(Calculation!AL58:AL72)=$U$9,AVERAGE(AH58:AH72),"") -> 0.7598615556 | V74: =IF(SUM(Calculation!AL62:AL72)=$V$9,AVERAGE(AH62:AH72),"") -> 0.7681681818 | Z74: ='Import_ESALQ '!B74 -> 07/31/2015 | AA74: ='Import_ESALQ '!C74 -> 0.4034 | AB74: 2015.7.31 | AC74: =IF(INDEX(Week!$T$10:$T$10234,MATCH(AB74,Week!$U$10:$U$10234,0))=6,MATCH(AB74,Week!$U$10:$U$10234,0),MATCH(AB74,Week!$U$10:$U$10234,0)+6-INDEX(Week!$T$10:$T$10234,MATCH(AB74,Week!$U$10:$U$10234,0))) -> 4593 | AD74: =INDEX(Week!$R$10:$R$10234,Calculation!AC74) -> 2015-07-31 | AF74: =Week!D74 -> 2004-03-26 | AG74: 0.1822442421 | AH74: =AVERAGEIFS(CleanFOREX!F:F,CleanFOREX!E:E,">"&AF73,CleanFOREX!E:E,"<="&AF74) -> 0.7468 | AJ74: =Week!D74 -> 2004-03-26 | AK74: 1 | AL74: 1
C75: 2004-04-02 | D75: 0.2509420562 | E75: 0.3132068495 | F75: 0.06226479326 | G75: 0.1131038801 | H75: 0.00187576721 | I75: 0.001728492502 | J75: 0.03 | K75: 0.01 | L75: 0.01252827398 | M75: 0.396 | N75: 0.4699149893 | O75: 0.8784432632 | P75: 0 | R75: =Week!D75 -> 2004-04-02 | S75: =IF(SUM(Calculation!AK59:AK73)=$S$9,AVERAGE(AG59:AG73),"") -> 0.2509420562 | U75: =IF(SUM(Calculation!AL59:AL73)=$U$9,AVERAGE(AH59:AH73),"") -> 0.7605575556 | V75: =IF(SUM(Calculation!AL63:AL73)=$V$9,AVERAGE(AH63:AH73),"") -> 0.7676063636 | Z75: ='Import_ESALQ '!B75 -> 07/24/2015 | AA75: ='Import_ESALQ '!C75 -> 0.4223 | AB75: =IF(ISNONTEXT(Z75),YEAR(Z75)&"."&DAY(Z75)&"."&MONTH(Z75),RIGHT(Z75,4)+0&"."&TEXT(LEFT(Z75,2),"#")+0&"."&MID(Z75,4,2)+0) -> 2015.7.24 | AC75: =IF(INDEX(Week!$T$10:$T$10234,MATCH(AB75,Week!$U$10:$U$10234,0))=6,MATCH(AB75,Week!$U$10:$U$10234,0),MATCH(AB75,Week!$U$10:$U$10234,0)+6-INDEX(Week!$T$10:$T$10234,MATCH(AB75,Week!$U$10:$U$10234,0))) -> 4586 | AD75: =INDEX(Week!$R$10:$R$10234,Calculation!AC75) -> 2015-07-24 | AF75: =Week!D75 -> 2004-04-02 | AG75: 0.2085537452 | AH75: =AVERAGEIFS(CleanFOREX!F:F,CleanFOREX!E:E,">"&AF74,CleanFOREX!E:E,"<="&AF75) -> 0.75616 | AJ75: =Week!D75 -> 2004-04-02 | AK75: =IF(ISNUMBER(AG75),1,0) -> 1 | AL75: =IF(ISNUMBER(AH75),1,0) -> 1
C76: 2004-04-09 | D76: 0.241076286 | E76: 0.3032995184 | F76: 0.06222323243 | G76: 0.1133901867 | H76: 0.001833434702 | I76: 0.001728492502 | J76: 0.03 | K76: 0.01 | L76: 0.01213198074 | M76: 0.396 | N76: 0.4602516323 | O76: 0.868383613 | P76: 0 | R76: =Week!D76 -> 2004-04-09 | S76: =IF(SUM(Calculation!AK60:AK74)=$S$9,AVERAGE(AG60:AG74),"") -> 0.241076286 | U76: =IF(SUM(Calculation!AL60:AL74)=$U$9,AVERAGE(AH60:AH74),"") -> 0.7610655556 | V76: =IF(SUM(Calculation!AL64:AL74)=$V$9,AVERAGE(AH64:AH74),"") -> 0.7656681818 | Z76: ='Import_ESALQ '!B76 -> 07/17/2015 | AA76: ='Import_ESALQ '!C76 -> 0.4356 | AB76: 2015.7.17 | AC76: =IF(INDEX(Week!$T$10:$T$10234,MATCH(AB76,Week!$U$10:$U$10234,0))=6,MATCH(AB76,Week!$U$10:$U$10234,0),MATCH(AB76,Week!$U$10:$U$10234,0)+6-INDEX(Week!$T$10:$T$10234,MATCH(AB76,Week!$U$10:$U$10234,0))) -> 4579 | AD76: =INDEX(Week!$R$10:$R$10234,Calculation!AC76) -> 2015-07-17 | AF76: =Week!D76 -> 2004-04-09 | AG76: =INDEX($AA$10:$AA$1423,MATCH(AF76,$AD$10:$AD$1423,0))/AH76 -> 0.2311239953 | AH76: =AVERAGEIFS(CleanFOREX!F:F,CleanFOREX!E:E,">"&AF75,CleanFOREX!E:E,"<="&AF76) -> 0.7589 | AJ76: =Week!D76 -> 2004-04-09 | AK76: 1 | AL76: 1
C77: 2004-04-16 | D77: 0.2328379883 | E77: 0.2949802223 | F77: 0.06214223403 | G77: 0.1136527836 | H77: 0.001797985226 | I77: 0.001728492502 | J77: 0.03 | K77: 0.01 | L77: 0.01179920889 | M77: 0.396 | N77: 0.4521594836 | O77: 0.8599586925 | P77: 0 | R77: =Week!D77 -> 2004-04-16 | S77: =IF(SUM(Calculation!AK61:AK75)=$S$9,AVERAGE(AG61:AG75),"") -> 0.2328379883 | U77: =IF(SUM(Calculation!AL61:AL75)=$U$9,AVERAGE(AH61:AH75),"") -> 0.7620575556 | V77: =IF(SUM(Calculation!AL65:AL75)=$V$9,AVERAGE(AH65:AH75),"") -> 0.7638990909 | Z77: ='Import_ESALQ '!B77 -> 2015-10-07 | AA77: ='Import_ESALQ '!C77 -> 0.4282 | AB77: 2015.7.10 | AC77: =IF(INDEX(Week!$T$10:$T$10234,MATCH(AB77,Week!$U$10:$U$10234,0))=6,MATCH(AB77,Week!$U$10:$U$10234,0),MATCH(AB77,Week!$U$10:$U$10234,0)+6-INDEX(Week!$T$10:$T$10234,MATCH(AB77,Week!$U$10:$U$10234,0))) -> 4572 | AD77: =INDEX(Week!$R$10:$R$10234,Calculation!AC77) -> 2015-07-10 | AF77: =Week!D77 -> 2004-04-16 | AG77: 0.21840811 | AH77: =AVERAGEIFS(CleanFOREX!F:F,CleanFOREX!E:E,">"&AF76,CleanFOREX!E:E,"<="&AF77) -> 0.747225 | AJ77: =Week!D77 -> 2004-04-16 | AK77: 1 | AL77: 1
C78: 2004-04-23 | D78: 0.2262362089 | E78: 0.2882576288 | F78: 0.06202141985 | G78: 0.1137646137 | H78: 0.001768897867 | I78: 0.001728492502 | J78: 0.03 | K78: 0.01 | L78: 0.01153030515 | M78: 0.396 | N78: 0.4455196328 | O78: 0.853049938 | P78: 0 | R78: =Week!D78 -> 2004-04-23 | S78: =IF(SUM(Calculation!AK62:AK76)=$S$9,AVERAGE(AG62:AG76),"") -> 0.2262362089 | U78: =IF(SUM(Calculation!AL62:AL76)=$U$9,AVERAGE(AH62:AH76),"") -> 0.763542 | V78: =IF(SUM(Calculation!AL66:AL76)=$V$9,AVERAGE(AH66:AH76),"") -> 0.7631481818 | Z78: ='Import_ESALQ '!B78 -> 2015-03-07 | AA78: ='Import_ESALQ '!C78 -> 0.4344 | AB78: 2015.7.3 | AC78: =IF(INDEX(Week!$T$10:$T$10234,MATCH(AB78,Week!$U$10:$U$10234,0))=6,MATCH(AB78,Week!$U$10:$U$10234,0),MATCH(AB78,Week!$U$10:$U$10234,0)+6-INDEX(Week!$T$10:$T$10234,MATCH(AB78,Week!$U$10:$U$10234,0))) -> 4565 | AD78: =INDEX(Week!$R$10:$R$10234,Calculation!AC78) -> 2015-07-03 | AF78: =Week!D78 -> 2004-04-23 | AG78: 0.2063479134 | AH78: =AVERAGEIFS(CleanFOREX!F:F,CleanFOREX!E:E,">"&AF77,CleanFOREX!E:E,"<="&AF78) -> 0.73662 | AJ78: =Week!D78 -> 2004-04-23 | AK78: 1 | AL78: 1
C79: 2004-04-30 | D79: 0.218735041 | E79: 0.2807584916 | F79: 0.06202345063 | G79: 0.1140815965 | H79: 0.001737296388 | I79: 0.001728492502 | J79: 0.03 | K79: 0.01 | L79: 0.01123033967 | M79: 0.396 | N79: 0.438305877 | O79: 0.8455362167 | P79: 0 | R79: =Week!D79 -> 2004-04-30 | S79: =IF(SUM(Calculation!AK63:AK77)=$S$9,AVERAGE(AG63:AG77),"") -> 0.218735041 | U79: =IF(SUM(Calculation!AL63:AL77)=$U$9,AVERAGE(AH63:AH77),"") -> 0.763517 | V79: =IF(SUM(Calculation!AL67:AL77)=$V$9,AVERAGE(AH67:AH77),"") -> 0.7610277273 | Z79: ='Import_ESALQ '!B79 -> 06/26/2015 | AA79: ='Import_ESALQ '!C79 -> 0.4381 | AB79: 2015.6.26 | AC79: =IF(INDEX(Week!$T$10:$T$10234,MATCH(AB79,Week!$U$10:$U$10234,0))=6,MATCH(AB79,Week!$U$10:$U$10234,0),MATCH(AB79,Week!$U$10:$U$10234,0)+6-INDEX(Week!$T$10:$T$10234,MATCH(AB79,Week!$U$10:$U$10234,0))) -> 4558 | AD79: =INDEX(Week!$R$10:$R$10234,Calculation!AC79) -> 2015-06-26 | AF79: =Week!D79 -> 2004-04-30 | AG79: 0.2135187225 | AH79: =AVERAGEIFS(CleanFOREX!F:F,CleanFOREX!E:E,">"&AF78,CleanFOREX!E:E,"<="&AF79) -> 0.7264 | AJ79: =Week!D79 -> 2004-04-30 | AK79: 1 | AL79: 1
C80: 2004-05-07 | D80: 0.2118003571 | E80: 0.2739948694 | F80: 0.06219451228 | G80: 0.1144279708 | H80: 0.001709060497 | I80: 0.001728492502 | J80: 0.03 | K80: 0.01 | L80: 0.01095979478 | M80: 0.396 | N80: 0.4318603932 | O80: 0.8388201879 | P80: 0 | R80: =Week!D80 -> 2004-05-07 | S80: =IF(SUM(Calculation!AK64:AK78)=$S$9,AVERAGE(AG64:AG78),"") -> 0.2118003571 | U80: =IF(SUM(Calculation!AL64:AL78)=$U$9,AVERAGE(AH64:AH78),"") -> 0.761417 | V80: =IF(SUM(Calculation!AL68:AL78)=$V$9,AVERAGE(AH68:AH78),"") -> 0.7587240909 | Z80: ='Import_ESALQ '!B80 -> 06/19/2015 | AA80: ='Import_ESALQ '!C80 -> 0.4436 | AB80: 2015.6.19 | AC80: =IF(INDEX(Week!$T$10:$T$10234,MATCH(AB80,Week!$U$10:$U$10234,0))=6,MATCH(AB80,Week!$U$10:$U$10234,0),MATCH(AB80,Week!$U$10:$U$10234,0)+6-INDEX(Week!$T$10:$T$10234,MATCH(AB80,Week!$U$10:$U$10234,0))) -> 4551 | AD80: =INDEX(Week!$R$10:$R$10234,Calculation!AC80) -> 2015-06-19 | AF80: =Week!D80 -> 2004-05-07 | AG80: 0.2178111292 | AH80: =AVERAGEIFS(CleanFOREX!F:F,CleanFOREX!E:E,">"&AF79,CleanFOREX!E:E,"<="&AF80) -> 0.72494 | AJ80: =Week!D80 -> 2004-05-07 | AK80: 1 | AL80: 1
C81: 2004-05-14 | D81: 0.2070393824 | E81: 0.2695030825 | F81: 0.06246370015 | G81: 0.1152031729 | H81: 0.001692707524 | I81: 0.001728492502 | J81: 0.03 | K81: 0.01 | L81: 0.0107801233 | M81: 0.396 | N81: 0.4281274555 | O81: 0.8349075788 | P81: 0 | R81: =Week!D81 -> 2004-05-14 | S81: =IF(SUM(Calculation!AK65:AK79)=$S$9,AVERAGE(AG65:AG79),"") -> 0.2070393824 | U81: =IF(SUM(Calculation!AL65:AL79)=$U$9,AVERAGE(AH65:AH79),"") -> 0.7581356667 | V81: =IF(SUM(Calculation!AL69:AL79)=$V$9,AVERAGE(AH69:AH79),"") -> 0.7536186364 | Z81: ='Import_ESALQ '!B81 -> 2015-12-06 | AA81: ='Import_ESALQ '!C81 -> 0.4449 | AB81: 2015.6.12 | AC81: =IF(INDEX(Week!$T$10:$T$10234,MATCH(AB81,Week!$U$10:$U$10234,0))=6,MATCH(AB81,Week!$U$10:$U$10234,0),MATCH(AB81,Week!$U$10:$U$10234,0)+6-INDEX(Week!$T$10:$T$10234,MATCH(AB81,Week!$U$10:$U$10234,0))) -> 4544 | AD81: =INDEX(Week!$R$10:$R$10234,Calculation!AC81) -> 2015-06-12 | AF81: =Week!D81 -> 2004-05-14 | AG81: 0.2265400115 | AH81: =AVERAGEIFS(CleanFOREX!F:F,CleanFOREX!E:E,">"&AF80,CleanFOREX!E:E,"<="&AF81) -> 0.6948 | AJ81: =Week!D81 -> 2004-05-14 | AK81: 1 | AL81: 1
C82: 2004-05-21 | D82: 0.2034674188 | E82: 0.2661638868 | F82: 0.06269646807 | G82: 0.1161486367 | H82: 0.001682175103 | I82: 0.001728492502 | J82: 0.03 | K82: 0.01 | L82: 0.01064655547 | M82: 0.396 | N82: 0.4257231911 | O82: 0.8323697466 | P82: 0 | R82: =Week!D82 -> 2004-05-21 | S82: =IF(SUM(Calculation!AK66:AK80)=$S$9,AVERAGE(AG66:AG80),"") -> 0.2034674188 | U82: =IF(SUM(Calculation!AL66:AL80)=$U$9,AVERAGE(AH66:AH80),"") -> 0.755321 | V82: =IF(SUM(Calculation!AL70:AL80)=$V$9,AVERAGE(AH70:AH80),"") -> 0.7474840909 | Z82: ='Import_ESALQ '!B82 -> 2015-05-06 | AA82: ='Import_ESALQ '!C82 -> 0.4414 | AB82: 2015.6.5 | AC82: =IF(INDEX(Week!$T$10:$T$10234,MATCH(AB82,Week!$U$10:$U$10234,0))=6,MATCH(AB82,Week!$U$10:$U$10234,0),MATCH(AB82,Week!$U$10:$U$10234,0)+6-INDEX(Week!$T$10:$T$10234,MATCH(AB82,Week!$U$10:$U$10234,0))) -> 4537 | AD82: =INDEX(Week!$R$10:$R$10234,Calculation!AC82) -> 2015-06-05 | AF82: =Week!D82 -> 2004-05-21 | AG82: 0.2670456185 | AH82: =AVERAGEIFS(CleanFOREX!F:F,CleanFOREX!E:E,">"&AF81,CleanFOREX!E:E,"<="&AF82) -> 0.69314 | AJ82: =Week!D82 -> 2004-05-21 | AK82: 1 | AL82: 1
C83: 2004-05-28 | D83: 0.2004445049 | E83: 0.2635629767 | F83: 0.0631184718 | G83: 0.1172771457 | H83: 0.001675696538 | I83: 0.001728492502 | J83: 0.03 | K83: 0.01 | L83: 0.01054251907 | M83: 0.396 | N83: 0.4242443114 | O83: 0.8307868305 | P83: 0 | R83: =Week!D83 -> 2004-05-28 | S83: =IF(SUM(Calculation!AK67:AK81)=$S$9,AVERAGE(AG67:AG81),"") -> 0.2004445049 | U83: =IF(SUM(Calculation!AL67:AL81)=$U$9,AVERAGE(AH67:AH81),"") -> 0.750271 | V83: =IF(SUM(Calculation!AL71:AL81)=$V$9,AVERAGE(AH71:AH81),"") -> 0.7402913636 | Z83: ='Import_ESALQ '!B83 -> 05/29/2015 | AA83: ='Import_ESALQ '!C83 -> 0.4376 | AB83: 2015.5.29 | AC83: =IF(INDEX(Week!$T$10:$T$10234,MATCH(AB83,Week!$U$10:$U$10234,0))=6,MATCH(AB83,Week!$U$10:$U$10234,0),MATCH(AB83,Week!$U$10:$U$10234,0)+6-INDEX(Week!$T$10:$T$10234,MATCH(AB83,Week!$U$10:$U$10234,0))) -> 4530 | AD83: =INDEX(Week!$R$10:$R$10234,Calculation!AC83) -> 2015-05-29 | AF83: =Week!D83 -> 2004-05-28 | AG83: 0.2928698702 | AH83: =AVERAGEIFS(CleanFOREX!F:F,CleanFOREX!E:E,">"&AF82,CleanFOREX!E:E,"<="&AF83) -> 0.70714 | AJ83: =Week!D83 -> 2004-05-28 | AK83: 1 | AL83: 1
C84: 2004-06-04 | D84: 0.201615002 | E84: 0.2651218259 | F84: 0.06350682389 | G84: 0.1182503668 | H84: 0.001686837648 | I84: 0.001728492502 | J84: 0.03 | K84: 0.01 | L84: 0.01060487303 | M84: 0.396 | N84: 0.4267875229 | O84: 0.8333923959 | P84: 0 | R84: =Week!D84 -> 2004-06-04 | S84: =IF(SUM(Calculation!AK68:AK82)=$S$9,AVERAGE(AG68:AG82),"") -> 0.201615002 | U84: =IF(SUM(Calculation!AL68:AL82)=$U$9,AVERAGE(AH68:AH82),"") -> 0.745683 | V84: =IF(SUM(Calculation!AL72:AL82)=$V$9,AVERAGE(AH72:AH82),"") -> 0.7341986364 | Z84: ='Import_ESALQ '!B84 -> 05/22/2015 | AA84: ='Import_ESALQ '!C84 -> 0.4515 | AB84: 2015.5.22 | AC84: =IF(INDEX(Week!$T$10:$T$10234,MATCH(AB84,Week!$U$10:$U$10234,0))=6,MATCH(AB84,Week!$U$10:$U$10234,0),MATCH(AB84,Week!$U$10:$U$10234,0)+6-INDEX(Week!$T$10:$T$10234,MATCH(AB84,Week!$U$10:$U$10234,0))) -> 4523 | AD84: =INDEX(Week!$R$10:$R$10234,Calculation!AC84) -> 2015-05-22 | AF84: =Week!D84 -> 2004-06-04 | AG84: 0.2838973427 | AH84: =AVERAGEIFS(CleanFOREX!F:F,CleanFOREX!E:E,">"&AF83,CleanFOREX!E:E,"<="&AF84) -> 0.70448 | AJ84: =Week!D84 -> 2004-06-04 | AK84: 1 | AL84: 1
C85: 2004-06-11 | D85: 0.2086336967 | E85: 0.2725716421 | F85: 0.06393794541 | G85: 0.1188780095 | H85: 0.001722378467 | I85: 0.001728492502 | J85: 0.03 | K85: 0.01 | L85: 0.01090286568 | M85: 0.396 | N85: 0.4349005226 | O85: 0.8418033882 | P85: 0 | R85: =Week!D85 -> 2004-06-11 | S85: =IF(SUM(Calculation!AK69:AK83)=$S$9,AVERAGE(AG69:AG83),"") -> 0.2086336967 | U85: =IF(SUM(Calculation!AL69:AL83)=$U$9,AVERAGE(AH69:AH83),"") -> 0.740655 | V85: =IF(SUM(Calculation!AL73:AL83)=$V$9,AVERAGE(AH73:AH83),"") -> 0.7303222727 | Z85: ='Import_ESALQ '!B85 -> 05/15/2015 | AA85: ='Import_ESALQ '!C85 -> 0.4595 | AB85: 2015.5.15 | AC85: =IF(INDEX(Week!$T$10:$T$10234,MATCH(AB85,Week!$U$10:$U$10234,0))=6,MATCH(AB85,Week!$U$10:$U$10234,0),MATCH(AB85,Week!$U$10:$U$10234,0)+6-INDEX(Week!$T$10:$T$10234,MATCH(AB85,Week!$U$10:$U$10234,0))) -> 4516 | AD85: =INDEX(Week!$R$10:$R$10234,Calculation!AC85) -> 2015-05-15 | AF85: =Week!D85 -> 2004-06-11 | AG85: 0.2890214866 | AH85: =AVERAGEIFS(CleanFOREX!F:F,CleanFOREX!E:E,">"&AF84,CleanFOREX!E:E,"<="&AF85) -> 0.69718 | AJ85: =Week!D85 -> 2004-06-11 | AK85: 1 | AL85: 1
C86: 2004-06-18 | D86: 0.2166989426 | E86: 0.2811470278 | F86: 0.06444808528 | G86: 0.1194271618 | H86: 0.001762526434 | I86: 0.001728492502 | J86: 0.03 | K86: 0.01 | L86: 0.01124588111 | M86: 0.396 | N86: 0.4440652085 | O86: 0.8513110897 | P86: 0 | R86: =Week!D86 -> 2004-06-18 | S86: =IF(SUM(Calculation!AK70:AK84)=$S$9,AVERAGE(AG70:AG84),"") -> 0.2166989426 | U86: =IF(SUM(Calculation!AL70:AL84)=$U$9,AVERAGE(AH70:AH84),"") -> 0.7347923333 | V86: =IF(SUM(Calculation!AL74:AL84)=$V$9,AVERAGE(AH74:AH84),"") -> 0.7269640909 | Z86: ='Import_ESALQ '!B86 -> 2015-08-05 | AA86: ='Import_ESALQ '!C86 -> 0.4558 | AB86: 2015.5.8 | AC86: =IF(INDEX(Week!$T$10:$T$10234,MATCH(AB86,Week!$U$10:$U$10234,0))=6,MATCH(AB86,Week!$U$10:$U$10234,0),MATCH(AB86,Week!$U$10:$U$10234,0)+6-INDEX(Week!$T$10:$T$10234,MATCH(AB86,Week!$U$10:$U$10234,0))) -> 4509 | AD86: =INDEX(Week!$R$10:$R$10234,Calculation!AC86) -> 2015-05-08 | AF86: =Week!D86 -> 2004-06-18 | AG86: 0.2904612694 | AH86: =AVERAGEIFS(CleanFOREX!F:F,CleanFOREX!E:E,">"&AF85,CleanFOREX!E:E,"<="&AF86) -> 0.68615 | AJ86: =Week!D86 -> 2004-06-18 | AK86: 1 | AL86: 1
C87: 2004-06-25 | D87: 0.224579129 | E87: 0.289479081 | F87: 0.06489995193 | G87: 0.1201728503 | H87: 0.001802468498 | I87: 0.001728492502 | J87: 0.03 | K87: 0.01 | L87: 0.01157916324 | M87: 0.396 | N87: 0.4531828923 | O87: 0.8607620555 | P87: 0 | R87: =Week!D87 -> 2004-06-25 | S87: =IF(SUM(Calculation!AK71:AK85)=$S$9,AVERAGE(AG71:AG85),"") -> 0.224579129 | U87: =IF(SUM(Calculation!AL71:AL85)=$U$9,AVERAGE(AH71:AH85),"") -> 0.7296763333 | V87: =IF(SUM(Calculation!AL75:AL85)=$V$9,AVERAGE(AH75:AH85),"") -> 0.7224531818 | Z87: ='Import_ESALQ '!B87 -> 04/30/2015 | AA87: ='Import_ESALQ '!C87 -> 0.4793 | AB87: 2015.4.30 | AC87: =IF(INDEX(Week!$T$10:$T$10234,MATCH(AB87,Week!$U$10:$U$10234,0))=6,MATCH(AB87,Week!$U$10:$U$10234,0),MATCH(AB87,Week!$U$10:$U$10234,0)+6-INDEX(Week!$T$10:$T$10234,MATCH(AB87,Week!$U$10:$U$10234,0))) -> 4502 | AD87: =INDEX(Week!$R$10:$R$10234,Calculation!AC87) -> 2015-05-01 | AF87: =Week!D87 -> 2004-06-25 | AG87: 0.2912227883 | AH87: =AVERAGEIFS(CleanFOREX!F:F,CleanFOREX!E:E,">"&AF86,CleanFOREX!E:E,"<="&AF87) -> 0.69088 | AJ87: =Week!D87 -> 2004-06-25 | AK87: 1 | AL87: 1
C88: 2004-07-02 | D88: 0.2317352575 | E88: 0.2970770442 | F88: 0.0653417867 | G88: 0.1212409382 | H88: 0.001840599122 | I88: 0.001728492502 | J88: 0.03 | K88: 0.01 | L88: 0.01188308177 | M88: 0.396 | N88: 0.461887074 | O88: 0.8697701557 | P88: 0 | R88: =Week!D88 -> 2004-07-02 | S88: =IF(SUM(Calculation!AK72:AK86)=$S$9,AVERAGE(AG72:AG86),"") -> 0.2317352575 | U88: =IF(SUM(Calculation!AL72:AL86)=$U$9,AVERAGE(AH72:AH86),"") -> 0.7247423333 | V88: =IF(SUM(Calculation!AL76:AL86)=$V$9,AVERAGE(AH76:AH86),"") -> 0.7160886364 | Z88: ='Import_ESALQ '!B88 -> 04/24/2015 | AA88: ='Import_ESALQ '!C88 -> 0.4606 | AB88: 2015.4.24 | AC88: =IF(INDEX(Week!$T$10:$T$10234,MATCH(AB88,Week!$U$10:$U$10234,0))=6,MATCH(AB88,Week!$U$10:$U$10234,0),MATCH(AB88,Week!$U$10:$U$10234,0)+6-INDEX(Week!$T$10:$T$10234,MATCH(AB88,Week!$U$10:$U$10234,0))) -> 4495 | AD88: =INDEX(Week!$R$10:$R$10234,Calculation!AC88) -> 2015-04-24 | AF88: =Week!D88 -> 2004-07-02 | AG88: 0.2905676606 | AH88: =AVERAGEIFS(CleanFOREX!F:F,CleanFOREX!E:E,">"&AF87,CleanFOREX!E:E,"<="&AF88) -> 0.6976 | AJ88: =Week!D88 -> 2004-07-02 | AK88: 1 | AL88: 1
C89: 2004-07-09 | D89: 0.2396000553 | E89: 0.3052977935 | F89: 0.0656977382 | G89: 0.1222970089 | H89: 0.001881417131 | I89: 0.001728492502 | J89: 0.03 | K89: 0.01 | L89: 0.01221191174 | M89: 0.396 | N89: 0.471204712 | O89: 0.8794166238 | P89: 0 | R89: =Week!D89 -> 2004-07-09 | S89: =IF(SUM(Calculation!AK73:AK87)=$S$9,AVERAGE(AG73:AG87),"") -> 0.2396000553 | U89: =IF(SUM(Calculation!AL73:AL87)=$U$9,AVERAGE(AH73:AH87),"") -> 0.7208156667 | V89: =IF(SUM(Calculation!AL77:AL87)=$V$9,AVERAGE(AH77:AH87),"") -> 0.709905 | Z89: ='Import_ESALQ '!B89 -> 04/17/2015 | AA89: ='Import_ESALQ '!C89 -> 0.4432 | AB89: 2015.4.17 | AC89: =IF(INDEX(Week!$T$10:$T$10234,MATCH(AB89,Week!$U$10:$U$10234,0))=6,MATCH(AB89,Week!$U$10:$U$10234,0),MATCH(AB89,Week!$U$10:$U$10234,0)+6-INDEX(Week!$T$10:$T$10234,MATCH(AB89,Week!$U$10:$U$10234,0))) -> 4488 | AD89: =INDEX(Week!$R$10:$R$10234,Calculation!AC89) -> 2015-04-17 | AF89: =Week!D89 -> 2004-07-09 | AG89: 0.2893228732 | AH89: =AVERAGEIFS(CleanFOREX!F:F,CleanFOREX!E:E,">"&AF88,CleanFOREX!E:E,"<="&AF89) -> 0.71892 | AJ89: =Week!D89 -> 2004-07-09 | AK89: 1 | AL89: 1
C90: 2004-07-16 | D90: 0.247308927 | E90: 0.3132740096 | F90: 0.06596508255 | G90: 0.1230791626 | H90: 0.001919953958 | I90: 0.001728492502 | J90: 0.03 | K90: 0.01 | L90: 0.01253096038 | M90: 0.396 | N90: 0.4800016187 | O90: 0.8885325791 | P90: 0 | R90: =Week!D90 -> 2004-07-16 | S90: =IF(SUM(Calculation!AK74:AK88)=$S$9,AVERAGE(AG74:AG88),"") -> 0.247308927 | U90: =IF(SUM(Calculation!AL74:AL88)=$U$9,AVERAGE(AH74:AH88),"") -> 0.7178943333 | V90: =IF(SUM(Calculation!AL78:AL88)=$V$9,AVERAGE(AH78:AH88),"") -> 0.7053936364 | Z90: ='Import_ESALQ '!B90 -> 2015-10-04 | AA90: ='Import_ESALQ '!C90 -> 0.4323 | AB90: 2015.4.10 | AC90: =IF(INDEX(Week!$T$10:$T$10234,MATCH(AB90,Week!$U$10:$U$10234,0))=6,MATCH(AB90,Week!$U$10:$U$10234,0),MATCH(AB90,Week!$U$10:$U$10234,0)+6-INDEX(Week!$T$10:$T$10234,MATCH(AB90,Week!$U$10:$U$10234,0))) -> 4481 | AD90: =INDEX(Week!$R$10:$R$10234,Calculation!AC90) -> 2015-04-10 | AF90: =Week!D90 -> 2004-07-16 | AG90: 0.3032352454 | AH90: =AVERAGEIFS(CleanFOREX!F:F,CleanFOREX!E:E,">"&AF89,CleanFOREX!E:E,"<="&AF90) -> 0.72452 | AJ90: =Week!D90 -> 2004-07-16 | AK90: 1 | AL90: 1
C91: 2004-07-23 | D91: 0.2544475024 | E91: 0.3205838154 | F91: 0.06613631298 | G91: 0.1233605635 | H91: 0.001953355267 | I91: 0.001728492502 | J91: =Storage_import_terminal -> 0.03 | K91: =Transport_to_Wholesaler -> 0.01 | L91: 0.01282335262 | M91: 0.396 | N91: 0.4876262267 | O91: 0.8964495793 | P91: 0 | R91: =Week!D91 -> 2004-07-23 | S91: =IF(SUM(Calculation!AK75:AK89)=$S$9,AVERAGE(AG75:AG89),"") -> 0.2544475024 | U91: =IF(SUM(Calculation!AL75:AL89)=$U$9,AVERAGE(AH75:AH89),"") -> 0.7160356667 | V91: =IF(SUM(Calculation!AL79:AL89)=$V$9,AVERAGE(AH79:AH89),"") -> 0.7037845455 | Z91: ='Import_ESALQ '!B91 -> 2015-02-04 | AA91: ='Import_ESALQ '!C91 -> 0.4256 | AB91: 2015.4.2 | AC91: =IF(INDEX(Week!$T$10:$T$10234,MATCH(AB91,Week!$U$10:$U$10234,0))=6,MATCH(AB91,Week!$U$10:$U$10234,0),MATCH(AB91,Week!$U$10:$U$10234,0)+6-INDEX(Week!$T$10:$T$10234,MATCH(AB91,Week!$U$10:$U$10234,0))) -> 4474 | AD91: =INDEX(Week!$R$10:$R$10234,Calculation!AC91) -> 2015-04-03 | AF91: =Week!D91 -> 2004-07-23 | AG91: 0.3404190624 | AH91: =AVERAGEIFS(CleanFOREX!F:F,CleanFOREX!E:E,">"&AF90,CleanFOREX!E:E,"<="&AF91) -> 0.72352 | AJ91: =Week!D91 -> 2004-07-23 | AK91: 1 | AL91: 1
C92: 2004-07-30 | D92: =S92 -> 0.2607596024 | E92: 0.3270913187 | F92: 0.06633171624 | G92: 0.123390528 | H92: 0.001982120125 | I92: 0.001728492502 | J92: 0.03 | K92: 0.01 | L92: 0.01308365275 | M92: 0.396 | N92: =SUM(E92,G92,H92,I92,J92,K92) -> 0.4941924593 | O92: 0.903276112 | P92: =SUM(D92,SUM(F92:M92))-O92 -> 0 | R92: =Week!D92 -> 2004-07-30 | S92: =IF(SUM(Calculation!AK76:AK90)=$S$9,AVERAGE(AG76:AG90),"") -> 0.2607596024 | U92: =IF(SUM(Calculation!AL76:AL90)=$U$9,AVERAGE(AH76:AH90),"") -> 0.7139263333 | V92: =IF(SUM(Calculation!AL80:AL90)=$V$9,AVERAGE(AH80:AH90),"") -> 0.7036136364 | Z92: ='Import_ESALQ '!B92 -> 03/27/2015 | AA92: ='Import_ESALQ '!C92 -> 0.4211 | AB92: 2015.3.27 | AC92: =IF(INDEX(Week!$T$10:$T$10234,MATCH(AB92,Week!$U$10:$U$10234,0))=6,MATCH(AB92,Week!$U$10:$U$10234,0),MATCH(AB92,Week!$U$10:$U$10234,0)+6-INDEX(Week!$T$10:$T$10234,MATCH(AB92,Week!$U$10:$U$10234,0))) -> 4467 | AD92: =INDEX(Week!$R$10:$R$10234,Calculation!AC92) -> 2015-03-27 | AF92: =Week!D92 -> 2004-07-30 | AG92: 0.3530063022 | AH92: =AVERAGEIFS(CleanFOREX!F:F,CleanFOREX!E:E,">"&AF91,CleanFOREX!E:E,"<="&AF92) -> 0.70452 | AJ92: =Week!D92 -> 2004-07-30 | AK92: 1 | AL92: 1
C93: 2004-08-06 | D93: 0.2680459403 | E93: 0.3345975293 | F93: 0.06655158908 | G93: 0.1234131704 | H93: 0.002015247079 | I93: 0.001728492502 | J93: 0.03 | K93: 0.01 | L93: 0.01338390117 | M93: 0.396 | N93: 0.5017544393 | O93: 0.9111383405 | P93: 0 | R93: =Week!D93 -> 2004-08-06 | S93: =IF(SUM(Calculation!AK77:AK91)=$S$9,AVERAGE(AG77:AG91),"") -> 0.2680459403 | U93: =IF(SUM(Calculation!AL77:AL91)=$U$9,AVERAGE(AH77:AH91),"") -> 0.7115676667 | V93: =IF(SUM(Calculation!AL81:AL91)=$V$9,AVERAGE(AH81:AH91),"") -> 0.7034845455 | Z93: ='Import_ESALQ '!B93 -> 03/20/2015 | AA93: ='Import_ESALQ '!C93 -> 0.418 | AB93: 2015.3.20 | AC93: =IF(INDEX(Week!$T$10:$T$10234,MATCH(AB93,Week!$U$10:$U$10234,0))=6,MATCH(AB93,Week!$U$10:$U$10234,0),MATCH(AB93,Week!$U$10:$U$10234,0)+6-INDEX(Week!$T$10:$T$10234,MATCH(AB93,Week!$U$10:$U$10234,0))) -> 4460 | AD93: =INDEX(Week!$R$10:$R$10234,Calculation!AC93) -> 2015-03-20 | AF93: =Week!D93 -> 2004-08-06 | AG93: 0.3541459252 | AH93: =AVERAGEIFS(CleanFOREX!F:F,CleanFOREX!E:E,">"&AF92,CleanFOREX!E:E,"<="&AF93) -> 0.7031 | AJ93: =Week!D93 -> 2004-08-06 | AK93: 1 | AL93: 1
C94: 2004-08-13 | D94: 0.2770191531 | E94: 0.3438380864 | F94: =To_Santos/U94 -> 0.06681893331 | G94: =Santos_to_Sydney/V94 -> 0.1232583475 | H94: =(E94+G94)*Insurance*1.1 -> 0.002055224309 | I94: =Sydney_Wharfage -> 0.001728492502 | J94: 0.03 | K94: 0.01 | L94: =E94*Customs_Value_Duty -> 0.01375352345 | M94: =Fuel_Import_Duty -> 0.396 | N94: 0.5108801506 | O94: 0.9206336741 | P94: 0 | R94: =Week!D94 -> 2004-08-13 | S94: =IF(SUM(Calculation!AK78:AK92)=$S$9,AVERAGE(AG78:AG92),"") -> 0.2770191531 | U94: =IF(SUM(Calculation!AL78:AL92)=$U$9,AVERAGE(AH78:AH92),"") -> 0.7087206667 | V94: =IF(SUM(Calculation!AL82:AL92)=$V$9,AVERAGE(AH82:AH92),"") -> 0.7043681818 | Z94: ='Import_ESALQ '!B94 -> 03/13/2015 | AA94: ='Import_ESALQ '!C94 -> 0.4418 | AB94: 2015.3.13 | AC94: =IF(INDEX(Week!$T$10:$T$10234,MATCH(AB94,Week!$U$10:$U$10234,0))=6,MATCH(AB94,Week!$U$10:$U$10234,0),MATCH(AB94,Week!$U$10:$U$10234,0)+6-INDEX(Week!$T$10:$T$10234,MATCH(AB94,Week!$U$10:$U$10234,0))) -> 4453 | AD94: =INDEX(Week!$R$10:$R$10234,Calculation!AC94) -> 2015-03-13 | AF94: =Week!D94 -> 2004-08-13 | AG94: 0.3517531557 | AH94: =AVERAGEIFS(CleanFOREX!F:F,CleanFOREX!E:E,">"&AF93,CleanFOREX!E:E,"<="&AF94) -> 0.713 | AJ94: =Week!D94 -> 2004-08-13 | AK94: 1 | AL94: 1
C95: 2004-08-20 | D95: 0.2868723538 | E95: =D95+F95 -> 0.3539026403 | F95: 0.06703028646 | G95: 0.1231001041 | H95: 0.002098812076 | I95: 0.001728492502 | J95: 0.03 | K95: 0.01 | L95: 0.01415610561 | M95: 0.396 | N95: 0.520830049 | O95: =SUM(L95,M95,N95) -> 0.9309861546 | P95: 0 | R95: =Week!D95 -> 2004-08-20 | S95: =IF(SUM(Calculation!AK79:AK93)=$S$9,AVERAGE(AG79:AG93),"") -> 0.2868723538 | U95: =IF(SUM(Calculation!AL79:AL93)=$U$9,AVERAGE(AH79:AH93),"") -> 0.706486 | V95: =IF(SUM(Calculation!AL83:AL93)=$V$9,AVERAGE(AH83:AH93),"") -> 0.7052736364 | Z95: ='Import_ESALQ '!B95 -> 2015-06-03 | AA95: ='Import_ESALQ '!C95 -> 0.4736 | AB95: 2015.3.6 | AC95: =IF(INDEX(Week!$T$10:$T$10234,MATCH(AB95,Week!$U$10:$U$10234,0))=6,MATCH(AB95,Week!$U$10:$U$10234,0),MATCH(AB95,Week!$U$10:$U$10234,0)+6-INDEX(Week!$T$10:$T$10234,MATCH(AB95,Week!$U$10:$U$10234,0))) -> 4446 | AD95: =INDEX(Week!$R$10:$R$10234,Calculation!AC95) -> 2015-03-06 | AF95: =Week!D95 -> 2004-08-20 | AG95: 0.3508674222 | AH95: =AVERAGEIFS(CleanFOREX!F:F,CleanFOREX!E:E,">"&AF94,CleanFOREX!E:E,"<="&AF95) -> 0.71822 | AJ95: =Week!D95 -> 2004-08-20 | AK95: 1 | AL95: 1
C96: 2004-08-27 | D96: 0.2960879827 | E96: 0.3632031346 | F96: 0.06711515184 | G96: 0.1230071909 | H96: 0.002139325432 | I96: 0.001728492502 | J96: 0.03 | K96: 0.01 | L96: 0.01452812538 | M96: 0.396 | N96: 0.5300781434 | O96: 0.9406062688 | P96: 0 | R96: =Week!D96 -> 2004-08-27 | S96: =IF(SUM(Calculation!AK80:AK94)=$S$9,AVERAGE(AG80:AG94),"") -> 0.2960879827 | U96: =IF(SUM(Calculation!AL80:AL94)=$U$9,AVERAGE(AH80:AH94),"") -> 0.7055926667 | V96: =IF(SUM(Calculation!AL84:AL94)=$V$9,AVERAGE(AH84:AH94),"") -> 0.7058063636 | Z96: ='Import_ESALQ '!B96 -> 02/27/2015 | AA96: ='Import_ESALQ '!C96 -> 0.4995 | AB96: 2015.2.27 | AC96: =IF(INDEX(Week!$T$10:$T$10234,MATCH(AB96,Week!$U$10:$U$10234,0))=6,MATCH(AB96,Week!$U$10:$U$10234,0),MATCH(AB96,Week!$U$10:$U$10234,0)+6-INDEX(Week!$T$10:$T$10234,MATCH(AB96,Week!$U$10:$U$10234,0))) -> 4439 | AD96: =INDEX(Week!$R$10:$R$10234,Calculation!AC96) -> 2015-02-27 | AF96: =Week!D96 -> 2004-08-27 | AG96: 0.3580274713 | AH96: =AVERAGEIFS(CleanFOREX!F:F,CleanFOREX!E:E,">"&AF95,CleanFOREX!E:E,"<="&AF96) -> 0.71056 | AJ96: =Week!D96 -> 2004-08-27 | AK96: 1 | AL96: 1
C97: 2004-09-03 | D97: 0.3049584023 | E97: 0.3721161944 | F97: 0.06715779215 | G97: 0.1227898852 | H97: 0.00217758675 | I97: 0.001728492502 | J97: 0.03 | K97: 0.01 | L97: 0.01488464778 | M97: 0.396 | N97: 0.5388121589 | O97: 0.9496968066 | P97: 0 | R97: =Week!D97 -> 2004-09-03 | S97: =IF(SUM(Calculation!AK81:AK95)=$S$9,AVERAGE(AG81:AG95),"") -> 0.3049584023 | U97: =IF(SUM(Calculation!AL81:AL95)=$U$9,AVERAGE(AH81:AH95),"") -> 0.7051446667 | V97: =IF(SUM(Calculation!AL85:AL95)=$V$9,AVERAGE(AH85:AH95),"") -> 0.7070554545 | Z97: ='Import_ESALQ '!B97 -> 02/20/2015 | AA97: ='Import_ESALQ '!C97 -> 0.5222 | AB97: 2015.2.20 | AC97: =IF(INDEX(Week!$T$10:$T$10234,MATCH(AB97,Week!$U$10:$U$10234,0))=6,MATCH(AB97,Week!$U$10:$U$10234,0),MATCH(AB97,Week!$U$10:$U$10234,0)+6-INDEX(Week!$T$10:$T$10234,MATCH(AB97,Week!$U$10:$U$10234,0))) -> 4432 | AD97: =INDEX(Week!$R$10:$R$10234,Calculation!AC97) -> 2015-02-20 | AF97: =Week!D97 -> 2004-09-03 | AG97: 0.3631324819 | AH97: =AVERAGEIFS(CleanFOREX!F:F,CleanFOREX!E:E,">"&AF96,CleanFOREX!E:E,"<="&AF97) -> 0.70002 | AJ97: =Week!D97 -> 2004-09-03 | AK97: 1 | AL97: 1
C98: 2004-09-10 | D98: 0.3137242329 | E98: 0.3807821087 | F98: 0.06705787581 | G98: 0.1225790097 | H98: 0.002214788921 | I98: 0.001728492502 | J98: 0.03 | K98: 0.01 | L98: 0.01523128435 | M98: 0.396 | N98: 0.5473043999 | O98: 0.9585356842 | P98: 0 | R98: =Week!D98 -> 2004-09-10 | S98: =IF(SUM(Calculation!AK82:AK96)=$S$9,AVERAGE(AG82:AG96),"") -> 0.3137242329 | U98: =IF(SUM(Calculation!AL82:AL96)=$U$9,AVERAGE(AH82:AH96),"") -> 0.7061953333 | V98: =IF(SUM(Calculation!AL86:AL96)=$V$9,AVERAGE(AH86:AH96),"") -> 0.7082718182 | Z98: ='Import_ESALQ '!B98 -> 02/13/2015 | AA98: ='Import_ESALQ '!C98 -> 0.5325 | AB98: 2015.2.13 | AC98: =IF(INDEX(Week!$T$10:$T$10234,MATCH(AB98,Week!$U$10:$U$10234,0))=6,MATCH(AB98,Week!$U$10:$U$10234,0),MATCH(AB98,Week!$U$10:$U$10234,0)+6-INDEX(Week!$T$10:$T$10234,MATCH(AB98,Week!$U$10:$U$10234,0))) -> 4425 | AD98: =INDEX(Week!$R$10:$R$10234,Calculation!AC98) -> 2015-02-13 | AF98: =Week!D98 -> 2004-09-10 | AG98: 0.3745372513 | AH98: =AVERAGEIFS(CleanFOREX!F:F,CleanFOREX!E:E,">"&AF97,CleanFOREX!E:E,"<="&AF98) -> 0.69152 | AJ98: =Week!D98 -> 2004-09-10 | AK98: 1 | AL98: 1
C99: 2004-09-17 | D99: 0.3201300238 | E99: 0.3871443745 | F99: 0.06701435067 | G99: 0.1223611748 | H99: 0.002241824417 | I99: 0.001728492502 | J99: 0.03 | K99: 0.01 | L99: 0.01548577498 | M99: 0.396 | N99: 0.5534758662 | O99: 0.9649616412 | P99: 0 | R99: =Week!D99 -> 2004-09-17 | S99: =IF(SUM(Calculation!AK83:AK97)=$S$9,AVERAGE(AG83:AG97),"") -> 0.3201300238 | U99: =IF(SUM(Calculation!AL83:AL97)=$U$9,AVERAGE(AH83:AH97),"") -> 0.706654 | V99: =IF(SUM(Calculation!AL87:AL97)=$V$9,AVERAGE(AH87:AH97),"") -> 0.7095327273 | Z99: ='Import_ESALQ '!B99 -> 2015-06-02 | AA99: ='Import_ESALQ '!C99 -> 0.5493 | AB99: 2015.2.6 | AC99: =IF(INDEX(Week!$T$10:$T$10234,MATCH(AB99,Week!$U$10:$U$10234,0))=6,MATCH(AB99,Week!$U$10:$U$10234,0),MATCH(AB99,Week!$U$10:$U$10234,0)+6-INDEX(Week!$T$10:$T$10234,MATCH(AB99,Week!$U$10:$U$10234,0))) -> 4418 | AD99: =INDEX(Week!$R$10:$R$10234,Calculation!AC99) -> 2015-02-06 | AF99: =Week!D99 -> 2004-09-17 | AG99: 0.3735772241 | AH99: =AVERAGEIFS(CleanFOREX!F:F,CleanFOREX!E:E,">"&AF98,CleanFOREX!E:E,"<="&AF99) -> 0.69758 | AJ99: =Week!D99 -> 2004-09-17 | AK99: 1 | AL99: 1
C100: 2004-09-24 | D100: 0.3255745159 | E100: 0.3926877654 | F100: 0.06711324951 | G100: 0.122351142 | H100: 0.002266171193 | I100: 0.001728492502 | J100: 0.03 | K100: 0.01 | L100: 0.01570751062 | M100: 0.396 | N100: 0.5590335711 | O100: 0.9707410817 | P100: 0 | R100: =Week!D100 -> 2004-09-24 | S100: =IF(SUM(Calculation!AK84:AK98)=$S$9,AVERAGE(AG84:AG98),"") -> 0.3255745159 | U100: =IF(SUM(Calculation!AL84:AL98)=$U$9,AVERAGE(AH84:AH98),"") -> 0.7056126667 | V100: =IF(SUM(Calculation!AL88:AL98)=$V$9,AVERAGE(AH88:AH98),"") -> 0.7095909091 | Z100: ='Import_ESALQ '!B100 -> 01/30/2015 | AA100: ='Import_ESALQ '!C100 -> 0.5704 | AB100: 2015.1.30 | AC100: =IF(INDEX(Week!$T$10:$T$10234,MATCH(AB100,Week!$U$10:$U$10234,0))=6,MATCH(AB100,Week!$U$10:$U$10234,0),MATCH(AB100,Week!$U$10:$U$10234,0)+6-INDEX(Week!$T$10:$T$10234,MATCH(AB100,Week!$U$10:$U$10234,0))) -> 4411 | AD100: =INDEX(Week!$R$10:$R$10234,Calculation!AC100) -> 2015-01-30 | AF100: =Week!D100 -> 2004-09-24 | AG100: 0.3947853718 | AH100: =AVERAGEIFS(CleanFOREX!F:F,CleanFOREX!E:E,">"&AF99,CleanFOREX!E:E,"<="&AF100) -> 0.70494 | AJ100: =Week!D100 -> 2004-09-24 | AK100: 1 | AL100: 1
C101: 2004-10-01 | D101: 0.3315531746 | E101: 0.3987102049 | F101: 0.06715703024 | G101: 0.1223514555 | H101: 0.002292671306 | I101: 0.001728492502 | J101: 0.03 | K101: 0.01 | L101: 0.0159484082 | M101: 0.396 | N101: 0.5650828242 | O101: 0.9770312324 | P101: 0 | R101: =Week!D101 -> 2004-10-01 | S101: =IF(SUM(Calculation!AK85:AK99)=$S$9,AVERAGE(AG85:AG99),"") -> 0.3315531746 | U101: =IF(SUM(Calculation!AL85:AL99)=$U$9,AVERAGE(AH85:AH99),"") -> 0.7051526667 | V101: =IF(SUM(Calculation!AL89:AL99)=$V$9,AVERAGE(AH89:AH99),"") -> 0.7095890909 | Z101: ='Import_ESALQ '!B101 -> 01/23/2015 | AA101: ='Import_ESALQ '!C101 -> 0.5618 | AB101: 2015.1.23 | AC101: =IF(INDEX(Week!$T$10:$T$10234,MATCH(AB101,Week!$U$10:$U$10234,0))=6,MATCH(AB101,Week!$U$10:$U$10234,0),MATCH(AB101,Week!$U$10:$U$10234,0)+6-INDEX(Week!$T$10:$T$10234,MATCH(AB101,Week!$U$10:$U$10234,0))) -> 4404 | AD101: =INDEX(Week!$R$10:$R$10234,Calculation!AC101) -> 2015-01-23 | AF101: =Week!D101 -> 2004-10-01 | AG101: 0.408388213 | AH101: =AVERAGEIFS(CleanFOREX!F:F,CleanFOREX!E:E,">"&AF100,CleanFOREX!E:E,"<="&AF101) -> 0.71672 | AJ101: =Week!D101 -> 2004-10-01 | AK101: 1 | AL101: 1
C102: 2004-10-08 | D102: 0.3386041003 | E102: 0.4057118971 | F102: 0.06710779679 | G102: 0.1225709862 | H102: 0.002324444687 | I102: 0.001728492502 | J102: 0.03 | K102: 0.01 | L102: 0.01622847588 | M102: 0.396 | N102: 0.5723358205 | O102: 0.9845642964 | P102: 0 | R102: =Week!D102 -> 2004-10-08 | S102: =IF(SUM(Calculation!AK86:AK100)=$S$9,AVERAGE(AG86:AG100),"") -> 0.3386041003 | U102: =IF(SUM(Calculation!AL86:AL100)=$U$9,AVERAGE(AH86:AH100),"") -> 0.70567 | V102: =IF(SUM(Calculation!AL90:AL100)=$V$9,AVERAGE(AH90:AH100),"") -> 0.7083181818 | Z102: ='Import_ESALQ '!B102 -> 01/16/2015 | AA102: ='Import_ESALQ '!C102 -> 0.5517 | AB102: 2015.1.16 | AC102: =IF(INDEX(Week!$T$10:$T$10234,MATCH(AB102,Week!$U$10:$U$10234,0))=6,MATCH(AB102,Week!$U$10:$U$10234,0),MATCH(AB102,Week!$U$10:$U$10234,0)+6-INDEX(Week!$T$10:$T$10234,MATCH(AB102,Week!$U$10:$U$10234,0))) -> 4397 | AD102: =INDEX(Week!$R$10:$R$10234,Calculation!AC102) -> 2015-01-16 | AF102: =Week!D102 -> 2004-10-08 | AG102: 0.4307055373 | AH102: =AVERAGEIFS(CleanFOREX!F:F,CleanFOREX!E:E,">"&AF101,CleanFOREX!E:E,"<="&AF102) -> 0.724625 | AJ102: =Week!D102 -> 2004-10-08 | AK102: 1 | AL102: 1
C103: 2004-10-15 | D103: 0.3464658966 | E103: 0.4133804418 | F103: 0.06691454521 | G103: 0.1226938139 | H103: 0.002358726725 | I103: 0.001728492502 | J103: 0.03 | K103: 0.01 | L103: 0.01653521767 | M103: 0.396 | N103: 0.5801614749 | O103: 0.9926966925 | P103: 0 | R103: =Week!D103 -> 2004-10-15 | S103: =IF(SUM(Calculation!AK87:AK101)=$S$9,AVERAGE(AG87:AG101),"") -> 0.3464658966 | U103: =IF(SUM(Calculation!AL87:AL101)=$U$9,AVERAGE(AH87:AH101),"") -> 0.707708 | V103: =IF(SUM(Calculation!AL91:AL101)=$V$9,AVERAGE(AH91:AH101),"") -> 0.7076090909 | Z103: ='Import_ESALQ '!B103 -> 2015-09-01 | AA103: ='Import_ESALQ '!C103 -> 0.5304 | AB103: 2015.1.9 | AC103: =IF(INDEX(Week!$T$10:$T$10234,MATCH(AB103,Week!$U$10:$U$10234,0))=6,MATCH(AB103,Week!$U$10:$U$10234,0),MATCH(AB103,Week!$U$10:$U$10234,0)+6-INDEX(Week!$T$10:$T$10234,MATCH(AB103,Week!$U$10:$U$10234,0))) -> 4390 | AD103: =INDEX(Week!$R$10:$R$10234,Calculation!AC103) -> 2015-01-09 | AF103: =Week!D103 -> 2004-10-15 | AG103: 0.4342642585 | AH103: =AVERAGEIFS(CleanFOREX!F:F,CleanFOREX!E:E,">"&AF102,CleanFOREX!E:E,"<="&AF103) -> 0.72974 | AJ103: =Week!D103 -> 2004-10-15 | AK103: 1 | AL103: 1
C104: 2004-10-22 | D104: 0.3557647465 | E104: 0.4224672573 | F104: 0.06670251084 | G104: 0.1226763983 | H104: 0.002398632085 | I104: 0.001728492502 | J104: 0.03 | K104: 0.01 | L104: 0.01689869029 | M104: 0.396 | N104: 0.5892707802 | O104: 1.002169471 | P104: 0 | R104: =Week!D104 -> 2004-10-22 | S104: =IF(SUM(Calculation!AK88:AK102)=$S$9,AVERAGE(AG88:AG102),"") -> 0.3557647465 | U104: =IF(SUM(Calculation!AL88:AL102)=$U$9,AVERAGE(AH88:AH102),"") -> 0.7099576667 | V104: =IF(SUM(Calculation!AL92:AL102)=$V$9,AVERAGE(AH92:AH102),"") -> 0.7077095455 | Z104: ='Import_ESALQ '!B104 -> 2015-02-01 | AA104: ='Import_ESALQ '!C104 -> 0.5351 | AB104: 2015.1.2 | AC104: =IF(INDEX(Week!$T$10:$T$10234,MATCH(AB104,Week!$U$10:$U$10234,0))=6,MATCH(AB104,Week!$U$10:$U$10234,0),MATCH(AB104,Week!$U$10:$U$10234,0)+6-INDEX(Week!$T$10:$T$10234,MATCH(AB104,Week!$U$10:$U$10234,0))) -> 4383 | AD104: =INDEX(Week!$R$10:$R$10234,Calculation!AC104) -> 2015-01-02 | AF104: =Week!D104 -> 2004-10-22 | AG104: 0.4527306041 | AH104: =AVERAGEIFS(CleanFOREX!F:F,CleanFOREX!E:E,">"&AF103,CleanFOREX!E:E,"<="&AF104) -> 0.73134 | AJ104: =Week!D104 -> 2004-10-22 | AK104: 1 | AL104: 1
C105: 2004-10-29 | D105: 0.3653445197 | E105: 0.4318463267 | F105: 0.06650180704 | G105: 0.1222802538 | H105: 0.002438156954 | I105: 0.001728492502 | J105: 0.03 | K105: 0.01 | L105: 0.01727385307 | M105: 0.396 | N105: 0.59829323 | O105: 1.011567083 | P105: 0 | R105: =Week!D105 -> 2004-10-29 | S105: =IF(SUM(Calculation!AK89:AK103)=$S$9,AVERAGE(AG89:AG103),"") -> 0.3653445197 | U105: =IF(SUM(Calculation!AL89:AL103)=$U$9,AVERAGE(AH89:AH103),"") -> 0.7121003333 | V105: =IF(SUM(Calculation!AL93:AL103)=$V$9,AVERAGE(AH93:AH103),"") -> 0.7100022727 | Z105: ='Import_ESALQ '!B105 -> 12/26/2014 | AA105: ='Import_ESALQ '!C105 -> 0.536 | AB105: 2014.12.26 | AC105: =IF(INDEX(Week!$T$10:$T$10234,MATCH(AB105,Week!$U$10:$U$10234,0))=6,MATCH(AB105,Week!$U$10:$U$10234,0),MATCH(AB105,Week!$U$10:$U$10234,0)+6-INDEX(Week!$T$10:$T$10234,MATCH(AB105,Week!$U$10:$U$10234,0))) -> 4376 | AD105: =INDEX(Week!$R$10:$R$10234,Calculation!AC105) -> 2014-12-26 | AF105: =Week!D105 -> 2004-10-29 | AG105: 0.4485170002 | AH105: =AVERAGEIFS(CleanFOREX!F:F,CleanFOREX!E:E,">"&AF104,CleanFOREX!E:E,"<="&AF105) -> 0.74646 | AJ105: =Week!D105 -> 2004-10-29 | AK105: 1 | AL105: 1
C106: 2004-11-05 | D106: 0.3762383684 | E106: 0.4426629398 | F106: 0.06642457137 | G106: 0.1218396978 | H106: 0.002483811605 | I106: 0.001728492502 | J106: 0.03 | K106: 0.01 | L106: 0.01770651759 | M106: 0.396 | N106: 0.6087149417 | O106: 1.022421459 | P106: 0 | R106: =Week!D106 -> 2004-11-05 | S106: =IF(SUM(Calculation!AK90:AK104)=$S$9,AVERAGE(AG90:AG104),"") -> 0.3762383684 | U106: =IF(SUM(Calculation!AL90:AL104)=$U$9,AVERAGE(AH90:AH104),"") -> 0.7129283333 | V106: =IF(SUM(Calculation!AL94:AL104)=$V$9,AVERAGE(AH94:AH104),"") -> 0.7125695455 | Z106: ='Import_ESALQ '!B106 -> 12/19/2014 | AA106: ='Import_ESALQ '!C106 -> 0.5178 | AB106: 2014.12.19 | AC106: =IF(INDEX(Week!$T$10:$T$10234,MATCH(AB106,Week!$U$10:$U$10234,0))=6,MATCH(AB106,Week!$U$10:$U$10234,0),MATCH(AB106,Week!$U$10:$U$10234,0)+6-INDEX(Week!$T$10:$T$10234,MATCH(AB106,Week!$U$10:$U$10234,0))) -> 4369 | AD106: =INDEX(Week!$R$10:$R$10234,Calculation!AC106) -> 2014-12-19 | AF106: =Week!D106 -> 2004-11-05 | AG106: 0.4601913799 | AH106: =AVERAGEIFS(CleanFOREX!F:F,CleanFOREX!E:E,">"&AF105,CleanFOREX!E:E,"<="&AF106) -> 0.75034 | AJ106: =Week!D106 -> 2004-11-05 | AK106: 1 | AL106: 1
C107: 2004-11-12 | D107: 0.3859238187 | E107: 0.4522123904 | F107: 0.06628857161 | G107: 0.1213217991 | H107: 0.002523550434 | I107: 0.001728492502 | J107: 0.03 | K107: 0.01 | L107: 0.01808849561 | M107: 0.396 | N107: 0.6177862324 | O107: 1.031874728 | P107: 0 | R107: =Week!D107 -> 2004-11-12 | S107: =IF(SUM(Calculation!AK91:AK105)=$S$9,AVERAGE(AG91:AG105),"") -> 0.3859238187 | U107: =IF(SUM(Calculation!AL91:AL105)=$U$9,AVERAGE(AH91:AH105),"") -> 0.714391 | V107: =IF(SUM(Calculation!AL95:AL105)=$V$9,AVERAGE(AH95:AH105),"") -> 0.7156113636 | Z107: ='Import_ESALQ '!B107 -> 2014-12-12 | AA107: ='Import_ESALQ '!C107 -> 0.5295 | AB107: 2014.12.12 | AC107: =IF(INDEX(Week!$T$10:$T$10234,MATCH(AB107,Week!$U$10:$U$10234,0))=6,MATCH(AB107,Week!$U$10:$U$10234,0),MATCH(AB107,Week!$U$10:$U$10234,0)+6-INDEX(Week!$T$10:$T$10234,MATCH(AB107,Week!$U$10:$U$10234,0))) -> 4362 | AD107: =INDEX(Week!$R$10:$R$10234,Calculation!AC107) -> 2014-12-12 | AF107: =Week!D107 -> 2004-11-12 | AG107: 0.4606076549 | AH107: =AVERAGEIFS(CleanFOREX!F:F,CleanFOREX!E:E,">"&AF106,CleanFOREX!E:E,"<="&AF107) -> 0.7603 | AJ107: =Week!D107 -> 2004-11-12 | AK107: 1 | AL107: 1
C108: 2004-11-19 | D108: 0.3939086399 | E108: 0.4600317166 | F108: 0.06612307671 | G108: 0.1208287661 | H108: 0.002555786124 | I108: 0.001728492502 | J108: 0.03 | K108: 0.01 | L108: 0.01840126867 | M108: 0.396 | N108: 0.6251447614 | O108: 1.03954603 | P108: 0 | R108: =Week!D108 -> 2004-11-19 | S108: =IF(SUM(Calculation!AK92:AK106)=$S$9,AVERAGE(AG92:AG106),"") -> 0.3939086399 | U108: =IF(SUM(Calculation!AL92:AL106)=$U$9,AVERAGE(AH92:AH106),"") -> 0.716179 | V108: =IF(SUM(Calculation!AL96:AL106)=$V$9,AVERAGE(AH96:AH106),"") -> 0.7185313636 | Z108: ='Import_ESALQ '!B108 -> 2014-05-12 | AA108: ='Import_ESALQ '!C108 -> 0.5401 | AB108: 2014.12.5 | AC108: =IF(INDEX(Week!$T$10:$T$10234,MATCH(AB108,Week!$U$10:$U$10234,0))=6,MATCH(AB108,Week!$U$10:$U$10234,0),MATCH(AB108,Week!$U$10:$U$10234,0)+6-INDEX(Week!$T$10:$T$10234,MATCH(AB108,Week!$U$10:$U$10234,0))) -> 4355 | AD108: =INDEX(Week!$R$10:$R$10234,Calculation!AC108) -> 2014-12-05 | AF108: =Week!D108 -> 2004-11-19 | AG108: 0.4567767271 | AH108: =AVERAGEIFS(CleanFOREX!F:F,CleanFOREX!E:E,">"&AF107,CleanFOREX!E:E,"<="&AF108) -> 0.77412 | AJ108: =Week!D108 -> 2004-11-19 | AK108: 1 | AL108: 1
C109: 2004-11-26 | D109: 0.4010820634 | E109: 0.4668635782 | F109: 0.06578151472 | G109: 0.1200731292 | H109: 0.002582521512 | I109: 0.001728492502 | J109: 0.03 | K109: 0.01 | L109: 0.01867454313 | M109: 0.396 | N109: 0.6312477213 | O109: 1.045922264 | P109: 0 | R109: =Week!D109 -> 2004-11-26 | S109: =IF(SUM(Calculation!AK93:AK107)=$S$9,AVERAGE(AG93:AG107),"") -> 0.4010820634 | U109: =IF(SUM(Calculation!AL93:AL107)=$U$9,AVERAGE(AH93:AH107),"") -> 0.7198976667 | V109: =IF(SUM(Calculation!AL97:AL107)=$V$9,AVERAGE(AH97:AH107),"") -> 0.7230531818 | Z109: ='Import_ESALQ '!B109 -> 11/28/2014 | AA109: ='Import_ESALQ '!C109 -> 0.5344 | AB109: 2014.11.28 | AC109: =IF(INDEX(Week!$T$10:$T$10234,MATCH(AB109,Week!$U$10:$U$10234,0))=6,MATCH(AB109,Week!$U$10:$U$10234,0),MATCH(AB109,Week!$U$10:$U$10234,0)+6-INDEX(Week!$T$10:$T$10234,MATCH(AB109,Week!$U$10:$U$10234,0))) -> 4348 | AD109: =INDEX(Week!$R$10:$R$10234,Calculation!AC109) -> 2014-11-28 | AF109: =Week!D109 -> 2004-11-26 | AG109: 0.4532260529 | AH109: =AVERAGEIFS(CleanFOREX!F:F,CleanFOREX!E:E,">"&AF108,CleanFOREX!E:E,"<="&AF109) -> 0.78548 | AJ109: =Week!D109 -> 2004-11-26 | AK109: 1 | AL109: 1
C110: 2004-12-03 | D110: 0.4079241169 | E110: 0.4732758226 | F110: 0.06535170566 | G110: 0.1189647874 | H110: 0.002605858684 | I110: 0.001728492502 | J110: 0.03 | K110: 0.01 | L110: 0.0189310329 | M110: 0.396 | N110: 0.6365749611 | O110: 1.051505994 | P110: 0 | R110: =Week!D110 -> 2004-12-03 | S110: =IF(SUM(Calculation!AK94:AK108)=$S$9,AVERAGE(AG94:AG108),"") -> 0.4079241169 | U110: =IF(SUM(Calculation!AL94:AL108)=$U$9,AVERAGE(AH94:AH108),"") -> 0.7246323333 | V110: =IF(SUM(Calculation!AL98:AL108)=$V$9,AVERAGE(AH98:AH108),"") -> 0.7297895455 | Z110: ='Import_ESALQ '!B110 -> 11/21/2014 | AA110: ='Import_ESALQ '!C110 -> 0.5233 | AB110: 2014.11.21 | AC110: =IF(INDEX(Week!$T$10:$T$10234,MATCH(AB110,Week!$U$10:$U$10234,0))=6,MATCH(AB110,Week!$U$10:$U$10234,0),MATCH(AB110,Week!$U$10:$U$10234,0)+6-INDEX(Week!$T$10:$T$10234,MATCH(AB110,Week!$U$10:$U$10234,0))) -> 4341 | AD110: =INDEX(Week!$R$10:$R$10234,Calculation!AC110) -> 2014-11-21 | AF110: =Week!D110 -> 2004-12-03 | AG110: 0.436986653 | AH110: =AVERAGEIFS(CleanFOREX!F:F,CleanFOREX!E:E,">"&AF109,CleanFOREX!E:E,"<="&AF110) -> 0.7792 | AJ110: =Week!D110 -> 2004-12-03 | AK110: 1 | AL110: 1
C111: 2004-12-10 | D111: 0.4146889767 | E111: 0.4796077901 | F111: 0.06491881343 | G111: 0.1175884736 | H111: 0.002627663561 | I111: 0.001728492502 | J111: 0.03 | K111: 0.01 | L111: 0.01918431161 | M111: 0.396 | N111: 0.6415524198 | O111: 1.056736731 | P111: 0 | R111: =Week!D111 -> 2004-12-10 | S111: =IF(SUM(Calculation!AK95:AK109)=$S$9,AVERAGE(AG95:AG109),"") -> 0.4146889767 | U111: =IF(SUM(Calculation!AL95:AL109)=$U$9,AVERAGE(AH95:AH109),"") -> 0.7294643333 | V111: =IF(SUM(Calculation!AL99:AL109)=$V$9,AVERAGE(AH99:AH109),"") -> 0.7383313636 | Z111: ='Import_ESALQ '!B111 -> 11/14/2014 | AA111: ='Import_ESALQ '!C111 -> 0.5187 | AB111: 2014.11.14 | AC111: =IF(INDEX(Week!$T$10:$T$10234,MATCH(AB111,Week!$U$10:$U$10234,0))=6,MATCH(AB111,Week!$U$10:$U$10234,0),MATCH(AB111,Week!$U$10:$U$10234,0)+6-INDEX(Week!$T$10:$T$10234,MATCH(AB111,Week!$U$10:$U$10234,0))) -> 4334 | AD111: =INDEX(Week!$R$10:$R$10234,Calculation!AC111) -> 2014-11-14 | AF111: =Week!D111 -> 2004-12-10 | AG111: 0.4320214902 | AH111: =AVERAGEIFS(CleanFOREX!F:F,CleanFOREX!E:E,">"&AF110,CleanFOREX!E:E,"<="&AF111) -> 0.76686 | AJ111: =Week!D111 -> 2004-12-10 | AK111: 1 | AL111: 1
C112: 2004-12-17 | D112: 0.4204302588 | E112: 0.4849892822 | F112: 0.06455902346 | G112: 0.116418504 | H112: 0.002646194259 | I112: 0.001728492502 | J112: 0.03 | K112: 0.01 | L112: 0.01939957129 | M112: 0.396 | N112: 0.6457824729 | O112: 1.061182044 | P112: 0 | R112: =Week!D112 -> 2004-12-17 | S112: =IF(SUM(Calculation!AK96:AK110)=$S$9,AVERAGE(AG96:AG110),"") -> 0.4204302588 | U112: =IF(SUM(Calculation!AL96:AL110)=$U$9,AVERAGE(AH96:AH110),"") -> 0.7335296667 | V112: =IF(SUM(Calculation!AL100:AL110)=$V$9,AVERAGE(AH100:AH110),"") -> 0.7457513636 | Z112: ='Import_ESALQ '!B112 -> 2014-07-11 | AA112: ='Import_ESALQ '!C112 -> 0.5085 | AB112: 2014.11.7 | AC112: =IF(INDEX(Week!$T$10:$T$10234,MATCH(AB112,Week!$U$10:$U$10234,0))=6,MATCH(AB112,Week!$U$10:$U$10234,0),MATCH(AB112,Week!$U$10:$U$10234,0)+6-INDEX(Week!$T$10:$T$10234,MATCH(AB112,Week!$U$10:$U$10234,0))) -> 4327 | AD112: =INDEX(Week!$R$10:$R$10234,Calculation!AC112) -> 2014-11-07 | AF112: =Week!D112 -> 2004-12-17 | AG112: 0.4318223721 | AH112: =AVERAGEIFS(CleanFOREX!F:F,CleanFOREX!E:E,">"&AF111,CleanFOREX!E:E,"<="&AF112) -> 0.75934 | AJ112: =Week!D112 -> 2004-12-17 | AK112: 1 | AL112: 1
C113: 2004-12-24 | D113: 0.4253631934 | E113: 0.4895935621 | F113: 0.06423036874 | G113: 0.1155463355 | H113: 0.002662615549 | I113: 0.001728492502 | J113: 0.03 | K113: 0.01 | L113: 0.01958374248 | M113: 0.396 | N113: 0.6495310056 | O113: 1.065114748 | P113: 0 | R113: =Week!D113 -> 2004-12-24 | S113: =IF(SUM(Calculation!AK97:AK111)=$S$9,AVERAGE(AG97:AG111),"") -> 0.4253631934 | U113: =IF(SUM(Calculation!AL97:AL111)=$U$9,AVERAGE(AH97:AH111),"") -> 0.737283 | V113: =IF(SUM(Calculation!AL101:AL111)=$V$9,AVERAGE(AH101:AH111),"") -> 0.7513804545 | Z113: ='Import_ESALQ '!B113 -> 10/31/2014 | AA113: ='Import_ESALQ '!C113 -> 0.5209 | AB113: 2014.10.31 | AC113: =IF(INDEX(Week!$T$10:$T$10234,MATCH(AB113,Week!$U$10:$U$10234,0))=6,MATCH(AB113,Week!$U$10:$U$10234,0),MATCH(AB113,Week!$U$10:$U$10234,0)+6-INDEX(Week!$T$10:$T$10234,MATCH(AB113,Week!$U$10:$U$10234,0))) -> 4320 | AD113: =INDEX(Week!$R$10:$R$10234,Calculation!AC113) -> 2014-10-31 | AF113: =Week!D113 -> 2004-12-24 | AG113: 0.4274029164 | AH113: =AVERAGEIFS(CleanFOREX!F:F,CleanFOREX!E:E,">"&AF112,CleanFOREX!E:E,"<="&AF113) -> 0.76532 | AJ113: =Week!D113 -> 2004-12-24 | AK113: 1 | AL113: 1
C114: 2004-12-31 | D114: 0.4299425194 | E114: 0.4938302049 | F114: 0.06388768554 | G114: 0.1149535694 | H114: 0.002678648607 | I114: 0.001728492502 | J114: 0.03 | K114: 0.01 | L114: 0.0197532082 | M114: 0.396 | N114: 0.6531909155 | O114: 1.068944124 | P114: 0 | R114: =Week!D114 -> 2004-12-31 | S114: =IF(SUM(Calculation!AK98:AK112)=$S$9,AVERAGE(AG98:AG112),"") -> 0.4299425194 | U114: =IF(SUM(Calculation!AL98:AL112)=$U$9,AVERAGE(AH98:AH112),"") -> 0.7412376667 | V114: =IF(SUM(Calculation!AL102:AL112)=$V$9,AVERAGE(AH102:AH112),"") -> 0.755255 | Z114: ='Import_ESALQ '!B114 -> 10/24/2014 | AA114: ='Import_ESALQ '!C114 -> 0.5235 | AB114: 2014.10.24 | AC114: =IF(INDEX(Week!$T$10:$T$10234,MATCH(AB114,Week!$U$10:$U$10234,0))=6,MATCH(AB114,Week!$U$10:$U$10234,0),MATCH(AB114,Week!$U$10:$U$10234,0)+6-INDEX(Week!$T$10:$T$10234,MATCH(AB114,Week!$U$10:$U$10234,0))) -> 4313 | AD114: =INDEX(Week!$R$10:$R$10234,Calculation!AC114) -> 2014-10-24 | AF114: =Week!D114 -> 2004-12-31 | AG114: 0.4248982216 | AH114: =AVERAGEIFS(CleanFOREX!F:F,CleanFOREX!E:E,">"&AF113,CleanFOREX!E:E,"<="&AF114) -> 0.7778333333 | AJ114: =Week!D114 -> 2004-12-31 | AK114: 1 | AL114: 1
C115: 2005-01-07 | D115: 0.433466897 | E115: 0.4969333212 | F115: 0.06346642415 | G115: 0.114393225 | H115: 0.002689836803 | I115: 0.001728492502 | J115: 0.03 | K115: 0.01 | L115: 0.01987733285 | M115: 0.396 | N115: 0.6557448755 | O115: 1.071622208 | P115: 0 | R115: =Week!D115 -> 2005-01-07 | S115: =IF(SUM(Calculation!AK99:AK113)=$S$9,AVERAGE(AG99:AG113),"") -> 0.433466897 | U115: =IF(SUM(Calculation!AL99:AL113)=$U$9,AVERAGE(AH99:AH113),"") -> 0.7461576667 | V115: =IF(SUM(Calculation!AL103:AL113)=$V$9,AVERAGE(AH103:AH113),"") -> 0.7589545455 | Z115: ='Import_ESALQ '!B115 -> 10/17/2014 | AA115: ='Import_ESALQ '!C115 -> 0.5382 | AB115: 2014.10.17 | AC115: =IF(INDEX(Week!$T$10:$T$10234,MATCH(AB115,Week!$U$10:$U$10234,0))=6,MATCH(AB115,Week!$U$10:$U$10234,0),MATCH(AB115,Week!$U$10:$U$10234,0)+6-INDEX(Week!$T$10:$T$10234,MATCH(AB115,Week!$U$10:$U$10234,0))) -> 4306 | AD115: =INDEX(Week!$R$10:$R$10234,Calculation!AC115) -> 2014-10-17 | AF115: =Week!D115 -> 2005-01-07 | AG115: 0.4288227246 | AH115: =AVERAGEIFS(CleanFOREX!F:F,CleanFOREX!E:E,">"&AF114,CleanFOREX!E:E,"<="&AF115) -> 0.76745 | AJ115: =Week!D115 -> 2005-01-07 | AK115: 1 | AL115: 1
C116: 2005-01-14 | D116: 0.4368882969 | E116: 0.4999028835 | F116: 0.06301458662 | G116: 0.1137380127 | H116: 0.002700019943 | I116: 0.001728492502 | J116: 0.03 | K116: 0.01 | L116: 0.01999611534 | M116: 0.396 | N116: 0.6580694086 | O116: 1.074065524 | P116: 0 | R116: =Week!D116 -> 2005-01-14 | S116: =IF(SUM(Calculation!AK100:AK114)=$S$9,AVERAGE(AG100:AG114),"") -> 0.4368882969 | U116: =IF(SUM(Calculation!AL100:AL114)=$U$9,AVERAGE(AH100:AH114),"") -> 0.7515078889 | V116: =IF(SUM(Calculation!AL104:AL114)=$V$9,AVERAGE(AH104:AH114),"") -> 0.7633266667 | Z116: ='Import_ESALQ '!B116 -> 2014-10-10 | AA116: ='Import_ESALQ '!C116 -> 0.5497 | AB116: 2014.10.10 | AC116: =IF(INDEX(Week!$T$10:$T$10234,MATCH(AB116,Week!$U$10:$U$10234,0))=6,MATCH(AB116,Week!$U$10:$U$10234,0),MATCH(AB116,Week!$U$10:$U$10234,0)+6-INDEX(Week!$T$10:$T$10234,MATCH(AB116,Week!$U$10:$U$10234,0))) -> 4299 | AD116: =INDEX(Week!$R$10:$R$10234,Calculation!AC116) -> 2014-10-10 | AF116: =Week!D116 -> 2005-01-14 | AG116: 0.4307490145 | AH116: =AVERAGEIFS(CleanFOREX!F:F,CleanFOREX!E:E,">"&AF115,CleanFOREX!E:E,"<="&AF116) -> 0.761 | AJ116: =Week!D116 -> 2005-01-14 | AK116: 1 | AL116: 1
C117: 2005-01-21 | D117: 0.4391574537 | E117: 0.5018245329 | F117: 0.06266707914 | G117: 0.1132509708 | H117: 0.002706332216 | I117: 0.001728492502 | J117: 0.03 | K117: 0.01 | L117: 0.02007298131 | M117: 0.396 | N117: 0.6595103284 | O117: 1.07558331 | P117: 0 | R117: =Week!D117 -> 2005-01-21 | S117: =IF(SUM(Calculation!AK101:AK115)=$S$9,AVERAGE(AG101:AG115),"") -> 0.4391574537 | U117: =IF(SUM(Calculation!AL101:AL115)=$U$9,AVERAGE(AH101:AH115),"") -> 0.7556752222 | V117: =IF(SUM(Calculation!AL105:AL115)=$V$9,AVERAGE(AH105:AH115),"") -> 0.7666093939 | Z117: ='Import_ESALQ '!B117 -> 2014-03-10 | AA117: ='Import_ESALQ '!C117 -> 0.5338 | AB117: 2014.10.3 | AC117: =IF(INDEX(Week!$T$10:$T$10234,MATCH(AB117,Week!$U$10:$U$10234,0))=6,MATCH(AB117,Week!$U$10:$U$10234,0),MATCH(AB117,Week!$U$10:$U$10234,0)+6-INDEX(Week!$T$10:$T$10234,MATCH(AB117,Week!$U$10:$U$10234,0))) -> 4292 | AD117: =INDEX(Week!$R$10:$R$10234,Calculation!AC117) -> 2014-10-03 | AF117: =Week!D117 -> 2005-01-21 | AG117: 0.4319831112 | AH117: =AVERAGEIFS(CleanFOREX!F:F,CleanFOREX!E:E,">"&AF116,CleanFOREX!E:E,"<="&AF117) -> 0.7579 | AJ117: =Week!D117 -> 2005-01-21 | AK117: 1 | AL117: 1
C118: 2005-01-28 | D118: 0.4406481738 | E118: 0.5030714004 | F118: 0.06242322655 | G118: 0.1130560351 | H118: 0.002710960716 | I118: 0.001728492502 | J118: 0.03 | K118: 0.01 | L118: 0.02012285601 | M118: 0.396 | N118: 0.6605668887 | O118: 1.076689745 | P118: 0 | R118: =Week!D118 -> 2005-01-28 | S118: =IF(SUM(Calculation!AK102:AK116)=$S$9,AVERAGE(AG102:AG116),"") -> 0.4406481738 | U118: =IF(SUM(Calculation!AL102:AL116)=$U$9,AVERAGE(AH102:AH116),"") -> 0.7586272222 | V118: =IF(SUM(Calculation!AL106:AL116)=$V$9,AVERAGE(AH106:AH116),"") -> 0.7679312121 | Z118: ='Import_ESALQ '!B118 -> 09/26/2014 | AA118: ='Import_ESALQ '!C118 -> 0.5555 | AB118: 2014.9.26 | AC118: =IF(INDEX(Week!$T$10:$T$10234,MATCH(AB118,Week!$U$10:$U$10234,0))=6,MATCH(AB118,Week!$U$10:$U$10234,0),MATCH(AB118,Week!$U$10:$U$10234,0)+6-INDEX(Week!$T$10:$T$10234,MATCH(AB118,Week!$U$10:$U$10234,0))) -> 4285 | AD118: =INDEX(Week!$R$10:$R$10234,Calculation!AC118) -> 2014-09-26 | AF118: =Week!D118 -> 2005-01-28 | AG118: 0.4240150094 | AH118: =AVERAGEIFS(CleanFOREX!F:F,CleanFOREX!E:E,">"&AF117,CleanFOREX!E:E,"<="&AF118) -> 0.77285 | AJ118: =Week!D118 -> 2005-01-28 | AK118: 1 | AL118: 1
C119: 2005-02-04 | D119: 0.4407333454 | E119: 0.5029745698 | F119: 0.0622412244 | G119: 0.1129549442 | H119: 0.002710089862 | I119: 0.001728492502 | J119: 0.03 | K119: 0.01 | L119: 0.02011898279 | M119: 0.396 | N119: 0.6603680964 | O119: 1.076487079 | P119: 0 | R119: =Week!D119 -> 2005-02-04 | S119: =IF(SUM(Calculation!AK103:AK117)=$S$9,AVERAGE(AG103:AG117),"") -> 0.4407333454 | U119: =IF(SUM(Calculation!AL103:AL117)=$U$9,AVERAGE(AH103:AH117),"") -> 0.7608455556 | V119: =IF(SUM(Calculation!AL107:AL117)=$V$9,AVERAGE(AH107:AH117),"") -> 0.7686184848 | Z119: ='Import_ESALQ '!B119 -> 09/19/2014 | AA119: ='Import_ESALQ '!C119 -> 0.5707 | AB119: 2014.9.19 | AC119: =IF(INDEX(Week!$T$10:$T$10234,MATCH(AB119,Week!$U$10:$U$10234,0))=6,MATCH(AB119,Week!$U$10:$U$10234,0),MATCH(AB119,Week!$U$10:$U$10234,0)+6-INDEX(Week!$T$10:$T$10234,MATCH(AB119,Week!$U$10:$U$10234,0))) -> 4278 | AD119: =INDEX(Week!$R$10:$R$10234,Calculation!AC119) -> 2014-09-19 | AF119: =Week!D119 -> 2005-02-04 | AG119: 0.4320620556 | AH119: =AVERAGEIFS(CleanFOREX!F:F,CleanFOREX!E:E,">"&AF118,CleanFOREX!E:E,"<="&AF119) -> 0.7735 | AJ119: =Week!D119 -> 2005-02-04 | AK119: 1 | AL119: 1
C120: 2005-02-11 | D120: 0.4400500621 | E120: 0.5020570628 | F120: 0.06200700062 | G120: 0.1127875266 | H120: 0.002705316193 | I120: 0.001728492502 | J120: 0.03 | K120: 0.01 | L120: 0.02008228251 | M120: 0.396 | N120: 0.659278398 | O120: 1.075360681 | P120: 0 | R120: =Week!D120 -> 2005-02-11 | S120: =IF(SUM(Calculation!AK104:AK118)=$S$9,AVERAGE(AG104:AG118),"") -> 0.4400500621 | U120: =IF(SUM(Calculation!AL104:AL118)=$U$9,AVERAGE(AH104:AH118),"") -> 0.7637195556 | V120: =IF(SUM(Calculation!AL108:AL118)=$V$9,AVERAGE(AH108:AH118),"") -> 0.7697593939 | Z120: ='Import_ESALQ '!B120 -> 2014-12-09 | AA120: ='Import_ESALQ '!C120 -> 0.5901 | AB120: 2014.9.12 | AC120: =IF(INDEX(Week!$T$10:$T$10234,MATCH(AB120,Week!$U$10:$U$10234,0))=6,MATCH(AB120,Week!$U$10:$U$10234,0),MATCH(AB120,Week!$U$10:$U$10234,0)+6-INDEX(Week!$T$10:$T$10234,MATCH(AB120,Week!$U$10:$U$10234,0))) -> 4271 | AD120: =INDEX(Week!$R$10:$R$10234,Calculation!AC120) -> 2014-09-12 | AF120: =Week!D120 -> 2005-02-11 | AG120: 0.4314497333 | AH120: =AVERAGEIFS(CleanFOREX!F:F,CleanFOREX!E:E,">"&AF119,CleanFOREX!E:E,"<="&AF120) -> 0.77228 | AJ120: =Week!D120 -> 2005-02-11 | AK120: 1 | AL120: 1
C121: 2005-02-18 | D121: 0.4386721589 | E121: 0.500451796 | F121: 0.0617796371 | G121: 0.1127957857 | H121: 0.00269828936 | I121: 0.001728492502 | J121: 0.03 | K121: 0.01 | L121: 0.02001807184 | M121: 0.396 | N121: 0.6576743636 | O121: 1.073692435 | P121: 0 | R121: =Week!D121 -> 2005-02-18 | S121: =IF(SUM(Calculation!AK105:AK119)=$S$9,AVERAGE(AG105:AG119),"") -> 0.4386721589 | U121: =IF(SUM(Calculation!AL105:AL119)=$U$9,AVERAGE(AH105:AH119),"") -> 0.7665302222 | V121: =IF(SUM(Calculation!AL109:AL119)=$V$9,AVERAGE(AH109:AH119),"") -> 0.7697030303 | Z121: ='Import_ESALQ '!B121 -> 2014-05-09 | AA121: ='Import_ESALQ '!C121 -> 0.6029 | AB121: 2014.9.5 | AC121: =IF(INDEX(Week!$T$10:$T$10234,MATCH(AB121,Week!$U$10:$U$10234,0))=6,MATCH(AB121,Week!$U$10:$U$10234,0),MATCH(AB121,Week!$U$10:$U$10234,0)+6-INDEX(Week!$T$10:$T$10234,MATCH(AB121,Week!$U$10:$U$10234,0))) -> 4264 | AD121: =INDEX(Week!$R$10:$R$10234,Calculation!AC121) -> 2014-09-05 | AF121: =Week!D121 -> 2005-02-18 | AG121: 0.4215808646 | AH121: =AVERAGEIFS(CleanFOREX!F:F,CleanFOREX!E:E,">"&AF120,CleanFOREX!E:E,"<="&AF121) -> 0.78514 | AJ121: =Week!D121 -> 2005-02-18 | AK121: 1 | AL121: 1
C122: 2005-02-25 | D122: 0.4375343411 | E122: 0.4991755556 | F122: 0.06164121454 | G122: 0.1129719138 | H122: 0.002693448866 | I122: 0.001728492502 | J122: 0.03 | K122: 0.01 | L122: 0.01996702223 | M122: 0.396 | N122: 0.6565694108 | O122: 1.072536433 | P122: 0 | R122: =Week!D122 -> 2005-02-25 | S122: =IF(SUM(Calculation!AK106:AK120)=$S$9,AVERAGE(AG106:AG120),"") -> 0.4375343411 | U122: =IF(SUM(Calculation!AL106:AL120)=$U$9,AVERAGE(AH106:AH120),"") -> 0.7682515556 | V122: =IF(SUM(Calculation!AL110:AL120)=$V$9,AVERAGE(AH110:AH120),"") -> 0.7685030303 | Z122: ='Import_ESALQ '!B122 -> 08/29/2014 | AA122: ='Import_ESALQ '!C122 -> 0.5863 | AB122: 2014.8.29 | AC122: =IF(INDEX(Week!$T$10:$T$10234,MATCH(AB122,Week!$U$10:$U$10234,0))=6,MATCH(AB122,Week!$U$10:$U$10234,0),MATCH(AB122,Week!$U$10:$U$10234,0)+6-INDEX(Week!$T$10:$T$10234,MATCH(AB122,Week!$U$10:$U$10234,0))) -> 4257 | AD122: =INDEX(Week!$R$10:$R$10234,Calculation!AC122) -> 2014-08-29 | AF122: =Week!D122 -> 2005-02-25 | AG122: 0.4031235739 | AH122: =AVERAGEIFS(CleanFOREX!F:F,CleanFOREX!E:E,">"&AF121,CleanFOREX!E:E,"<="&AF122) -> 0.78884 | AJ122: =Week!D122 -> 2005-02-25 | AK122: 1 | AL122: 1
C123: 2005-03-04 | D123: 0.4349603067 | E123: 0.4964159349 | F123: 0.06145562812 | G123: 0.1128925882 | H123: 0.002680957501 | I123: 0.001728492502 | J123: 0.03 | K123: 0.01 | L123: 0.01985663739 | M123: 0.396 | N123: 0.653717973 | O123: 1.06957461 | P123: 0 | R123: =Week!D123 -> 2005-03-04 | S123: =IF(SUM(Calculation!AK107:AK121)=$S$9,AVERAGE(AG107:AG121),"") -> 0.4349603067 | U123: =IF(SUM(Calculation!AL107:AL121)=$U$9,AVERAGE(AH107:AH121),"") -> 0.7705715556 | V123: =IF(SUM(Calculation!AL111:AL121)=$V$9,AVERAGE(AH111:AH121),"") -> 0.7690430303 | Z123: ='Import_ESALQ '!B123 -> 08/22/2014 | AA123: ='Import_ESALQ '!C123 -> 0.5852 | AB123: 2014.8.22 | AC123: =IF(INDEX(Week!$T$10:$T$10234,MATCH(AB123,Week!$U$10:$U$10234,0))=6,MATCH(AB123,Week!$U$10:$U$10234,0),MATCH(AB123,Week!$U$10:$U$10234,0)+6-INDEX(Week!$T$10:$T$10234,MATCH(AB123,Week!$U$10:$U$10234,0))) -> 4250 | AD123: =INDEX(Week!$R$10:$R$10234,Calculation!AC123) -> 2014-08-22 | AF123: =Week!D123 -> 2005-03-04 | AG123: 0.4058805544 | AH123: =AVERAGEIFS(CleanFOREX!F:F,CleanFOREX!E:E,">"&AF122,CleanFOREX!E:E,"<="&AF123) -> 0.78496 | AJ123: =Week!D123 -> 2005-03-04 | AK123: 1 | AL123: 1
C124: 2005-03-11 | D124: 0.4311280347 | E124: 0.4924322926 | F124: 0.06130425792 | G124: 0.1126000228 | H124: 0.002662142188 | I124: 0.001728492502 | J124: 0.03 | K124: 0.01 | L124: 0.0196972917 | M124: 0.396 | N124: 0.6494229501 | O124: 1.065120242 | P124: 0 | R124: =Week!D124 -> 2005-03-11 | S124: =IF(SUM(Calculation!AK108:AK122)=$S$9,AVERAGE(AG108:AG122),"") -> 0.4311280347 | U124: =IF(SUM(Calculation!AL108:AL122)=$U$9,AVERAGE(AH108:AH122),"") -> 0.7724742222 | V124: =IF(SUM(Calculation!AL112:AL122)=$V$9,AVERAGE(AH112:AH122),"") -> 0.7710412121 | Z124: ='Import_ESALQ '!B124 -> 08/15/2014 | AA124: ='Import_ESALQ '!C124 -> 0.5856 | AB124: 2014.8.15 | AC124: =IF(INDEX(Week!$T$10:$T$10234,MATCH(AB124,Week!$U$10:$U$10234,0))=6,MATCH(AB124,Week!$U$10:$U$10234,0),MATCH(AB124,Week!$U$10:$U$10234,0)+6-INDEX(Week!$T$10:$T$10234,MATCH(AB124,Week!$U$10:$U$10234,0))) -> 4243 | AD124: =INDEX(Week!$R$10:$R$10234,Calculation!AC124) -> 2014-08-15 | AF124: =Week!D124 -> 2005-03-11 | AG124: 0.4100365654 | AH124: =AVERAGEIFS(CleanFOREX!F:F,CleanFOREX!E:E,">"&AF123,CleanFOREX!E:E,"<="&AF124) -> 0.7931 | AJ124: =Week!D124 -> 2005-03-11 | AK124: 1 | AL124: 1
C125: 2005-03-18 | D125: 0.4277349565 | E125: 0.4889819165 | F125: 0.06124696004 | G125: 0.1122609153 | H125: 0.00264546846 | I125: 0.001728492502 | J125: 0.03 | K125: 0.01 | L125: 0.01955927666 | M125: 0.396 | N125: 0.6456167928 | O125: 1.061176069 | P125: 0 | R125: =Week!D125 -> 2005-03-18 | S125: =IF(SUM(Calculation!AK109:AK123)=$S$9,AVERAGE(AG109:AG123),"") -> 0.4277349565 | U125: =IF(SUM(Calculation!AL109:AL123)=$U$9,AVERAGE(AH109:AH123),"") -> 0.7731968889 | V125: =IF(SUM(Calculation!AL113:AL123)=$V$9,AVERAGE(AH113:AH123),"") -> 0.773370303 | Z125: ='Import_ESALQ '!B125 -> 2014-08-08 | AA125: ='Import_ESALQ '!C125 -> 0.5877 | AB125: 2014.8.8 | AC125: =IF(INDEX(Week!$T$10:$T$10234,MATCH(AB125,Week!$U$10:$U$10234,0))=6,MATCH(AB125,Week!$U$10:$U$10234,0),MATCH(AB125,Week!$U$10:$U$10234,0)+6-INDEX(Week!$T$10:$T$10234,MATCH(AB125,Week!$U$10:$U$10234,0))) -> 4236 | AD125: =INDEX(Week!$R$10:$R$10234,Calculation!AC125) -> 2014-08-08 | AF125: =Week!D125 -> 2005-03-18 | AG125: 0.4123398772 | AH125: =AVERAGEIFS(CleanFOREX!F:F,CleanFOREX!E:E,">"&AF124,CleanFOREX!E:E,"<="&AF125) -> 0.79158 | AJ125: =Week!D125 -> 2005-03-18 | AK125: 1 | AL125: 1
C126: 2005-03-25 | D126: 0.4248556573 | E126: 0.4860624038 | F126: 0.06120674645 | G126: 0.1118955185 | H126: 0.002631014858 | I126: 0.001728492502 | J126: 0.03 | K126: 0.01 | L126: 0.01944249615 | M126: 0.396 | N126: 0.6423174296 | O126: 1.057759926 | P126: 0 | R126: =Week!D126 -> 2005-03-25 | S126: =IF(SUM(Calculation!AK110:AK124)=$S$9,AVERAGE(AG110:AG124),"") -> 0.4248556573 | U126: =IF(SUM(Calculation!AL110:AL124)=$U$9,AVERAGE(AH110:AH124),"") -> 0.7737048889 | V126: =IF(SUM(Calculation!AL114:AL124)=$V$9,AVERAGE(AH114:AH124),"") -> 0.7758957576 | Z126: ='Import_ESALQ '!B126 -> 2014-01-08 | AA126: ='Import_ESALQ '!C126 -> 0.595 | AB126: 2014.8.1 | AC126: =IF(INDEX(Week!$T$10:$T$10234,MATCH(AB126,Week!$U$10:$U$10234,0))=6,MATCH(AB126,Week!$U$10:$U$10234,0),MATCH(AB126,Week!$U$10:$U$10234,0)+6-INDEX(Week!$T$10:$T$10234,MATCH(AB126,Week!$U$10:$U$10234,0))) -> 4229 | AD126: =INDEX(Week!$R$10:$R$10234,Calculation!AC126) -> 2014-08-01 | AF126: =Week!D126 -> 2005-03-25 | AG126: 0.4155296373 | AH126: =AVERAGEIFS(CleanFOREX!F:F,CleanFOREX!E:E,">"&AF125,CleanFOREX!E:E,"<="&AF126) -> 0.782375 | AJ126: =Week!D126 -> 2005-03-25 | AK126: 1 | AL126: 1
C127: 2005-04-01 | D127: 0.4232125389 | E127: 0.484354064 | F127: 0.06114152502 | G127: 0.1117155837 | H127: 0.00262270645 | I127: 0.001728492502 | J127: 0.03 | K127: 0.01 | L127: 0.01937416256 | M127: 0.396 | N127: 0.6404208466 | O127: 1.055795009 | P127: 0 | R127: =Week!D127 -> 2005-04-01 | S127: =IF(SUM(Calculation!AK111:AK125)=$S$9,AVERAGE(AG111:AG125),"") -> 0.4232125389 | U127: =IF(SUM(Calculation!AL111:AL125)=$U$9,AVERAGE(AH111:AH125),"") -> 0.7745302222 | V127: =IF(SUM(Calculation!AL115:AL125)=$V$9,AVERAGE(AH115:AH125),"") -> 0.7771454545 | Z127: ='Import_ESALQ '!B127 -> 07/25/2014 | AA127: ='Import_ESALQ '!C127 -> 0.6147 | AB127: 2014.7.25 | AC127: =IF(INDEX(Week!$T$10:$T$10234,MATCH(AB127,Week!$U$10:$U$10234,0))=6,MATCH(AB127,Week!$U$10:$U$10234,0),MATCH(AB127,Week!$U$10:$U$10234,0)+6-INDEX(Week!$T$10:$T$10234,MATCH(AB127,Week!$U$10:$U$10234,0))) -> 4222 | AD127: =INDEX(Week!$R$10:$R$10234,Calculation!AC127) -> 2014-07-25 | AF127: =Week!D127 -> 2005-04-01 | AG127: 0.4243581858 | AH127: =AVERAGEIFS(CleanFOREX!F:F,CleanFOREX!E:E,">"&AF126,CleanFOREX!E:E,"<="&AF127) -> 0.772225 | AJ127: =Week!D127 -> 2005-04-01 | AK127: 1 | AL127: 1
C128: 2005-04-08 | D128: 0.4221130821 | E128: 0.4831730656 | F128: 0.06105998349 | G128: 0.1115208794 | H128: 0.002616653358 | I128: 0.001728492502 | J128: 0.03 | K128: 0.01 | L128: 0.01932692262 | M128: 0.396 | N128: 0.6390390909 | O128: 1.054366013 | P128: 0 | R128: =Week!D128 -> 2005-04-08 | S128: =IF(SUM(Calculation!AK112:AK126)=$S$9,AVERAGE(AG112:AG126),"") -> 0.4221130821 | U128: =IF(SUM(Calculation!AL112:AL126)=$U$9,AVERAGE(AH112:AH126),"") -> 0.7755645556 | V128: =IF(SUM(Calculation!AL116:AL126)=$V$9,AVERAGE(AH116:AH126),"") -> 0.7785022727 | Z128: ='Import_ESALQ '!B128 -> 07/18/2014 | AA128: ='Import_ESALQ '!C128 -> 0.6135 | AB128: 2014.7.18 | AC128: =IF(INDEX(Week!$T$10:$T$10234,MATCH(AB128,Week!$U$10:$U$10234,0))=6,MATCH(AB128,Week!$U$10:$U$10234,0),MATCH(AB128,Week!$U$10:$U$10234,0)+6-INDEX(Week!$T$10:$T$10234,MATCH(AB128,Week!$U$10:$U$10234,0))) -> 4215 | AD128: =INDEX(Week!$R$10:$R$10234,Calculation!AC128) -> 2014-07-18 | AF128: =Week!D128 -> 2005-04-08 | AG128: 0.4427327703 | AH128: =AVERAGEIFS(CleanFOREX!F:F,CleanFOREX!E:E,">"&AF127,CleanFOREX!E:E,"<="&AF128) -> 0.76728 | AJ128: =Week!D128 -> 2005-04-08 | AK128: 1 | AL128: 1
C129: 2005-04-15 | D129: 0.4216154697 | E129: 0.4826078991 | F129: 0.06099242948 | G129: 0.1113748901 | H129: 0.002613524273 | I129: 0.001728492502 | J129: 0.03 | K129: 0.01 | L129: 0.01930431597 | M129: 0.396 | N129: 0.638324806 | O129: 1.053629122 | P129: 0 | R129: =Week!D129 -> 2005-04-15 | S129: =IF(SUM(Calculation!AK113:AK127)=$S$9,AVERAGE(AG113:AG127),"") -> 0.4216154697 | U129: =IF(SUM(Calculation!AL113:AL127)=$U$9,AVERAGE(AH113:AH127),"") -> 0.7764235556 | V129: =IF(SUM(Calculation!AL117:AL127)=$V$9,AVERAGE(AH117:AH127),"") -> 0.7795227273 | Z129: ='Import_ESALQ '!B129 -> 2014-11-07 | AA129: ='Import_ESALQ '!C129 -> 0.6143 | AB129: 2014.7.11 | AC129: =IF(INDEX(Week!$T$10:$T$10234,MATCH(AB129,Week!$U$10:$U$10234,0))=6,MATCH(AB129,Week!$U$10:$U$10234,0),MATCH(AB129,Week!$U$10:$U$10234,0)+6-INDEX(Week!$T$10:$T$10234,MATCH(AB129,Week!$U$10:$U$10234,0))) -> 4208 | AD129: =INDEX(Week!$R$10:$R$10234,Calculation!AC129) -> 2014-07-11 | AF129: =Week!D129 -> 2005-04-15 | AG129: 0.435918663 | AH129: =AVERAGEIFS(CleanFOREX!F:F,CleanFOREX!E:E,">"&AF128,CleanFOREX!E:E,"<="&AF129) -> 0.77308 | AJ129: =Week!D129 -> 2005-04-15 | AK129: 1 | AL129: 1
C130: 2005-04-22 | D130: 0.4226374599 | E130: 0.4836196265 | F130: 0.06098216661 | G130: 0.1112531892 | H130: 0.002617440389 | I130: 0.001728492502 | J130: 0.03 | K130: 0.01 | L130: 0.01934478506 | M130: 0.396 | N130: 0.6392187486 | O130: 1.054563534 | P130: 0 | R130: =Week!D130 -> 2005-04-22 | S130: =IF(SUM(Calculation!AK114:AK128)=$S$9,AVERAGE(AG114:AG128),"") -> 0.4226374599 | U130: =IF(SUM(Calculation!AL114:AL128)=$U$9,AVERAGE(AH114:AH128),"") -> 0.7765542222 | V130: =IF(SUM(Calculation!AL118:AL128)=$V$9,AVERAGE(AH118:AH128),"") -> 0.7803754545 | Z130: ='Import_ESALQ '!B130 -> 2014-04-07 | AA130: ='Import_ESALQ '!C130 -> 0.6109 | AB130: 2014.7.4 | AC130: =IF(INDEX(Week!$T$10:$T$10234,MATCH(AB130,Week!$U$10:$U$10234,0))=6,MATCH(AB130,Week!$U$10:$U$10234,0),MATCH(AB130,Week!$U$10:$U$10234,0)+6-INDEX(Week!$T$10:$T$10234,MATCH(AB130,Week!$U$10:$U$10234,0))) -> 4201 | AD130: =INDEX(Week!$R$10:$R$10234,Calculation!AC130) -> 2014-07-04 | AF130: =Week!D130 -> 2005-04-22 | AG130: 0.4164183359 | AH130: =AVERAGEIFS(CleanFOREX!F:F,CleanFOREX!E:E,">"&AF129,CleanFOREX!E:E,"<="&AF130) -> 0.77182 | AJ130: =Week!D130 -> 2005-04-22 | AK130: 1 | AL130: 1
C131: 2005-04-29 | D131: 0.423372156 | E131: 0.4843792178 | F131: 0.06100706179 | G131: 0.1112502084 | H131: 0.002620769475 | I131: 0.001728492502 | J131: 0.03 | K131: 0.01 | L131: 0.01937516871 | M131: 0.396 | N131: 0.6399786882 | O131: 1.055353857 | P131: 0 | R131: =Week!D131 -> 2005-04-29 | S131: =IF(SUM(Calculation!AK115:AK129)=$S$9,AVERAGE(AG115:AG129),"") -> 0.423372156 | U131: =IF(SUM(Calculation!AL115:AL129)=$U$9,AVERAGE(AH115:AH129),"") -> 0.7762373333 | V131: =IF(SUM(Calculation!AL119:AL129)=$V$9,AVERAGE(AH119:AH129),"") -> 0.7803963636 | Z131: ='Import_ESALQ '!B131 -> 06/27/2014 | AA131: ='Import_ESALQ '!C131 -> 0.6068 | AB131: 2014.6.27 | AC131: =IF(INDEX(Week!$T$10:$T$10234,MATCH(AB131,Week!$U$10:$U$10234,0))=6,MATCH(AB131,Week!$U$10:$U$10234,0),MATCH(AB131,Week!$U$10:$U$10234,0)+6-INDEX(Week!$T$10:$T$10234,MATCH(AB131,Week!$U$10:$U$10234,0))) -> 4194 | AD131: =INDEX(Week!$R$10:$R$10234,Calculation!AC131) -> 2014-06-27 | AF131: =Week!D131 -> 2005-04-29 | AG131: 0.3961858285 | AH131: =AVERAGEIFS(CleanFOREX!F:F,CleanFOREX!E:E,">"&AF130,CleanFOREX!E:E,"<="&AF131) -> 0.778675 | AJ131: =Week!D131 -> 2005-04-29 | AK131: 1 | AL131: 1
C132: 2005-05-06 | D132: 0.4225451968 | E132: 0.4835293703 | F132: 0.06098417353 | G132: 0.1112719849 | H132: 0.002617125963 | I132: 0.001728492502 | J132: 0.03 | K132: 0.01 | L132: 0.01934117481 | M132: 0.396 | N132: 0.6391469736 | O132: 1.054488148 | P132: 0 | R132: =Week!D132 -> 2005-05-06 | S132: =IF(SUM(Calculation!AK116:AK130)=$S$9,AVERAGE(AG116:AG130),"") -> 0.4225451968 | U132: =IF(SUM(Calculation!AL116:AL130)=$U$9,AVERAGE(AH116:AH130),"") -> 0.7765286667 | V132: =IF(SUM(Calculation!AL120:AL130)=$V$9,AVERAGE(AH120:AH130),"") -> 0.7802436364 | Z132: ='Import_ESALQ '!B132 -> 06/20/2014 | AA132: ='Import_ESALQ '!C132 -> 0.5956 | AB132: 2014.6.20 | AC132: =IF(INDEX(Week!$T$10:$T$10234,MATCH(AB132,Week!$U$10:$U$10234,0))=6,MATCH(AB132,Week!$U$10:$U$10234,0),MATCH(AB132,Week!$U$10:$U$10234,0)+6-INDEX(Week!$T$10:$T$10234,MATCH(AB132,Week!$U$10:$U$10234,0))) -> 4187 | AD132: =INDEX(Week!$R$10:$R$10234,Calculation!AC132) -> 2014-06-20 | AF132: =Week!D132 -> 2005-05-06 | AG132: 0.3639959927 | AH132: =AVERAGEIFS(CleanFOREX!F:F,CleanFOREX!E:E,">"&AF131,CleanFOREX!E:E,"<="&AF132) -> 0.77858 | AJ132: =Week!D132 -> 2005-05-06 | AK132: 1 | AL132: 1
C133: 2005-05-13 | D133: 0.4202409844 | E133: 0.4811327585 | F133: 0.0608917741 | G133: 0.1111891372 | H133: 0.002606216341 | I133: 0.001728492502 | J133: 0.03 | K133: 0.01 | L133: 0.01924531034 | M133: 0.396 | N133: 0.6366566046 | O133: 1.051901915 | P133: 0 | R133: =Week!D133 -> 2005-05-13 | S133: =IF(SUM(Calculation!AK117:AK131)=$S$9,AVERAGE(AG117:AG131),"") -> 0.4202409844 | U133: =IF(SUM(Calculation!AL117:AL131)=$U$9,AVERAGE(AH117:AH131),"") -> 0.777707 | V133: =IF(SUM(Calculation!AL121:AL131)=$V$9,AVERAGE(AH121:AH131),"") -> 0.780825 | Z133: ='Import_ESALQ '!B133 -> 06/13/2014 | AA133: ='Import_ESALQ '!C133 -> 0.5937 | AB133: 2014.6.13 | AC133: =IF(INDEX(Week!$T$10:$T$10234,MATCH(AB133,Week!$U$10:$U$10234,0))=6,MATCH(AB133,Week!$U$10:$U$10234,0),MATCH(AB133,Week!$U$10:$U$10234,0)+6-INDEX(Week!$T$10:$T$10234,MATCH(AB133,Week!$U$10:$U$10234,0))) -> 4180 | AD133: =INDEX(Week!$R$10:$R$10234,Calculation!AC133) -> 2014-06-13 | AF133: =Week!D133 -> 2005-05-13 | AG133: 0.3450687806 | AH133: =AVERAGEIFS(CleanFOREX!F:F,CleanFOREX!E:E,">"&AF132,CleanFOREX!E:E,"<="&AF133) -> 0.77202 | AJ133: =Week!D133 -> 2005-05-13 | AK133: 1 | AL133: 1
C134: 2005-05-20 | D134: 0.4157085098 | E134: 0.4764925301 | F134: 0.06078402027 | G134: 0.1112741241 | H134: 0.002586173278 | I134: 0.001728492502 | J134: 0.03 | K134: 0.01 | L134: 0.0190597012 | M134: 0.396 | N134: 0.6320813199 | O134: 1.047141021 | P134: 0 | R134: =Week!D134 -> 2005-05-20 | S134: =IF(SUM(Calculation!AK118:AK132)=$S$9,AVERAGE(AG118:AG132),"") -> 0.4157085098 | U134: =IF(SUM(Calculation!AL118:AL132)=$U$9,AVERAGE(AH118:AH132),"") -> 0.7790856667 | V134: =IF(SUM(Calculation!AL122:AL132)=$V$9,AVERAGE(AH122:AH132),"") -> 0.7802286364 | Z134: ='Import_ESALQ '!B134 -> 2014-06-06 | AA134: ='Import_ESALQ '!C134 -> 0.5832 | AB134: 2014.6.6 | AC134: =IF(INDEX(Week!$T$10:$T$10234,MATCH(AB134,Week!$U$10:$U$10234,0))=6,MATCH(AB134,Week!$U$10:$U$10234,0),MATCH(AB134,Week!$U$10:$U$10234,0)+6-INDEX(Week!$T$10:$T$10234,MATCH(AB134,Week!$U$10:$U$10234,0))) -> 4173 | AD134: =INDEX(Week!$R$10:$R$10234,Calculation!AC134) -> 2014-06-06 | AF134: =Week!D134 -> 2005-05-20 | AG134: 0.3548983364 | AH134: =AVERAGEIFS(CleanFOREX!F:F,CleanFOREX!E:E,">"&AF133,CleanFOREX!E:E,"<="&AF134) -> 0.7574 | AJ134: =Week!D134 -> 2005-05-20 | AK134: 1 | AL134: 1
C135: 2005-05-27 | D135: 0.4104454279 | E135: 0.4712337656 | F135: 0.06078833767 | G135: 0.1114926272 | H135: 0.002563996128 | I135: 0.001728492502 | J135: 0.03 | K135: 0.01 | L135: 0.01884935062 | M135: 0.396 | N135: 0.6270188813 | O135: 1.041868232 | P135: 0 | R135: =Week!D135 -> 2005-05-27 | S135: =IF(SUM(Calculation!AK119:AK133)=$S$9,AVERAGE(AG119:AG133),"") -> 0.4104454279 | U135: =IF(SUM(Calculation!AL119:AL133)=$U$9,AVERAGE(AH119:AH133),"") -> 0.7790303333 | V135: =IF(SUM(Calculation!AL123:AL133)=$V$9,AVERAGE(AH123:AH133),"") -> 0.7786995455 | Z135: ='Import_ESALQ '!B135 -> 05/30/2014 | AA135: ='Import_ESALQ '!C135 -> 0.5995 | AB135: 2014.5.30 | AC135: =IF(INDEX(Week!$T$10:$T$10234,MATCH(AB135,Week!$U$10:$U$10234,0))=6,MATCH(AB135,Week!$U$10:$U$10234,0),MATCH(AB135,Week!$U$10:$U$10234,0)+6-INDEX(Week!$T$10:$T$10234,MATCH(AB135,Week!$U$10:$U$10234,0))) -> 4166 | AD135: =INDEX(Week!$R$10:$R$10234,Calculation!AC135) -> 2014-05-30 | AF135: =Week!D135 -> 2005-05-27 | AG135: 0.3630189275 | AH135: =AVERAGEIFS(CleanFOREX!F:F,CleanFOREX!E:E,">"&AF134,CleanFOREX!E:E,"<="&AF135) -> 0.75974 | AJ135: =Week!D135 -> 2005-05-27 | AK135: 1 | AL135: 1
C136: 2005-06-03 | D136: 0.4053011799 | E136: 0.4661733862 | F136: 0.06087220625 | G136: 0.111852511 | H136: 0.002543313948 | I136: 0.001728492502 | J136: 0.03 | K136: 0.01 | L136: 0.01864693545 | M136: 0.396 | N136: 0.6222977036 | O136: 1.036944639 | P136: 0 | R136: =Week!D136 -> 2005-06-03 | S136: =IF(SUM(Calculation!AK120:AK134)=$S$9,AVERAGE(AG120:AG134),"") -> 0.4053011799 | U136: =IF(SUM(Calculation!AL120:AL134)=$U$9,AVERAGE(AH120:AH134),"") -> 0.777957 | V136: =IF(SUM(Calculation!AL124:AL134)=$V$9,AVERAGE(AH124:AH134),"") -> 0.7761940909 | Z136: ='Import_ESALQ '!B136 -> 05/23/2014 | AA136: ='Import_ESALQ '!C136 -> 0.6026 | AB136: 2014.5.23 | AC136: =IF(INDEX(Week!$T$10:$T$10234,MATCH(AB136,Week!$U$10:$U$10234,0))=6,MATCH(AB136,Week!$U$10:$U$10234,0),MATCH(AB136,Week!$U$10:$U$10234,0)+6-INDEX(Week!$T$10:$T$10234,MATCH(AB136,Week!$U$10:$U$10234,0))) -> 4159 | AD136: =INDEX(Week!$R$10:$R$10234,Calculation!AC136) -> 2014-05-23 | AF136: =Week!D136 -> 2005-06-03 | AG136: 0.3598064107 | AH136: =AVERAGEIFS(CleanFOREX!F:F,CleanFOREX!E:E,">"&AF135,CleanFOREX!E:E,"<="&AF136) -> 0.75624 | AJ136: =Week!D136 -> 2005-06-03 | AK136: 1 | AL136: 1
C137: 2005-06-10 | D137: 0.4007391262 | E137: 0.4616768167 | F137: 0.06093769047 | G137: 0.1122912527 | H137: 0.002525459506 | I137: 0.001728492502 | J137: 0.03 | K137: 0.01 | L137: 0.01846707267 | M137: 0.396 | N137: 0.6182220214 | O137: 1.032689094 | P137: 0 | R137: =Week!D137 -> 2005-06-10 | S137: =IF(SUM(Calculation!AK121:AK135)=$S$9,AVERAGE(AG121:AG135),"") -> 0.4007391262 | U137: =IF(SUM(Calculation!AL121:AL135)=$U$9,AVERAGE(AH121:AH135),"") -> 0.777121 | V137: =IF(SUM(Calculation!AL125:AL135)=$V$9,AVERAGE(AH125:AH135),"") -> 0.7731613636 | Z137: ='Import_ESALQ '!B137 -> 05/16/2014 | AA137: ='Import_ESALQ '!C137 -> 0.6003 | AB137: 2014.5.16 | AC137: =IF(INDEX(Week!$T$10:$T$10234,MATCH(AB137,Week!$U$10:$U$10234,0))=6,MATCH(AB137,Week!$U$10:$U$10234,0),MATCH(AB137,Week!$U$10:$U$10234,0)+6-INDEX(Week!$T$10:$T$10234,MATCH(AB137,Week!$U$10:$U$10234,0))) -> 4152 | AD137: =INDEX(Week!$R$10:$R$10234,Calculation!AC137) -> 2014-05-16 | AF137: =Week!D137 -> 2005-06-10 | AG137: 0.347703328 | AH137: =AVERAGEIFS(CleanFOREX!F:F,CleanFOREX!E:E,">"&AF136,CleanFOREX!E:E,"<="&AF137) -> 0.76502 | AJ137: =Week!D137 -> 2005-06-10 | AK137: 1 | AL137: 1
C138: =R138 -> 2005-06-17 | D138: 0.3966208293 | E138: 0.4577099742 | F138: 0.0610891449 | G138: 0.112759805 | H138: 0.002510067028 | I138: 0.001728492502 | J138: 0.03 | K138: 0.01 | L138: 0.01830839897 | M138: 0.396 | N138: 0.6147083387 | O138: 1.029016738 | P138: 0 | R138: =Week!D138 -> 2005-06-17 | S138: =IF(SUM(Calculation!AK122:AK136)=$S$9,AVERAGE(AG122:AG136),"") -> 0.3966208293 | U138: =IF(SUM(Calculation!AL122:AL136)=$U$9,AVERAGE(AH122:AH136),"") -> 0.7751943333 | V138: =IF(SUM(Calculation!AL126:AL136)=$V$9,AVERAGE(AH126:AH136),"") -> 0.7699486364 | Z138: ='Import_ESALQ '!B138 -> 2014-09-05 | AA138: ='Import_ESALQ '!C138 -> 0.6303 | AB138: 2014.5.9 | AC138: =IF(INDEX(Week!$T$10:$T$10234,MATCH(AB138,Week!$U$10:$U$10234,0))=6,MATCH(AB138,Week!$U$10:$U$10234,0),MATCH(AB138,Week!$U$10:$U$10234,0)+6-INDEX(Week!$T$10:$T$10234,MATCH(AB138,Week!$U$10:$U$10234,0))) -> 4145 | AD138: =INDEX(Week!$R$10:$R$10234,Calculation!AC138) -> 2014-05-09 | AF138: =Week!D138 -> 2005-06-17 | AG138: 0.3638971283 | AH138: =AVERAGEIFS(CleanFOREX!F:F,CleanFOREX!E:E,">"&AF137,CleanFOREX!E:E,"<="&AF138) -> 0.766975 | AJ138: =Week!D138 -> 2005-06-17 | AK138: 1 | AL138: 1
C139: 2005-06-24 | D139: 0.3929261462 | E139: 0.4541406903 | F139: 0.06121454404 | G139: 0.1129913393 | H139: 0.00249538093 | I139: 0.001728492502 | J139: 0.03 | K139: 0.01 | L139: 0.01816562761 | M139: 0.396 | N139: 0.611355903 | O139: 1.025521531 | P139: 0 | R139: =Week!D139 -> 2005-06-24 | S139: =IF(SUM(Calculation!AK123:AK137)=$S$9,AVERAGE(AG123:AG137),"") -> 0.3929261462 | U139: =IF(SUM(Calculation!AL123:AL137)=$U$9,AVERAGE(AH123:AH137),"") -> 0.7736063333 | V139: =IF(SUM(Calculation!AL127:AL137)=$V$9,AVERAGE(AH127:AH137),"") -> 0.7683709091 | Z139: ='Import_ESALQ '!B139 -> 2014-02-05 | AA139: ='Import_ESALQ '!C139 -> 0.6809 | AB139: =IF(ISNONTEXT(Z139),YEAR(Z139)&"."&DAY(Z139)&"."&MONTH(Z139),RIGHT(Z139,4)+0&"."&TEXT(LEFT(Z139,2),"#")+0&"."&MID(Z139,4,2)+0) -> 2014.5.2 | AC139: =IF(INDEX(Week!$T$10:$T$10234,MATCH(AB139,Week!$U$10:$U$10234,0))=6,MATCH(AB139,Week!$U$10:$U$10234,0),MATCH(AB139,Week!$U$10:$U$10234,0)+6-INDEX(Week!$T$10:$T$10234,MATCH(AB139,Week!$U$10:$U$10234,0))) -> 4138 | AD139: =INDEX(Week!$R$10:$R$10234,Calculation!AC139) -> 2014-05-02 | AF139: =Week!D139 -> 2005-06-24 | AG139: 0.3765560968 | AH139: =AVERAGEIFS(CleanFOREX!F:F,CleanFOREX!E:E,">"&AF138,CleanFOREX!E:E,"<="&AF139) -> 0.77598 | AJ139: =Week!D139 -> 2005-06-24 | AK139: =IF(ISNUMBER(AG139),1,0) -> 1 | AL139: =IF(ISNUMBER(AH139),1,0) -> 1
C140: 2005-07-01 | D140: 0.3901272512 | E140: 0.4514368179 | F140: 0.06130956675 | G140: 0.1130615674 | H140: 0.002483792895 | I140: 0.001728492502 | J140: 0.03 | K140: 0.01 | L140: 0.01805747272 | M140: 0.396 | N140: 0.6087106707 | O140: 1.022768143 | P140: 0 | R140: =Week!D140 -> 2005-07-01 | S140: =IF(SUM(Calculation!AK124:AK138)=$S$9,AVERAGE(AG124:AG138),"") -> 0.3901272512 | U140: =IF(SUM(Calculation!AL124:AL138)=$U$9,AVERAGE(AH124:AH138),"") -> 0.7724073333 | V140: =IF(SUM(Calculation!AL128:AL138)=$V$9,AVERAGE(AH128:AH138),"") -> 0.7678936364 | Z140: ='Import_ESALQ '!B140 -> 04/25/2014 | AA140: ='Import_ESALQ '!C140 -> 0.6895 | AB140: 2014.4.25 | AC140: =IF(INDEX(Week!$T$10:$T$10234,MATCH(AB140,Week!$U$10:$U$10234,0))=6,MATCH(AB140,Week!$U$10:$U$10234,0),MATCH(AB140,Week!$U$10:$U$10234,0)+6-INDEX(Week!$T$10:$T$10234,MATCH(AB140,Week!$U$10:$U$10234,0))) -> 4131 | AD140: =INDEX(Week!$R$10:$R$10234,Calculation!AC140) -> 2014-04-25 | AF140: =Week!D140 -> 2005-07-01 | AG140: =INDEX($AA$10:$AA$1423,MATCH(AF140,$AD$10:$AD$1423,0))/AH140 -> 0.4176913819 | AH140: =AVERAGEIFS(CleanFOREX!F:F,CleanFOREX!E:E,">"&AF139,CleanFOREX!E:E,"<="&AF140) -> 0.76444 | AJ140: =Week!D140 -> 2005-07-01 | AK140: 1 | AL140: 1
C141: 2005-07-08 | D141: 0.3878952199 | E141: 0.4492955137 | F141: 0.06140029375 | G141: 0.1129452369 | H141: 0.002473859303 | I141: 0.001728492502 | J141: 0.03 | K141: 0.01 | L141: 0.01797182055 | M141: 0.396 | N141: 0.6064431024 | O141: 1.020414923 | P141: 0 | R141: =Week!D141 -> 2005-07-08 | S141: =IF(SUM(Calculation!AK125:AK139)=$S$9,AVERAGE(AG125:AG139),"") -> 0.3878952199 | U141: =IF(SUM(Calculation!AL125:AL139)=$U$9,AVERAGE(AH125:AH139),"") -> 0.771266 | V141: =IF(SUM(Calculation!AL129:AL139)=$V$9,AVERAGE(AH129:AH139),"") -> 0.7686845455 | Z141: ='Import_ESALQ '!B141 -> 04/17/2014 | AA141: ='Import_ESALQ '!C141 -> 0.6857 | AB141: 2014.4.17 | AC141: =IF(INDEX(Week!$T$10:$T$10234,MATCH(AB141,Week!$U$10:$U$10234,0))=6,MATCH(AB141,Week!$U$10:$U$10234,0),MATCH(AB141,Week!$U$10:$U$10234,0)+6-INDEX(Week!$T$10:$T$10234,MATCH(AB141,Week!$U$10:$U$10234,0))) -> 4124 | AD141: =INDEX(Week!$R$10:$R$10234,Calculation!AC141) -> 2014-04-18 | AF141: =Week!D141 -> 2005-07-08 | AG141: 0.4386035637 | AH141: =AVERAGEIFS(CleanFOREX!F:F,CleanFOREX!E:E,">"&AF140,CleanFOREX!E:E,"<="&AF141) -> 0.74418 | AJ141: =Week!D141 -> 2005-07-08 | AK141: 1 | AL141: 1
C142: 2005-07-15 | D142: 0.3882519869 | E142: 0.4497966599 | F142: 0.06154467303 | G142: 0.1130607643 | H142: 0.002476572666 | I142: 0.001728492502 | J142: 0.03 | K142: 0.01 | L142: 0.0179918664 | M142: 0.396 | N142: 0.6070624894 | O142: 1.021054356 | P142: 0 | R142: =Week!D142 -> 2005-07-15 | S142: =IF(SUM(Calculation!AK126:AK140)=$S$9,AVERAGE(AG126:AG140),"") -> 0.3882519869 | U142: =IF(SUM(Calculation!AL126:AL140)=$U$9,AVERAGE(AH126:AH140),"") -> 0.7694566667 | V142: =IF(SUM(Calculation!AL130:AL140)=$V$9,AVERAGE(AH130:AH140),"") -> 0.7678990909 | Z142: ='Import_ESALQ '!B142 -> 2014-11-04 | AA142: ='Import_ESALQ '!C142 -> 0.6928 | AB142: 2014.4.11 | AC142: =IF(INDEX(Week!$T$10:$T$10234,MATCH(AB142,Week!$U$10:$U$10234,0))=6,MATCH(AB142,Week!$U$10:$U$10234,0),MATCH(AB142,Week!$U$10:$U$10234,0)+6-INDEX(Week!$T$10:$T$10234,MATCH(AB142,Week!$U$10:$U$10234,0))) -> 4117 | AD142: =INDEX(Week!$R$10:$R$10234,Calculation!AC142) -> 2014-04-11 | AF142: =Week!D142 -> 2005-07-15 | AG142: 0.4470829669 | AH142: =AVERAGEIFS(CleanFOREX!F:F,CleanFOREX!E:E,">"&AF141,CleanFOREX!E:E,"<="&AF142) -> 0.75042 | AJ142: =Week!D142 -> 2005-07-15 | AK142: 1 | AL142: 1
C143: 2005-07-22 | D143: 0.3897902487 | E143: 0.4515392653 | F143: 0.06174901667 | G143: 0.1134319374 | H143: 0.002485873292 | I143: 0.001728492502 | J143: 0.03 | K143: 0.01 | L143: 0.01806157061 | M143: 0.396 | N143: 0.6091855685 | O143: 1.023247139 | P143: 0 | R143: =Week!D143 -> 2005-07-22 | S143: =IF(SUM(Calculation!AK127:AK141)=$S$9,AVERAGE(AG127:AG141),"") -> 0.3897902487 | U143: =IF(SUM(Calculation!AL127:AL141)=$U$9,AVERAGE(AH127:AH141),"") -> 0.7669103333 | V143: =IF(SUM(Calculation!AL131:AL141)=$V$9,AVERAGE(AH131:AH141),"") -> 0.7653863636 | Z143: ='Import_ESALQ '!B143 -> 2014-04-04 | AA143: ='Import_ESALQ '!C143 -> 0.6991 | AB143: 2014.4.4 | AC143: =IF(INDEX(Week!$T$10:$T$10234,MATCH(AB143,Week!$U$10:$U$10234,0))=6,MATCH(AB143,Week!$U$10:$U$10234,0),MATCH(AB143,Week!$U$10:$U$10234,0)+6-INDEX(Week!$T$10:$T$10234,MATCH(AB143,Week!$U$10:$U$10234,0))) -> 4110 | AD143: =INDEX(Week!$R$10:$R$10234,Calculation!AC143) -> 2014-04-04 | AF143: =Week!D143 -> 2005-07-22 | AG143: 0.4398178786 | AH143: =AVERAGEIFS(CleanFOREX!F:F,CleanFOREX!E:E,">"&AF142,CleanFOREX!E:E,"<="&AF143) -> 0.75554 | AJ143: =Week!D143 -> 2005-07-22 | AK143: 1 | AL143: 1
C144: 2005-07-29 | D144: 0.3913052341 | E144: 0.4531715173 | F144: 0.06186628325 | G144: 0.1138138968 | H144: 0.002494735822 | I144: 0.001728492502 | J144: 0.03 | K144: 0.01 | L144: 0.01812686069 | M144: 0.396 | N144: 0.6112086425 | O144: 1.025335503 | P144: 0 | R144: =Week!D144 -> 2005-07-29 | S144: =IF(SUM(Calculation!AK128:AK142)=$S$9,AVERAGE(AG128:AG142),"") -> 0.3913052341 | U144: =IF(SUM(Calculation!AL128:AL142)=$U$9,AVERAGE(AH128:AH142),"") -> 0.7654566667 | V144: =IF(SUM(Calculation!AL132:AL142)=$V$9,AVERAGE(AH132:AH142),"") -> 0.7628177273 | Z144: ='Import_ESALQ '!B144 -> 03/28/2014 | AA144: ='Import_ESALQ '!C144 -> 0.6886 | AB144: 2014.3.28 | AC144: =IF(INDEX(Week!$T$10:$T$10234,MATCH(AB144,Week!$U$10:$U$10234,0))=6,MATCH(AB144,Week!$U$10:$U$10234,0),MATCH(AB144,Week!$U$10:$U$10234,0)+6-INDEX(Week!$T$10:$T$10234,MATCH(AB144,Week!$U$10:$U$10234,0))) -> 4103 | AD144: =INDEX(Week!$R$10:$R$10234,Calculation!AC144) -> 2014-03-28 | AF144: =Week!D144 -> 2005-07-29 | AG144: 0.4159306035 | AH144: =AVERAGEIFS(CleanFOREX!F:F,CleanFOREX!E:E,">"&AF143,CleanFOREX!E:E,"<="&AF144) -> 0.75854 | AJ144: =Week!D144 -> 2005-07-29 | AK144: 1 | AL144: 1
C145: 2005-08-05 | D145: 0.391110908 | E145: 0.4530405132 | F145: 0.06192960524 | G145: 0.1141272675 | H145: 0.002495538235 | I145: 0.001728492502 | J145: 0.03 | K145: 0.01 | L145: 0.01812162053 | M145: 0.396 | N145: 0.6113918115 | O145: 1.025513432 | P145: 0 | R145: =Week!D145 -> 2005-08-05 | S145: =IF(SUM(Calculation!AK129:AK143)=$S$9,AVERAGE(AG129:AG143),"") -> 0.391110908 | U145: =IF(SUM(Calculation!AL129:AL143)=$U$9,AVERAGE(AH129:AH143),"") -> 0.764674 | V145: =IF(SUM(Calculation!AL133:AL143)=$V$9,AVERAGE(AH133:AH143),"") -> 0.7607231818 | Z145: ='Import_ESALQ '!B145 -> 03/21/2014 | AA145: ='Import_ESALQ '!C145 -> 0.683 | AB145: 2014.3.21 | AC145: =IF(INDEX(Week!$T$10:$T$10234,MATCH(AB145,Week!$U$10:$U$10234,0))=6,MATCH(AB145,Week!$U$10:$U$10234,0),MATCH(AB145,Week!$U$10:$U$10234,0)+6-INDEX(Week!$T$10:$T$10234,MATCH(AB145,Week!$U$10:$U$10234,0))) -> 4096 | AD145: =INDEX(Week!$R$10:$R$10234,Calculation!AC145) -> 2014-03-21 | AF145: =Week!D145 -> 2005-08-05 | AG145: 0.4267744248 | AH145: =AVERAGEIFS(CleanFOREX!F:F,CleanFOREX!E:E,">"&AF144,CleanFOREX!E:E,"<="&AF145) -> 0.76715 | AJ145: =Week!D145 -> 2005-08-05 | AK145: 1 | AL145: 1
C146: 2005-08-12 | D146: 0.3897783707 | E146: 0.4517865802 | F146: 0.06200820949 | G146: 0.1143114126 | H146: 0.002490831168 | I146: 0.001728492502 | J146: 0.03 | K146: 0.01 | L146: 0.01807146321 | M146: 0.396 | N146: 0.6103173165 | O146: 1.02438878 | P146: 0 | R146: =Week!D146 -> 2005-08-12 | S146: =IF(SUM(Calculation!AK130:AK144)=$S$9,AVERAGE(AG130:AG144),"") -> 0.3897783707 | U146: =IF(SUM(Calculation!AL130:AL144)=$U$9,AVERAGE(AH130:AH144),"") -> 0.7637046667 | V146: =IF(SUM(Calculation!AL134:AL144)=$V$9,AVERAGE(AH134:AH144),"") -> 0.7594977273 | Z146: ='Import_ESALQ '!B146 -> 03/14/2014 | AA146: ='Import_ESALQ '!C146 -> 0.6736 | AB146: 2014.3.14 | AC146: =IF(INDEX(Week!$T$10:$T$10234,MATCH(AB146,Week!$U$10:$U$10234,0))=6,MATCH(AB146,Week!$U$10:$U$10234,0),MATCH(AB146,Week!$U$10:$U$10234,0)+6-INDEX(Week!$T$10:$T$10234,MATCH(AB146,Week!$U$10:$U$10234,0))) -> 4089 | AD146: =INDEX(Week!$R$10:$R$10234,Calculation!AC146) -> 2014-03-14 | AF146: =Week!D146 -> 2005-08-12 | AG146: 0.4270105351 | AH146: =AVERAGEIFS(CleanFOREX!F:F,CleanFOREX!E:E,">"&AF145,CleanFOREX!E:E,"<="&AF146) -> 0.76696 | AJ146: =Week!D146 -> 2005-08-12 | AK146: 1 | AL146: 1
C147: 2005-08-19 | D147: 0.3904687766 | E147: 0.4525022748 | F147: 0.06203349819 | G147: 0.1141781622 | H147: 0.002493393923 | I147: 0.001728492502 | J147: 0.03 | K147: 0.01 | L147: 0.01810009099 | M147: 0.396 | N147: 0.6109023234 | O147: 1.025002414 | P147: 0 | R147: =Week!D147 -> 2005-08-19 | S147: =IF(SUM(Calculation!AK131:AK145)=$S$9,AVERAGE(AG131:AG145),"") -> 0.3904687766 | U147: =IF(SUM(Calculation!AL131:AL145)=$U$9,AVERAGE(AH131:AH145),"") -> 0.7633933333 | V147: =IF(SUM(Calculation!AL135:AL145)=$V$9,AVERAGE(AH135:AH145),"") -> 0.7603840909 | Z147: ='Import_ESALQ '!B147 -> 2014-07-03 | AA147: ='Import_ESALQ '!C147 -> 0.6653 | AB147: 2014.3.7 | AC147: =IF(INDEX(Week!$T$10:$T$10234,MATCH(AB147,Week!$U$10:$U$10234,0))=6,MATCH(AB147,Week!$U$10:$U$10234,0),MATCH(AB147,Week!$U$10:$U$10234,0)+6-INDEX(Week!$T$10:$T$10234,MATCH(AB147,Week!$U$10:$U$10234,0))) -> 4082 | AD147: =INDEX(Week!$R$10:$R$10234,Calculation!AC147) -> 2014-03-07 | AF147: =Week!D147 -> 2005-08-19 | AG147: 0.4194402222 | AH147: =AVERAGEIFS(CleanFOREX!F:F,CleanFOREX!E:E,">"&AF146,CleanFOREX!E:E,"<="&AF147) -> 0.76316 | AJ147: =Week!D147 -> 2005-08-19 | AK147: 1 | AL147: 1
C148: 2005-08-26 | D148: 0.392523757 | E148: 0.4546207844 | F148: 0.0620970274 | G148: 0.1140796886 | H148: 0.002502282081 | I148: 0.001728492502 | J148: 0.03 | K148: 0.01 | L148: 0.01818483138 | M148: 0.396 | N148: 0.6129312477 | O148: 1.027116079 | P148: 0 | R148: =Week!D148 -> 2005-08-26 | S148: =IF(SUM(Calculation!AK132:AK146)=$S$9,AVERAGE(AG132:AG146),"") -> 0.392523757 | U148: =IF(SUM(Calculation!AL132:AL146)=$U$9,AVERAGE(AH132:AH146),"") -> 0.7626123333 | V148: =IF(SUM(Calculation!AL136:AL146)=$V$9,AVERAGE(AH136:AH146),"") -> 0.7610404545 | Z148: ='Import_ESALQ '!B148 -> 02/28/2014 | AA148: ='Import_ESALQ '!C148 -> 0.6601 | AB148: 2014.2.28 | AC148: =IF(INDEX(Week!$T$10:$T$10234,MATCH(AB148,Week!$U$10:$U$10234,0))=6,MATCH(AB148,Week!$U$10:$U$10234,0),MATCH(AB148,Week!$U$10:$U$10234,0)+6-INDEX(Week!$T$10:$T$10234,MATCH(AB148,Week!$U$10:$U$10234,0))) -> 4075 | AD148: =INDEX(Week!$R$10:$R$10234,Calculation!AC148) -> 2014-02-28 | AF148: =Week!D148 -> 2005-08-26 | AG148: 0.417868961 | AH148: =AVERAGEIFS(CleanFOREX!F:F,CleanFOREX!E:E,">"&AF147,CleanFOREX!E:E,"<="&AF148) -> 0.7555 | AJ148: =Week!D148 -> 2005-08-26 | AK148: 1 | AL148: 1
C149: 2005-09-02 | D149: 0.396220039 | E149: 0.4584008861 | F149: 0.06218084707 | G149: 0.113985466 | H149: 0.002518499949 | I149: 0.001728492502 | J149: 0.03 | K149: 0.01 | L149: 0.01833603544 | M149: 0.396 | N149: 0.6166333445 | O149: 1.03096938 | P149: 0 | R149: =Week!D149 -> 2005-09-02 | S149: =IF(SUM(Calculation!AK133:AK147)=$S$9,AVERAGE(AG133:AG147),"") -> 0.396220039 | U149: =IF(SUM(Calculation!AL133:AL147)=$U$9,AVERAGE(AH133:AH147),"") -> 0.7615843333 | V149: =IF(SUM(Calculation!AL137:AL147)=$V$9,AVERAGE(AH137:AH147),"") -> 0.7616695455 | Z149: ='Import_ESALQ '!B149 -> 02/21/2014 | AA149: ='Import_ESALQ '!C149 -> 0.6448 | AB149: 2014.2.21 | AC149: =IF(INDEX(Week!$T$10:$T$10234,MATCH(AB149,Week!$U$10:$U$10234,0))=6,MATCH(AB149,Week!$U$10:$U$10234,0),MATCH(AB149,Week!$U$10:$U$10234,0)+6-INDEX(Week!$T$10:$T$10234,MATCH(AB149,Week!$U$10:$U$10234,0))) -> 4068 | AD149: =INDEX(Week!$R$10:$R$10234,Calculation!AC149) -> 2014-02-21 | AF149: =Week!D149 -> 2005-09-02 | AG149: 0.4260595131 | AH149: =AVERAGEIFS(CleanFOREX!F:F,CleanFOREX!E:E,">"&AF148,CleanFOREX!E:E,"<="&AF149) -> 0.75412 | AJ149: =Week!D149 -> 2005-09-02 | AK149: 1 | AL149: 1
C150: 2005-09-09 | D150: 0.4010733844 | E150: 0.4633442819 | F150: 0.06227089752 | G150: 0.1141151305 | H150: 0.002540821414 | I150: 0.001728492502 | J150: 0.03 | K150: 0.01 | L150: 0.01853377128 | M150: 0.396 | N150: 0.6217287263 | O150: 1.036262498 | P150: 0 | R150: =Week!D150 -> 2005-09-09 | S150: =IF(SUM(Calculation!AK134:AK148)=$S$9,AVERAGE(AG134:AG148),"") -> 0.4010733844 | U150: =IF(SUM(Calculation!AL134:AL148)=$U$9,AVERAGE(AH134:AH148),"") -> 0.760483 | V150: =IF(SUM(Calculation!AL138:AL148)=$V$9,AVERAGE(AH138:AH148),"") -> 0.7608040909 | Z150: ='Import_ESALQ '!B150 -> 02/14/2014 | AA150: ='Import_ESALQ '!C150 -> 0.6315 | AB150: 2014.2.14 | AC150: =IF(INDEX(Week!$T$10:$T$10234,MATCH(AB150,Week!$U$10:$U$10234,0))=6,MATCH(AB150,Week!$U$10:$U$10234,0),MATCH(AB150,Week!$U$10:$U$10234,0)+6-INDEX(Week!$T$10:$T$10234,MATCH(AB150,Week!$U$10:$U$10234,0))) -> 4061 | AD150: =INDEX(Week!$R$10:$R$10234,Calculation!AC150) -> 2014-02-14 | AF150: =Week!D150 -> 2005-09-09 | AG150: 0.4355346321 | AH150: =AVERAGEIFS(CleanFOREX!F:F,CleanFOREX!E:E,">"&AF149,CleanFOREX!E:E,"<="&AF150) -> 0.76894 | AJ150: =Week!D150 -> 2005-09-09 | AK150: 1 | AL150: 1
C151: 2005-09-16 | D151: 0.4058174628 | E151: 0.4681062706 | F151: 0.06228880783 | G151: 0.1142906872 | H151: 0.002562546614 | I151: 0.001728492502 | J151: 0.03 | K151: 0.01 | L151: 0.01872425083 | M151: 0.396 | N151: 0.6266879969 | O151: 1.041412248 | P151: 0 | R151: =Week!D151 -> 2005-09-16 | S151: =IF(SUM(Calculation!AK135:AK149)=$S$9,AVERAGE(AG135:AG149),"") -> 0.4058174628 | U151: =IF(SUM(Calculation!AL135:AL149)=$U$9,AVERAGE(AH135:AH149),"") -> 0.7602643333 | V151: =IF(SUM(Calculation!AL139:AL149)=$V$9,AVERAGE(AH139:AH149),"") -> 0.7596354545 | Z151: ='Import_ESALQ '!B151 -> 2014-07-02 | AA151: ='Import_ESALQ '!C151 -> 0.6211 | AB151: 2014.2.7 | AC151: =IF(INDEX(Week!$T$10:$T$10234,MATCH(AB151,Week!$U$10:$U$10234,0))=6,MATCH(AB151,Week!$U$10:$U$10234,0),MATCH(AB151,Week!$U$10:$U$10234,0)+6-INDEX(Week!$T$10:$T$10234,MATCH(AB151,Week!$U$10:$U$10234,0))) -> 4054 | AD151: =INDEX(Week!$R$10:$R$10234,Calculation!AC151) -> 2014-02-07 | AF151: =Week!D151 -> 2005-09-16 | AG151: 0.463655244 | AH151: =AVERAGEIFS(CleanFOREX!F:F,CleanFOREX!E:E,">"&AF150,CleanFOREX!E:E,"<="&AF151) -> 0.7704 | AJ151: =Week!D151 -> 2005-09-16 | AK151: 1 | AL151: 1
C152: 2005-09-23 | D152: 0.4106518431 | E152: 0.4728904408 | F152: 0.06223859765 | G152: 0.1143870593 | H152: 0.002584021 | I152: 0.001728492502 | J152: 0.03 | K152: 0.01 | L152: 0.01891561763 | M152: 0.396 | N152: 0.6315900136 | O152: 1.046505631 | P152: 0 | R152: =Week!D152 -> 2005-09-23 | S152: =IF(SUM(Calculation!AK136:AK150)=$S$9,AVERAGE(AG136:AG150),"") -> 0.4106518431 | U152: =IF(SUM(Calculation!AL136:AL150)=$U$9,AVERAGE(AH136:AH150),"") -> 0.7608776667 | V152: =IF(SUM(Calculation!AL140:AL150)=$V$9,AVERAGE(AH140:AH150),"") -> 0.7589954545 | Z152: ='Import_ESALQ '!B152 -> 01/31/2014 | AA152: ='Import_ESALQ '!C152 -> 0.6079 | AB152: 2014.1.31 | AC152: =IF(INDEX(Week!$T$10:$T$10234,MATCH(AB152,Week!$U$10:$U$10234,0))=6,MATCH(AB152,Week!$U$10:$U$10234,0),MATCH(AB152,Week!$U$10:$U$10234,0)+6-INDEX(Week!$T$10:$T$10234,MATCH(AB152,Week!$U$10:$U$10234,0))) -> 4047 | AD152: =INDEX(Week!$R$10:$R$10234,Calculation!AC152) -> 2014-01-31 | AF152: =Week!D152 -> 2005-09-23 | AG152: 0.5126765712 | AH152: =AVERAGEIFS(CleanFOREX!F:F,CleanFOREX!E:E,">"&AF151,CleanFOREX!E:E,"<="&AF152) -> 0.76598 | AJ152: =Week!D152 -> 2005-09-23 | AK152: 1 | AL152: 1
C153: 2005-09-30 | D153: 0.4175750987 | E153: 0.4797365743 | F153: 0.06216147562 | G153: 0.114305461 | H153: 0.002613784955 | I153: 0.001728492502 | J153: 0.03 | K153: 0.01 | L153: 0.01918946297 | M153: 0.396 | N153: 0.6383843127 | O153: 1.053573776 | P153: 0 | R153: =Week!D153 -> 2005-09-30 | S153: =IF(SUM(Calculation!AK137:AK151)=$S$9,AVERAGE(AG137:AG151),"") -> 0.4175750987 | U153: =IF(SUM(Calculation!AL137:AL151)=$U$9,AVERAGE(AH137:AH151),"") -> 0.7618216667 | V153: =IF(SUM(Calculation!AL141:AL151)=$V$9,AVERAGE(AH141:AH151),"") -> 0.7595372727 | Z153: ='Import_ESALQ '!B153 -> 01/24/2014 | AA153: ='Import_ESALQ '!C153 -> 0.6182 | AB153: 2014.1.24 | AC153: =IF(INDEX(Week!$T$10:$T$10234,MATCH(AB153,Week!$U$10:$U$10234,0))=6,MATCH(AB153,Week!$U$10:$U$10234,0),MATCH(AB153,Week!$U$10:$U$10234,0)+6-INDEX(Week!$T$10:$T$10234,MATCH(AB153,Week!$U$10:$U$10234,0))) -> 4040 | AD153: =INDEX(Week!$R$10:$R$10234,Calculation!AC153) -> 2014-01-24 | AF153: =Week!D153 -> 2005-09-30 | AG153: 0.5403587444 | AH153: =AVERAGEIFS(CleanFOREX!F:F,CleanFOREX!E:E,">"&AF152,CleanFOREX!E:E,"<="&AF153) -> 0.7582 | AJ153: =Week!D153 -> 2005-09-30 | AK153: 1 | AL153: 1
C154: 2005-10-07 | D154: 0.4285733149 | E154: 0.4907295688 | F154: 0.06215625392 | G154: 0.1140079863 | H154: 0.002660845242 | I154: 0.001728492502 | J154: 0.03 | K154: 0.01 | L154: 0.01962918275 | M154: 0.396 | N154: 0.6491268929 | O154: 1.064756076 | P154: 0 | R154: =Week!D154 -> 2005-10-07 | S154: =IF(SUM(Calculation!AK138:AK152)=$S$9,AVERAGE(AG138:AG152),"") -> 0.4285733149 | U154: =IF(SUM(Calculation!AL138:AL152)=$U$9,AVERAGE(AH138:AH152),"") -> 0.7618856667 | V154: =IF(SUM(Calculation!AL142:AL152)=$V$9,AVERAGE(AH142:AH152),"") -> 0.7615190909 | Z154: ='Import_ESALQ '!B154 -> 01/17/2014 | AA154: ='Import_ESALQ '!C154 -> 0.62 | AB154: 2014.1.17 | AC154: =IF(INDEX(Week!$T$10:$T$10234,MATCH(AB154,Week!$U$10:$U$10234,0))=6,MATCH(AB154,Week!$U$10:$U$10234,0),MATCH(AB154,Week!$U$10:$U$10234,0)+6-INDEX(Week!$T$10:$T$10234,MATCH(AB154,Week!$U$10:$U$10234,0))) -> 4033 | AD154: =INDEX(Week!$R$10:$R$10234,Calculation!AC154) -> 2014-01-17 | AF154: =Week!D154 -> 2005-10-07 | AG154: 0.5461477781 | AH154: =AVERAGEIFS(CleanFOREX!F:F,CleanFOREX!E:E,">"&AF153,CleanFOREX!E:E,"<="&AF154) -> 0.7606 | AJ154: =Week!D154 -> 2005-10-07 | AK154: 1 | AL154: 1
C155: 2005-10-14 | D155: 0.4403374226 | E155: 0.5025414388 | F155: 0.06220401614 | G155: 0.1139021979 | H155: 0.002712352001 | I155: 0.001728492502 | J155: =Storage_import_terminal -> 0.03 | K155: =Transport_to_Wholesaler -> 0.01 | L155: 0.02010165755 | M155: 0.396 | N155: 0.6608844811 | O155: 1.076986139 | P155: 0 | R155: =Week!D155 -> 2005-10-14 | S155: =IF(SUM(Calculation!AK139:AK153)=$S$9,AVERAGE(AG139:AG153),"") -> 0.4403374226 | U155: =IF(SUM(Calculation!AL139:AL153)=$U$9,AVERAGE(AH139:AH153),"") -> 0.7613006667 | V155: =IF(SUM(Calculation!AL143:AL153)=$V$9,AVERAGE(AH143:AH153),"") -> 0.7622263636 | Z155: ='Import_ESALQ '!B155 -> 2014-10-01 | AA155: ='Import_ESALQ '!C155 -> 0.6125 | AB155: 2014.1.10 | AC155: =IF(INDEX(Week!$T$10:$T$10234,MATCH(AB155,Week!$U$10:$U$10234,0))=6,MATCH(AB155,Week!$U$10:$U$10234,0),MATCH(AB155,Week!$U$10:$U$10234,0)+6-INDEX(Week!$T$10:$T$10234,MATCH(AB155,Week!$U$10:$U$10234,0))) -> 4026 | AD155: =INDEX(Week!$R$10:$R$10234,Calculation!AC155) -> 2014-01-10 | AF155: =Week!D155 -> 2005-10-14 | AG155: 0.5642188453 | AH155: =AVERAGEIFS(CleanFOREX!F:F,CleanFOREX!E:E,">"&AF154,CleanFOREX!E:E,"<="&AF155) -> 0.75414 | AJ155: =Week!D155 -> 2005-10-14 | AK155: 1 | AL155: 1
C156: 2005-10-21 | D156: =S156 -> 0.4516435347 | E156: 0.5139314413 | F156: 0.06228790661 | G156: 0.1138334999 | H156: 0.002762165741 | I156: 0.001728492502 | J156: 0.03 | K156: 0.01 | L156: 0.02055725765 | M156: 0.396 | N156: =SUM(E156,G156,H156,I156,J156,K156) -> 0.6722555994 | O156: 1.088812857 | P156: =SUM(D156,SUM(F156:M156))-O156 -> 0 | R156: =Week!D156 -> 2005-10-21 | S156: =IF(SUM(Calculation!AK140:AK154)=$S$9,AVERAGE(AG140:AG154),"") -> 0.4516435347 | U156: =IF(SUM(Calculation!AL140:AL154)=$U$9,AVERAGE(AH140:AH154),"") -> 0.7602753333 | V156: =IF(SUM(Calculation!AL144:AL154)=$V$9,AVERAGE(AH144:AH154),"") -> 0.7626863636 | Z156: ='Import_ESALQ '!B156 -> 2014-03-01 | AA156: ='Import_ESALQ '!C156 -> 0.6074 | AB156: 2014.1.3 | AC156: =IF(INDEX(Week!$T$10:$T$10234,MATCH(AB156,Week!$U$10:$U$10234,0))=6,MATCH(AB156,Week!$U$10:$U$10234,0),MATCH(AB156,Week!$U$10:$U$10234,0)+6-INDEX(Week!$T$10:$T$10234,MATCH(AB156,Week!$U$10:$U$10234,0))) -> 4019 | AD156: =INDEX(Week!$R$10:$R$10234,Calculation!AC156) -> 2014-01-03 | AF156: =Week!D156 -> 2005-10-21 | AG156: 0.5603275802 | AH156: =AVERAGEIFS(CleanFOREX!F:F,CleanFOREX!E:E,">"&AF155,CleanFOREX!E:E,"<="&AF156) -> 0.74974 | AJ156: =Week!D156 -> 2005-10-21 | AK156: 1 | AL156: 1
C157: 2005-10-28 | D157: 0.4614120323 | E157: 0.523756247 | F157: 0.06234421475 | G157: 0.1138932326 | H157: 0.00280565771 | I157: 0.001728492502 | J157: 0.03 | K157: 0.01 | L157: 0.02095024988 | M157: 0.396 | N157: 0.6821836298 | O157: 1.09913388 | P157: 0 | R157: =Week!D157 -> 2005-10-28 | S157: =IF(SUM(Calculation!AK141:AK155)=$S$9,AVERAGE(AG141:AG155),"") -> 0.4614120323 | U157: =IF(SUM(Calculation!AL141:AL155)=$U$9,AVERAGE(AH141:AH155),"") -> 0.7595886667 | V157: =IF(SUM(Calculation!AL145:AL155)=$V$9,AVERAGE(AH145:AH155),"") -> 0.7622863636 | Z157: ='Import_ESALQ '!B157 -> 12/27/2013 | AA157: ='Import_ESALQ '!C157 -> 0.6164 | AB157: 2013.12.27 | AC157: =IF(INDEX(Week!$T$10:$T$10234,MATCH(AB157,Week!$U$10:$U$10234,0))=6,MATCH(AB157,Week!$U$10:$U$10234,0),MATCH(AB157,Week!$U$10:$U$10234,0)+6-INDEX(Week!$T$10:$T$10234,MATCH(AB157,Week!$U$10:$U$10234,0))) -> 4012 | AD157: =INDEX(Week!$R$10:$R$10234,Calculation!AC157) -> 2013-12-27 | AF157: =Week!D157 -> 2005-10-28 | AG157: 0.5439225053 | AH157: =AVERAGEIFS(CleanFOREX!F:F,CleanFOREX!E:E,">"&AF156,CleanFOREX!E:E,"<="&AF157) -> 0.7536 | AJ157: =Week!D157 -> 2005-10-28 | AK157: 1 | AL157: 1
C158: 2005-11-04 | D158: 0.4695269667 | E158: 0.5318407733 | F158: =To_Santos/U158 -> 0.06231380665 | G158: =Santos_to_Sydney/V158 -> 0.1141301999 | H158: =(E158+G158)*Insurance*1.1 -> 0.002842272282 | I158: =Sydney_Wharfage -> 0.001728492502 | J158: 0.03 | K158: 0.01 | L158: =E158*Customs_Value_Duty -> 0.02127363093 | M158: =Fuel_Import_Duty -> 0.396 | N158: 0.690541738 | O158: 1.107815369 | P158: 0 | R158: =Week!D158 -> 2005-11-04 | S158: =IF(SUM(Calculation!AK142:AK156)=$S$9,AVERAGE(AG142:AG156),"") -> 0.4695269667 | U158: =IF(SUM(Calculation!AL142:AL156)=$U$9,AVERAGE(AH142:AH156),"") -> 0.7599593333 | V158: =IF(SUM(Calculation!AL146:AL156)=$V$9,AVERAGE(AH146:AH156),"") -> 0.7607036364 | Z158: ='Import_ESALQ '!B158 -> 12/20/2013 | AA158: ='Import_ESALQ '!C158 -> 0.6188 | AB158: 2013.12.20 | AC158: =IF(INDEX(Week!$T$10:$T$10234,MATCH(AB158,Week!$U$10:$U$10234,0))=6,MATCH(AB158,Week!$U$10:$U$10234,0),MATCH(AB158,Week!$U$10:$U$10234,0)+6-INDEX(Week!$T$10:$T$10234,MATCH(AB158,Week!$U$10:$U$10234,0))) -> 4005 | AD158: =INDEX(Week!$R$10:$R$10234,Calculation!AC158) -> 2013-12-20 | AF158: =Week!D158 -> 2005-11-04 | AG158: 0.5578267886 | AH158: =AVERAGEIFS(CleanFOREX!F:F,CleanFOREX!E:E,">"&AF157,CleanFOREX!E:E,"<="&AF158) -> 0.7436 | AJ158: =Week!D158 -> 2005-11-04 | AK158: 1 | AL158: 1
C159: 2005-11-11 | D159: 0.4759829359 | E159: =D159+F159 -> 0.5382793642 | F159: 0.06229642829 | G159: 0.1143127125 | H159: 0.002871405138 | I159: 0.001728492502 | J159: 0.03 | K159: 0.01 | L159: 0.02153117457 | M159: 0.396 | N159: 0.6971919744 | O159: =SUM(L159,M159,N159) -> 1.114723149 | P159: 0 | R159: =Week!D159 -> 2005-11-11 | S159: =IF(SUM(Calculation!AK143:AK157)=$S$9,AVERAGE(AG143:AG157),"") -> 0.4759829359 | U159: =IF(SUM(Calculation!AL143:AL157)=$U$9,AVERAGE(AH143:AH157),"") -> 0.7601713333 | V159: =IF(SUM(Calculation!AL147:AL157)=$V$9,AVERAGE(AH147:AH157),"") -> 0.7594890909 | Z159: ='Import_ESALQ '!B159 -> 12/13/2013 | AA159: ='Import_ESALQ '!C159 -> 0.6256 | AB159: 2013.12.13 | AC159: =IF(INDEX(Week!$T$10:$T$10234,MATCH(AB159,Week!$U$10:$U$10234,0))=6,MATCH(AB159,Week!$U$10:$U$10234,0),MATCH(AB159,Week!$U$10:$U$10234,0)+6-INDEX(Week!$T$10:$T$10234,MATCH(AB159,Week!$U$10:$U$10234,0))) -> 3998 | AD159: =INDEX(Week!$R$10:$R$10234,Calculation!AC159) -> 2013-12-13 | AF159: =Week!D159 -> 2005-11-11 | AG159: 0.5782935154 | AH159: =AVERAGEIFS(CleanFOREX!F:F,CleanFOREX!E:E,">"&AF158,CleanFOREX!E:E,"<="&AF159) -> 0.7325 | AJ159: =Week!D159 -> 2005-11-11 | AK159: 1 | AL159: 1
C160: 2005-11-18 | D160: 0.4838501966 | E160: 0.5462119259 | F160: 0.06236172928 | G160: 0.1145809794 | H160: 0.002907488783 | I160: 0.001728492502 | J160: 0.03 | K160: 0.01 | L160: 0.02184847703 | M160: 0.396 | N160: 0.7054288866 | O160: 1.123277364 | P160: 0 | R160: =Week!D160 -> 2005-11-18 | S160: =IF(SUM(Calculation!AK144:AK158)=$S$9,AVERAGE(AG144:AG158),"") -> 0.4838501966 | U160: =IF(SUM(Calculation!AL144:AL158)=$U$9,AVERAGE(AH144:AH158),"") -> 0.7593753333 | V160: =IF(SUM(Calculation!AL148:AL158)=$V$9,AVERAGE(AH148:AH158),"") -> 0.7577109091 | Z160: ='Import_ESALQ '!B160 -> 2013-06-12 | AA160: ='Import_ESALQ '!C160 -> 0.6071 | AB160: 2013.12.6 | AC160: =IF(INDEX(Week!$T$10:$T$10234,MATCH(AB160,Week!$U$10:$U$10234,0))=6,MATCH(AB160,Week!$U$10:$U$10234,0),MATCH(AB160,Week!$U$10:$U$10234,0)+6-INDEX(Week!$T$10:$T$10234,MATCH(AB160,Week!$U$10:$U$10234,0))) -> 3991 | AD160: =INDEX(Week!$R$10:$R$10234,Calculation!AC160) -> 2013-12-06 | AF160: =Week!D160 -> 2005-11-18 | AG160: 0.5701394586 | AH160: =AVERAGEIFS(CleanFOREX!F:F,CleanFOREX!E:E,">"&AF159,CleanFOREX!E:E,"<="&AF160) -> 0.7314 | AJ160: =Week!D160 -> 2005-11-18 | AK160: 1 | AL160: 1
C161: 2005-11-25 | D161: 0.4946743907 | E161: 0.5571790112 | F161: 0.06250462044 | G161: 0.1148980415 | H161: 0.002957139032 | I161: 0.001728492502 | J161: 0.03 | K161: 0.01 | L161: 0.02228716045 | M161: 0.396 | N161: 0.7167626841 | O161: 1.135049845 | P161: 0 | R161: =Week!D161 -> 2005-11-25 | S161: =IF(SUM(Calculation!AK145:AK159)=$S$9,AVERAGE(AG145:AG159),"") -> 0.4946743907 | U161: =IF(SUM(Calculation!AL145:AL159)=$U$9,AVERAGE(AH145:AH159),"") -> 0.7576393333 | V161: =IF(SUM(Calculation!AL149:AL159)=$V$9,AVERAGE(AH149:AH159),"") -> 0.75562 | Z161: ='Import_ESALQ '!B161 -> 11/29/2013 | AA161: ='Import_ESALQ '!C161 -> 0.6017 | AB161: 2013.11.29 | AC161: =IF(INDEX(Week!$T$10:$T$10234,MATCH(AB161,Week!$U$10:$U$10234,0))=6,MATCH(AB161,Week!$U$10:$U$10234,0),MATCH(AB161,Week!$U$10:$U$10234,0)+6-INDEX(Week!$T$10:$T$10234,MATCH(AB161,Week!$U$10:$U$10234,0))) -> 3984 | AD161: =INDEX(Week!$R$10:$R$10234,Calculation!AC161) -> 2013-11-29 | AF161: =Week!D161 -> 2005-11-25 | AG161: 0.5618374558 | AH161: =AVERAGEIFS(CleanFOREX!F:F,CleanFOREX!E:E,">"&AF160,CleanFOREX!E:E,"<="&AF161) -> 0.7358 | AJ161: =Week!D161 -> 2005-11-25 | AK161: 1 | AL161: 1
C162: 2005-12-02 | D162: 0.5042320596 | E162: 0.5669339236 | F162: 0.06270186395 | G162: 0.1152129711 | H162: 0.003001446337 | I162: 0.001728492502 | J162: 0.03 | K162: 0.01 | L162: 0.02267735694 | M162: 0.396 | N162: 0.7268768336 | O162: 1.14555419 | P162: 0 | R162: =Week!D162 -> 2005-12-02 | S162: =IF(SUM(Calculation!AK146:AK160)=$S$9,AVERAGE(AG146:AG160),"") -> 0.5042320596 | U162: =IF(SUM(Calculation!AL146:AL160)=$U$9,AVERAGE(AH146:AH160),"") -> 0.755256 | V162: =IF(SUM(Calculation!AL150:AL160)=$V$9,AVERAGE(AH150:AH160),"") -> 0.7535545455 | Z162: ='Import_ESALQ '!B162 -> 11/22/2013 | AA162: ='Import_ESALQ '!C162 -> 0.5983 | AB162: 2013.11.22 | AC162: =IF(INDEX(Week!$T$10:$T$10234,MATCH(AB162,Week!$U$10:$U$10234,0))=6,MATCH(AB162,Week!$U$10:$U$10234,0),MATCH(AB162,Week!$U$10:$U$10234,0)+6-INDEX(Week!$T$10:$T$10234,MATCH(AB162,Week!$U$10:$U$10234,0))) -> 3977 | AD162: =INDEX(Week!$R$10:$R$10234,Calculation!AC162) -> 2013-11-22 | AF162: =Week!D162 -> 2005-12-02 | AG162: 0.5985000271 | AH162: =AVERAGEIFS(CleanFOREX!F:F,CleanFOREX!E:E,">"&AF161,CleanFOREX!E:E,"<="&AF162) -> 0.73868 | AJ162: =Week!D162 -> 2005-12-02 | AK162: 1 | AL162: 1
C163: 2005-12-09 | D163: 0.513220521 | E163: 0.5760953222 | F163: 0.06287480123 | G163: 0.115675444 | H163: 0.003043791372 | I163: 0.001728492502 | J163: 0.03 | K163: 0.01 | L163: 0.02304381289 | M163: 0.396 | N163: 0.7365430502 | O163: 1.155586863 | P163: 0 | R163: =Week!D163 -> 2005-12-09 | S163: =IF(SUM(Calculation!AK147:AK161)=$S$9,AVERAGE(AG147:AG161),"") -> 0.513220521 | U163: =IF(SUM(Calculation!AL147:AL161)=$U$9,AVERAGE(AH147:AH161),"") -> 0.7531786667 | V163: =IF(SUM(Calculation!AL151:AL161)=$V$9,AVERAGE(AH151:AH161),"") -> 0.7505418182 | Z163: ='Import_ESALQ '!B163 -> 11/14/2013 | AA163: ='Import_ESALQ '!C163 -> 0.582 | AB163: 2013.11.14 | AC163: =IF(INDEX(Week!$T$10:$T$10234,MATCH(AB163,Week!$U$10:$U$10234,0))=6,MATCH(AB163,Week!$U$10:$U$10234,0),MATCH(AB163,Week!$U$10:$U$10234,0)+6-INDEX(Week!$T$10:$T$10234,MATCH(AB163,Week!$U$10:$U$10234,0))) -> 3970 | AD163: =INDEX(Week!$R$10:$R$10234,Calculation!AC163) -> 2013-11-15 | AF163: =Week!D163 -> 2005-12-09 | AG163: 0.6398920825 | AH163: =AVERAGEIFS(CleanFOREX!F:F,CleanFOREX!E:E,">"&AF162,CleanFOREX!E:E,"<="&AF163) -> 0.74872 | AJ163: =Week!D163 -> 2005-12-09 | AK163: 1 | AL163: 1
C164: 2005-12-16 | D164: 0.5251578413 | E164: 0.5881691766 | F164: 0.06301133524 | G164: 0.1161215917 | H164: 0.00309887938 | I164: 0.001728492502 | J164: 0.03 | K164: 0.01 | L164: 0.02352676706 | M164: 0.396 | N164: 0.7491181401 | O164: 1.168644907 | P164: 0 | R164: =Week!D164 -> 2005-12-16 | S164: =IF(SUM(Calculation!AK148:AK162)=$S$9,AVERAGE(AG148:AG162),"") -> 0.5251578413 | U164: =IF(SUM(Calculation!AL148:AL162)=$U$9,AVERAGE(AH148:AH162),"") -> 0.7515466667 | V164: =IF(SUM(Calculation!AL152:AL162)=$V$9,AVERAGE(AH152:AH162),"") -> 0.7476581818 | Z164: ='Import_ESALQ '!B164 -> 2013-08-11 | AA164: ='Import_ESALQ '!C164 -> 0.5827 | AB164: 2013.11.8 | AC164: =IF(INDEX(Week!$T$10:$T$10234,MATCH(AB164,Week!$U$10:$U$10234,0))=6,MATCH(AB164,Week!$U$10:$U$10234,0),MATCH(AB164,Week!$U$10:$U$10234,0)+6-INDEX(Week!$T$10:$T$10234,MATCH(AB164,Week!$U$10:$U$10234,0))) -> 3963 | AD164: =INDEX(Week!$R$10:$R$10234,Calculation!AC164) -> 2013-11-08 | AF164: =Week!D164 -> 2005-12-16 | AG164: 0.6315621594 | AH164: =AVERAGEIFS(CleanFOREX!F:F,CleanFOREX!E:E,">"&AF163,CleanFOREX!E:E,"<="&AF164) -> 0.75242 | AJ164: =Week!D164 -> 2005-12-16 | AK164: 1 | AL164: 1
C165: 2005-12-23 | D165: 0.5399593828 | E165: 0.6030086375 | F165: 0.06304925472 | G165: 0.1163658056 | H165: 0.003165247549 | I165: 0.001728492502 | J165: 0.03 | K165: 0.01 | L165: 0.0241203455 | M165: 0.396 | N165: 0.7642681831 | O165: 1.184388529 | P165: 0 | R165: =Week!D165 -> 2005-12-23 | S165: =IF(SUM(Calculation!AK149:AK163)=$S$9,AVERAGE(AG149:AG163),"") -> 0.5399593828 | U165: =IF(SUM(Calculation!AL149:AL163)=$U$9,AVERAGE(AH149:AH163),"") -> 0.7510946667 | V165: =IF(SUM(Calculation!AL153:AL163)=$V$9,AVERAGE(AH153:AH163),"") -> 0.7460890909 | Z165: ='Import_ESALQ '!B165 -> 2013-01-11 | AA165: ='Import_ESALQ '!C165 -> 0.608 | AB165: 2013.11.1 | AC165: =IF(INDEX(Week!$T$10:$T$10234,MATCH(AB165,Week!$U$10:$U$10234,0))=6,MATCH(AB165,Week!$U$10:$U$10234,0),MATCH(AB165,Week!$U$10:$U$10234,0)+6-INDEX(Week!$T$10:$T$10234,MATCH(AB165,Week!$U$10:$U$10234,0))) -> 3956 | AD165: =INDEX(Week!$R$10:$R$10234,Calculation!AC165) -> 2013-11-01 | AF165: =Week!D165 -> 2005-12-23 | AG165: 0.6350779087 | AH165: =AVERAGEIFS(CleanFOREX!F:F,CleanFOREX!E:E,">"&AF164,CleanFOREX!E:E,"<="&AF165) -> 0.73676 | AJ165: =Week!D165 -> 2005-12-23 | AK165: 1 | AL165: 1
C166: 2005-12-30 | D166: 0.5536595592 | E166: 0.6167183289 | F166: 0.06305876971 | G166: 0.1164478173 | H166: 0.003225931043 | I166: 0.001728492502 | J166: 0.03 | K166: 0.01 | L166: 0.02466873316 | M166: 0.396 | N166: 0.7781205697 | O166: 1.198789303 | P166: 0 | R166: =Week!D166 -> 2005-12-30 | S166: =IF(SUM(Calculation!AK150:AK164)=$S$9,AVERAGE(AG150:AG164),"") -> 0.5536595592 | U166: =IF(SUM(Calculation!AL150:AL164)=$U$9,AVERAGE(AH150:AH164),"") -> 0.7509813333 | V166: =IF(SUM(Calculation!AL154:AL164)=$V$9,AVERAGE(AH154:AH164),"") -> 0.7455636364 | Z166: ='Import_ESALQ '!B166 -> 10/25/2013 | AA166: ='Import_ESALQ '!C166 -> 0.6031 | AB166: 2013.10.25 | AC166: =IF(INDEX(Week!$T$10:$T$10234,MATCH(AB166,Week!$U$10:$U$10234,0))=6,MATCH(AB166,Week!$U$10:$U$10234,0),MATCH(AB166,Week!$U$10:$U$10234,0)+6-INDEX(Week!$T$10:$T$10234,MATCH(AB166,Week!$U$10:$U$10234,0))) -> 3949 | AD166: =INDEX(Week!$R$10:$R$10234,Calculation!AC166) -> 2013-10-25 | AF166: =Week!D166 -> 2005-12-30 | AG166: 0.6415361432 | AH166: =AVERAGEIFS(CleanFOREX!F:F,CleanFOREX!E:E,">"&AF165,CleanFOREX!E:E,"<="&AF166) -> 0.7299666667 | AJ166: =Week!D166 -> 2005-12-30 | AK166: 1 | AL166: 1
C167: 2006-01-06 | D167: 0.5669624443 | E167: 0.6302018705 | F167: 0.0632394262 | G167: 0.1167873053 | H167: 0.003286752374 | I167: 0.001728492502 | J167: 0.03 | K167: 0.01 | L167: 0.02520807482 | M167: 0.396 | N167: 0.7920044207 | O167: 1.213212496 | P167: 0 | R167: =Week!D167 -> 2006-01-06 | S167: =IF(SUM(Calculation!AK151:AK165)=$S$9,AVERAGE(AG151:AG165),"") -> 0.5669624443 | U167: =IF(SUM(Calculation!AL151:AL165)=$U$9,AVERAGE(AH151:AH165),"") -> 0.748836 | V167: =IF(SUM(Calculation!AL155:AL165)=$V$9,AVERAGE(AH155:AH165),"") -> 0.7433963636 | Z167: ='Import_ESALQ '!B167 -> 10/18/2013 | AA167: ='Import_ESALQ '!C167 -> 0.6041 | AB167: 2013.10.18 | AC167: =IF(INDEX(Week!$T$10:$T$10234,MATCH(AB167,Week!$U$10:$U$10234,0))=6,MATCH(AB167,Week!$U$10:$U$10234,0),MATCH(AB167,Week!$U$10:$U$10234,0)+6-INDEX(Week!$T$10:$T$10234,MATCH(AB167,Week!$U$10:$U$10234,0))) -> 3942 | AD167: =INDEX(Week!$R$10:$R$10234,Calculation!AC167) -> 2013-10-18 | AF167: =Week!D167 -> 2006-01-06 | AG167: 0.6319115324 | AH167: =AVERAGEIFS(CleanFOREX!F:F,CleanFOREX!E:E,">"&AF166,CleanFOREX!E:E,"<="&AF167) -> 0.743775 | AJ167: =Week!D167 -> 2006-01-06 | AK167: 1 | AL167: 1
C168: 2006-01-13 | D168: 0.5788211709 | E168: 0.64228906 | F168: 0.06346788907 | G168: 0.1171335673 | H168: 0.00334145956 | I168: 0.001728492502 | J168: 0.03 | K168: 0.01 | L168: 0.0256915624 | M168: 0.396 | N168: 0.8044925793 | O168: 1.226184142 | P168: 0 | R168: =Week!D168 -> 2006-01-13 | S168: =IF(SUM(Calculation!AK152:AK166)=$S$9,AVERAGE(AG152:AG166),"") -> 0.5788211709 | U168: =IF(SUM(Calculation!AL152:AL166)=$U$9,AVERAGE(AH152:AH166),"") -> 0.7461404444 | V168: =IF(SUM(Calculation!AL156:AL166)=$V$9,AVERAGE(AH156:AH166),"") -> 0.7411987879 | Z168: ='Import_ESALQ '!B168 -> 2013-11-10 | AA168: ='Import_ESALQ '!C168 -> 0.5949 | AB168: 2013.10.11 | AC168: =IF(INDEX(Week!$T$10:$T$10234,MATCH(AB168,Week!$U$10:$U$10234,0))=6,MATCH(AB168,Week!$U$10:$U$10234,0),MATCH(AB168,Week!$U$10:$U$10234,0)+6-INDEX(Week!$T$10:$T$10234,MATCH(AB168,Week!$U$10:$U$10234,0))) -> 3935 | AD168: =INDEX(Week!$R$10:$R$10234,Calculation!AC168) -> 2013-10-11 | AF168: =Week!D168 -> 2006-01-13 | AG168: 0.6146418026 | AH168: =AVERAGEIFS(CleanFOREX!F:F,CleanFOREX!E:E,">"&AF167,CleanFOREX!E:E,"<="&AF168) -> 0.75182 | AJ168: =Week!D168 -> 2006-01-13 | AK168: 1 | AL168: 1
C169: 2006-01-20 | D169: 0.5867701683 | E169: 0.6503642272 | F169: 0.06359405889 | G169: 0.1172193268 | H169: 0.003377367638 | I169: 0.001728492502 | J169: 0.03 | K169: 0.01 | L169: 0.02601456909 | M169: 0.396 | N169: 0.8126894141 | O169: 1.234703983 | P169: 0 | R169: =Week!D169 -> 2006-01-20 | S169: =IF(SUM(Calculation!AK153:AK167)=$S$9,AVERAGE(AG153:AG167),"") -> 0.5867701683 | U169: =IF(SUM(Calculation!AL153:AL167)=$U$9,AVERAGE(AH153:AH167),"") -> 0.7446601111 | V169: =IF(SUM(Calculation!AL157:AL167)=$V$9,AVERAGE(AH157:AH167),"") -> 0.7406565152 | Z169: ='Import_ESALQ '!B169 -> 2013-04-10 | AA169: ='Import_ESALQ '!C169 -> 0.5833 | AB169: 2013.10.4 | AC169: =IF(INDEX(Week!$T$10:$T$10234,MATCH(AB169,Week!$U$10:$U$10234,0))=6,MATCH(AB169,Week!$U$10:$U$10234,0),MATCH(AB169,Week!$U$10:$U$10234,0)+6-INDEX(Week!$T$10:$T$10234,MATCH(AB169,Week!$U$10:$U$10234,0))) -> 3928 | AD169: =INDEX(Week!$R$10:$R$10234,Calculation!AC169) -> 2013-10-04 | AF169: =Week!D169 -> 2006-01-20 | AG169: 0.5908763889 | AH169: =AVERAGEIFS(CleanFOREX!F:F,CleanFOREX!E:E,">"&AF168,CleanFOREX!E:E,"<="&AF169) -> 0.75058 | AJ169: =Week!D169 -> 2006-01-20 | AK169: 1 | AL169: 1
C170: 2006-01-27 | D170: 0.5917223722 | E170: 0.6553527754 | F170: 0.06363040316 | G170: 0.1172449424 | H170: 0.003399429958 | I170: 0.001728492502 | J170: 0.03 | K170: 0.01 | L170: 0.02621411101 | M170: 0.396 | N170: 0.8177256402 | O170: 1.239939751 | P170: 0 | R170: =Week!D170 -> 2006-01-27 | S170: =IF(SUM(Calculation!AK154:AK168)=$S$9,AVERAGE(AG154:AG168),"") -> 0.5917223722 | U170: =IF(SUM(Calculation!AL154:AL168)=$U$9,AVERAGE(AH154:AH168),"") -> 0.7442347778 | V170: =IF(SUM(Calculation!AL158:AL168)=$V$9,AVERAGE(AH158:AH168),"") -> 0.740494697 | Z170: ='Import_ESALQ '!B170 -> 09/27/2013 | AA170: ='Import_ESALQ '!C170 -> 0.586 | AB170: 2013.9.27 | AC170: =IF(INDEX(Week!$T$10:$T$10234,MATCH(AB170,Week!$U$10:$U$10234,0))=6,MATCH(AB170,Week!$U$10:$U$10234,0),MATCH(AB170,Week!$U$10:$U$10234,0)+6-INDEX(Week!$T$10:$T$10234,MATCH(AB170,Week!$U$10:$U$10234,0))) -> 3921 | AD170: =INDEX(Week!$R$10:$R$10234,Calculation!AC170) -> 2013-09-27 | AF170: =Week!D170 -> 2006-01-27 | AG170: 0.607938302 | AH170: =AVERAGEIFS(CleanFOREX!F:F,CleanFOREX!E:E,">"&AF169,CleanFOREX!E:E,"<="&AF170) -> 0.75205 | AJ170: =Week!D170 -> 2006-01-27 | AK170: 1 | AL170: 1
C171: 2006-02-03 | D171: 0.5947042796 | E171: 0.6583918466 | F171: 0.06368756697 | G171: 0.1171445588 | H171: 0.003412360183 | I171: 0.001728492502 | J171: 0.03 | K171: 0.01 | L171: 0.02633567386 | M171: 0.396 | N171: 0.820677258 | O171: 1.243012932 | P171: 0 | R171: =Week!D171 -> 2006-02-03 | S171: =IF(SUM(Calculation!AK155:AK169)=$S$9,AVERAGE(AG155:AG169),"") -> 0.5947042796 | U171: =IF(SUM(Calculation!AL155:AL169)=$U$9,AVERAGE(AH155:AH169),"") -> 0.7435667778 | V171: =IF(SUM(Calculation!AL159:AL169)=$V$9,AVERAGE(AH159:AH169),"") -> 0.7411292424 | Z171: ='Import_ESALQ '!B171 -> 09/20/2013 | AA171: ='Import_ESALQ '!C171 -> 0.5721 | AB171: 2013.9.20 | AC171: =IF(INDEX(Week!$T$10:$T$10234,MATCH(AB171,Week!$U$10:$U$10234,0))=6,MATCH(AB171,Week!$U$10:$U$10234,0),MATCH(AB171,Week!$U$10:$U$10234,0)+6-INDEX(Week!$T$10:$T$10234,MATCH(AB171,Week!$U$10:$U$10234,0))) -> 3914 | AD171: =INDEX(Week!$R$10:$R$10234,Calculation!AC171) -> 2013-09-20 | AF171: =Week!D171 -> 2006-02-03 | AG171: 0.6134219269 | AH171: =AVERAGEIFS(CleanFOREX!F:F,CleanFOREX!E:E,">"&AF170,CleanFOREX!E:E,"<="&AF171) -> 0.7525 | AJ171: =Week!D171 -> 2006-02-03 | AK171: 1 | AL171: 1
C172: 2006-02-10 | D172: 0.59761891 | E172: 0.6613184134 | F172: 0.06369950331 | G172: 0.1168643111 | H172: 0.003424003987 | I172: 0.001728492502 | J172: 0.03 | K172: 0.01 | L172: 0.02645273653 | M172: 0.396 | N172: 0.8233352209 | O172: 1.245787957 | P172: 0 | R172: =Week!D172 -> 2006-02-10 | S172: =IF(SUM(Calculation!AK156:AK170)=$S$9,AVERAGE(AG156:AG170),"") -> 0.59761891 | U172: =IF(SUM(Calculation!AL156:AL170)=$U$9,AVERAGE(AH156:AH170),"") -> 0.7434274444 | V172: =IF(SUM(Calculation!AL160:AL170)=$V$9,AVERAGE(AH160:AH170),"") -> 0.7429065152 | Z172: ='Import_ESALQ '!B172 -> 09/13/2013 | AA172: ='Import_ESALQ '!C172 -> 0.5643 | AB172: 2013.9.13 | AC172: =IF(INDEX(Week!$T$10:$T$10234,MATCH(AB172,Week!$U$10:$U$10234,0))=6,MATCH(AB172,Week!$U$10:$U$10234,0),MATCH(AB172,Week!$U$10:$U$10234,0)+6-INDEX(Week!$T$10:$T$10234,MATCH(AB172,Week!$U$10:$U$10234,0))) -> 3907 | AD172: =INDEX(Week!$R$10:$R$10234,Calculation!AC172) -> 2013-09-13 | AF172: =Week!D172 -> 2006-02-10 | AG172: 0.6477984028 | AH172: =AVERAGEIFS(CleanFOREX!F:F,CleanFOREX!E:E,">"&AF171,CleanFOREX!E:E,"<="&AF172) -> 0.74128 | AJ172: =Week!D172 -> 2006-02-10 | AK172: 1 | AL172: 1
C173: 2006-02-17 | D173: 0.6011585332 | E173: 0.6648422746 | F173: 0.06368374144 | G173: 0.116563345 | H173: 0.003438184726 | I173: 0.001728492502 | J173: 0.03 | K173: 0.01 | L173: 0.02659369098 | M173: 0.396 | N173: 0.8265722968 | O173: 1.249165988 | P173: 0 | R173: =Week!D173 -> 2006-02-17 | S173: =IF(SUM(Calculation!AK157:AK171)=$S$9,AVERAGE(AG157:AG171),"") -> 0.6011585332 | U173: =IF(SUM(Calculation!AL157:AL171)=$U$9,AVERAGE(AH157:AH171),"") -> 0.7436114444 | V173: =IF(SUM(Calculation!AL161:AL171)=$V$9,AVERAGE(AH161:AH171),"") -> 0.744824697 | Z173: ='Import_ESALQ '!B173 -> 2013-06-09 | AA173: ='Import_ESALQ '!C173 -> 0.5439 | AB173: 2013.9.6 | AC173: =IF(INDEX(Week!$T$10:$T$10234,MATCH(AB173,Week!$U$10:$U$10234,0))=6,MATCH(AB173,Week!$U$10:$U$10234,0),MATCH(AB173,Week!$U$10:$U$10234,0)+6-INDEX(Week!$T$10:$T$10234,MATCH(AB173,Week!$U$10:$U$10234,0))) -> 3900 | AD173: =INDEX(Week!$R$10:$R$10234,Calculation!AC173) -> 2013-09-06 | AF173: =Week!D173 -> 2006-02-17 | AG173: 0.6808026647 | AH173: =AVERAGEIFS(CleanFOREX!F:F,CleanFOREX!E:E,">"&AF172,CleanFOREX!E:E,"<="&AF173) -> 0.73854 | AJ173: =Week!D173 -> 2006-02-17 | AK173: 1 | AL173: 1
C174: 2006-02-24 | D174: 0.608083593 | E174: 0.6718377521 | F174: 0.06375415915 | G174: 0.1164854328 | H174: 0.003468622014 | I174: 0.001728492502 | J174: 0.03 | K174: 0.01 | L174: 0.02687351009 | M174: 0.396 | N174: 0.8335202994 | O174: 1.25639381 | P174: 0 | R174: =Week!D174 -> 2006-02-24 | S174: =IF(SUM(Calculation!AK158:AK172)=$S$9,AVERAGE(AG158:AG172),"") -> 0.608083593 | U174: =IF(SUM(Calculation!AL158:AL172)=$U$9,AVERAGE(AH158:AH172),"") -> 0.7427901111 | V174: =IF(SUM(Calculation!AL162:AL172)=$V$9,AVERAGE(AH162:AH172),"") -> 0.7453228788 | Z174: ='Import_ESALQ '!B174 -> 08/30/2013 | AA174: ='Import_ESALQ '!C174 -> 0.5332 | AB174: 2013.8.30 | AC174: =IF(INDEX(Week!$T$10:$T$10234,MATCH(AB174,Week!$U$10:$U$10234,0))=6,MATCH(AB174,Week!$U$10:$U$10234,0),MATCH(AB174,Week!$U$10:$U$10234,0)+6-INDEX(Week!$T$10:$T$10234,MATCH(AB174,Week!$U$10:$U$10234,0))) -> 3893 | AD174: =INDEX(Week!$R$10:$R$10234,Calculation!AC174) -> 2013-08-30 | AF174: =Week!D174 -> 2006-02-24 | AG174: 0.7271816804 | AH174: =AVERAGEIFS(CleanFOREX!F:F,CleanFOREX!E:E,">"&AF173,CleanFOREX!E:E,"<="&AF174) -> 0.73888 | AJ174: =Week!D174 -> 2006-02-24 | AK174: 1 | AL174: 1
C175: 2006-03-03 | D175: 0.6162819847 | E175: 0.6800651106 | F175: 0.06378312584 | G175: 0.1164874219 | H175: 0.003504831143 | I175: 0.001728492502 | J175: 0.03 | K175: 0.01 | L175: 0.02720260442 | M175: 0.396 | N175: 0.8417858561 | O175: 1.264988461 | P175: 0 | R175: =Week!D175 -> 2006-03-03 | S175: =IF(SUM(Calculation!AK159:AK173)=$S$9,AVERAGE(AG159:AG173),"") -> 0.6162819847 | U175: =IF(SUM(Calculation!AL159:AL173)=$U$9,AVERAGE(AH159:AH173),"") -> 0.7424527778 | V175: =IF(SUM(Calculation!AL163:AL173)=$V$9,AVERAGE(AH163:AH173),"") -> 0.7453101515 | Z175: ='Import_ESALQ '!B175 -> 08/23/2013 | AA175: ='Import_ESALQ '!C175 -> 0.5068 | AB175: 2013.8.23 | AC175: =IF(INDEX(Week!$T$10:$T$10234,MATCH(AB175,Week!$U$10:$U$10234,0))=6,MATCH(AB175,Week!$U$10:$U$10234,0),MATCH(AB175,Week!$U$10:$U$10234,0)+6-INDEX(Week!$T$10:$T$10234,MATCH(AB175,Week!$U$10:$U$10234,0))) -> 3886 | AD175: =INDEX(Week!$R$10:$R$10234,Calculation!AC175) -> 2013-08-23 | AF175: =Week!D175 -> 2006-03-03 | AG175: 0.7505593143 | AH175: =AVERAGEIFS(CleanFOREX!F:F,CleanFOREX!E:E,">"&AF174,CleanFOREX!E:E,"<="&AF175) -> 0.74198 | AJ175: =Week!D175 -> 2006-03-03 | AK175: 1 | AL175: 1
C176: 2006-03-10 | D176: 0.6262078624 | E176: 0.6899544693 | F176: 0.06374660695 | G176: 0.1166274019 | H176: 0.003548960234 | I176: 0.001728492502 | J176: 0.03 | K176: 0.01 | L176: 0.02759817877 | M176: 0.396 | N176: 0.851859324 | O176: 1.275457503 | P176: 0 | R176: =Week!D176 -> 2006-03-10 | S176: =IF(SUM(Calculation!AK160:AK174)=$S$9,AVERAGE(AG160:AG174),"") -> 0.6262078624 | U176: =IF(SUM(Calculation!AL160:AL174)=$U$9,AVERAGE(AH160:AH174),"") -> 0.7428781111 | V176: =IF(SUM(Calculation!AL164:AL174)=$V$9,AVERAGE(AH164:AH174),"") -> 0.7444156061 | Z176: ='Import_ESALQ '!B176 -> 08/16/2013 | AA176: ='Import_ESALQ '!C176 -> 0.5239 | AB176: 2013.8.16 | AC176: =IF(INDEX(Week!$T$10:$T$10234,MATCH(AB176,Week!$U$10:$U$10234,0))=6,MATCH(AB176,Week!$U$10:$U$10234,0),MATCH(AB176,Week!$U$10:$U$10234,0)+6-INDEX(Week!$T$10:$T$10234,MATCH(AB176,Week!$U$10:$U$10234,0))) -> 3879 | AD176: =INDEX(Week!$R$10:$R$10234,Calculation!AC176) -> 2013-08-16 | AF176: =Week!D176 -> 2006-03-10 | AG176: 0.7652147971 | AH176: =AVERAGEIFS(CleanFOREX!F:F,CleanFOREX!E:E,">"&AF175,CleanFOREX!E:E,"<="&AF176) -> 0.73744 | AJ176: =Week!D176 -> 2006-03-10 | AK176: 1 | AL176: 1
C177: 2006-03-17 | D177: 0.6382358528 | E177: 0.7019219923 | F177: 0.06368613948 | G177: 0.1167762856 | H177: 0.003602272422 | I177: 0.001728492502 | J177: 0.03 | K177: 0.01 | L177: 0.02807687969 | M177: 0.396 | N177: 0.8640290428 | O177: 1.288105922 | P177: 0 | R177: =Week!D177 -> 2006-03-17 | S177: =IF(SUM(Calculation!AK161:AK175)=$S$9,AVERAGE(AG161:AG175),"") -> 0.6382358528 | U177: =IF(SUM(Calculation!AL161:AL175)=$U$9,AVERAGE(AH161:AH175),"") -> 0.7435834444 | V177: =IF(SUM(Calculation!AL165:AL175)=$V$9,AVERAGE(AH165:AH175),"") -> 0.7434665152 | Z177: ='Import_ESALQ '!B177 -> 2013-09-08 | AA177: ='Import_ESALQ '!C177 -> 0.5418 | AB177: 2013.8.9 | AC177: =IF(INDEX(Week!$T$10:$T$10234,MATCH(AB177,Week!$U$10:$U$10234,0))=6,MATCH(AB177,Week!$U$10:$U$10234,0),MATCH(AB177,Week!$U$10:$U$10234,0)+6-INDEX(Week!$T$10:$T$10234,MATCH(AB177,Week!$U$10:$U$10234,0))) -> 3872 | AD177: =INDEX(Week!$R$10:$R$10234,Calculation!AC177) -> 2013-08-09 | AF177: =Week!D177 -> 2006-03-17 | AG177: 0.7806767224 | AH177: =AVERAGEIFS(CleanFOREX!F:F,CleanFOREX!E:E,">"&AF176,CleanFOREX!E:E,"<="&AF177) -> 0.7359 | AJ177: =Week!D177 -> 2006-03-17 | AK177: 1 | AL177: 1
C178: 2006-03-24 | D178: 0.6517943422 | E178: 0.7154711189 | F178: 0.06367677672 | G178: 0.1167665766 | H178: 0.00366184586 | I178: 0.001728492502 | J178: 0.03 | K178: 0.01 | L178: 0.02861884476 | M178: 0.396 | N178: 0.8776280339 | O178: 1.302246879 | P178: 0 | R178: =Week!D178 -> 2006-03-24 | S178: =IF(SUM(Calculation!AK162:AK176)=$S$9,AVERAGE(AG162:AG176),"") -> 0.6517943422 | U178: =IF(SUM(Calculation!AL162:AL176)=$U$9,AVERAGE(AH162:AH176),"") -> 0.7436927778 | V178: =IF(SUM(Calculation!AL166:AL176)=$V$9,AVERAGE(AH166:AH176),"") -> 0.7435283333 | Z178: ='Import_ESALQ '!B178 -> 2013-02-08 | AA178: ='Import_ESALQ '!C178 -> 0.5548 | AB178: 2013.8.2 | AC178: =IF(INDEX(Week!$T$10:$T$10234,MATCH(AB178,Week!$U$10:$U$10234,0))=6,MATCH(AB178,Week!$U$10:$U$10234,0),MATCH(AB178,Week!$U$10:$U$10234,0)+6-INDEX(Week!$T$10:$T$10234,MATCH(AB178,Week!$U$10:$U$10234,0))) -> 3865 | AD178: =INDEX(Week!$R$10:$R$10234,Calculation!AC178) -> 2013-08-02 | AF178: =Week!D178 -> 2006-03-24 | AG178: 0.7835685849 | AH178: =AVERAGEIFS(CleanFOREX!F:F,CleanFOREX!E:E,">"&AF177,CleanFOREX!E:E,"<="&AF178) -> 0.71838 | AJ178: =Week!D178 -> 2006-03-24 | AK178: 1 | AL178: 1
C179: 2006-03-31 | D179: 0.6639394552 | E179: 0.7276321046 | F179: 0.06369264936 | G179: 0.1166819295 | H179: 0.00371498175 | I179: 0.001728492502 | J179: 0.03 | K179: 0.01 | L179: 0.02910528418 | M179: 0.396 | N179: 0.8897575083 | O179: 1.314862793 | P179: 0 | R179: =Week!D179 -> 2006-03-31 | S179: =IF(SUM(Calculation!AK163:AK177)=$S$9,AVERAGE(AG163:AG177),"") -> 0.6639394552 | U179: =IF(SUM(Calculation!AL163:AL177)=$U$9,AVERAGE(AH163:AH177),"") -> 0.7435074444 | V179: =IF(SUM(Calculation!AL167:AL177)=$V$9,AVERAGE(AH167:AH177),"") -> 0.7440677273 | Z179: ='Import_ESALQ '!B179 -> 07/26/2013 | AA179: ='Import_ESALQ '!C179 -> 0.5696 | AB179: 2013.7.26 | AC179: =IF(INDEX(Week!$T$10:$T$10234,MATCH(AB179,Week!$U$10:$U$10234,0))=6,MATCH(AB179,Week!$U$10:$U$10234,0),MATCH(AB179,Week!$U$10:$U$10234,0)+6-INDEX(Week!$T$10:$T$10234,MATCH(AB179,Week!$U$10:$U$10234,0))) -> 3858 | AD179: =INDEX(Week!$R$10:$R$10234,Calculation!AC179) -> 2013-07-26 | AF179: =Week!D179 -> 2006-03-31 | AG179: 0.782884534 | AH179: =AVERAGEIFS(CleanFOREX!F:F,CleanFOREX!E:E,">"&AF178,CleanFOREX!E:E,"<="&AF179) -> 0.7093 | AJ179: =Week!D179 -> 2006-03-31 | AK179: 1 | AL179: 1
C180: 2006-04-07 | D180: 0.6735178887 | E180: 0.7373842827 | F180: 0.06386639399 | G180: 0.117045088 | H180: 0.003759489231 | I180: 0.001728492502 | J180: 0.03 | K180: 0.01 | L180: 0.02949537131 | M180: 0.396 | N180: 0.8999173525 | O180: 1.325412724 | P180: 0 | R180: =Week!D180 -> 2006-04-07 | S180: =IF(SUM(Calculation!AK164:AK178)=$S$9,AVERAGE(AG164:AG178),"") -> 0.6735178887 | U180: =IF(SUM(Calculation!AL164:AL178)=$U$9,AVERAGE(AH164:AH178),"") -> 0.7414847778 | V180: =IF(SUM(Calculation!AL168:AL178)=$V$9,AVERAGE(AH168:AH178),"") -> 0.7417590909 | Z180: ='Import_ESALQ '!B180 -> 07/19/2013 | AA180: ='Import_ESALQ '!C180 -> 0.5768 | AB180: 2013.7.19 | AC180: =IF(INDEX(Week!$T$10:$T$10234,MATCH(AB180,Week!$U$10:$U$10234,0))=6,MATCH(AB180,Week!$U$10:$U$10234,0),MATCH(AB180,Week!$U$10:$U$10234,0)+6-INDEX(Week!$T$10:$T$10234,MATCH(AB180,Week!$U$10:$U$10234,0))) -> 3851 | AD180: =INDEX(Week!$R$10:$R$10234,Calculation!AC180) -> 2013-07-19 | AF180: =Week!D180 -> 2006-04-07 | AG180: 0.7880517609 | AH180: =AVERAGEIFS(CleanFOREX!F:F,CleanFOREX!E:E,">"&AF179,CleanFOREX!E:E,"<="&AF180) -> 0.72178 | AJ180: =Week!D180 -> 2006-04-07 | AK180: 1 | AL180: 1
C181: 2006-04-14 | D181: 0.683606047 | E181: 0.7477210087 | F181: 0.06411496166 | G181: 0.1176582285 | H181: 0.003807668644 | I181: 0.001728492502 | J181: 0.03 | K181: 0.01 | L181: 0.02990884035 | M181: 0.396 | N181: 0.9109153983 | O181: 1.336824239 | P181: 0 | R181: =Week!D181 -> 2006-04-14 | S181: =IF(SUM(Calculation!AK165:AK179)=$S$9,AVERAGE(AG165:AG179),"") -> 0.683606047 | U181: =IF(SUM(Calculation!AL165:AL179)=$U$9,AVERAGE(AH165:AH179),"") -> 0.7386101111 | V181: =IF(SUM(Calculation!AL169:AL179)=$V$9,AVERAGE(AH169:AH179),"") -> 0.7378936364 | Z181: ='Import_ESALQ '!B181 -> 2013-12-07 | AA181: ='Import_ESALQ '!C181 -> 0.5798 | AB181: 2013.7.12 | AC181: =IF(INDEX(Week!$T$10:$T$10234,MATCH(AB181,Week!$U$10:$U$10234,0))=6,MATCH(AB181,Week!$U$10:$U$10234,0),MATCH(AB181,Week!$U$10:$U$10234,0)+6-INDEX(Week!$T$10:$T$10234,MATCH(AB181,Week!$U$10:$U$10234,0))) -> 3844 | AD181: =INDEX(Week!$R$10:$R$10234,Calculation!AC181) -> 2013-07-12 | AF181: =Week!D181 -> 2006-04-14 | AG181: 0.7709095885 | AH181: =AVERAGEIFS(CleanFOREX!F:F,CleanFOREX!E:E,">"&AF180,CleanFOREX!E:E,"<="&AF181) -> 0.730825 | AJ181: =Week!D181 -> 2006-04-14 | AK181: 1 | AL181: 1
C182: 2006-04-21 | D182: 0.6938043038 | E182: 0.758006072 | F182: 0.06420176817 | G182: 0.118077188 | H182: 0.003854766344 | I182: 0.001728492502 | J182: 0.03 | K182: 0.01 | L182: 0.03032024288 | M182: 0.396 | N182: 0.9216665189 | O182: 1.347986762 | P182: 0 | R182: =Week!D182 -> 2006-04-21 | S182: =IF(SUM(Calculation!AK166:AK180)=$S$9,AVERAGE(AG166:AG180),"") -> 0.6938043038 | U182: =IF(SUM(Calculation!AL166:AL180)=$U$9,AVERAGE(AH166:AH180),"") -> 0.7376114444 | V182: =IF(SUM(Calculation!AL170:AL180)=$V$9,AVERAGE(AH170:AH180),"") -> 0.7352754545 | Z182: ='Import_ESALQ '!B182 -> 2013-05-07 | AA182: ='Import_ESALQ '!C182 -> 0.5862 | AB182: 2013.7.5 | AC182: =IF(INDEX(Week!$T$10:$T$10234,MATCH(AB182,Week!$U$10:$U$10234,0))=6,MATCH(AB182,Week!$U$10:$U$10234,0),MATCH(AB182,Week!$U$10:$U$10234,0)+6-INDEX(Week!$T$10:$T$10234,MATCH(AB182,Week!$U$10:$U$10234,0))) -> 3837 | AD182: =INDEX(Week!$R$10:$R$10234,Calculation!AC182) -> 2013-07-05 | AF182: =Week!D182 -> 2006-04-21 | AG182: 0.7528411965 | AH182: =AVERAGEIFS(CleanFOREX!F:F,CleanFOREX!E:E,">"&AF181,CleanFOREX!E:E,"<="&AF182) -> 0.741325 | AJ182: =Week!D182 -> 2006-04-21 | AK182: 1 | AL182: 1
C183: 2006-04-28 | D183: 0.7024292002 | E183: 0.7666259881 | F183: 0.06419678793 | G183: 0.1183878672 | H183: 0.003894060963 | I183: 0.001728492502 | J183: 0.03 | K183: 0.01 | L183: 0.03066503952 | M183: 0.396 | N183: 0.9306364088 | O183: 1.357301448 | P183: 0 | R183: =Week!D183 -> 2006-04-28 | S183: =IF(SUM(Calculation!AK167:AK181)=$S$9,AVERAGE(AG167:AG181),"") -> 0.7024292002 | U183: =IF(SUM(Calculation!AL167:AL181)=$U$9,AVERAGE(AH167:AH181),"") -> 0.7376686667 | V183: =IF(SUM(Calculation!AL171:AL181)=$V$9,AVERAGE(AH171:AH181),"") -> 0.7333459091 | Z183: ='Import_ESALQ '!B183 -> 06/28/2013 | AA183: ='Import_ESALQ '!C183 -> 0.5951 | AB183: 2013.6.28 | AC183: =IF(INDEX(Week!$T$10:$T$10234,MATCH(AB183,Week!$U$10:$U$10234,0))=6,MATCH(AB183,Week!$U$10:$U$10234,0),MATCH(AB183,Week!$U$10:$U$10234,0)+6-INDEX(Week!$T$10:$T$10234,MATCH(AB183,Week!$U$10:$U$10234,0))) -> 3830 | AD183: =INDEX(Week!$R$10:$R$10234,Calculation!AC183) -> 2013-06-28 | AF183: =Week!D183 -> 2006-04-28 | AG183: 0.6583274959 | AH183: =AVERAGEIFS(CleanFOREX!F:F,CleanFOREX!E:E,">"&AF182,CleanFOREX!E:E,"<="&AF183) -> 0.749475 | AJ183: =Week!D183 -> 2006-04-28 | AK183: 1 | AL183: 1
C184: 2006-05-05 | D184: 0.7104911778 | E184: 0.7747021832 | F184: 0.06421100542 | G184: 0.1185520982 | H184: 0.003930318838 | I184: 0.001728492502 | J184: 0.03 | K184: 0.01 | L184: 0.03098808733 | M184: 0.396 | N184: 0.9389130928 | O184: 1.36590118 | P184: 0 | R184: =Week!D184 -> 2006-05-05 | S184: =IF(SUM(Calculation!AK168:AK182)=$S$9,AVERAGE(AG168:AG182),"") -> 0.7104911778 | U184: =IF(SUM(Calculation!AL168:AL182)=$U$9,AVERAGE(AH168:AH182),"") -> 0.7375053333 | V184: =IF(SUM(Calculation!AL172:AL182)=$V$9,AVERAGE(AH172:AH182),"") -> 0.73233 | Z184: ='Import_ESALQ '!B184 -> 06/21/2013 | AA184: ='Import_ESALQ '!C184 -> 0.5949 | AB184: 2013.6.21 | AC184: =IF(INDEX(Week!$T$10:$T$10234,MATCH(AB184,Week!$U$10:$U$10234,0))=6,MATCH(AB184,Week!$U$10:$U$10234,0),MATCH(AB184,Week!$U$10:$U$10234,0)+6-INDEX(Week!$T$10:$T$10234,MATCH(AB184,Week!$U$10:$U$10234,0))) -> 3823 | AD184: =INDEX(Week!$R$10:$R$10234,Calculation!AC184) -> 2013-06-21 | AF184: =Week!D184 -> 2006-05-05 | AG184: 0.6198141605 | AH184: =AVERAGEIFS(CleanFOREX!F:F,CleanFOREX!E:E,">"&AF183,CleanFOREX!E:E,"<="&AF184) -> 0.7641 | AJ184: =Week!D184 -> 2006-05-05 | AK184: 1 | AL184: 1
C185: 2006-05-12 | D185: 0.7134035573 | E185: 0.7776281768 | F185: 0.06422461949 | G185: 0.1184316176 | H185: 0.003942663096 | I185: 0.001728492502 | J185: 0.03 | K185: 0.01 | L185: 0.03110512707 | M185: 0.396 | N185: 0.9417309501 | O185: 1.368836077 | P185: 0 | R185: =Week!D185 -> 2006-05-12 | S185: =IF(SUM(Calculation!AK169:AK183)=$S$9,AVERAGE(AG169:AG183),"") -> 0.7134035573 | U185: =IF(SUM(Calculation!AL169:AL183)=$U$9,AVERAGE(AH169:AH183),"") -> 0.737349 | V185: =IF(SUM(Calculation!AL173:AL183)=$V$9,AVERAGE(AH173:AH183),"") -> 0.733075 | Z185: ='Import_ESALQ '!B185 -> 06/14/2013 | AA185: ='Import_ESALQ '!C185 -> 0.6058 | AB185: 2013.6.14 | AC185: =IF(INDEX(Week!$T$10:$T$10234,MATCH(AB185,Week!$U$10:$U$10234,0))=6,MATCH(AB185,Week!$U$10:$U$10234,0),MATCH(AB185,Week!$U$10:$U$10234,0)+6-INDEX(Week!$T$10:$T$10234,MATCH(AB185,Week!$U$10:$U$10234,0))) -> 3816 | AD185: =INDEX(Week!$R$10:$R$10234,Calculation!AC185) -> 2013-06-14 | AF185: =Week!D185 -> 2006-05-12 | AG185: 0.600326391 | AH185: =AVERAGEIFS(CleanFOREX!F:F,CleanFOREX!E:E,">"&AF184,CleanFOREX!E:E,"<="&AF185) -> 0.77208 | AJ185: =Week!D185 -> 2006-05-12 | AK185: 1 | AL185: 1
C186: 2006-05-19 | D186: 0.7153327421 | E186: 0.7794789495 | F186: 0.06414620735 | G186: 0.1180574097 | H186: 0.00394915998 | I186: 0.001728492502 | J186: 0.03 | K186: 0.01 | L186: 0.03117915798 | M186: 0.396 | N186: 0.9432140116 | O186: 1.37039317 | P186: 0 | R186: =Week!D186 -> 2006-05-19 | S186: =IF(SUM(Calculation!AK170:AK184)=$S$9,AVERAGE(AG170:AG184),"") -> 0.7153327421 | U186: =IF(SUM(Calculation!AL170:AL184)=$U$9,AVERAGE(AH170:AH184),"") -> 0.7382503333 | V186: =IF(SUM(Calculation!AL174:AL184)=$V$9,AVERAGE(AH174:AH184),"") -> 0.7353986364 | Z186: ='Import_ESALQ '!B186 -> 2013-07-06 | AA186: ='Import_ESALQ '!C186 -> 0.6145 | AB186: 2013.6.7 | AC186: =IF(INDEX(Week!$T$10:$T$10234,MATCH(AB186,Week!$U$10:$U$10234,0))=6,MATCH(AB186,Week!$U$10:$U$10234,0),MATCH(AB186,Week!$U$10:$U$10234,0)+6-INDEX(Week!$T$10:$T$10234,MATCH(AB186,Week!$U$10:$U$10234,0))) -> 3809 | AD186: =INDEX(Week!$R$10:$R$10234,Calculation!AC186) -> 2013-06-07 | AF186: =Week!D186 -> 2006-05-19 | AG186: 0.5762344146 | AH186: =AVERAGEIFS(CleanFOREX!F:F,CleanFOREX!E:E,">"&AF185,CleanFOREX!E:E,"<="&AF186) -> 0.76514 | AJ186: =Week!D186 -> 2006-05-19 | AK186: 1 | AL186: 1
C187: 2006-05-26 | D187: 0.7148252814 | E187: 0.7788556718 | F187: 0.06403039038 | G187: 0.1175748655 | H187: 0.003944294364 | I187: 0.001728492502 | J187: 0.03 | K187: 0.01 | L187: 0.03115422687 | M187: 0.396 | N187: 0.9421033241 | O187: 1.369257551 | P187: 0 | R187: =Week!D187 -> 2006-05-26 | S187: =IF(SUM(Calculation!AK171:AK185)=$S$9,AVERAGE(AG171:AG185),"") -> 0.7148252814 | U187: =IF(SUM(Calculation!AL171:AL185)=$U$9,AVERAGE(AH171:AH185),"") -> 0.7395856667 | V187: =IF(SUM(Calculation!AL175:AL185)=$V$9,AVERAGE(AH175:AH185),"") -> 0.7384168182 | Z187: ='Import_ESALQ '!B187 -> 05/31/2013 | AA187: ='Import_ESALQ '!C187 -> 0.6167 | AB187: 2013.5.31 | AC187: =IF(INDEX(Week!$T$10:$T$10234,MATCH(AB187,Week!$U$10:$U$10234,0))=6,MATCH(AB187,Week!$U$10:$U$10234,0),MATCH(AB187,Week!$U$10:$U$10234,0)+6-INDEX(Week!$T$10:$T$10234,MATCH(AB187,Week!$U$10:$U$10234,0))) -> 3802 | AD187: =INDEX(Week!$R$10:$R$10234,Calculation!AC187) -> 2013-05-31 | AF187: =Week!D187 -> 2006-05-26 | AG187: 0.5547001513 | AH187: =AVERAGEIFS(CleanFOREX!F:F,CleanFOREX!E:E,">"&AF186,CleanFOREX!E:E,"<="&AF187) -> 0.75338 | AJ187: =Week!D187 -> 2006-05-26 | AK187: 1 | AL187: 1
C188: 2006-06-02 | D188: 0.7123461139 | E188: 0.7763036326 | F188: 0.06395751868 | G188: 0.1172405764 | H188: 0.003931594519 | I188: 0.001728492502 | J188: 0.03 | K188: 0.01 | L188: 0.0310521453 | M188: 0.396 | N188: 0.939204296 | O188: 1.366256441 | P188: 0 | R188: =Week!D188 -> 2006-06-02 | S188: =IF(SUM(Calculation!AK172:AK186)=$S$9,AVERAGE(AG172:AG186),"") -> 0.7123461139 | U188: =IF(SUM(Calculation!AL172:AL186)=$U$9,AVERAGE(AH172:AH186),"") -> 0.7404283333 | V188: =IF(SUM(Calculation!AL176:AL186)=$V$9,AVERAGE(AH176:AH186),"") -> 0.7405222727 | Z188: ='Import_ESALQ '!B188 -> 05/24/2013 | AA188: ='Import_ESALQ '!C188 -> 0.6408 | AB188: 2013.5.24 | AC188: =IF(INDEX(Week!$T$10:$T$10234,MATCH(AB188,Week!$U$10:$U$10234,0))=6,MATCH(AB188,Week!$U$10:$U$10234,0),MATCH(AB188,Week!$U$10:$U$10234,0)+6-INDEX(Week!$T$10:$T$10234,MATCH(AB188,Week!$U$10:$U$10234,0))) -> 3795 | AD188: =INDEX(Week!$R$10:$R$10234,Calculation!AC188) -> 2013-05-24 | AF188: =Week!D188 -> 2006-06-02 | AG188: 0.5568789371 | AH188: =AVERAGEIFS(CleanFOREX!F:F,CleanFOREX!E:E,">"&AF187,CleanFOREX!E:E,"<="&AF188) -> 0.75564 | AJ188: =Week!D188 -> 2006-06-02 | AK188: 1 | AL188: 1
C189: 2006-06-09 | D189: 0.7061395638 | E189: 0.7700274792 | F189: 0.06388791538 | G189: 0.1170116023 | H189: 0.003902971958 | I189: 0.001728492502 | J189: 0.03 | K189: 0.01 | L189: 0.03080109917 | M189: 0.396 | N189: 0.9326705459 | O189: 1.359471645 | P189: 0 | R189: =Week!D189 -> 2006-06-09 | S189: =IF(SUM(Calculation!AK173:AK187)=$S$9,AVERAGE(AG173:AG187),"") -> 0.7061395638 | U189: =IF(SUM(Calculation!AL173:AL187)=$U$9,AVERAGE(AH173:AH187),"") -> 0.741235 | V189: =IF(SUM(Calculation!AL177:AL187)=$V$9,AVERAGE(AH177:AH187),"") -> 0.7419713636 | Z189: ='Import_ESALQ '!B189 -> 05/17/2013 | AA189: ='Import_ESALQ '!C189 -> 0.669 | AB189: 2013.5.17 | AC189: =IF(INDEX(Week!$T$10:$T$10234,MATCH(AB189,Week!$U$10:$U$10234,0))=6,MATCH(AB189,Week!$U$10:$U$10234,0),MATCH(AB189,Week!$U$10:$U$10234,0)+6-INDEX(Week!$T$10:$T$10234,MATCH(AB189,Week!$U$10:$U$10234,0))) -> 3788 | AD189: =INDEX(Week!$R$10:$R$10234,Calculation!AC189) -> 2013-05-17 | AF189: =Week!D189 -> 2006-06-09 | AG189: 0.5734473882 | AH189: =AVERAGEIFS(CleanFOREX!F:F,CleanFOREX!E:E,">"&AF188,CleanFOREX!E:E,"<="&AF189) -> 0.74584 | AJ189: =Week!D189 -> 2006-06-09 | AK189: 1 | AL189: 1
C190: 2006-06-16 | D190: 0.697877982 | E190: 0.7616677903 | F190: 0.06378980833 | G190: 0.1167292787 | H190: 0.003864947104 | I190: 0.001728492502 | J190: 0.03 | K190: 0.01 | L190: 0.03046671161 | M190: 0.396 | N190: 0.9239905086 | O190: 1.35045722 | P190: 0 | R190: =Week!D190 -> 2006-06-16 | S190: =IF(SUM(Calculation!AK174:AK188)=$S$9,AVERAGE(AG174:AG188),"") -> 0.697877982 | U190: =IF(SUM(Calculation!AL174:AL188)=$U$9,AVERAGE(AH174:AH188),"") -> 0.742375 | V190: =IF(SUM(Calculation!AL178:AL188)=$V$9,AVERAGE(AH178:AH188),"") -> 0.7437659091 | Z190: ='Import_ESALQ '!B190 -> 2013-10-05 | AA190: ='Import_ESALQ '!C190 -> 0.6836 | AB190: 2013.5.10 | AC190: =IF(INDEX(Week!$T$10:$T$10234,MATCH(AB190,Week!$U$10:$U$10234,0))=6,MATCH(AB190,Week!$U$10:$U$10234,0),MATCH(AB190,Week!$U$10:$U$10234,0)+6-INDEX(Week!$T$10:$T$10234,MATCH(AB190,Week!$U$10:$U$10234,0))) -> 3781 | AD190: =INDEX(Week!$R$10:$R$10234,Calculation!AC190) -> 2013-05-10 | AF190: =Week!D190 -> 2006-06-16 | AG190: 0.5744587429 | AH190: =AVERAGEIFS(CleanFOREX!F:F,CleanFOREX!E:E,">"&AF189,CleanFOREX!E:E,"<="&AF190) -> 0.740175 | AJ190: =Week!D190 -> 2006-06-16 | AK190: 1 | AL190: 1
C191: 2006-06-23 | D191: 0.6876290291 | E191: 0.7513789924 | F191: 0.06374996326 | G191: 0.1163388011 | H191: 0.003817958291 | I191: 0.001728492502 | J191: 0.03 | K191: 0.01 | L191: 0.0300551597 | M191: 0.396 | N191: 0.9132642443 | O191: 1.339319404 | P191: 0 | R191: =Week!D191 -> 2006-06-23 | S191: =IF(SUM(Calculation!AK175:AK189)=$S$9,AVERAGE(AG175:AG189),"") -> 0.6876290291 | U191: =IF(SUM(Calculation!AL175:AL189)=$U$9,AVERAGE(AH175:AH189),"") -> 0.742839 | V191: =IF(SUM(Calculation!AL179:AL189)=$V$9,AVERAGE(AH179:AH189),"") -> 0.7462622727 | Z191: ='Import_ESALQ '!B191 -> 2013-03-05 | AA191: ='Import_ESALQ '!C191 -> 0.6612 | AB191: 2013.5.3 | AC191: =IF(INDEX(Week!$T$10:$T$10234,MATCH(AB191,Week!$U$10:$U$10234,0))=6,MATCH(AB191,Week!$U$10:$U$10234,0),MATCH(AB191,Week!$U$10:$U$10234,0)+6-INDEX(Week!$T$10:$T$10234,MATCH(AB191,Week!$U$10:$U$10234,0))) -> 3774 | AD191: =INDEX(Week!$R$10:$R$10234,Calculation!AC191) -> 2013-05-03 | AF191: =Week!D191 -> 2006-06-23 | AG191: 0.5974152646 | AH191: =AVERAGEIFS(CleanFOREX!F:F,CleanFOREX!E:E,">"&AF190,CleanFOREX!E:E,"<="&AF191) -> 0.73818 | AJ191: =Week!D191 -> 2006-06-23 | AK191: 1 | AL191: 1
C192: 2006-06-30 | D192: 0.6758889911 | E192: 0.7396492829 | F192: 0.06376029186 | G192: 0.1159028708 | H192: 0.003764429477 | I192: 0.001728492502 | J192: 0.03 | K192: 0.01 | L192: 0.02958597132 | M192: 0.396 | N192: 0.9010450757 | O192: 1.326631047 | P192: 0 | R192: =Week!D192 -> 2006-06-30 | S192: =IF(SUM(Calculation!AK176:AK190)=$S$9,AVERAGE(AG176:AG190),"") -> 0.6758889911 | U192: =IF(SUM(Calculation!AL176:AL190)=$U$9,AVERAGE(AH176:AH190),"") -> 0.7427186667 | V192: =IF(SUM(Calculation!AL180:AL190)=$V$9,AVERAGE(AH180:AH190),"") -> 0.7490690909 | Z192: ='Import_ESALQ '!B192 -> 04/26/2013 | AA192: ='Import_ESALQ '!C192 -> 0.6815 | AB192: 2013.4.26 | AC192: =IF(INDEX(Week!$T$10:$T$10234,MATCH(AB192,Week!$U$10:$U$10234,0))=6,MATCH(AB192,Week!$U$10:$U$10234,0),MATCH(AB192,Week!$U$10:$U$10234,0)+6-INDEX(Week!$T$10:$T$10234,MATCH(AB192,Week!$U$10:$U$10234,0))) -> 3767 | AD192: =INDEX(Week!$R$10:$R$10234,Calculation!AC192) -> 2013-04-26 | AF192: =Week!D192 -> 2006-06-30 | AG192: 0.6346069988 | AH192: =AVERAGEIFS(CleanFOREX!F:F,CleanFOREX!E:E,">"&AF191,CleanFOREX!E:E,"<="&AF192) -> 0.73384 | AJ192: =Week!D192 -> 2006-06-30 | AK192: 1 | AL192: 1
C193: 2006-07-07 | D193: 0.6647023555 | E193: 0.7284584126 | F193: 0.06375605702 | G193: 0.1156726419 | H193: 0.00371417664 | I193: 0.001728492502 | J193: 0.03 | K193: 0.01 | L193: 0.0291383365 | M193: 0.396 | N193: 0.8895737236 | O193: 1.31471206 | P193: 0 | R193: =Week!D193 -> 2006-07-07 | S193: =IF(SUM(Calculation!AK177:AK191)=$S$9,AVERAGE(AG177:AG191),"") -> 0.6647023555 | U193: =IF(SUM(Calculation!AL177:AL191)=$U$9,AVERAGE(AH177:AH191),"") -> 0.742768 | V193: =IF(SUM(Calculation!AL181:AL191)=$V$9,AVERAGE(AH181:AH191),"") -> 0.75056 | Z193: ='Import_ESALQ '!B193 -> 04/19/2013 | AA193: ='Import_ESALQ '!C193 -> 0.6985 | AB193: 2013.4.19 | AC193: =IF(INDEX(Week!$T$10:$T$10234,MATCH(AB193,Week!$U$10:$U$10234,0))=6,MATCH(AB193,Week!$U$10:$U$10234,0),MATCH(AB193,Week!$U$10:$U$10234,0)+6-INDEX(Week!$T$10:$T$10234,MATCH(AB193,Week!$U$10:$U$10234,0))) -> 3760 | AD193: =INDEX(Week!$R$10:$R$10234,Calculation!AC193) -> 2013-04-19 | AF193: =Week!D193 -> 2006-07-07 | AG193: 0.6363025662 | AH193: =AVERAGEIFS(CleanFOREX!F:F,CleanFOREX!E:E,">"&AF192,CleanFOREX!E:E,"<="&AF193) -> 0.7443 | AJ193: =Week!D193 -> 2006-07-07 | AK193: 1 | AL193: 1
C194: 2006-07-14 | D194: 0.654964374 | E194: 0.7187322213 | F194: 0.06376784731 | G194: 0.1156304157 | H194: 0.003671195603 | I194: 0.001728492502 | J194: 0.03 | K194: 0.01 | L194: 0.02874928885 | M194: 0.396 | N194: 0.8797623251 | O194: 1.304511614 | P194: 0 | R194: =Week!D194 -> 2006-07-14 | S194: =IF(SUM(Calculation!AK178:AK192)=$S$9,AVERAGE(AG178:AG192),"") -> 0.654964374 | U194: =IF(SUM(Calculation!AL178:AL192)=$U$9,AVERAGE(AH178:AH192),"") -> 0.7426306667 | V194: =IF(SUM(Calculation!AL182:AL192)=$V$9,AVERAGE(AH182:AH192),"") -> 0.7508340909 | Z194: ='Import_ESALQ '!B194 -> 2013-12-04 | AA194: ='Import_ESALQ '!C194 -> 0.6814 | AB194: 2013.4.12 | AC194: =IF(INDEX(Week!$T$10:$T$10234,MATCH(AB194,Week!$U$10:$U$10234,0))=6,MATCH(AB194,Week!$U$10:$U$10234,0),MATCH(AB194,Week!$U$10:$U$10234,0)+6-INDEX(Week!$T$10:$T$10234,MATCH(AB194,Week!$U$10:$U$10234,0))) -> 3753 | AD194: =INDEX(Week!$R$10:$R$10234,Calculation!AC194) -> 2013-04-12 | AF194: =Week!D194 -> 2006-07-14 | AG194: 0.6326438371 | AH194: =AVERAGEIFS(CleanFOREX!F:F,CleanFOREX!E:E,">"&AF193,CleanFOREX!E:E,"<="&AF194) -> 0.75224 | AJ194: =Week!D194 -> 2006-07-14 | AK194: 1 | AL194: 1
C195: 2006-07-21 | D195: 0.6451466394 | E195: 0.7087664521 | F195: 0.0636198127 | G195: 0.11558878 | H195: 0.003627163021 | I195: 0.001728492502 | J195: 0.03 | K195: 0.01 | L195: 0.02835065808 | M195: 0.396 | N195: 0.8697108877 | O195: 1.294061546 | P195: 0 | R195: =Week!D195 -> 2006-07-21 | S195: =IF(SUM(Calculation!AK179:AK193)=$S$9,AVERAGE(AG179:AG193),"") -> 0.6451466394 | U195: =IF(SUM(Calculation!AL179:AL193)=$U$9,AVERAGE(AH179:AH193),"") -> 0.7443586667 | V195: =IF(SUM(Calculation!AL183:AL193)=$V$9,AVERAGE(AH183:AH193),"") -> 0.7511045455 | Z195: ='Import_ESALQ '!B195 -> 2013-05-04 | AA195: ='Import_ESALQ '!C195 -> 0.663 | AB195: 2013.4.5 | AC195: =IF(INDEX(Week!$T$10:$T$10234,MATCH(AB195,Week!$U$10:$U$10234,0))=6,MATCH(AB195,Week!$U$10:$U$10234,0),MATCH(AB195,Week!$U$10:$U$10234,0)+6-INDEX(Week!$T$10:$T$10234,MATCH(AB195,Week!$U$10:$U$10234,0))) -> 3746 | AD195: =INDEX(Week!$R$10:$R$10234,Calculation!AC195) -> 2013-04-05 | AF195: =Week!D195 -> 2006-07-21 | AG195: 0.638437091 | AH195: =AVERAGEIFS(CleanFOREX!F:F,CleanFOREX!E:E,">"&AF194,CleanFOREX!E:E,"<="&AF195) -> 0.74886 | AJ195: =Week!D195 -> 2006-07-21 | AK195: 1 | AL195: 1
C196: 2006-07-28 | D196: 0.6351305929 | E196: 0.6985066729 | F196: 0.06337607995 | G196: 0.1155501102 | H196: 0.003581849846 | I196: 0.001728492502 | J196: 0.03 | K196: 0.01 | L196: 0.02794026692 | M196: 0.396 | N196: 0.8593671254 | O196: 1.283307392 | P196: 0 | R196: =Week!D196 -> 2006-07-28 | S196: =IF(SUM(Calculation!AK180:AK194)=$S$9,AVERAGE(AG180:AG194),"") -> 0.6351305929 | U196: =IF(SUM(Calculation!AL180:AL194)=$U$9,AVERAGE(AH180:AH194),"") -> 0.7472213333 | V196: =IF(SUM(Calculation!AL184:AL194)=$V$9,AVERAGE(AH184:AH194),"") -> 0.7513559091 | Z196: ='Import_ESALQ '!B196 -> 03/28/2013 | AA196: ='Import_ESALQ '!C196 -> 0.6634 | AB196: 2013.3.28 | AC196: =IF(INDEX(Week!$T$10:$T$10234,MATCH(AB196,Week!$U$10:$U$10234,0))=6,MATCH(AB196,Week!$U$10:$U$10234,0),MATCH(AB196,Week!$U$10:$U$10234,0)+6-INDEX(Week!$T$10:$T$10234,MATCH(AB196,Week!$U$10:$U$10234,0))) -> 3739 | AD196: =INDEX(Week!$R$10:$R$10234,Calculation!AC196) -> 2013-03-29 | AF196: =Week!D196 -> 2006-07-28 | AG196: 0.6220790537 | AH196: =AVERAGEIFS(CleanFOREX!F:F,CleanFOREX!E:E,">"&AF195,CleanFOREX!E:E,"<="&AF196) -> 0.75746 | AJ196: =Week!D196 -> 2006-07-28 | AK196: 1 | AL196: 1
C197: 2006-08-04 | D197: 0.6251562816 | E197: 0.68837961 | F197: 0.06322332844 | G197: 0.1157635712 | H197: 0.003538229997 | I197: 0.001728492502 | J197: 0.03 | K197: 0.01 | L197: 0.0275351844 | M197: 0.396 | N197: 0.8494099037 | O197: 1.272945088 | P197: 0 | R197: =Week!D197 -> 2006-08-04 | S197: =IF(SUM(Calculation!AK181:AK195)=$S$9,AVERAGE(AG181:AG195),"") -> 0.6251562816 | U197: =IF(SUM(Calculation!AL181:AL195)=$U$9,AVERAGE(AH181:AH195),"") -> 0.7490266667 | V197: =IF(SUM(Calculation!AL185:AL195)=$V$9,AVERAGE(AH185:AH195),"") -> 0.7499704545 | Z197: ='Import_ESALQ '!B197 -> 03/22/2013 | AA197: ='Import_ESALQ '!C197 -> 0.6686 | AB197: 2013.3.22 | AC197: =IF(INDEX(Week!$T$10:$T$10234,MATCH(AB197,Week!$U$10:$U$10234,0))=6,MATCH(AB197,Week!$U$10:$U$10234,0),MATCH(AB197,Week!$U$10:$U$10234,0)+6-INDEX(Week!$T$10:$T$10234,MATCH(AB197,Week!$U$10:$U$10234,0))) -> 3732 | AD197: =INDEX(Week!$R$10:$R$10234,Calculation!AC197) -> 2013-03-22 | AF197: =Week!D197 -> 2006-08-04 | AG197: 0.6113611387 | AH197: =AVERAGEIFS(CleanFOREX!F:F,CleanFOREX!E:E,">"&AF196,CleanFOREX!E:E,"<="&AF197) -> 0.76436 | AJ197: =Week!D197 -> 2006-08-04 | AK197: 1 | AL197: 1
C198: 2006-08-11 | D198: 0.615234246 | E198: 0.6783080496 | F198: 0.06307380366 | G198: 0.1159690906 | H198: 0.003494819417 | I198: 0.001728492502 | J198: 0.03 | K198: 0.01 | L198: 0.02713232198 | M198: 0.396 | N198: 0.8395004521 | O198: 1.262632774 | P198: 0 | R198: =Week!D198 -> 2006-08-11 | S198: =IF(SUM(Calculation!AK182:AK196)=$S$9,AVERAGE(AG182:AG196),"") -> 0.615234246 | U198: =IF(SUM(Calculation!AL182:AL196)=$U$9,AVERAGE(AH182:AH196),"") -> 0.7508023333 | V198: =IF(SUM(Calculation!AL186:AL196)=$V$9,AVERAGE(AH186:AH196),"") -> 0.7486413636 | Z198: ='Import_ESALQ '!B198 -> 03/15/2013 | AA198: ='Import_ESALQ '!C198 -> 0.6757 | AB198: 2013.3.15 | AC198: =IF(INDEX(Week!$T$10:$T$10234,MATCH(AB198,Week!$U$10:$U$10234,0))=6,MATCH(AB198,Week!$U$10:$U$10234,0),MATCH(AB198,Week!$U$10:$U$10234,0)+6-INDEX(Week!$T$10:$T$10234,MATCH(AB198,Week!$U$10:$U$10234,0))) -> 3725 | AD198: =INDEX(Week!$R$10:$R$10234,Calculation!AC198) -> 2013-03-15 | AF198: =Week!D198 -> 2006-08-11 | AG198: 0.5958671201 | AH198: =AVERAGEIFS(CleanFOREX!F:F,CleanFOREX!E:E,">"&AF197,CleanFOREX!E:E,"<="&AF198) -> 0.7646 | AJ198: =Week!D198 -> 2006-08-11 | AK198: 1 | AL198: 1
C199: 2006-08-18 | D199: 0.6058022421 | E199: 0.6687473 | F199: 0.06294505788 | G199: 0.1159800758 | H199: 0.003452800454 | I199: 0.001728492502 | J199: 0.03 | K199: 0.01 | L199: 0.026749892 | M199: 0.396 | N199: 0.8299086688 | O199: 1.252658561 | P199: 0 | R199: =Week!D199 -> 2006-08-18 | S199: =IF(SUM(Calculation!AK183:AK197)=$S$9,AVERAGE(AG183:AG197),"") -> 0.6058022421 | U199: =IF(SUM(Calculation!AL183:AL197)=$U$9,AVERAGE(AH183:AH197),"") -> 0.752338 | V199: =IF(SUM(Calculation!AL187:AL197)=$V$9,AVERAGE(AH187:AH197),"") -> 0.7485704545 | Z199: ='Import_ESALQ '!B199 -> 2013-08-03 | AA199: ='Import_ESALQ '!C199 -> 0.6831 | AB199: 2013.3.8 | AC199: =IF(INDEX(Week!$T$10:$T$10234,MATCH(AB199,Week!$U$10:$U$10234,0))=6,MATCH(AB199,Week!$U$10:$U$10234,0),MATCH(AB199,Week!$U$10:$U$10234,0)+6-INDEX(Week!$T$10:$T$10234,MATCH(AB199,Week!$U$10:$U$10234,0))) -> 3718 | AD199: =INDEX(Week!$R$10:$R$10234,Calculation!AC199) -> 2013-03-08 | AF199: =Week!D199 -> 2006-08-18 | AG199: 0.5640938367 | AH199: =AVERAGEIFS(CleanFOREX!F:F,CleanFOREX!E:E,">"&AF198,CleanFOREX!E:E,"<="&AF199) -> 0.76388 | AJ199: =Week!D199 -> 2006-08-18 | AK199: 1 | AL199: 1
C200: 2006-08-25 | D200: 0.601638217 | E200: 0.6644990247 | F200: 0.06286080766 | G200: 0.1158222568 | H200: 0.003433413638 | I200: 0.001728492502 | J200: 0.03 | K200: 0.01 | L200: 0.02657996099 | M200: 0.396 | N200: 0.8254831876 | O200: 1.248063149 | P200: 0 | R200: =Week!D200 -> 2006-08-25 | S200: =IF(SUM(Calculation!AK184:AK198)=$S$9,AVERAGE(AG184:AG198),"") -> 0.601638217 | U200: =IF(SUM(Calculation!AL184:AL198)=$U$9,AVERAGE(AH184:AH198),"") -> 0.7533463333 | V200: =IF(SUM(Calculation!AL188:AL198)=$V$9,AVERAGE(AH188:AH198),"") -> 0.7495904545 | Z200: ='Import_ESALQ '!B200 -> 2013-01-03 | AA200: ='Import_ESALQ '!C200 -> 0.6811 | AB200: 2013.3.1 | AC200: =IF(INDEX(Week!$T$10:$T$10234,MATCH(AB200,Week!$U$10:$U$10234,0))=6,MATCH(AB200,Week!$U$10:$U$10234,0),MATCH(AB200,Week!$U$10:$U$10234,0)+6-INDEX(Week!$T$10:$T$10234,MATCH(AB200,Week!$U$10:$U$10234,0))) -> 3711 | AD200: =INDEX(Week!$R$10:$R$10234,Calculation!AC200) -> 2013-03-01 | AF200: =Week!D200 -> 2006-08-25 | AG200: 0.5593064495 | AH200: =AVERAGEIFS(CleanFOREX!F:F,CleanFOREX!E:E,">"&AF199,CleanFOREX!E:E,"<="&AF200) -> 0.7613 | AJ200: =Week!D200 -> 2006-08-25 | AK200: 1 | AL200: 1
C201: 2006-09-01 | D201: 0.5979235288 | E201: 0.6607855603 | F201: 0.0628620315 | G201: 0.1157066272 | H201: 0.003416565625 | I201: 0.001728492502 | J201: 0.03 | K201: 0.01 | L201: 0.02643142241 | M201: 0.396 | N201: 0.8216372457 | O201: 1.244068668 | P201: 0 | R201: =Week!D201 -> 2006-09-01 | S201: =IF(SUM(Calculation!AK185:AK199)=$S$9,AVERAGE(AG185:AG199),"") -> 0.5979235288 | U201: =IF(SUM(Calculation!AL185:AL199)=$U$9,AVERAGE(AH185:AH199),"") -> 0.7533316667 | V201: =IF(SUM(Calculation!AL189:AL199)=$V$9,AVERAGE(AH189:AH199),"") -> 0.7503395455 | Z201: ='Import_ESALQ '!B201 -> 02/22/2013 | AA201: ='Import_ESALQ '!C201 -> 0.6872 | AB201: 2013.2.22 | AC201: =IF(INDEX(Week!$T$10:$T$10234,MATCH(AB201,Week!$U$10:$U$10234,0))=6,MATCH(AB201,Week!$U$10:$U$10234,0),MATCH(AB201,Week!$U$10:$U$10234,0)+6-INDEX(Week!$T$10:$T$10234,MATCH(AB201,Week!$U$10:$U$10234,0))) -> 3704 | AD201: =INDEX(Week!$R$10:$R$10234,Calculation!AC201) -> 2013-02-22 | AF201: =Week!D201 -> 2006-09-01 | AG201: 0.5523629589 | AH201: =AVERAGEIFS(CleanFOREX!F:F,CleanFOREX!E:E,">"&AF200,CleanFOREX!E:E,"<="&AF201) -> 0.76218 | AJ201: =Week!D201 -> 2006-09-01 | AK201: 1 | AL201: 1
C202: =R202 -> 2006-09-08 | D202: 0.595188866 | E202: 0.6581109242 | F202: 0.06292205816 | G202: 0.1154903033 | H202: 0.003403845401 | I202: 0.001728492502 | J202: 0.03 | K202: 0.01 | L202: 0.02632443697 | M202: 0.396 | N202: 0.8187335654 | O202: 1.241058002 | P202: 0 | R202: =Week!D202 -> 2006-09-08 | S202: =IF(SUM(Calculation!AK186:AK200)=$S$9,AVERAGE(AG186:AG200),"") -> 0.595188866 | U202: =IF(SUM(Calculation!AL186:AL200)=$U$9,AVERAGE(AH186:AH200),"") -> 0.752613 | V202: =IF(SUM(Calculation!AL190:AL200)=$V$9,AVERAGE(AH190:AH200),"") -> 0.751745 | Z202: ='Import_ESALQ '!B202 -> 02/15/2013 | AA202: ='Import_ESALQ '!C202 -> 0.6858 | AB202: 2013.2.15 | AC202: =IF(INDEX(Week!$T$10:$T$10234,MATCH(AB202,Week!$U$10:$U$10234,0))=6,MATCH(AB202,Week!$U$10:$U$10234,0),MATCH(AB202,Week!$U$10:$U$10234,0)+6-INDEX(Week!$T$10:$T$10234,MATCH(AB202,Week!$U$10:$U$10234,0))) -> 3697 | AD202: =INDEX(Week!$R$10:$R$10234,Calculation!AC202) -> 2013-02-15 | AF202: =Week!D202 -> 2006-09-08 | AG202: 0.5501187401 | AH202: =AVERAGEIFS(CleanFOREX!F:F,CleanFOREX!E:E,">"&AF201,CleanFOREX!E:E,"<="&AF202) -> 0.76638 | AJ202: =Week!D202 -> 2006-09-08 | AK202: 1 | AL202: 1
C203: 2006-09-15 | D203: 0.5935974356 | E203: 0.6565359961 | F203: 0.0629385605 | G203: 0.1151837899 | H203: 0.003395567059 | I203: 0.001728492502 | J203: 0.03 | K203: 0.01 | L203: 0.02626143985 | M203: 0.396 | N203: 0.8168438456 | O203: 1.239105285 | P203: 0 | R203: =Week!D203 -> 2006-09-15 | S203: =IF(SUM(Calculation!AK187:AK201)=$S$9,AVERAGE(AG187:AG201),"") -> 0.5935974356 | U203: =IF(SUM(Calculation!AL187:AL201)=$U$9,AVERAGE(AH187:AH201),"") -> 0.7524156667 | V203: =IF(SUM(Calculation!AL191:AL201)=$V$9,AVERAGE(AH191:AH201),"") -> 0.7537454545 | Z203: ='Import_ESALQ '!B203 -> 2013-08-02 | AA203: ='Import_ESALQ '!C203 -> 0.671 | AB203: =IF(ISNONTEXT(Z203),YEAR(Z203)&"."&DAY(Z203)&"."&MONTH(Z203),RIGHT(Z203,4)+0&"."&TEXT(LEFT(Z203,2),"#")+0&"."&MID(Z203,4,2)+0) -> 2013.2.8 | AC203: =IF(INDEX(Week!$T$10:$T$10234,MATCH(AB203,Week!$U$10:$U$10234,0))=6,MATCH(AB203,Week!$U$10:$U$10234,0),MATCH(AB203,Week!$U$10:$U$10234,0)+6-INDEX(Week!$T$10:$T$10234,MATCH(AB203,Week!$U$10:$U$10234,0))) -> 3690 | AD203: =INDEX(Week!$R$10:$R$10234,Calculation!AC203) -> 2013-02-08 | AF203: =Week!D203 -> 2006-09-15 | AG203: 0.5442466117 | AH203: =AVERAGEIFS(CleanFOREX!F:F,CleanFOREX!E:E,">"&AF202,CleanFOREX!E:E,"<="&AF203) -> 0.7526 | AJ203: =Week!D203 -> 2006-09-15 | AK203: =IF(ISNUMBER(AG203),1,0) -> 1 | AL203: =IF(ISNUMBER(AH203),1,0) -> 1
C204: 2006-09-22 | D204: 0.5932920082 | E204: 0.6561581566 | F204: 0.0628661484 | G204: 0.1147933552 | H204: 0.003392186652 | I204: 0.001728492502 | J204: 0.03 | K204: 0.01 | L204: 0.02624632627 | M204: 0.396 | N204: 0.816072191 | O204: 1.238318517 | P204: 0 | R204: =Week!D204 -> 2006-09-22 | S204: =IF(SUM(Calculation!AK188:AK202)=$S$9,AVERAGE(AG188:AG202),"") -> 0.5932920082 | U204: =IF(SUM(Calculation!AL188:AL202)=$U$9,AVERAGE(AH188:AH202),"") -> 0.7532823333 | V204: =IF(SUM(Calculation!AL192:AL202)=$V$9,AVERAGE(AH192:AH202),"") -> 0.7563090909 | Z204: ='Import_ESALQ '!B204 -> 2013-01-02 | AA204: ='Import_ESALQ '!C204 -> 0.668 | AB204: 2013.2.1 | AC204: =IF(INDEX(Week!$T$10:$T$10234,MATCH(AB204,Week!$U$10:$U$10234,0))=6,MATCH(AB204,Week!$U$10:$U$10234,0),MATCH(AB204,Week!$U$10:$U$10234,0)+6-INDEX(Week!$T$10:$T$10234,MATCH(AB204,Week!$U$10:$U$10234,0))) -> 3683 | AD204: =INDEX(Week!$R$10:$R$10234,Calculation!AC204) -> 2013-02-01 | AF204: =Week!D204 -> 2006-09-22 | AG204: =INDEX($AA$10:$AA$1423,MATCH(AF204,$AD$10:$AD$1423,0))/AH204 -> 0.5278153243 | AH204: =AVERAGEIFS(CleanFOREX!F:F,CleanFOREX!E:E,">"&AF203,CleanFOREX!E:E,"<="&AF204) -> 0.75462 | AJ204: =Week!D204 -> 2006-09-22 | AK204: 1 | AL204: 1
... 1219 more rows

Sheet CleanFOREX (hidden)
B2: Data downloaded from the RBA's website (Since 02-Jan-2014)
B3: =LEFT(Import_ExchangeRate!B13,(FIND(",",Import_ExchangeRate!B13,1)-1)) -> Source | C3: =SUBSTITUTE(MID(SUBSTITUTE("," & Import_ExchangeRate!B13&REPT(" ",6),",",REPT(",",255)),2*255,255),",","") -> WM/Reuters | F3: Final data | G3: Hardcoded data
B4: =LEFT(Import_ExchangeRate!B14,(FIND(",",Import_ExchangeRate!B14,1)-1)) -> Publication date | C4: =SUBSTITUTE(MID(SUBSTITUTE("," & Import_ExchangeRate!B14&REPT(" ",6),",",REPT(",",255)),2*255,255),",","") -> 24-Oct-2016 | E4: RBA Series ID | F4: FXRUSD | G4: FXRUSD
B5: =LEFT(Import_ExchangeRate!B15,(FIND(",",Import_ExchangeRate!B15,1)-1)) -> Series ID | C5: =SUBSTITUTE(MID(SUBSTITUTE("," & Import_ExchangeRate!B15&REPT(" ",6),",",REPT(",",255)),2*255,255),",","") -> FXRUSD | E5: RBA Series Title | F5: A$1=USD | G5: A$1=USD
E6: Description | F6: AUD/USD Exchange Rate | G6: AUD/USD Exchange Rate
E7: Frequency | F7: Daily | G7: Daily
E8: Units | F8: USD | G8: USD
E10: 2002-12-23 | F10: =IF(ISNA(MATCH(E10,$A$16:$A$10006,0)),G10,IF(ISERR(INDEX($C$16:$C$10006,MATCH(E10,$A$16:$A$10006,0))-0),"",INDEX($C$16:$C$10006,MATCH(E10,$A$16:$A$10006,0))-0)) -> 0.5627 | G10: 0.5627
E11: 2002-12-24 | F11: =IF(ISNA(MATCH(E11,$A$16:$A$10006,0)),G11,IF(ISERR(INDEX($C$16:$C$10006,MATCH(E11,$A$16:$A$10006,0))-0),"",INDEX($C$16:$C$10006,MATCH(E11,$A$16:$A$10006,0))-0)) -> 0.5617 | G11: 0.5617
E12: 2002-12-27 | F12: 0.5643 | G12: 0.5643
E13: 2002-12-30 | F13: 0.5636 | G13: 0.5636
E14: 2002-12-31 | F14: 0.5662 | G14: 0.5662
E15: 2003-01-02 | F15: 0.5634 | G15: 0.5634
A16: =B16-0 -> 2014-01-02 | B16: =LEFT(Import_ExchangeRate!B16,(FIND(",",Import_ExchangeRate!B16,1)-1)) -> 02-Jan-2014 | C16: =SUBSTITUTE(MID(SUBSTITUTE("," & Import_ExchangeRate!B16&REPT(" ",6),",",REPT(",",255)),2*255,255),",","") -> 0.8912 | E16: 2003-01-03 | F16: 0.5629 | G16: 0.5629
A17: =B17-0 -> 2014-01-03 | B17: =LEFT(Import_ExchangeRate!B17,(FIND(",",Import_ExchangeRate!B17,1)-1)) -> 03-Jan-2014 | C17: =SUBSTITUTE(MID(SUBSTITUTE("," & Import_ExchangeRate!B17&REPT(" ",6),",",REPT(",",255)),2*255,255),",","") -> 0.8982 | E17: 2003-01-06 | F17: 0.5696 | G17: 0.5696
A18: 2014-01-06 | B18: =LEFT(Import_ExchangeRate!B18,(FIND(",",Import_ExchangeRate!B18,1)-1)) -> 06-Jan-2014 | C18: =SUBSTITUTE(MID(SUBSTITUTE("," & Import_ExchangeRate!B18&REPT(" ",6),",",REPT(",",255)),2*255,255),",","") -> 0.8949 | E18: 2003-01-07 | F18: 0.5745 | G18: 0.5745
A19: 2014-01-07 | B19: =LEFT(Import_ExchangeRate!B19,(FIND(",",Import_ExchangeRate!B19,1)-1)) -> 07-Jan-2014 | C19: =SUBSTITUTE(MID(SUBSTITUTE("," & Import_ExchangeRate!B19&REPT(" ",6),",",REPT(",",255)),2*255,255),",","") -> 0.8920 | E19: 2003-01-08 | F19: 0.5737 | G19: 0.5737
A20: 2014-01-08 | B20: =LEFT(Import_ExchangeRate!B20,(FIND(",",Import_ExchangeRate!B20,1)-1)) -> 08-Jan-2014 | C20: =SUBSTITUTE(MID(SUBSTITUTE("," & Import_ExchangeRate!B20&REPT(" ",6),",",REPT(",",255)),2*255,255),",","") -> 0.8931 | E20: 2003-01-09 | F20: 0.5773 | G20: 0.5773
A21: 2014-01-09 | B21: =LEFT(Import_ExchangeRate!B21,(FIND(",",Import_ExchangeRate!B21,1)-1)) -> 09-Jan-2014 | C21: =SUBSTITUTE(MID(SUBSTITUTE("," & Import_ExchangeRate!B21&REPT(" ",6),",",REPT(",",255)),2*255,255),",","") -> 0.8882 | E21: 2003-01-10 | F21: 0.5759 | G21: 0.5759
A22: 2014-01-10 | B22: =LEFT(Import_ExchangeRate!B22,(FIND(",",Import_ExchangeRate!B22,1)-1)) -> 10-Jan-2014 | C22: =SUBSTITUTE(MID(SUBSTITUTE("," & Import_ExchangeRate!B22&REPT(" ",6),",",REPT(",",255)),2*255,255),",","") -> 0.8905 | E22: 2003-01-13 | F22: 0.5835 | G22: 0.5835
A23: 2014-01-13 | B23: =LEFT(Import_ExchangeRate!B23,(FIND(",",Import_ExchangeRate!B23,1)-1)) -> 13-Jan-2014 | C23: =SUBSTITUTE(MID(SUBSTITUTE("," & Import_ExchangeRate!B23&REPT(" ",6),",",REPT(",",255)),2*255,255),",","") -> 0.9036 | E23: 2003-01-14 | F23: 0.5863 | G23: 0.5863
A24: 2014-01-14 | B24: =LEFT(Import_ExchangeRate!B24,(FIND(",",Import_ExchangeRate!B24,1)-1)) -> 14-Jan-2014 | C24: =SUBSTITUTE(MID(SUBSTITUTE("," & Import_ExchangeRate!B24&REPT(" ",6),",",REPT(",",255)),2*255,255),",","") -> 0.9035 | E24: 2003-01-15 | F24: 0.5868 | G24: 0.5868
A25: 2014-01-15 | B25: =LEFT(Import_ExchangeRate!B25,(FIND(",",Import_ExchangeRate!B25,1)-1)) -> 15-Jan-2014 | C25: =SUBSTITUTE(MID(SUBSTITUTE("," & Import_ExchangeRate!B25&REPT(" ",6),",",REPT(",",255)),2*255,255),",","") -> 0.8913 | E25: 2003-01-16 | F25: 0.5869 | G25: 0.5869
A26: 2014-01-16 | B26: =LEFT(Import_ExchangeRate!B26,(FIND(",",Import_ExchangeRate!B26,1)-1)) -> 16-Jan-2014 | C26: =SUBSTITUTE(MID(SUBSTITUTE("," & Import_ExchangeRate!B26&REPT(" ",6),",",REPT(",",255)),2*255,255),",","") -> 0.8814 | E26: 2003-01-17 | F26: 0.5895 | G26: 0.5895
A27: 2014-01-17 | B27: =LEFT(Import_ExchangeRate!B27,(FIND(",",Import_ExchangeRate!B27,1)-1)) -> 17-Jan-2014 | C27: =SUBSTITUTE(MID(SUBSTITUTE("," & Import_ExchangeRate!B27&REPT(" ",6),",",REPT(",",255)),2*255,255),",","") -> 0.8821 | E27: 2003-01-20 | F27: 0.5904 | G27: 0.5904
A28: 2014-01-20 | B28: =LEFT(Import_ExchangeRate!B28,(FIND(",",Import_ExchangeRate!B28,1)-1)) -> 20-Jan-2014 | C28: =SUBSTITUTE(MID(SUBSTITUTE("," & Import_ExchangeRate!B28&REPT(" ",6),",",REPT(",",255)),2*255,255),",","") -> 0.8780 | E28: 2003-01-21 | F28: 0.5882 | G28: 0.5882
A29: 2014-01-21 | B29: =LEFT(Import_ExchangeRate!B29,(FIND(",",Import_ExchangeRate!B29,1)-1)) -> 21-Jan-2014 | C29: =SUBSTITUTE(MID(SUBSTITUTE("," & Import_ExchangeRate!B29&REPT(" ",6),",",REPT(",",255)),2*255,255),",","") -> 0.8819 | E29: 2003-01-22 | F29: 0.5899 | G29: 0.5899
A30: 2014-01-22 | B30: =LEFT(Import_ExchangeRate!B30,(FIND(",",Import_ExchangeRate!B30,1)-1)) -> 22-Jan-2014 | C30: =SUBSTITUTE(MID(SUBSTITUTE("," & Import_ExchangeRate!B30&REPT(" ",6),",",REPT(",",255)),2*255,255),",","") -> 0.8866 | E30: 2003-01-23 | F30: 0.587 | G30: 0.587
A31: 2014-01-23 | B31: =LEFT(Import_ExchangeRate!B31,(FIND(",",Import_ExchangeRate!B31,1)-1)) -> 23-Jan-2014 | C31: =SUBSTITUTE(MID(SUBSTITUTE("," & Import_ExchangeRate!B31&REPT(" ",6),",",REPT(",",255)),2*255,255),",","") -> 0.8798 | E31: 2003-01-24 | F31: 0.5931 | G31: 0.5931
A32: 2014-01-24 | B32: =LEFT(Import_ExchangeRate!B32,(FIND(",",Import_ExchangeRate!B32,1)-1)) -> 24-Jan-2014 | C32: =SUBSTITUTE(MID(SUBSTITUTE("," & Import_ExchangeRate!B32&REPT(" ",6),",",REPT(",",255)),2*255,255),",","") -> 0.8716 | E32: 2003-01-28 | F32: 0.5895 | G32: 0.5895
A33: 2014-01-28 | B33: =LEFT(Import_ExchangeRate!B33,(FIND(",",Import_ExchangeRate!B33,1)-1)) -> 28-Jan-2014 | C33: =SUBSTITUTE(MID(SUBSTITUTE("," & Import_ExchangeRate!B33&REPT(" ",6),",",REPT(",",255)),2*255,255),",","") -> 0.8787 | E33: 2003-01-29 | F33: 0.5888 | G33: 0.5888
A34: 2014-01-29 | B34: =LEFT(Import_ExchangeRate!B34,(FIND(",",Import_ExchangeRate!B34,1)-1)) -> 29-Jan-2014 | C34: =SUBSTITUTE(MID(SUBSTITUTE("," & Import_ExchangeRate!B34&REPT(" ",6),",",REPT(",",255)),2*255,255),",","") -> 0.8806 | E34: 2003-01-30 | F34: 0.5878 | G34: 0.5878
A35: 2014-01-30 | B35: =LEFT(Import_ExchangeRate!B35,(FIND(",",Import_ExchangeRate!B35,1)-1)) -> 30-Jan-2014 | C35: =SUBSTITUTE(MID(SUBSTITUTE("," & Import_ExchangeRate!B35&REPT(" ",6),",",REPT(",",255)),2*255,255),",","") -> 0.8726 | E35: 2003-01-31 | F35: 0.5884 | G35: 0.5884
A36: 2014-01-31 | B36: =LEFT(Import_ExchangeRate!B36,(FIND(",",Import_ExchangeRate!B36,1)-1)) -> 31-Jan-2014 | C36: =SUBSTITUTE(MID(SUBSTITUTE("," & Import_ExchangeRate!B36&REPT(" ",6),",",REPT(",",255)),2*255,255),",","") -> 0.8763 | E36: 2003-02-03 | F36: 0.586 | G36: 0.586
A37: 2014-02-03 | B37: =LEFT(Import_ExchangeRate!B37,(FIND(",",Import_ExchangeRate!B37,1)-1)) -> 03-Feb-2014 | C37: =SUBSTITUTE(MID(SUBSTITUTE("," & Import_ExchangeRate!B37&REPT(" ",6),",",REPT(",",255)),2*255,255),",","") -> 0.8755 | E37: 2003-02-04 | F37: 0.5851 | G37: 0.5851
A38: 2014-02-04 | B38: =LEFT(Import_ExchangeRate!B38,(FIND(",",Import_ExchangeRate!B38,1)-1)) -> 04-Feb-2014 | C38: =SUBSTITUTE(MID(SUBSTITUTE("," & Import_ExchangeRate!B38&REPT(" ",6),",",REPT(",",255)),2*255,255),",","") -> 0.8880 | E38: 2003-02-05 | F38: 0.5928 | G38: 0.5928
A39: 2014-02-05 | B39: =LEFT(Import_ExchangeRate!B39,(FIND(",",Import_ExchangeRate!B39,1)-1)) -> 05-Feb-2014 | C39: =SUBSTITUTE(MID(SUBSTITUTE("," & Import_ExchangeRate!B39&REPT(" ",6),",",REPT(",",255)),2*255,255),",","") -> 0.8892 | E39: 2003-02-06 | F39: 0.5894 | G39: 0.5894
A40: 2014-02-06 | B40: =LEFT(Import_ExchangeRate!B40,(FIND(",",Import_ExchangeRate!B40,1)-1)) -> 06-Feb-2014 | C40: =SUBSTITUTE(MID(SUBSTITUTE("," & Import_ExchangeRate!B40&REPT(" ",6),",",REPT(",",255)),2*255,255),",","") -> 0.8964 | E40: 2003-02-07 | F40: 0.5922 | G40: 0.5922
A41: 2014-02-07 | B41: =LEFT(Import_ExchangeRate!B41,(FIND(",",Import_ExchangeRate!B41,1)-1)) -> 07-Feb-2014 | C41: =SUBSTITUTE(MID(SUBSTITUTE("," & Import_ExchangeRate!B41&REPT(" ",6),",",REPT(",",255)),2*255,255),",","") -> 0.8940 | E41: 2003-02-10 | F41: 0.5916 | G41: 0.5916
A42: 2014-02-10 | B42: =LEFT(Import_ExchangeRate!B42,(FIND(",",Import_ExchangeRate!B42,1)-1)) -> 10-Feb-2014 | C42: =SUBSTITUTE(MID(SUBSTITUTE("," & Import_ExchangeRate!B42&REPT(" ",6),",",REPT(",",255)),2*255,255),",","") -> 0.8933 | E42: 2003-02-11 | F42: 0.5886 | G42: 0.5886
A43: 2014-02-11 | B43: =LEFT(Import_ExchangeRate!B43,(FIND(",",Import_ExchangeRate!B43,1)-1)) -> 11-Feb-2014 | C43: =SUBSTITUTE(MID(SUBSTITUTE("," & Import_ExchangeRate!B43&REPT(" ",6),",",REPT(",",255)),2*255,255),",","") -> 0.9009 | E43: 2003-02-12 | F43: 0.5924 | G43: 0.5924
A44: 2014-02-12 | B44: =LEFT(Import_ExchangeRate!B44,(FIND(",",Import_ExchangeRate!B44,1)-1)) -> 12-Feb-2014 | C44: =SUBSTITUTE(MID(SUBSTITUTE("," & Import_ExchangeRate!B44&REPT(" ",6),",",REPT(",",255)),2*255,255),",","") -> 0.9050 | E44: 2003-02-13 | F44: 0.5907 | G44: 0.5907
A45: 2014-02-13 | B45: =LEFT(Import_ExchangeRate!B45,(FIND(",",Import_ExchangeRate!B45,1)-1)) -> 13-Feb-2014 | C45: =SUBSTITUTE(MID(SUBSTITUTE("," & Import_ExchangeRate!B45&REPT(" ",6),",",REPT(",",255)),2*255,255),",","") -> 0.8934 | E45: 2003-02-14 | F45: 0.5958 | G45: 0.5958
A46: 2014-02-14 | B46: =LEFT(Import_ExchangeRate!B46,(FIND(",",Import_ExchangeRate!B46,1)-1)) -> 14-Feb-2014 | C46: =SUBSTITUTE(MID(SUBSTITUTE("," & Import_ExchangeRate!B46&REPT(" ",6),",",REPT(",",255)),2*255,255),",","") -> 0.8996 | E46: 2003-02-17 | F46: 0.5909 | G46: 0.5909
A47: 2014-02-17 | B47: =LEFT(Import_ExchangeRate!B47,(FIND(",",Import_ExchangeRate!B47,1)-1)) -> 17-Feb-2014 | C47: =SUBSTITUTE(MID(SUBSTITUTE("," & Import_ExchangeRate!B47&REPT(" ",6),",",REPT(",",255)),2*255,255),",","") -> 0.9049 | E47: 2003-02-18 | F47: 0.5911 | G47: 0.5911
A48: 2014-02-18 | B48: =LEFT(Import_ExchangeRate!B48,(FIND(",",Import_ExchangeRate!B48,1)-1)) -> 18-Feb-2014 | C48: =SUBSTITUTE(MID(SUBSTITUTE("," & Import_ExchangeRate!B48&REPT(" ",6),",",REPT(",",255)),2*255,255),",","") -> 0.9057 | E48: 2003-02-19 | F48: 0.5904 | G48: 0.5904
A49: 2014-02-19 | B49: =LEFT(Import_ExchangeRate!B49,(FIND(",",Import_ExchangeRate!B49,1)-1)) -> 19-Feb-2014 | C49: =SUBSTITUTE(MID(SUBSTITUTE("," & Import_ExchangeRate!B49&REPT(" ",6),",",REPT(",",255)),2*255,255),",","") -> 0.9017 | E49: 2003-02-20 | F49: 0.5952 | G49: 0.5952
A50: 2014-02-20 | B50: =LEFT(Import_ExchangeRate!B50,(FIND(",",Import_ExchangeRate!B50,1)-1)) -> 20-Feb-2014 | C50: =SUBSTITUTE(MID(SUBSTITUTE("," & Import_ExchangeRate!B50&REPT(" ",6),",",REPT(",",255)),2*255,255),",","") -> 0.8954 | E50: 2003-02-21 | F50: 0.5992 | G50: 0.5992
A51: 2014-02-21 | B51: =LEFT(Import_ExchangeRate!B51,(FIND(",",Import_ExchangeRate!B51,1)-1)) -> 21-Feb-2014 | C51: =SUBSTITUTE(MID(SUBSTITUTE("," & Import_ExchangeRate!B51&REPT(" ",6),",",REPT(",",255)),2*255,255),",","") -> 0.8992 | E51: 2003-02-24 | F51: 0.5987 | G51: 0.5987
A52: 2014-02-24 | B52: =LEFT(Import_ExchangeRate!B52,(FIND(",",Import_ExchangeRate!B52,1)-1)) -> 24-Feb-2014 | C52: =SUBSTITUTE(MID(SUBSTITUTE("," & Import_ExchangeRate!B52&REPT(" ",6),",",REPT(",",255)),2*255,255),",","") -> 0.8968 | E52: 2003-02-25 | F52: 0.6058 | G52: 0.6058
